Workbook

Sheet Feuille_entree
I2: 2) Saisie des données d'entrée | N2: 3) Options | Q2: 4) Création du transitoire
J5: VolL | K5: 35 | L5: m3 | N5: AN | O5: Oui | Q5: Nœud | R5: Temps | S5: Volume phase liquide
J6: AE | K6: 155 | N6: AO | O6: Oui | Q6: n° | R6: s | S6: m3
J7: W | K7: 2456.96 | N7: AP | O7: Non | Q7: 1 | R7: 0 | S7: 35
J8: U | K8: 99.7791 | Q8: 2 | R8: 30 | S8: 35
J9: V | K9: 1580.41 | Q9: 3 | R9: 60 | S9: 32
J10: T | K10: 607.456
C13: 1) Remise à zéro des données et du tableau (à effectuer à chaque ouverture du classeur !)

Sheet Resultats
A1: Temps | B1: B | C1: C | D1: VolL | E1: E | F1: F | G1: G | H1: H | I1: I | J1: J | K1: K | L1: L | M1: M | N1: N | O1: O | P1: P | Q1: Q | R1: R | S1: S | T1: T | U1: U | V1: V | W1: W | X1: X | Y1: Y | Z1: Z | AA1: AA | AB1: AB | AC1: AC | AD1: AD | AE1: AE | AF1: AF | AG1: AG | AH1: AH | AI1: AI | AJ1: AJ | AK1: AK | AL1: AL | AN1: AN | AO1: AO | AP1: AP | AR1: Pas de temps
A2: s | D2: m3 | AR2: s
A3: 0 | B3: 0 | C3: 0 | D3: 35 | E3: =60-D3 -> 25 | F3: =AJ3-U3 -> 2.150787556 | G3: =W3-AH3 -> 12.90576724 | H3: =D3*T3 -> 21260.96 | I3: =E3*U3 -> 2494.4775 | J3: 0 | K3: 0 | L3: =(INDEX(temp_liq,(MATCH(AE3,Pression_liq,-1)+1),MATCH("coeff1",coeff_liq,0))+(AE3-INDEX(Pression_liq,MATCH(AE3,Pression_liq,-1)+1))*(INDEX(temp_liq,(MATCH(AE3,Pression_liq,-1)),MATCH("coeff1",coeff_liq,0))-INDEX(temp_liq,(MATCH(AE3,Pression_liq,-1)+1),MATCH("coeff1",coeff_liq,0)))/(INDEX(Pression_liq,MATCH(AE3,Pression_liq,-1))-INDEX(Pression_liq,MATCH(AE3,Pression_liq,-1)+1)))*(V3/10000)^4+(INDEX(temp_liq,(MATCH(AE3,Pression_liq,-1)+1),MATCH("coeff2",coeff_liq,0))+(AE3-INDEX(Pression_liq,MATCH(AE3,Pression_liq,-1)+1))*(INDEX(temp_liq,(MATCH(AE3,Pression_liq,-1)),MATCH("coeff2",coeff_liq,0))-INDEX(temp_liq,(MATCH(AE3,Pression_liq,-1)+1),MATCH("coeff2",coeff_liq,0)))/(INDEX(Pression_liq,MATCH(AE3,Pression_liq,-1))-INDEX(Pression_liq,MATCH(AE3,Pression_liq,-1)+1)))*(V3/10000)^3+(INDEX(temp_liq,(MATCH(AE3,Pression_liq,-1)+1),MATCH("coeff3",coeff_liq,0))+(AE3-INDEX(Pression_liq,MATCH(AE3,Pression_liq,-1)+1))*(INDEX(temp_liq,(MATCH(AE3,Pression_liq,-1)),MATCH("coeff3",coeff_liq,0))-INDEX(temp_liq,(MATCH(AE3,Pression_liq,-1)+1),MATCH("coeff3",coeff_liq,0)))/(INDEX(Pression_liq,MATCH(AE3,Pression_liq,-1))-INDEX(Pression_liq,MATCH(AE3,Pression_liq,-1)+1)))*(V3/10000)^2+(INDEX(temp_liq,(MATCH(AE3,Pression_liq,-1)+1),MATCH("coeff4",coeff_liq,0))+(AE3-INDEX(Pression_liq,MATCH(AE3,Pression_liq,-1)+1))*(INDEX(temp_liq,(MATCH(AE3,Pression_liq,-1)),MATCH("coeff4",coeff_liq,0))-INDEX(temp_liq,(MATCH(AE3,Pression_liq,-1)+1),MATCH("coeff4",coeff_liq,0)))/(INDEX(Pression_liq,MATCH(AE3,Pression_liq,-1))-INDEX(Pression_liq,MATCH(AE3,Pression_liq,-1)+1)))*(V3/10000)+(INDEX(temp_liq,(MATCH(AE3,Pression_liq,-1)+1),MATCH("coeff5",coeff_liq,0))+(AE3-INDEX(Pression_liq,MATCH(AE3,Pression_liq,-1)+1))*(INDEX(temp_liq,(MATCH(AE3,Pression_liq,-1)),MATCH("coeff5",coeff_liq,0))-INDEX(temp_liq,(MATCH(AE3,Pression_liq,-1)+1),MATCH("coeff5",coeff_liq,0)))/(INDEX(Pression_liq,MATCH(AE3,Pression_liq,-1))-INDEX(Pression_liq,MATCH(AE3,Pression_liq,-1)+1))) -> 341.9985659 | M3: =(INDEX(temp_vap,(MATCH(AE3,Pression_vap,-1)+1),MATCH("coeff1",coeff_vap,0))+(AE3-INDEX(Pression_vap,MATCH(AE3,Pression_vap,-1)+1))*(INDEX(temp_vap,(MATCH(AE3,Pression_vap,-1)),MATCH("coeff1",coeff_vap,0))-INDEX(temp_vap,(MATCH(AE3,Pression_vap,-1)+1),MATCH("coeff1",coeff_vap,0)))/(INDEX(Pression_vap,MATCH(AE3,Pression_vap,-1))-INDEX(Pression_vap,MATCH(AE3,Pression_vap,-1)+1)))*(W3/10000)^4+(INDEX(temp_vap,(MATCH(AE3,Pression_vap,-1)+1),MATCH("coeff2",coeff_vap,0))+(AE3-INDEX(Pression_vap,MATCH(AE3,Pression_vap,-1)+1))*(INDEX(temp_vap,(MATCH(AE3,Pression_vap,-1)),MATCH("coeff2",coeff_vap,0))-INDEX(temp_vap,(MATCH(AE3,Pression_vap,-1)+1),MATCH("coeff2",coeff_vap,0)))/(INDEX(Pression_vap,MATCH(AE3,Pression_vap,-1))-INDEX(Pression_vap,MATCH(AE3,Pression_vap,-1)+1)))*(W3/10000)^3+(INDEX(temp_vap,(MATCH(AE3,Pression_vap,-1)+1),MATCH("coeff3",coeff_vap,0))+(AE3-INDEX(Pression_vap,MATCH(AE3,Pression_vap,-1)+1))*(INDEX(temp_vap,(MATCH(AE3,Pression_vap,-1)),MATCH("coeff3",coeff_vap,0))-INDEX(temp_vap,(MATCH(AE3,Pression_vap,-1)+1),MATCH("coeff3",coeff_vap,0)))/(INDEX(Pression_vap,MATCH(AE3,Pression_vap,-1))-INDEX(Pression_vap,MATCH(AE3,Pression_vap,-1)+1)))*(W3/10000)^2+(INDEX(temp_vap,(MATCH(AE3,Pression_vap,-1)+1),MATCH("coeff4",coeff_vap,0))+(AE3-INDEX(Pression_vap,MATCH(AE3,Pression_vap,-1)+1))*(INDEX(temp_vap,(MATCH(AE3,Pression_vap,-1)),MATCH("coeff4",coeff_vap,0))-INDEX(temp_vap,(MATCH(AE3,Pression_vap,-1)+1),MATCH("coeff4",coeff_vap,0)))/(INDEX(Pression_vap,MATCH(AE3,Pression_vap,-1))-INDEX(Pression_vap,MATCH(AE3,Pression_vap,-1)+1)))*(W3/10000)+(INDEX(temp_vap,(MATCH(AE3,Pression_vap,-1)+1),MATCH("coeff5",coeff_vap,0))+(AE3-INDEX(Pression_vap,MATCH(AE3,Pression_vap,-1)+1))*(INDEX(temp_vap,(MATCH(AE3,Pression_vap,-1)),MATCH("coeff5",coeff_vap,0))-INDEX(temp_vap,(MATCH(AE3,Pression_vap,-1)+1),MATCH("coeff5",coeff_vap,0)))/(INDEX(Pression_vap,MATCH(AE3,Pression_vap,-1))-INDEX(Pression_vap,MATCH(AE3,Pression_vap,-1)+1))) -> 346.0004729 | N3: =IF(AND(B3=0,C3=0,ABS(L3-M3)<0.02),0,M3-L3) -> 4.001907014 | O3: =2500*4.91*N3*0.25/1000 -> 12.28085215 | P3: =V3 -> 1580.41 | Q3: =W3 -> 2456.96 | R3: =H3*V3+I3*W3 -> 39729865.23 | S3: =H3+I3 -> 23755.4375 | T3: 607.456 | U3: 99.7791 | V3: 1580.41 | W3: 2456.96 | X3: 0 | Y3: 0 | Z3: 0 | AA3: 0 | AB3: 0 | AC3: 0 | AD3: 0 | AE3: 155 | AF3: =Poly_Vapeur!$P$14*Resultats!AE3^4+Poly_Vapeur!$Q$14*Resultats!AE3^3+Poly_Vapeur!$R$14*Resultats!AE3^2+Poly_Vapeur!$S$14*Resultats!AE3+Poly_Vapeur!$T$14 -> 344.7893696 | AG3: =Poly_Liquide!$Q$6*Resultats!AE3^4+Poly_Liquide!$R$6*Resultats!AE3^3+Poly_Liquide!$S$6*Resultats!AE3^2+Poly_Liquide!$T$6*Resultats!AE3+Poly_Liquide!$U$6 -> 1603.801771 | AH3: =Poly_Vapeur!$P$6*Resultats!AE3^4+Poly_Vapeur!$Q$6*Resultats!AE3^3+Poly_Vapeur!$R$6*Resultats!AE3^2+Poly_Vapeur!$S$6*Resultats!AE3+Poly_Vapeur!$T$6 -> 2444.054233 | AI3: =Poly_Liquide!Q$10*Resultats!AE3^4+Poly_Liquide!R$10*Resultats!AE3^3+Poly_Liquide!S$10*Resultats!AE3^2+Poly_Liquide!T$10*Resultats!AE3+Poly_Liquide!U$10 -> 594.37914 | AJ3: =Poly_Vapeur!P$10*Resultats!AE3^4+Poly_Vapeur!Q$10*Resultats!AE3^3+Poly_Vapeur!R$10*Resultats!AE3^2+Poly_Vapeur!S$10*Resultats!AE3+Poly_Vapeur!T$10 -> 101.9298876 | AK3: =0 -> 0 | AL3: =0 -> 0 | AN3: 1 | AO3: 1 | AP3: 0 | AR3: 0.25
A4: =IF(B4=1,A3,A3+0.25) -> 0.25 | B4: =IF(AND(G4<0.0001,F3>0.09),1,0) -> 0 | C4: =IF(OR(AND(G4=0,F3<0),AND(G4>0,F3>-0.2)),1,0) -> 1 | D4: 35 | E4: =60-D4 -> 25 | F4: =AJ4-U4 -> 2.00152824 | G4: =W4-AH3 -> 12.90576724 | H4: =H3+J4-K4 -> 21260.96 | I4: =I3+K4-J4 -> 2494.4775 | J4: =IF((Q3-AH3)<0,-(AK3*I3*(Q3-AH3))/(AH3-AG3),0) -> 0 | K4: =IF((P3-AG3)>0,(AL3*H3*(P3-AG3))/(AH3-AG3),0) -> 0 | L4: =(INDEX(temp_liq,(MATCH(AE4,Pression_liq,-1)+1),MATCH("coeff1",coeff_liq,0))+(AE4-INDEX(Pression_liq,MATCH(AE4,Pression_liq,-1)+1))*(INDEX(temp_liq,(MATCH(AE4,Pression_liq,-1)),MATCH("coeff1",coeff_liq,0))-INDEX(temp_liq,(MATCH(AE4,Pression_liq,-1)+1),MATCH("coeff1",coeff_liq,0)))/(INDEX(Pression_liq,MATCH(AE4,Pression_liq,-1))-INDEX(Pression_liq,MATCH(AE4,Pression_liq,-1)+1)))*(V4/10000)^4+(INDEX(temp_liq,(MATCH(AE4,Pression_liq,-1)+1),MATCH("coeff2",coeff_liq,0))+(AE4-INDEX(Pression_liq,MATCH(AE4,Pression_liq,-1)+1))*(INDEX(temp_liq,(MATCH(AE4,Pression_liq,-1)),MATCH("coeff2",coeff_liq,0))-INDEX(temp_liq,(MATCH(AE4,Pression_liq,-1)+1),MATCH("coeff2",coeff_liq,0)))/(INDEX(Pression_liq,MATCH(AE4,Pression_liq,-1))-INDEX(Pression_liq,MATCH(AE4,Pression_liq,-1)+1)))*(V4/10000)^3+(INDEX(temp_liq,(MATCH(AE4,Pression_liq,-1)+1),MATCH("coeff3",coeff_liq,0))+(AE4-INDEX(Pression_liq,MATCH(AE4,Pression_liq,-1)+1))*(INDEX(temp_liq,(MATCH(AE4,Pression_liq,-1)),MATCH("coeff3",coeff_liq,0))-INDEX(temp_liq,(MATCH(AE4,Pression_liq,-1)+1),MATCH("coeff3",coeff_liq,0)))/(INDEX(Pression_liq,MATCH(AE4,Pression_liq,-1))-INDEX(Pression_liq,MATCH(AE4,Pression_liq,-1)+1)))*(V4/10000)^2+(INDEX(temp_liq,(MATCH(AE4,Pression_liq,-1)+1),MATCH("coeff4",coeff_liq,0))+(AE4-INDEX(Pression_liq,MATCH(AE4,Pression_liq,-1)+1))*(INDEX(temp_liq,(MATCH(AE4,Pression_liq,-1)),MATCH("coeff4",coeff_liq,0))-INDEX(temp_liq,(MATCH(AE4,Pression_liq,-1)+1),MATCH("coeff4",coeff_liq,0)))/(INDEX(Pression_liq,MATCH(AE4,Pression_liq,-1))-INDEX(Pression_liq,MATCH(AE4,Pression_liq,-1)+1)))*(V4/10000)+(INDEX(temp_liq,(MATCH(AE4,Pression_liq,-1)+1),MATCH("coeff5",coeff_liq,0))+(AE4-INDEX(Pression_liq,MATCH(AE4,Pression_liq,-1)+1))*(INDEX(temp_liq,(MATCH(AE4,Pression_liq,-1)),MATCH("coeff5",coeff_liq,0))-INDEX(temp_liq,(MATCH(AE4,Pression_liq,-1)+1),MATCH("coeff5",coeff_liq,0)))/(INDEX(Pression_liq,MATCH(AE4,Pression_liq,-1))-INDEX(Pression_liq,MATCH(AE4,Pression_liq,-1)+1))) -> 341.9862918 | M4: =(INDEX(temp_vap,(MATCH(AE4,Pression_vap,-1)+1),MATCH("coeff1",coeff_vap,0))+(AE4-INDEX(Pression_vap,MATCH(AE4,Pression_vap,-1)+1))*(INDEX(temp_vap,(MATCH(AE4,Pression_vap,-1)),MATCH("coeff1",coeff_vap,0))-INDEX(temp_vap,(MATCH(AE4,Pression_vap,-1)+1),MATCH("coeff1",coeff_vap,0)))/(INDEX(Pression_vap,MATCH(AE4,Pression_vap,-1))-INDEX(Pression_vap,MATCH(AE4,Pression_vap,-1)+1)))*(W4/10000)^4+(INDEX(temp_vap,(MATCH(AE4,Pression_vap,-1)+1),MATCH("coeff2",coeff_vap,0))+(AE4-INDEX(Pression_vap,MATCH(AE4,Pression_vap,-1)+1))*(INDEX(temp_vap,(MATCH(AE4,Pression_vap,-1)),MATCH("coeff2",coeff_vap,0))-INDEX(temp_vap,(MATCH(AE4,Pression_vap,-1)+1),MATCH("coeff2",coeff_vap,0)))/(INDEX(Pression_vap,MATCH(AE4,Pression_vap,-1))-INDEX(Pression_vap,MATCH(AE4,Pression_vap,-1)+1)))*(W4/10000)^3+(INDEX(temp_vap,(MATCH(AE4,Pression_vap,-1)+1),MATCH("coeff3",coeff_vap,0))+(AE4-INDEX(Pression_vap,MATCH(AE4,Pression_vap,-1)+1))*(INDEX(temp_vap,(MATCH(AE4,Pression_vap,-1)),MATCH("coeff3",coeff_vap,0))-INDEX(temp_vap,(MATCH(AE4,Pression_vap,-1)+1),MATCH("coeff3",coeff_vap,0)))/(INDEX(Pression_vap,MATCH(AE4,Pression_vap,-1))-INDEX(Pression_vap,MATCH(AE4,Pression_vap,-1)+1)))*(W4/10000)^2+(INDEX(temp_vap,(MATCH(AE4,Pression_vap,-1)+1),MATCH("coeff4",coeff_vap,0))+(AE4-INDEX(Pression_vap,MATCH(AE4,Pression_vap,-1)+1))*(INDEX(temp_vap,(MATCH(AE4,Pression_vap,-1)),MATCH("coeff4",coeff_vap,0))-INDEX(temp_vap,(MATCH(AE4,Pression_vap,-1)+1),MATCH("coeff4",coeff_vap,0)))/(INDEX(Pression_vap,MATCH(AE4,Pression_vap,-1))-INDEX(Pression_vap,MATCH(AE4,Pression_vap,-1)+1)))*(W4/10000)+(INDEX(temp_vap,(MATCH(AE4,Pression_vap,-1)+1),MATCH("coeff5",coeff_vap,0))+(AE4-INDEX(Pression_vap,MATCH(AE4,Pression_vap,-1)+1))*(INDEX(temp_vap,(MATCH(AE4,Pression_vap,-1)),MATCH("coeff5",coeff_vap,0))-INDEX(temp_vap,(MATCH(AE4,Pression_vap,-1)+1),MATCH("coeff5",coeff_vap,0)))/(INDEX(Pression_vap,MATCH(AE4,Pression_vap,-1))-INDEX(Pression_vap,MATCH(AE4,Pression_vap,-1)+1))) -> 345.8977102 | N4: =IF(AND(B4=0,C4=0,ABS(L4-M4)<0.02),0,M4-L4) -> 3.911418351 | O4: =2500*4.91*N4*(A4-A3)/1000 -> 12.00316506 | P4: =(V4*H4+O4)/H4 -> 1580.410565 | Q4: =(W4*I4-O4)/I4 -> 2456.955188 | R4: =H4*V4+I4*W4 -> 39729865.23 | S4: =H4+I4 -> 23755.4375 | T4: =$T$3 -> 607.456 | U4: =I4/E4 -> 99.7791 | V4: =((P3*H3+J4*AG3-K4*(AH3-AG3))/(H3+J4))+Z4 -> 1580.41 | W4: =((Q3*I3+K4*AH3+J4*(AH3-AG3))/(I3+K4)) -> 2456.96 | X4: =IF(AND($AJ$3=1,AA3<=153.3),1580,0) -> 0 | Y4: =IF(AND($AJ$3=1,AND(AA3>=154,AA3<=156)),(-290*AA3+45240),IF(AND($AJ$3=1,AA3<=154),580,0)) -> 0 | Z4: =((X4+Y4)*(A4-A3))/H4 -> 0 | AA4: =IF(AND($AO$3=1,AE3<156.7),((1/3600)*2),0) -> 0.0005555555556 | AB4: =IF(AND($AO$3=1,AND(AE3>156.7,AE3<160.2)),(((35.14*AE3-5550.88)/3600)*2),0) -> 0 | AC4: =IF(AND($AO$3=1,AE3>=160.2),((125/3600)*2),0) -> 0 | AD4: =(A4-A3)*(AA4+AB4+AC4)*(AG4-1269.44) -> 0.04636736102 | AE4: =IF(C4=1,INDEX(Pression,MATCH(INDEX(OFFSET(INDEX(uV,MATCH(W4,uV,1)),1,0):OFFSET(INDEX(uV,MATCH(W4,uV,1)),71,0),MATCH(U4,OFFSET(INDEX(uV,MATCH(W4,uV,1)),1,0):OFFSET(INDEX(uV,MATCH(W4,uV,1)),71,0),-1)+1),INDEX(densite_vap,,MATCH(W4,uV,1)),-1))+(U4-INDEX(OFFSET(INDEX(uV,MATCH(W4,uV,1)),1,0):OFFSET(INDEX(uV,MATCH(W4,uV,1)),71,0),MATCH(U4,OFFSET(INDEX(uV,MATCH(W4,uV,1)),1,0):OFFSET(INDEX(uV,MATCH(W4,uV,1)),71,0),-1)+1)+(W4-INDEX(uV,MATCH(W4,uV,1)))*(INDEX(OFFSET(INDEX(uV,MATCH(W4,uV,1)+1),1,0):OFFSET(INDEX(uV,MATCH(W4,uV,1)+1),71,0),MATCH(U4,OFFSET(INDEX(uV,MATCH(W4,uV,1)+1),1,0):OFFSET(INDEX(uV,MATCH(W4,uV,1)+1),71,0),-1)+1)-INDEX(OFFSET(INDEX(uV,MATCH(W4,uV,1)),1,0):OFFSET(INDEX(uV,MATCH(W4,uV,1)),71,0),MATCH(U4,OFFSET(INDEX(uV,MATCH(W4,uV,1)),1,0):OFFSET(INDEX(uV,MATCH(W4,uV,1)),71,0),-1)+1))/(INDEX(uV,MATCH(W4,uV,1)+1)-INDEX(uV,MATCH(W4,uV,1))))*(INDEX(Pression,MATCH(INDEX(OFFSET(INDEX(uV,MATCH(W4,uV,1)),1,0):OFFSET(INDEX(uV,MATCH(W4,uV,1)),71,0),MATCH(U4,OFFSET(INDEX(uV,MATCH(W4,uV,1)),1,0):OFFSET(INDEX(uV,MATCH(W4,uV,1)),71,0),-1)),INDEX(densite_vap,,MATCH(W4,uV,1)),-1),1)-INDEX(Pression,MATCH(INDEX(OFFSET(INDEX(uV,MATCH(W4,uV,1)),1,0):OFFSET(INDEX(uV,MATCH(W4,uV,1)),71,0),MATCH(U4,OFFSET(INDEX(uV,MATCH(W4,uV,1)),1,0):OFFSET(INDEX(uV,MATCH(W4,uV,1)),71,0),-1)+1),INDEX(densite_vap,,MATCH(W4,uV,1)),-1)))/(INDEX(OFFSET(INDEX(uV,MATCH(W4,uV,1)),1,0):OFFSET(INDEX(uV,MATCH(W4,uV,1)),71,0),MATCH(U4,OFFSET(INDEX(uV,MATCH(W4,uV,1)),1,0):OFFSET(INDEX(uV,MATCH(W4,uV,1)),71,0),-1))+(W4-INDEX(uV,MATCH(W4,uV,1)))*(INDEX(OFFSET(INDEX(uV,MATCH(W4,uV,1)+1),1,0):OFFSET(INDEX(uV,MATCH(W4,uV,1)+1),71,0),MATCH(U4,OFFSET(INDEX(uV,MATCH(W4,uV,1)+1),1,0):OFFSET(INDEX(uV,MATCH(W4,uV,1)+1),71,0),-1))-INDEX(OFFSET(INDEX(uV,MATCH(W4,uV,1)),1,0):OFFSET(INDEX(uV,MATCH(W4,uV,1)),71,0),MATCH(U4,OFFSET(INDEX(uV,MATCH(W4,uV,1)),1,0):OFFSET(INDEX(uV,MATCH(W4,uV,1)),71,0),-1)))/(INDEX(uV,MATCH(W4,uV,1)+1)-INDEX(uV,MATCH(W4,uV,1)))-INDEX(OFFSET(INDEX(uV,MATCH(W4,uV,1)),1,0):OFFSET(INDEX(uV,MATCH(W4,uV,1)),71,0),MATCH(U4,OFFSET(INDEX(uV,MATCH(W4,uV,1)),1,0):OFFSET(INDEX(uV,MATCH(W4,uV,1)),71,0),-1)+1)+(W4-INDEX(uV,MATCH(W4,uV,1)))*(INDEX(OFFSET(INDEX(uV,MATCH(W4,uV,1)+1),1,0):OFFSET(INDEX(uV,MATCH(W4,uV,1)+1),71,0),MATCH(U4,OFFSET(INDEX(uV,MATCH(W4,uV,1)+1),1,0):OFFSET(INDEX(uV,MATCH(W4,uV,1)+1),71,0),-1)+1)-INDEX(OFFSET(INDEX(uV,MATCH(W4,uV,1)),1,0):OFFSET(INDEX(uV,MATCH(W4,uV,1)),71,0),MATCH(U4,OFFSET(INDEX(uV,MATCH(W4,uV,1)),1,0):OFFSET(INDEX(uV,MATCH(W4,uV,1)),71,0),-1)+1))/(INDEX(uV,MATCH(W4,uV,1)+1)-INDEX(uV,MATCH(W4,uV,1)))),IF(B4=1,AE3-0.01,AE3)) -> 154.8602181 | AF4: =Poly_Vapeur!$P$14*Resultats!AE4^4+Poly_Vapeur!$Q$14*Resultats!AE4^3+Poly_Vapeur!$R$14*Resultats!AE4^2+Poly_Vapeur!$S$14*Resultats!AE4+Poly_Vapeur!$T$14 -> 344.7166811 | AG4: =Poly_Liquide!$Q$6*Resultats!AE4^4+Poly_Liquide!$R$6*Resultats!AE4^3+Poly_Liquide!$S$6*Resultats!AE4^2+Poly_Liquide!$T$6*Resultats!AE4+Poly_Liquide!$U$6 -> 1603.284999 | AH4: =Poly_Vapeur!$P$6*Resultats!AE4^4+Poly_Vapeur!$Q$6*Resultats!AE4^3+Poly_Vapeur!$R$6*Resultats!AE4^2+Poly_Vapeur!$S$6*Resultats!AE4+Poly_Vapeur!$T$6 -> 2444.386009 | AI4: =Poly_Liquide!Q$10*Resultats!AE4^4+Poly_Liquide!R$10*Resultats!AE4^3+Poly_Liquide!S$10*Resultats!AE4^2+Poly_Liquide!T$10*Resultats!AE4+Poly_Liquide!U$10 -> 594.6378365 | AJ4: =Poly_Vapeur!P$10*Resultats!AE4^4+Poly_Vapeur!Q$10*Resultats!AE4^3+Poly_Vapeur!R$10*Resultats!AE4^2+Poly_Vapeur!S$10*Resultats!AE4+Poly_Vapeur!T$10 -> 101.7806282 | AK4: =IF(W4<AH3,1,0) -> 0 | AL4: =IF(V4>AG3,1,0) -> 0 | AM4: 0 | AQ4: 0.25
A5: =IF(B5=1,A4,A4+0.25) -> 0.5 | B5: =IF(AND(G5<0.0001,F4>0.09),1,0) -> 0 | C5: =IF(OR(AND(G5=0,F4<0),AND(G5>0,F4>-0.2)),1,0) -> 1 | D5: 35 | E5: =60-D5 -> 25 | F5: =AJ5-U5 -> 2.00677945 | G5: =W5-AH4 -> 12.56917897 | H5: =H4+J5-K5 -> 21260.96 | I5: =I4+K5-J5 -> 2494.4775 | J5: =IF((Q4-AH4)<0,-(AK4*I4*(Q4-AH4))/(AH4-AG4),0) -> 0 | K5: =IF((P4-AG4)>0,(AL4*H4*(P4-AG4))/(AH4-AG4),0) -> 0 | L5: =(INDEX(temp_liq,(MATCH(AE5,Pression_liq,-1)+1),MATCH("coeff1",coeff_liq,0))+(AE5-INDEX(Pression_liq,MATCH(AE5,Pression_liq,-1)+1))*(INDEX(temp_liq,(MATCH(AE5,Pression_liq,-1)),MATCH("coeff1",coeff_liq,0))-INDEX(temp_liq,(MATCH(AE5,Pression_liq,-1)+1),MATCH("coeff1",coeff_liq,0)))/(INDEX(Pression_liq,MATCH(AE5,Pression_liq,-1))-INDEX(Pression_liq,MATCH(AE5,Pression_liq,-1)+1)))*(V5/10000)^4+(INDEX(temp_liq,(MATCH(AE5,Pression_liq,-1)+1),MATCH("coeff2",coeff_liq,0))+(AE5-INDEX(Pression_liq,MATCH(AE5,Pression_liq,-1)+1))*(INDEX(temp_liq,(MATCH(AE5,Pression_liq,-1)),MATCH("coeff2",coeff_liq,0))-INDEX(temp_liq,(MATCH(AE5,Pression_liq,-1)+1),MATCH("coeff2",coeff_liq,0)))/(INDEX(Pression_liq,MATCH(AE5,Pression_liq,-1))-INDEX(Pression_liq,MATCH(AE5,Pression_liq,-1)+1)))*(V5/10000)^3+(INDEX(temp_liq,(MATCH(AE5,Pression_liq,-1)+1),MATCH("coeff3",coeff_liq,0))+(AE5-INDEX(Pression_liq,MATCH(AE5,Pression_liq,-1)+1))*(INDEX(temp_liq,(MATCH(AE5,Pression_liq,-1)),MATCH("coeff3",coeff_liq,0))-INDEX(temp_liq,(MATCH(AE5,Pression_liq,-1)+1),MATCH("coeff3",coeff_liq,0)))/(INDEX(Pression_liq,MATCH(AE5,Pression_liq,-1))-INDEX(Pression_liq,MATCH(AE5,Pression_liq,-1)+1)))*(V5/10000)^2+(INDEX(temp_liq,(MATCH(AE5,Pression_liq,-1)+1),MATCH("coeff4",coeff_liq,0))+(AE5-INDEX(Pression_liq,MATCH(AE5,Pression_liq,-1)+1))*(INDEX(temp_liq,(MATCH(AE5,Pression_liq,-1)),MATCH("coeff4",coeff_liq,0))-INDEX(temp_liq,(MATCH(AE5,Pression_liq,-1)+1),MATCH("coeff4",coeff_liq,0)))/(INDEX(Pression_liq,MATCH(AE5,Pression_liq,-1))-INDEX(Pression_liq,MATCH(AE5,Pression_liq,-1)+1)))*(V5/10000)+(INDEX(temp_liq,(MATCH(AE5,Pression_liq,-1)+1),MATCH("coeff5",coeff_liq,0))+(AE5-INDEX(Pression_liq,MATCH(AE5,Pression_liq,-1)+1))*(INDEX(temp_liq,(MATCH(AE5,Pression_liq,-1)),MATCH("coeff5",coeff_liq,0))-INDEX(temp_liq,(MATCH(AE5,Pression_liq,-1)+1),MATCH("coeff5",coeff_liq,0)))/(INDEX(Pression_liq,MATCH(AE5,Pression_liq,-1))-INDEX(Pression_liq,MATCH(AE5,Pression_liq,-1)+1))) -> 341.9867938 | M5: =(INDEX(temp_vap,(MATCH(AE5,Pression_vap,-1)+1),MATCH("coeff1",coeff_vap,0))+(AE5-INDEX(Pression_vap,MATCH(AE5,Pression_vap,-1)+1))*(INDEX(temp_vap,(MATCH(AE5,Pression_vap,-1)),MATCH("coeff1",coeff_vap,0))-INDEX(temp_vap,(MATCH(AE5,Pression_vap,-1)+1),MATCH("coeff1",coeff_vap,0)))/(INDEX(Pression_vap,MATCH(AE5,Pression_vap,-1))-INDEX(Pression_vap,MATCH(AE5,Pression_vap,-1)+1)))*(W5/10000)^4+(INDEX(temp_vap,(MATCH(AE5,Pression_vap,-1)+1),MATCH("coeff2",coeff_vap,0))+(AE5-INDEX(Pression_vap,MATCH(AE5,Pression_vap,-1)+1))*(INDEX(temp_vap,(MATCH(AE5,Pression_vap,-1)),MATCH("coeff2",coeff_vap,0))-INDEX(temp_vap,(MATCH(AE5,Pression_vap,-1)+1),MATCH("coeff2",coeff_vap,0)))/(INDEX(Pression_vap,MATCH(AE5,Pression_vap,-1))-INDEX(Pression_vap,MATCH(AE5,Pression_vap,-1)+1)))*(W5/10000)^3+(INDEX(temp_vap,(MATCH(AE5,Pression_vap,-1)+1),MATCH("coeff3",coeff_vap,0))+(AE5-INDEX(Pression_vap,MATCH(AE5,Pression_vap,-1)+1))*(INDEX(temp_vap,(MATCH(AE5,Pression_vap,-1)),MATCH("coeff3",coeff_vap,0))-INDEX(temp_vap,(MATCH(AE5,Pression_vap,-1)+1),MATCH("coeff3",coeff_vap,0)))/(INDEX(Pression_vap,MATCH(AE5,Pression_vap,-1))-INDEX(Pression_vap,MATCH(AE5,Pression_vap,-1)+1)))*(W5/10000)^2+(INDEX(temp_vap,(MATCH(AE5,Pression_vap,-1)+1),MATCH("coeff4",coeff_vap,0))+(AE5-INDEX(Pression_vap,MATCH(AE5,Pression_vap,-1)+1))*(INDEX(temp_vap,(MATCH(AE5,Pression_vap,-1)),MATCH("coeff4",coeff_vap,0))-INDEX(temp_vap,(MATCH(AE5,Pression_vap,-1)+1),MATCH("coeff4",coeff_vap,0)))/(INDEX(Pression_vap,MATCH(AE5,Pression_vap,-1))-INDEX(Pression_vap,MATCH(AE5,Pression_vap,-1)+1)))*(W5/10000)+(INDEX(temp_vap,(MATCH(AE5,Pression_vap,-1)+1),MATCH("coeff5",coeff_vap,0))+(AE5-INDEX(Pression_vap,MATCH(AE5,Pression_vap,-1)+1))*(INDEX(temp_vap,(MATCH(AE5,Pression_vap,-1)),MATCH("coeff5",coeff_vap,0))-INDEX(temp_vap,(MATCH(AE5,Pression_vap,-1)+1),MATCH("coeff5",coeff_vap,0)))/(INDEX(Pression_vap,MATCH(AE5,Pression_vap,-1))-INDEX(Pression_vap,MATCH(AE5,Pression_vap,-1)+1))) -> 345.9008554 | N5: =IF(AND(B5=0,C5=0,ABS(L5-M5)<0.02),0,M5-L5) -> 3.914061538 | O5: =2500*4.91*N5*(A5-A4)/1000 -> 12.01127634 | P5: =(V5*H5+O5)/H5 -> 1580.41113 | Q5: =(W5*I5-O5)/I5 -> 2456.950373 | R5: =H5*V5+I5*W5 -> 39729865.23 | S5: =H5+I5 -> 23755.4375 | T5: =$T$3 -> 607.456 | U5: =I5/E5 -> 99.7791 | V5: =((P4*H4+J5*AG4-K5*(AH4-AG4))/(H4+J5))+Z5 -> 1580.410565 | W5: =((Q4*I4+K5*AH4+J5*(AH4-AG4))/(I4+K5)) -> 2456.955188 | X5: =IF(AND($AJ$3=1,AA4<=153.3),1580,0) -> 0 | Y5: =IF(AND($AJ$3=1,AND(AA4>=154,AA4<=156)),(-290*AA4+45240),IF(AND($AJ$3=1,AA3<=154),580,0)) -> 0 | Z5: =((X5+Y5)*(A5-A4))/H5 -> 0 | AA5: =IF(AND($AO$3=1,AE4<156.7),((1/3600)*2),0) -> 0.0005555555556 | AB5: =IF(AND($AO$3=1,AND(AE4>156.7,AE4<160.2)),(((35.14*AE4-5550.88)/3600)*2),0) -> 0 | AC5: =IF(AND($AO$3=1,AE4>=160.2),((125/3600)*2),0) -> 0 | AD5: =(A5-A4)*(AA5+AB5+AC5)*(AG5-1269.44) -> 0.04636988787 | AE5: =IF(C5=1,INDEX(Pression,MATCH(INDEX(OFFSET(INDEX(uV,MATCH(W5,uV,1)),1,0):OFFSET(INDEX(uV,MATCH(W5,uV,1)),71,0),MATCH(U5,OFFSET(INDEX(uV,MATCH(W5,uV,1)),1,0):OFFSET(INDEX(uV,MATCH(W5,uV,1)),71,0),-1)+1),INDEX(densite_vap,,MATCH(W5,uV,1)),-1))+(U5-INDEX(OFFSET(INDEX(uV,MATCH(W5,uV,1)),1,0):OFFSET(INDEX(uV,MATCH(W5,uV,1)),71,0),MATCH(U5,OFFSET(INDEX(uV,MATCH(W5,uV,1)),1,0):OFFSET(INDEX(uV,MATCH(W5,uV,1)),71,0),-1)+1)+(W5-INDEX(uV,MATCH(W5,uV,1)))*(INDEX(OFFSET(INDEX(uV,MATCH(W5,uV,1)+1),1,0):OFFSET(INDEX(uV,MATCH(W5,uV,1)+1),71,0),MATCH(U5,OFFSET(INDEX(uV,MATCH(W5,uV,1)+1),1,0):OFFSET(INDEX(uV,MATCH(W5,uV,1)+1),71,0),-1)+1)-INDEX(OFFSET(INDEX(uV,MATCH(W5,uV,1)),1,0):OFFSET(INDEX(uV,MATCH(W5,uV,1)),71,0),MATCH(U5,OFFSET(INDEX(uV,MATCH(W5,uV,1)),1,0):OFFSET(INDEX(uV,MATCH(W5,uV,1)),71,0),-1)+1))/(INDEX(uV,MATCH(W5,uV,1)+1)-INDEX(uV,MATCH(W5,uV,1))))*(INDEX(Pression,MATCH(INDEX(OFFSET(INDEX(uV,MATCH(W5,uV,1)),1,0):OFFSET(INDEX(uV,MATCH(W5,uV,1)),71,0),MATCH(U5,OFFSET(INDEX(uV,MATCH(W5,uV,1)),1,0):OFFSET(INDEX(uV,MATCH(W5,uV,1)),71,0),-1)),INDEX(densite_vap,,MATCH(W5,uV,1)),-1),1)-INDEX(Pression,MATCH(INDEX(OFFSET(INDEX(uV,MATCH(W5,uV,1)),1,0):OFFSET(INDEX(uV,MATCH(W5,uV,1)),71,0),MATCH(U5,OFFSET(INDEX(uV,MATCH(W5,uV,1)),1,0):OFFSET(INDEX(uV,MATCH(W5,uV,1)),71,0),-1)+1),INDEX(densite_vap,,MATCH(W5,uV,1)),-1)))/(INDEX(OFFSET(INDEX(uV,MATCH(W5,uV,1)),1,0):OFFSET(INDEX(uV,MATCH(W5,uV,1)),71,0),MATCH(U5,OFFSET(INDEX(uV,MATCH(W5,uV,1)),1,0):OFFSET(INDEX(uV,MATCH(W5,uV,1)),71,0),-1))+(W5-INDEX(uV,MATCH(W5,uV,1)))*(INDEX(OFFSET(INDEX(uV,MATCH(W5,uV,1)+1),1,0):OFFSET(INDEX(uV,MATCH(W5,uV,1)+1),71,0),MATCH(U5,OFFSET(INDEX(uV,MATCH(W5,uV,1)+1),1,0):OFFSET(INDEX(uV,MATCH(W5,uV,1)+1),71,0),-1))-INDEX(OFFSET(INDEX(uV,MATCH(W5,uV,1)),1,0):OFFSET(INDEX(uV,MATCH(W5,uV,1)),71,0),MATCH(U5,OFFSET(INDEX(uV,MATCH(W5,uV,1)),1,0):OFFSET(INDEX(uV,MATCH(W5,uV,1)),71,0),-1)))/(INDEX(uV,MATCH(W5,uV,1)+1)-INDEX(uV,MATCH(W5,uV,1)))-INDEX(OFFSET(INDEX(uV,MATCH(W5,uV,1)),1,0):OFFSET(INDEX(uV,MATCH(W5,uV,1)),71,0),MATCH(U5,OFFSET(INDEX(uV,MATCH(W5,uV,1)),1,0):OFFSET(INDEX(uV,MATCH(W5,uV,1)),71,0),-1)+1)+(W5-INDEX(uV,MATCH(W5,uV,1)))*(INDEX(OFFSET(INDEX(uV,MATCH(W5,uV,1)+1),1,0):OFFSET(INDEX(uV,MATCH(W5,uV,1)+1),71,0),MATCH(U5,OFFSET(INDEX(uV,MATCH(W5,uV,1)+1),1,0):OFFSET(INDEX(uV,MATCH(W5,uV,1)+1),71,0),-1)+1)-INDEX(OFFSET(INDEX(uV,MATCH(W5,uV,1)),1,0):OFFSET(INDEX(uV,MATCH(W5,uV,1)),71,0),MATCH(U5,OFFSET(INDEX(uV,MATCH(W5,uV,1)),1,0):OFFSET(INDEX(uV,MATCH(W5,uV,1)),71,0),-1)+1))/(INDEX(uV,MATCH(W5,uV,1)+1)-INDEX(uV,MATCH(W5,uV,1)))),IF(B5=1,AE4-0.01,AE4)) -> 154.8651395 | AF5: =Poly_Vapeur!$P$14*Resultats!AE5^4+Poly_Vapeur!$Q$14*Resultats!AE5^3+Poly_Vapeur!$R$14*Resultats!AE5^2+Poly_Vapeur!$S$14*Resultats!AE5+Poly_Vapeur!$T$14 -> 344.7192412 | AG5: =Poly_Liquide!$Q$6*Resultats!AE5^4+Poly_Liquide!$R$6*Resultats!AE5^3+Poly_Liquide!$S$6*Resultats!AE5^2+Poly_Liquide!$T$6*Resultats!AE5+Poly_Liquide!$U$6 -> 1603.303193 | AH5: =Poly_Vapeur!$P$6*Resultats!AE5^4+Poly_Vapeur!$Q$6*Resultats!AE5^3+Poly_Vapeur!$R$6*Resultats!AE5^2+Poly_Vapeur!$S$6*Resultats!AE5+Poly_Vapeur!$T$6 -> 2444.374337 | AI5: =Poly_Liquide!Q$10*Resultats!AE5^4+Poly_Liquide!R$10*Resultats!AE5^3+Poly_Liquide!S$10*Resultats!AE5^2+Poly_Liquide!T$10*Resultats!AE5+Poly_Liquide!U$10 -> 594.6287317 | AJ5: =Poly_Vapeur!P$10*Resultats!AE5^4+Poly_Vapeur!Q$10*Resultats!AE5^3+Poly_Vapeur!R$10*Resultats!AE5^2+Poly_Vapeur!S$10*Resultats!AE5+Poly_Vapeur!T$10 -> 101.7858794 | AK5: =IF(W5<AH4,1,0) -> 0 | AL5: =IF(V5>AG4,1,0) -> 0 | AM5: 0.25 | AQ5: 0.5
A6: =IF(B6=1,A5,A5+0.25) -> 0.75 | B6: =IF(AND(G6<0.0001,F5>0.09),1,0) -> 0 | C6: =IF(OR(AND(G6=0,F5<0),AND(G6>0,F5>-0.2)),1,0) -> 1 | D6: 35 | E6: =60-D6 -> 25 | F6: =AJ6-U6 -> 2.012525606 | G6: =W6-AH5 -> 12.57603641 | H6: =H5+J6-K6 -> 21260.96 | I6: =I5+K6-J6 -> 2494.4775 | J6: =IF((Q5-AH5)<0,-(AK5*I5*(Q5-AH5))/(AH5-AG5),0) -> 0 | K6: =IF((P5-AG5)>0,(AL5*H5*(P5-AG5))/(AH5-AG5),0) -> 0 | L6: =(INDEX(temp_liq,(MATCH(AE6,Pression_liq,-1)+1),MATCH("coeff1",coeff_liq,0))+(AE6-INDEX(Pression_liq,MATCH(AE6,Pression_liq,-1)+1))*(INDEX(temp_liq,(MATCH(AE6,Pression_liq,-1)),MATCH("coeff1",coeff_liq,0))-INDEX(temp_liq,(MATCH(AE6,Pression_liq,-1)+1),MATCH("coeff1",coeff_liq,0)))/(INDEX(Pression_liq,MATCH(AE6,Pression_liq,-1))-INDEX(Pression_liq,MATCH(AE6,Pression_liq,-1)+1)))*(V6/10000)^4+(INDEX(temp_liq,(MATCH(AE6,Pression_liq,-1)+1),MATCH("coeff2",coeff_liq,0))+(AE6-INDEX(Pression_liq,MATCH(AE6,Pression_liq,-1)+1))*(INDEX(temp_liq,(MATCH(AE6,Pression_liq,-1)),MATCH("coeff2",coeff_liq,0))-INDEX(temp_liq,(MATCH(AE6,Pression_liq,-1)+1),MATCH("coeff2",coeff_liq,0)))/(INDEX(Pression_liq,MATCH(AE6,Pression_liq,-1))-INDEX(Pression_liq,MATCH(AE6,Pression_liq,-1)+1)))*(V6/10000)^3+(INDEX(temp_liq,(MATCH(AE6,Pression_liq,-1)+1),MATCH("coeff3",coeff_liq,0))+(AE6-INDEX(Pression_liq,MATCH(AE6,Pression_liq,-1)+1))*(INDEX(temp_liq,(MATCH(AE6,Pression_liq,-1)),MATCH("coeff3",coeff_liq,0))-INDEX(temp_liq,(MATCH(AE6,Pression_liq,-1)+1),MATCH("coeff3",coeff_liq,0)))/(INDEX(Pression_liq,MATCH(AE6,Pression_liq,-1))-INDEX(Pression_liq,MATCH(AE6,Pression_liq,-1)+1)))*(V6/10000)^2+(INDEX(temp_liq,(MATCH(AE6,Pression_liq,-1)+1),MATCH("coeff4",coeff_liq,0))+(AE6-INDEX(Pression_liq,MATCH(AE6,Pression_liq,-1)+1))*(INDEX(temp_liq,(MATCH(AE6,Pression_liq,-1)),MATCH("coeff4",coeff_liq,0))-INDEX(temp_liq,(MATCH(AE6,Pression_liq,-1)+1),MATCH("coeff4",coeff_liq,0)))/(INDEX(Pression_liq,MATCH(AE6,Pression_liq,-1))-INDEX(Pression_liq,MATCH(AE6,Pression_liq,-1)+1)))*(V6/10000)+(INDEX(temp_liq,(MATCH(AE6,Pression_liq,-1)+1),MATCH("coeff5",coeff_liq,0))+(AE6-INDEX(Pression_liq,MATCH(AE6,Pression_liq,-1)+1))*(INDEX(temp_liq,(MATCH(AE6,Pression_liq,-1)),MATCH("coeff5",coeff_liq,0))-INDEX(temp_liq,(MATCH(AE6,Pression_liq,-1)+1),MATCH("coeff5",coeff_liq,0)))/(INDEX(Pression_liq,MATCH(AE6,Pression_liq,-1))-INDEX(Pression_liq,MATCH(AE6,Pression_liq,-1)+1))) -> 341.9873366 | M6: =(INDEX(temp_vap,(MATCH(AE6,Pression_vap,-1)+1),MATCH("coeff1",coeff_vap,0))+(AE6-INDEX(Pression_vap,MATCH(AE6,Pression_vap,-1)+1))*(INDEX(temp_vap,(MATCH(AE6,Pression_vap,-1)),MATCH("coeff1",coeff_vap,0))-INDEX(temp_vap,(MATCH(AE6,Pression_vap,-1)+1),MATCH("coeff1",coeff_vap,0)))/(INDEX(Pression_vap,MATCH(AE6,Pression_vap,-1))-INDEX(Pression_vap,MATCH(AE6,Pression_vap,-1)+1)))*(W6/10000)^4+(INDEX(temp_vap,(MATCH(AE6,Pression_vap,-1)+1),MATCH("coeff2",coeff_vap,0))+(AE6-INDEX(Pression_vap,MATCH(AE6,Pression_vap,-1)+1))*(INDEX(temp_vap,(MATCH(AE6,Pression_vap,-1)),MATCH("coeff2",coeff_vap,0))-INDEX(temp_vap,(MATCH(AE6,Pression_vap,-1)+1),MATCH("coeff2",coeff_vap,0)))/(INDEX(Pression_vap,MATCH(AE6,Pression_vap,-1))-INDEX(Pression_vap,MATCH(AE6,Pression_vap,-1)+1)))*(W6/10000)^3+(INDEX(temp_vap,(MATCH(AE6,Pression_vap,-1)+1),MATCH("coeff3",coeff_vap,0))+(AE6-INDEX(Pression_vap,MATCH(AE6,Pression_vap,-1)+1))*(INDEX(temp_vap,(MATCH(AE6,Pression_vap,-1)),MATCH("coeff3",coeff_vap,0))-INDEX(temp_vap,(MATCH(AE6,Pression_vap,-1)+1),MATCH("coeff3",coeff_vap,0)))/(INDEX(Pression_vap,MATCH(AE6,Pression_vap,-1))-INDEX(Pression_vap,MATCH(AE6,Pression_vap,-1)+1)))*(W6/10000)^2+(INDEX(temp_vap,(MATCH(AE6,Pression_vap,-1)+1),MATCH("coeff4",coeff_vap,0))+(AE6-INDEX(Pression_vap,MATCH(AE6,Pression_vap,-1)+1))*(INDEX(temp_vap,(MATCH(AE6,Pression_vap,-1)),MATCH("coeff4",coeff_vap,0))-INDEX(temp_vap,(MATCH(AE6,Pression_vap,-1)+1),MATCH("coeff4",coeff_vap,0)))/(INDEX(Pression_vap,MATCH(AE6,Pression_vap,-1))-INDEX(Pression_vap,MATCH(AE6,Pression_vap,-1)+1)))*(W6/10000)+(INDEX(temp_vap,(MATCH(AE6,Pression_vap,-1)+1),MATCH("coeff5",coeff_vap,0))+(AE6-INDEX(Pression_vap,MATCH(AE6,Pression_vap,-1)+1))*(INDEX(temp_vap,(MATCH(AE6,Pression_vap,-1)),MATCH("coeff5",coeff_vap,0))-INDEX(temp_vap,(MATCH(AE6,Pression_vap,-1)+1),MATCH("coeff5",coeff_vap,0)))/(INDEX(Pression_vap,MATCH(AE6,Pression_vap,-1))-INDEX(Pression_vap,MATCH(AE6,Pression_vap,-1)+1))) -> 345.904341 | N6: =IF(AND(B6=0,C6=0,ABS(L6-M6)<0.02),0,M6-L6) -> 3.917004456 | O6: =2500*4.91*N6*(A6-A5)/1000 -> 12.02030742 | P6: =(V6*H6+O6)/H6 -> 1580.411695 | Q6: =(W6*I6-O6)/I6 -> 2456.945554 | R6: =H6*V6+I6*W6 -> 39729865.23 | S6: =H6+I6 -> 23755.4375 | T6: =$T$3 -> 607.456 | U6: =I6/E6 -> 99.7791 | V6: =((P5*H5+J6*AG5-K6*(AH5-AG5))/(H5+J6))+Z6 -> 1580.41113 | W6: =((Q5*I5+K6*AH5+J6*(AH5-AG5))/(I5+K6)) -> 2456.950373 | X6: =IF(AND($AJ$3=1,AA5<=153.3),1580,0) -> 0 | Y6: =IF(AND($AJ$3=1,AND(AA5>=154,AA5<=156)),(-290*AA5+45240),IF(AND($AJ$3=1,AA3<=154),580,0)) -> 0 | Z6: =((X6+Y6)*(A6-A5))/H6 -> 0 | AA6: =IF(AND($AO$3=1,AE5<156.7),((1/3600)*2),0) -> 0.0005555555556 | AB6: =IF(AND($AO$3=1,AND(AE5>156.7,AE5<160.2)),(((35.14*AE5-5550.88)/3600)*2),0) -> 0 | AC6: =IF(AND($AO$3=1,AE5>=160.2),((125/3600)*2),0) -> 0 | AD6: =(A6-A5)*(AA6+AB6+AC6)*(AG6-1269.44) -> 0.04637265274 | AE6: =IF(C6=1,INDEX(Pression,MATCH(INDEX(OFFSET(INDEX(uV,MATCH(W6,uV,1)),1,0):OFFSET(INDEX(uV,MATCH(W6,uV,1)),71,0),MATCH(U6,OFFSET(INDEX(uV,MATCH(W6,uV,1)),1,0):OFFSET(INDEX(uV,MATCH(W6,uV,1)),71,0),-1)+1),INDEX(densite_vap,,MATCH(W6,uV,1)),-1))+(U6-INDEX(OFFSET(INDEX(uV,MATCH(W6,uV,1)),1,0):OFFSET(INDEX(uV,MATCH(W6,uV,1)),71,0),MATCH(U6,OFFSET(INDEX(uV,MATCH(W6,uV,1)),1,0):OFFSET(INDEX(uV,MATCH(W6,uV,1)),71,0),-1)+1)+(W6-INDEX(uV,MATCH(W6,uV,1)))*(INDEX(OFFSET(INDEX(uV,MATCH(W6,uV,1)+1),1,0):OFFSET(INDEX(uV,MATCH(W6,uV,1)+1),71,0),MATCH(U6,OFFSET(INDEX(uV,MATCH(W6,uV,1)+1),1,0):OFFSET(INDEX(uV,MATCH(W6,uV,1)+1),71,0),-1)+1)-INDEX(OFFSET(INDEX(uV,MATCH(W6,uV,1)),1,0):OFFSET(INDEX(uV,MATCH(W6,uV,1)),71,0),MATCH(U6,OFFSET(INDEX(uV,MATCH(W6,uV,1)),1,0):OFFSET(INDEX(uV,MATCH(W6,uV,1)),71,0),-1)+1))/(INDEX(uV,MATCH(W6,uV,1)+1)-INDEX(uV,MATCH(W6,uV,1))))*(INDEX(Pression,MATCH(INDEX(OFFSET(INDEX(uV,MATCH(W6,uV,1)),1,0):OFFSET(INDEX(uV,MATCH(W6,uV,1)),71,0),MATCH(U6,OFFSET(INDEX(uV,MATCH(W6,uV,1)),1,0):OFFSET(INDEX(uV,MATCH(W6,uV,1)),71,0),-1)),INDEX(densite_vap,,MATCH(W6,uV,1)),-1),1)-INDEX(Pression,MATCH(INDEX(OFFSET(INDEX(uV,MATCH(W6,uV,1)),1,0):OFFSET(INDEX(uV,MATCH(W6,uV,1)),71,0),MATCH(U6,OFFSET(INDEX(uV,MATCH(W6,uV,1)),1,0):OFFSET(INDEX(uV,MATCH(W6,uV,1)),71,0),-1)+1),INDEX(densite_vap,,MATCH(W6,uV,1)),-1)))/(INDEX(OFFSET(INDEX(uV,MATCH(W6,uV,1)),1,0):OFFSET(INDEX(uV,MATCH(W6,uV,1)),71,0),MATCH(U6,OFFSET(INDEX(uV,MATCH(W6,uV,1)),1,0):OFFSET(INDEX(uV,MATCH(W6,uV,1)),71,0),-1))+(W6-INDEX(uV,MATCH(W6,uV,1)))*(INDEX(OFFSET(INDEX(uV,MATCH(W6,uV,1)+1),1,0):OFFSET(INDEX(uV,MATCH(W6,uV,1)+1),71,0),MATCH(U6,OFFSET(INDEX(uV,MATCH(W6,uV,1)+1),1,0):OFFSET(INDEX(uV,MATCH(W6,uV,1)+1),71,0),-1))-INDEX(OFFSET(INDEX(uV,MATCH(W6,uV,1)),1,0):OFFSET(INDEX(uV,MATCH(W6,uV,1)),71,0),MATCH(U6,OFFSET(INDEX(uV,MATCH(W6,uV,1)),1,0):OFFSET(INDEX(uV,MATCH(W6,uV,1)),71,0),-1)))/(INDEX(uV,MATCH(W6,uV,1)+1)-INDEX(uV,MATCH(W6,uV,1)))-INDEX(OFFSET(INDEX(uV,MATCH(W6,uV,1)),1,0):OFFSET(INDEX(uV,MATCH(W6,uV,1)),71,0),MATCH(U6,OFFSET(INDEX(uV,MATCH(W6,uV,1)),1,0):OFFSET(INDEX(uV,MATCH(W6,uV,1)),71,0),-1)+1)+(W6-INDEX(uV,MATCH(W6,uV,1)))*(INDEX(OFFSET(INDEX(uV,MATCH(W6,uV,1)+1),1,0):OFFSET(INDEX(uV,MATCH(W6,uV,1)+1),71,0),MATCH(U6,OFFSET(INDEX(uV,MATCH(W6,uV,1)+1),1,0):OFFSET(INDEX(uV,MATCH(W6,uV,1)+1),71,0),-1)+1)-INDEX(OFFSET(INDEX(uV,MATCH(W6,uV,1)),1,0):OFFSET(INDEX(uV,MATCH(W6,uV,1)),71,0),MATCH(U6,OFFSET(INDEX(uV,MATCH(W6,uV,1)),1,0):OFFSET(INDEX(uV,MATCH(W6,uV,1)),71,0),-1)+1))/(INDEX(uV,MATCH(W6,uV,1)+1)-INDEX(uV,MATCH(W6,uV,1)))),IF(B6=1,AE5-0.01,AE5)) -> 154.8705244 | AF6: =Poly_Vapeur!$P$14*Resultats!AE6^4+Poly_Vapeur!$Q$14*Resultats!AE6^3+Poly_Vapeur!$R$14*Resultats!AE6^2+Poly_Vapeur!$S$14*Resultats!AE6+Poly_Vapeur!$T$14 -> 344.7220424 | AG6: =Poly_Liquide!$Q$6*Resultats!AE6^4+Poly_Liquide!$R$6*Resultats!AE6^3+Poly_Liquide!$S$6*Resultats!AE6^2+Poly_Liquide!$T$6*Resultats!AE6+Poly_Liquide!$U$6 -> 1603.3231 | AH6: =Poly_Vapeur!$P$6*Resultats!AE6^4+Poly_Vapeur!$Q$6*Resultats!AE6^3+Poly_Vapeur!$R$6*Resultats!AE6^2+Poly_Vapeur!$S$6*Resultats!AE6+Poly_Vapeur!$T$6 -> 2444.361564 | AI6: =Poly_Liquide!Q$10*Resultats!AE6^4+Poly_Liquide!R$10*Resultats!AE6^3+Poly_Liquide!S$10*Resultats!AE6^2+Poly_Liquide!T$10*Resultats!AE6+Poly_Liquide!U$10 -> 594.6187691 | AJ6: =Poly_Vapeur!P$10*Resultats!AE6^4+Poly_Vapeur!Q$10*Resultats!AE6^3+Poly_Vapeur!R$10*Resultats!AE6^2+Poly_Vapeur!S$10*Resultats!AE6+Poly_Vapeur!T$10 -> 101.7916256 | AK6: =IF(W6<AH5,1,0) -> 0 | AL6: =IF(V6>AG5,1,0) -> 0 | AM6: 0.5 | AQ6: 0.75
A7: =IF(B7=1,A6,A6+0.25) -> 1 | B7: =IF(AND(G7<0.0001,F6>0.09),1,0) -> 0 | C7: =IF(OR(AND(G7=0,F6<0),AND(G7>0,F6>-0.2)),1,0) -> 1 | D7: 35 | E7: =60-D7 -> 25 | F7: =AJ7-U7 -> 2.018840649 | G7: =W7-AH6 -> 12.58399041 | H7: =H6+J7-K7 -> 21260.96 | I7: =I6+K7-J7 -> 2494.4775 | J7: =IF((Q6-AH6)<0,-(AK6*I6*(Q6-AH6))/(AH6-AG6),0) -> 0 | K7: =IF((P6-AG6)>0,(AL6*H6*(P6-AG6))/(AH6-AG6),0) -> 0 | L7: =(INDEX(temp_liq,(MATCH(AE7,Pression_liq,-1)+1),MATCH("coeff1",coeff_liq,0))+(AE7-INDEX(Pression_liq,MATCH(AE7,Pression_liq,-1)+1))*(INDEX(temp_liq,(MATCH(AE7,Pression_liq,-1)),MATCH("coeff1",coeff_liq,0))-INDEX(temp_liq,(MATCH(AE7,Pression_liq,-1)+1),MATCH("coeff1",coeff_liq,0)))/(INDEX(Pression_liq,MATCH(AE7,Pression_liq,-1))-INDEX(Pression_liq,MATCH(AE7,Pression_liq,-1)+1)))*(V7/10000)^4+(INDEX(temp_liq,(MATCH(AE7,Pression_liq,-1)+1),MATCH("coeff2",coeff_liq,0))+(AE7-INDEX(Pression_liq,MATCH(AE7,Pression_liq,-1)+1))*(INDEX(temp_liq,(MATCH(AE7,Pression_liq,-1)),MATCH("coeff2",coeff_liq,0))-INDEX(temp_liq,(MATCH(AE7,Pression_liq,-1)+1),MATCH("coeff2",coeff_liq,0)))/(INDEX(Pression_liq,MATCH(AE7,Pression_liq,-1))-INDEX(Pression_liq,MATCH(AE7,Pression_liq,-1)+1)))*(V7/10000)^3+(INDEX(temp_liq,(MATCH(AE7,Pression_liq,-1)+1),MATCH("coeff3",coeff_liq,0))+(AE7-INDEX(Pression_liq,MATCH(AE7,Pression_liq,-1)+1))*(INDEX(temp_liq,(MATCH(AE7,Pression_liq,-1)),MATCH("coeff3",coeff_liq,0))-INDEX(temp_liq,(MATCH(AE7,Pression_liq,-1)+1),MATCH("coeff3",coeff_liq,0)))/(INDEX(Pression_liq,MATCH(AE7,Pression_liq,-1))-INDEX(Pression_liq,MATCH(AE7,Pression_liq,-1)+1)))*(V7/10000)^2+(INDEX(temp_liq,(MATCH(AE7,Pression_liq,-1)+1),MATCH("coeff4",coeff_liq,0))+(AE7-INDEX(Pression_liq,MATCH(AE7,Pression_liq,-1)+1))*(INDEX(temp_liq,(MATCH(AE7,Pression_liq,-1)),MATCH("coeff4",coeff_liq,0))-INDEX(temp_liq,(MATCH(AE7,Pression_liq,-1)+1),MATCH("coeff4",coeff_liq,0)))/(INDEX(Pression_liq,MATCH(AE7,Pression_liq,-1))-INDEX(Pression_liq,MATCH(AE7,Pression_liq,-1)+1)))*(V7/10000)+(INDEX(temp_liq,(MATCH(AE7,Pression_liq,-1)+1),MATCH("coeff5",coeff_liq,0))+(AE7-INDEX(Pression_liq,MATCH(AE7,Pression_liq,-1)+1))*(INDEX(temp_liq,(MATCH(AE7,Pression_liq,-1)),MATCH("coeff5",coeff_liq,0))-INDEX(temp_liq,(MATCH(AE7,Pression_liq,-1)+1),MATCH("coeff5",coeff_liq,0)))/(INDEX(Pression_liq,MATCH(AE7,Pression_liq,-1))-INDEX(Pression_liq,MATCH(AE7,Pression_liq,-1)+1))) -> 341.9879262 | M7: =(INDEX(temp_vap,(MATCH(AE7,Pression_vap,-1)+1),MATCH("coeff1",coeff_vap,0))+(AE7-INDEX(Pression_vap,MATCH(AE7,Pression_vap,-1)+1))*(INDEX(temp_vap,(MATCH(AE7,Pression_vap,-1)),MATCH("coeff1",coeff_vap,0))-INDEX(temp_vap,(MATCH(AE7,Pression_vap,-1)+1),MATCH("coeff1",coeff_vap,0)))/(INDEX(Pression_vap,MATCH(AE7,Pression_vap,-1))-INDEX(Pression_vap,MATCH(AE7,Pression_vap,-1)+1)))*(W7/10000)^4+(INDEX(temp_vap,(MATCH(AE7,Pression_vap,-1)+1),MATCH("coeff2",coeff_vap,0))+(AE7-INDEX(Pression_vap,MATCH(AE7,Pression_vap,-1)+1))*(INDEX(temp_vap,(MATCH(AE7,Pression_vap,-1)),MATCH("coeff2",coeff_vap,0))-INDEX(temp_vap,(MATCH(AE7,Pression_vap,-1)+1),MATCH("coeff2",coeff_vap,0)))/(INDEX(Pression_vap,MATCH(AE7,Pression_vap,-1))-INDEX(Pression_vap,MATCH(AE7,Pression_vap,-1)+1)))*(W7/10000)^3+(INDEX(temp_vap,(MATCH(AE7,Pression_vap,-1)+1),MATCH("coeff3",coeff_vap,0))+(AE7-INDEX(Pression_vap,MATCH(AE7,Pression_vap,-1)+1))*(INDEX(temp_vap,(MATCH(AE7,Pression_vap,-1)),MATCH("coeff3",coeff_vap,0))-INDEX(temp_vap,(MATCH(AE7,Pression_vap,-1)+1),MATCH("coeff3",coeff_vap,0)))/(INDEX(Pression_vap,MATCH(AE7,Pression_vap,-1))-INDEX(Pression_vap,MATCH(AE7,Pression_vap,-1)+1)))*(W7/10000)^2+(INDEX(temp_vap,(MATCH(AE7,Pression_vap,-1)+1),MATCH("coeff4",coeff_vap,0))+(AE7-INDEX(Pression_vap,MATCH(AE7,Pression_vap,-1)+1))*(INDEX(temp_vap,(MATCH(AE7,Pression_vap,-1)),MATCH("coeff4",coeff_vap,0))-INDEX(temp_vap,(MATCH(AE7,Pression_vap,-1)+1),MATCH("coeff4",coeff_vap,0)))/(INDEX(Pression_vap,MATCH(AE7,Pression_vap,-1))-INDEX(Pression_vap,MATCH(AE7,Pression_vap,-1)+1)))*(W7/10000)+(INDEX(temp_vap,(MATCH(AE7,Pression_vap,-1)+1),MATCH("coeff5",coeff_vap,0))+(AE7-INDEX(Pression_vap,MATCH(AE7,Pression_vap,-1)+1))*(INDEX(temp_vap,(MATCH(AE7,Pression_vap,-1)),MATCH("coeff5",coeff_vap,0))-INDEX(temp_vap,(MATCH(AE7,Pression_vap,-1)+1),MATCH("coeff5",coeff_vap,0)))/(INDEX(Pression_vap,MATCH(AE7,Pression_vap,-1))-INDEX(Pression_vap,MATCH(AE7,Pression_vap,-1)+1))) -> 345.908218 | N7: =IF(AND(B7=0,C7=0,ABS(L7-M7)<0.02),0,M7-L7) -> 3.920291863 | O7: =2500*4.91*N7*(A7-A6)/1000 -> 12.03039565 | P7: =(V7*H7+O7)/H7 -> 1580.412261 | Q7: =(W7*I7-O7)/I7 -> 2456.940731 | R7: =H7*V7+I7*W7 -> 39729865.23 | S7: =H7+I7 -> 23755.4375 | T7: =$T$3 -> 607.456 | U7: =I7/E7 -> 99.7791 | V7: =((P6*H6+J7*AG6-K7*(AH6-AG6))/(H6+J7))+Z7 -> 1580.411695 | W7: =((Q6*I6+K7*AH6+J7*(AH6-AG6))/(I6+K7)) -> 2456.945554 | X7: =IF(AND($AJ$3=1,AA6<=153.3),1580,0) -> 0 | Y7: =IF(AND($AJ$3=1,AND(AA6>=154,AA6<=156)),(-290*AA6+45240),IF(AND($AJ$3=1,AA3<=154),580,0)) -> 0 | Z7: =((X7+Y7)*(A7-A6))/H7 -> 0 | AA7: =IF(AND($AO$3=1,AE6<156.7),((1/3600)*2),0) -> 0.0005555555556 | AB7: =IF(AND($AO$3=1,AND(AE6>156.7,AE6<160.2)),(((35.14*AE6-5550.88)/3600)*2),0) -> 0 | AC7: =IF(AND($AO$3=1,AE6>=160.2),((125/3600)*2),0) -> 0 | AD7: =(A7-A6)*(AA7+AB7+AC7)*(AG7-1269.44) -> 0.04637569116 | AE7: =IF(C7=1,INDEX(Pression,MATCH(INDEX(OFFSET(INDEX(uV,MATCH(W7,uV,1)),1,0):OFFSET(INDEX(uV,MATCH(W7,uV,1)),71,0),MATCH(U7,OFFSET(INDEX(uV,MATCH(W7,uV,1)),1,0):OFFSET(INDEX(uV,MATCH(W7,uV,1)),71,0),-1)+1),INDEX(densite_vap,,MATCH(W7,uV,1)),-1))+(U7-INDEX(OFFSET(INDEX(uV,MATCH(W7,uV,1)),1,0):OFFSET(INDEX(uV,MATCH(W7,uV,1)),71,0),MATCH(U7,OFFSET(INDEX(uV,MATCH(W7,uV,1)),1,0):OFFSET(INDEX(uV,MATCH(W7,uV,1)),71,0),-1)+1)+(W7-INDEX(uV,MATCH(W7,uV,1)))*(INDEX(OFFSET(INDEX(uV,MATCH(W7,uV,1)+1),1,0):OFFSET(INDEX(uV,MATCH(W7,uV,1)+1),71,0),MATCH(U7,OFFSET(INDEX(uV,MATCH(W7,uV,1)+1),1,0):OFFSET(INDEX(uV,MATCH(W7,uV,1)+1),71,0),-1)+1)-INDEX(OFFSET(INDEX(uV,MATCH(W7,uV,1)),1,0):OFFSET(INDEX(uV,MATCH(W7,uV,1)),71,0),MATCH(U7,OFFSET(INDEX(uV,MATCH(W7,uV,1)),1,0):OFFSET(INDEX(uV,MATCH(W7,uV,1)),71,0),-1)+1))/(INDEX(uV,MATCH(W7,uV,1)+1)-INDEX(uV,MATCH(W7,uV,1))))*(INDEX(Pression,MATCH(INDEX(OFFSET(INDEX(uV,MATCH(W7,uV,1)),1,0):OFFSET(INDEX(uV,MATCH(W7,uV,1)),71,0),MATCH(U7,OFFSET(INDEX(uV,MATCH(W7,uV,1)),1,0):OFFSET(INDEX(uV,MATCH(W7,uV,1)),71,0),-1)),INDEX(densite_vap,,MATCH(W7,uV,1)),-1),1)-INDEX(Pression,MATCH(INDEX(OFFSET(INDEX(uV,MATCH(W7,uV,1)),1,0):OFFSET(INDEX(uV,MATCH(W7,uV,1)),71,0),MATCH(U7,OFFSET(INDEX(uV,MATCH(W7,uV,1)),1,0):OFFSET(INDEX(uV,MATCH(W7,uV,1)),71,0),-1)+1),INDEX(densite_vap,,MATCH(W7,uV,1)),-1)))/(INDEX(OFFSET(INDEX(uV,MATCH(W7,uV,1)),1,0):OFFSET(INDEX(uV,MATCH(W7,uV,1)),71,0),MATCH(U7,OFFSET(INDEX(uV,MATCH(W7,uV,1)),1,0):OFFSET(INDEX(uV,MATCH(W7,uV,1)),71,0),-1))+(W7-INDEX(uV,MATCH(W7,uV,1)))*(INDEX(OFFSET(INDEX(uV,MATCH(W7,uV,1)+1),1,0):OFFSET(INDEX(uV,MATCH(W7,uV,1)+1),71,0),MATCH(U7,OFFSET(INDEX(uV,MATCH(W7,uV,1)+1),1,0):OFFSET(INDEX(uV,MATCH(W7,uV,1)+1),71,0),-1))-INDEX(OFFSET(INDEX(uV,MATCH(W7,uV,1)),1,0):OFFSET(INDEX(uV,MATCH(W7,uV,1)),71,0),MATCH(U7,OFFSET(INDEX(uV,MATCH(W7,uV,1)),1,0):OFFSET(INDEX(uV,MATCH(W7,uV,1)),71,0),-1)))/(INDEX(uV,MATCH(W7,uV,1)+1)-INDEX(uV,MATCH(W7,uV,1)))-INDEX(OFFSET(INDEX(uV,MATCH(W7,uV,1)),1,0):OFFSET(INDEX(uV,MATCH(W7,uV,1)),71,0),MATCH(U7,OFFSET(INDEX(uV,MATCH(W7,uV,1)),1,0):OFFSET(INDEX(uV,MATCH(W7,uV,1)),71,0),-1)+1)+(W7-INDEX(uV,MATCH(W7,uV,1)))*(INDEX(OFFSET(INDEX(uV,MATCH(W7,uV,1)+1),1,0):OFFSET(INDEX(uV,MATCH(W7,uV,1)+1),71,0),MATCH(U7,OFFSET(INDEX(uV,MATCH(W7,uV,1)+1),1,0):OFFSET(INDEX(uV,MATCH(W7,uV,1)+1),71,0),-1)+1)-INDEX(OFFSET(INDEX(uV,MATCH(W7,uV,1)),1,0):OFFSET(INDEX(uV,MATCH(W7,uV,1)),71,0),MATCH(U7,OFFSET(INDEX(uV,MATCH(W7,uV,1)),1,0):OFFSET(INDEX(uV,MATCH(W7,uV,1)),71,0),-1)+1))/(INDEX(uV,MATCH(W7,uV,1)+1)-INDEX(uV,MATCH(W7,uV,1)))),IF(B7=1,AE6-0.01,AE6)) -> 154.8764422 | AF7: =Poly_Vapeur!$P$14*Resultats!AE7^4+Poly_Vapeur!$Q$14*Resultats!AE7^3+Poly_Vapeur!$R$14*Resultats!AE7^2+Poly_Vapeur!$S$14*Resultats!AE7+Poly_Vapeur!$T$14 -> 344.7251206 | AG7: =Poly_Liquide!$Q$6*Resultats!AE7^4+Poly_Liquide!$R$6*Resultats!AE7^3+Poly_Liquide!$S$6*Resultats!AE7^2+Poly_Liquide!$T$6*Resultats!AE7+Poly_Liquide!$U$6 -> 1603.344976 | AH7: =Poly_Vapeur!$P$6*Resultats!AE7^4+Poly_Vapeur!$Q$6*Resultats!AE7^3+Poly_Vapeur!$R$6*Resultats!AE7^2+Poly_Vapeur!$S$6*Resultats!AE7+Poly_Vapeur!$T$6 -> 2444.347526 | AI7: =Poly_Liquide!Q$10*Resultats!AE7^4+Poly_Liquide!R$10*Resultats!AE7^3+Poly_Liquide!S$10*Resultats!AE7^2+Poly_Liquide!T$10*Resultats!AE7+Poly_Liquide!U$10 -> 594.6078205 | AJ7: =Poly_Vapeur!P$10*Resultats!AE7^4+Poly_Vapeur!Q$10*Resultats!AE7^3+Poly_Vapeur!R$10*Resultats!AE7^2+Poly_Vapeur!S$10*Resultats!AE7+Poly_Vapeur!T$10 -> 101.7979406 | AK7: =IF(W7<AH6,1,0) -> 0 | AL7: =IF(V7>AG6,1,0) -> 0 | AM7: 0.75 | AQ7: 1
A8: =IF(B8=1,A7,A7+0.25) -> 1.25 | B8: =IF(AND(G8<0.0001,F7>0.09),1,0) -> 0 | C8: =IF(OR(AND(G8=0,F7<0),AND(G8>0,F7>-0.2)),1,0) -> 1 | D8: 35 | E8: =60-D8 -> 25 | F8: =AJ8-U8 -> 2.025814098 | G8: =W8-AH7 -> 12.59320489 | H8: =H7+J8-K8 -> 21260.96 | I8: =I7+K8-J8 -> 2494.4775 | J8: =IF((Q7-AH7)<0,-(AK7*I7*(Q7-AH7))/(AH7-AG7),0) -> 0 | K8: =IF((P7-AG7)>0,(AL7*H7*(P7-AG7))/(AH7-AG7),0) -> 0 | L8: =(INDEX(temp_liq,(MATCH(AE8,Pression_liq,-1)+1),MATCH("coeff1",coeff_liq,0))+(AE8-INDEX(Pression_liq,MATCH(AE8,Pression_liq,-1)+1))*(INDEX(temp_liq,(MATCH(AE8,Pression_liq,-1)),MATCH("coeff1",coeff_liq,0))-INDEX(temp_liq,(MATCH(AE8,Pression_liq,-1)+1),MATCH("coeff1",coeff_liq,0)))/(INDEX(Pression_liq,MATCH(AE8,Pression_liq,-1))-INDEX(Pression_liq,MATCH(AE8,Pression_liq,-1)+1)))*(V8/10000)^4+(INDEX(temp_liq,(MATCH(AE8,Pression_liq,-1)+1),MATCH("coeff2",coeff_liq,0))+(AE8-INDEX(Pression_liq,MATCH(AE8,Pression_liq,-1)+1))*(INDEX(temp_liq,(MATCH(AE8,Pression_liq,-1)),MATCH("coeff2",coeff_liq,0))-INDEX(temp_liq,(MATCH(AE8,Pression_liq,-1)+1),MATCH("coeff2",coeff_liq,0)))/(INDEX(Pression_liq,MATCH(AE8,Pression_liq,-1))-INDEX(Pression_liq,MATCH(AE8,Pression_liq,-1)+1)))*(V8/10000)^3+(INDEX(temp_liq,(MATCH(AE8,Pression_liq,-1)+1),MATCH("coeff3",coeff_liq,0))+(AE8-INDEX(Pression_liq,MATCH(AE8,Pression_liq,-1)+1))*(INDEX(temp_liq,(MATCH(AE8,Pression_liq,-1)),MATCH("coeff3",coeff_liq,0))-INDEX(temp_liq,(MATCH(AE8,Pression_liq,-1)+1),MATCH("coeff3",coeff_liq,0)))/(INDEX(Pression_liq,MATCH(AE8,Pression_liq,-1))-INDEX(Pression_liq,MATCH(AE8,Pression_liq,-1)+1)))*(V8/10000)^2+(INDEX(temp_liq,(MATCH(AE8,Pression_liq,-1)+1),MATCH("coeff4",coeff_liq,0))+(AE8-INDEX(Pression_liq,MATCH(AE8,Pression_liq,-1)+1))*(INDEX(temp_liq,(MATCH(AE8,Pression_liq,-1)),MATCH("coeff4",coeff_liq,0))-INDEX(temp_liq,(MATCH(AE8,Pression_liq,-1)+1),MATCH("coeff4",coeff_liq,0)))/(INDEX(Pression_liq,MATCH(AE8,Pression_liq,-1))-INDEX(Pression_liq,MATCH(AE8,Pression_liq,-1)+1)))*(V8/10000)+(INDEX(temp_liq,(MATCH(AE8,Pression_liq,-1)+1),MATCH("coeff5",coeff_liq,0))+(AE8-INDEX(Pression_liq,MATCH(AE8,Pression_liq,-1)+1))*(INDEX(temp_liq,(MATCH(AE8,Pression_liq,-1)),MATCH("coeff5",coeff_liq,0))-INDEX(temp_liq,(MATCH(AE8,Pression_liq,-1)+1),MATCH("coeff5",coeff_liq,0)))/(INDEX(Pression_liq,MATCH(AE8,Pression_liq,-1))-INDEX(Pression_liq,MATCH(AE8,Pression_liq,-1)+1))) -> 341.98857 | M8: =(INDEX(temp_vap,(MATCH(AE8,Pression_vap,-1)+1),MATCH("coeff1",coeff_vap,0))+(AE8-INDEX(Pression_vap,MATCH(AE8,Pression_vap,-1)+1))*(INDEX(temp_vap,(MATCH(AE8,Pression_vap,-1)),MATCH("coeff1",coeff_vap,0))-INDEX(temp_vap,(MATCH(AE8,Pression_vap,-1)+1),MATCH("coeff1",coeff_vap,0)))/(INDEX(Pression_vap,MATCH(AE8,Pression_vap,-1))-INDEX(Pression_vap,MATCH(AE8,Pression_vap,-1)+1)))*(W8/10000)^4+(INDEX(temp_vap,(MATCH(AE8,Pression_vap,-1)+1),MATCH("coeff2",coeff_vap,0))+(AE8-INDEX(Pression_vap,MATCH(AE8,Pression_vap,-1)+1))*(INDEX(temp_vap,(MATCH(AE8,Pression_vap,-1)),MATCH("coeff2",coeff_vap,0))-INDEX(temp_vap,(MATCH(AE8,Pression_vap,-1)+1),MATCH("coeff2",coeff_vap,0)))/(INDEX(Pression_vap,MATCH(AE8,Pression_vap,-1))-INDEX(Pression_vap,MATCH(AE8,Pression_vap,-1)+1)))*(W8/10000)^3+(INDEX(temp_vap,(MATCH(AE8,Pression_vap,-1)+1),MATCH("coeff3",coeff_vap,0))+(AE8-INDEX(Pression_vap,MATCH(AE8,Pression_vap,-1)+1))*(INDEX(temp_vap,(MATCH(AE8,Pression_vap,-1)),MATCH("coeff3",coeff_vap,0))-INDEX(temp_vap,(MATCH(AE8,Pression_vap,-1)+1),MATCH("coeff3",coeff_vap,0)))/(INDEX(Pression_vap,MATCH(AE8,Pression_vap,-1))-INDEX(Pression_vap,MATCH(AE8,Pression_vap,-1)+1)))*(W8/10000)^2+(INDEX(temp_vap,(MATCH(AE8,Pression_vap,-1)+1),MATCH("coeff4",coeff_vap,0))+(AE8-INDEX(Pression_vap,MATCH(AE8,Pression_vap,-1)+1))*(INDEX(temp_vap,(MATCH(AE8,Pression_vap,-1)),MATCH("coeff4",coeff_vap,0))-INDEX(temp_vap,(MATCH(AE8,Pression_vap,-1)+1),MATCH("coeff4",coeff_vap,0)))/(INDEX(Pression_vap,MATCH(AE8,Pression_vap,-1))-INDEX(Pression_vap,MATCH(AE8,Pression_vap,-1)+1)))*(W8/10000)+(INDEX(temp_vap,(MATCH(AE8,Pression_vap,-1)+1),MATCH("coeff5",coeff_vap,0))+(AE8-INDEX(Pression_vap,MATCH(AE8,Pression_vap,-1)+1))*(INDEX(temp_vap,(MATCH(AE8,Pression_vap,-1)),MATCH("coeff5",coeff_vap,0))-INDEX(temp_vap,(MATCH(AE8,Pression_vap,-1)+1),MATCH("coeff5",coeff_vap,0)))/(INDEX(Pression_vap,MATCH(AE8,Pression_vap,-1))-INDEX(Pression_vap,MATCH(AE8,Pression_vap,-1)+1))) -> 345.9125479 | N8: =IF(AND(B8=0,C8=0,ABS(L8-M8)<0.02),0,M8-L8) -> 3.923977942 | O8: =2500*4.91*N8*(A8-A7)/1000 -> 12.04170731 | P8: =(V8*H8+O8)/H8 -> 1580.412827 | Q8: =(W8*I8-O8)/I8 -> 2456.935904 | R8: =H8*V8+I8*W8 -> 39729865.23 | S8: =H8+I8 -> 23755.4375 | T8: =$T$3 -> 607.456 | U8: =I8/E8 -> 99.7791 | V8: =((P7*H7+J8*AG7-K8*(AH7-AG7))/(H7+J8))+Z8 -> 1580.412261 | W8: =((Q7*I7+K8*AH7+J8*(AH7-AG7))/(I7+K8)) -> 2456.940731 | X8: =IF(AND($AJ$3=1,AA7<=153.3),1580,0) -> 0 | Y8: =IF(AND($AJ$3=1,AND(AA7>=154,AA7<=156)),(-290*AA7+45240),IF(AND($AJ$3=1,AA3<=154),580,0)) -> 0 | Z8: =((X8+Y8)*(A8-A7))/H8 -> 0 | AA8: =IF(AND($AO$3=1,AE7<156.7),((1/3600)*2),0) -> 0.0005555555556 | AB8: =IF(AND($AO$3=1,AND(AE7>156.7,AE7<160.2)),(((35.14*AE7-5550.88)/3600)*2),0) -> 0 | AC8: =IF(AND($AO$3=1,AE7>=160.2),((125/3600)*2),0) -> 0 | AD8: =(A8-A7)*(AA8+AB8+AC8)*(AG8-1269.44) -> 0.04637904617 | AE8: =IF(C8=1,INDEX(Pression,MATCH(INDEX(OFFSET(INDEX(uV,MATCH(W8,uV,1)),1,0):OFFSET(INDEX(uV,MATCH(W8,uV,1)),71,0),MATCH(U8,OFFSET(INDEX(uV,MATCH(W8,uV,1)),1,0):OFFSET(INDEX(uV,MATCH(W8,uV,1)),71,0),-1)+1),INDEX(densite_vap,,MATCH(W8,uV,1)),-1))+(U8-INDEX(OFFSET(INDEX(uV,MATCH(W8,uV,1)),1,0):OFFSET(INDEX(uV,MATCH(W8,uV,1)),71,0),MATCH(U8,OFFSET(INDEX(uV,MATCH(W8,uV,1)),1,0):OFFSET(INDEX(uV,MATCH(W8,uV,1)),71,0),-1)+1)+(W8-INDEX(uV,MATCH(W8,uV,1)))*(INDEX(OFFSET(INDEX(uV,MATCH(W8,uV,1)+1),1,0):OFFSET(INDEX(uV,MATCH(W8,uV,1)+1),71,0),MATCH(U8,OFFSET(INDEX(uV,MATCH(W8,uV,1)+1),1,0):OFFSET(INDEX(uV,MATCH(W8,uV,1)+1),71,0),-1)+1)-INDEX(OFFSET(INDEX(uV,MATCH(W8,uV,1)),1,0):OFFSET(INDEX(uV,MATCH(W8,uV,1)),71,0),MATCH(U8,OFFSET(INDEX(uV,MATCH(W8,uV,1)),1,0):OFFSET(INDEX(uV,MATCH(W8,uV,1)),71,0),-1)+1))/(INDEX(uV,MATCH(W8,uV,1)+1)-INDEX(uV,MATCH(W8,uV,1))))*(INDEX(Pression,MATCH(INDEX(OFFSET(INDEX(uV,MATCH(W8,uV,1)),1,0):OFFSET(INDEX(uV,MATCH(W8,uV,1)),71,0),MATCH(U8,OFFSET(INDEX(uV,MATCH(W8,uV,1)),1,0):OFFSET(INDEX(uV,MATCH(W8,uV,1)),71,0),-1)),INDEX(densite_vap,,MATCH(W8,uV,1)),-1),1)-INDEX(Pression,MATCH(INDEX(OFFSET(INDEX(uV,MATCH(W8,uV,1)),1,0):OFFSET(INDEX(uV,MATCH(W8,uV,1)),71,0),MATCH(U8,OFFSET(INDEX(uV,MATCH(W8,uV,1)),1,0):OFFSET(INDEX(uV,MATCH(W8,uV,1)),71,0),-1)+1),INDEX(densite_vap,,MATCH(W8,uV,1)),-1)))/(INDEX(OFFSET(INDEX(uV,MATCH(W8,uV,1)),1,0):OFFSET(INDEX(uV,MATCH(W8,uV,1)),71,0),MATCH(U8,OFFSET(INDEX(uV,MATCH(W8,uV,1)),1,0):OFFSET(INDEX(uV,MATCH(W8,uV,1)),71,0),-1))+(W8-INDEX(uV,MATCH(W8,uV,1)))*(INDEX(OFFSET(INDEX(uV,MATCH(W8,uV,1)+1),1,0):OFFSET(INDEX(uV,MATCH(W8,uV,1)+1),71,0),MATCH(U8,OFFSET(INDEX(uV,MATCH(W8,uV,1)+1),1,0):OFFSET(INDEX(uV,MATCH(W8,uV,1)+1),71,0),-1))-INDEX(OFFSET(INDEX(uV,MATCH(W8,uV,1)),1,0):OFFSET(INDEX(uV,MATCH(W8,uV,1)),71,0),MATCH(U8,OFFSET(INDEX(uV,MATCH(W8,uV,1)),1,0):OFFSET(INDEX(uV,MATCH(W8,uV,1)),71,0),-1)))/(INDEX(uV,MATCH(W8,uV,1)+1)-INDEX(uV,MATCH(W8,uV,1)))-INDEX(OFFSET(INDEX(uV,MATCH(W8,uV,1)),1,0):OFFSET(INDEX(uV,MATCH(W8,uV,1)),71,0),MATCH(U8,OFFSET(INDEX(uV,MATCH(W8,uV,1)),1,0):OFFSET(INDEX(uV,MATCH(W8,uV,1)),71,0),-1)+1)+(W8-INDEX(uV,MATCH(W8,uV,1)))*(INDEX(OFFSET(INDEX(uV,MATCH(W8,uV,1)+1),1,0):OFFSET(INDEX(uV,MATCH(W8,uV,1)+1),71,0),MATCH(U8,OFFSET(INDEX(uV,MATCH(W8,uV,1)+1),1,0):OFFSET(INDEX(uV,MATCH(W8,uV,1)+1),71,0),-1)+1)-INDEX(OFFSET(INDEX(uV,MATCH(W8,uV,1)),1,0):OFFSET(INDEX(uV,MATCH(W8,uV,1)),71,0),MATCH(U8,OFFSET(INDEX(uV,MATCH(W8,uV,1)),1,0):OFFSET(INDEX(uV,MATCH(W8,uV,1)),71,0),-1)+1))/(INDEX(uV,MATCH(W8,uV,1)+1)-INDEX(uV,MATCH(W8,uV,1)))),IF(B8=1,AE7-0.01,AE7)) -> 154.8829764 | AF8: =Poly_Vapeur!$P$14*Resultats!AE8^4+Poly_Vapeur!$Q$14*Resultats!AE8^3+Poly_Vapeur!$R$14*Resultats!AE8^2+Poly_Vapeur!$S$14*Resultats!AE8+Poly_Vapeur!$T$14 -> 344.7285194 | AG8: =Poly_Liquide!$Q$6*Resultats!AE8^4+Poly_Liquide!$R$6*Resultats!AE8^3+Poly_Liquide!$S$6*Resultats!AE8^2+Poly_Liquide!$T$6*Resultats!AE8+Poly_Liquide!$U$6 -> 1603.369132 | AH8: =Poly_Vapeur!$P$6*Resultats!AE8^4+Poly_Vapeur!$Q$6*Resultats!AE8^3+Poly_Vapeur!$R$6*Resultats!AE8^2+Poly_Vapeur!$S$6*Resultats!AE8+Poly_Vapeur!$T$6 -> 2444.332026 | AI8: =Poly_Liquide!Q$10*Resultats!AE8^4+Poly_Liquide!R$10*Resultats!AE8^3+Poly_Liquide!S$10*Resultats!AE8^2+Poly_Liquide!T$10*Resultats!AE8+Poly_Liquide!U$10 -> 594.5957307 | AJ8: =Poly_Vapeur!P$10*Resultats!AE8^4+Poly_Vapeur!Q$10*Resultats!AE8^3+Poly_Vapeur!R$10*Resultats!AE8^2+Poly_Vapeur!S$10*Resultats!AE8+Poly_Vapeur!T$10 -> 101.8049141 | AK8: =IF(W8<AH7,1,0) -> 0 | AL8: =IF(V8>AG7,1,0) -> 0 | AM8: 1 | AQ8: 1.25
A9: =IF(B9=1,A8,A8+0.25) -> 1.5 | B9: =IF(AND(G9<0.0001,F8>0.09),1,0) -> 0 | C9: =IF(OR(AND(G9=0,F8<0),AND(G9>0,F8>-0.2)),1,0) -> 1 | D9: 35 | E9: =60-D9 -> 25 | F9: =AJ9-U9 -> 2.033555405 | G9: =W9-AH8 -> 12.60387836 | H9: =H8+J9-K9 -> 21260.96 | I9: =I8+K9-J9 -> 2494.4775 | J9: =IF((Q8-AH8)<0,-(AK8*I8*(Q8-AH8))/(AH8-AG8),0) -> 0 | K9: =IF((P8-AG8)>0,(AL8*H8*(P8-AG8))/(AH8-AG8),0) -> 0 | L9: =(INDEX(temp_liq,(MATCH(AE9,Pression_liq,-1)+1),MATCH("coeff1",coeff_liq,0))+(AE9-INDEX(Pression_liq,MATCH(AE9,Pression_liq,-1)+1))*(INDEX(temp_liq,(MATCH(AE9,Pression_liq,-1)),MATCH("coeff1",coeff_liq,0))-INDEX(temp_liq,(MATCH(AE9,Pression_liq,-1)+1),MATCH("coeff1",coeff_liq,0)))/(INDEX(Pression_liq,MATCH(AE9,Pression_liq,-1))-INDEX(Pression_liq,MATCH(AE9,Pression_liq,-1)+1)))*(V9/10000)^4+(INDEX(temp_liq,(MATCH(AE9,Pression_liq,-1)+1),MATCH("coeff2",coeff_liq,0))+(AE9-INDEX(Pression_liq,MATCH(AE9,Pression_liq,-1)+1))*(INDEX(temp_liq,(MATCH(AE9,Pression_liq,-1)),MATCH("coeff2",coeff_liq,0))-INDEX(temp_liq,(MATCH(AE9,Pression_liq,-1)+1),MATCH("coeff2",coeff_liq,0)))/(INDEX(Pression_liq,MATCH(AE9,Pression_liq,-1))-INDEX(Pression_liq,MATCH(AE9,Pression_liq,-1)+1)))*(V9/10000)^3+(INDEX(temp_liq,(MATCH(AE9,Pression_liq,-1)+1),MATCH("coeff3",coeff_liq,0))+(AE9-INDEX(Pression_liq,MATCH(AE9,Pression_liq,-1)+1))*(INDEX(temp_liq,(MATCH(AE9,Pression_liq,-1)),MATCH("coeff3",coeff_liq,0))-INDEX(temp_liq,(MATCH(AE9,Pression_liq,-1)+1),MATCH("coeff3",coeff_liq,0)))/(INDEX(Pression_liq,MATCH(AE9,Pression_liq,-1))-INDEX(Pression_liq,MATCH(AE9,Pression_liq,-1)+1)))*(V9/10000)^2+(INDEX(temp_liq,(MATCH(AE9,Pression_liq,-1)+1),MATCH("coeff4",coeff_liq,0))+(AE9-INDEX(Pression_liq,MATCH(AE9,Pression_liq,-1)+1))*(INDEX(temp_liq,(MATCH(AE9,Pression_liq,-1)),MATCH("coeff4",coeff_liq,0))-INDEX(temp_liq,(MATCH(AE9,Pression_liq,-1)+1),MATCH("coeff4",coeff_liq,0)))/(INDEX(Pression_liq,MATCH(AE9,Pression_liq,-1))-INDEX(Pression_liq,MATCH(AE9,Pression_liq,-1)+1)))*(V9/10000)+(INDEX(temp_liq,(MATCH(AE9,Pression_liq,-1)+1),MATCH("coeff5",coeff_liq,0))+(AE9-INDEX(Pression_liq,MATCH(AE9,Pression_liq,-1)+1))*(INDEX(temp_liq,(MATCH(AE9,Pression_liq,-1)),MATCH("coeff5",coeff_liq,0))-INDEX(temp_liq,(MATCH(AE9,Pression_liq,-1)+1),MATCH("coeff5",coeff_liq,0)))/(INDEX(Pression_liq,MATCH(AE9,Pression_liq,-1))-INDEX(Pression_liq,MATCH(AE9,Pression_liq,-1)+1))) -> 341.989277 | M9: =(INDEX(temp_vap,(MATCH(AE9,Pression_vap,-1)+1),MATCH("coeff1",coeff_vap,0))+(AE9-INDEX(Pression_vap,MATCH(AE9,Pression_vap,-1)+1))*(INDEX(temp_vap,(MATCH(AE9,Pression_vap,-1)),MATCH("coeff1",coeff_vap,0))-INDEX(temp_vap,(MATCH(AE9,Pression_vap,-1)+1),MATCH("coeff1",coeff_vap,0)))/(INDEX(Pression_vap,MATCH(AE9,Pression_vap,-1))-INDEX(Pression_vap,MATCH(AE9,Pression_vap,-1)+1)))*(W9/10000)^4+(INDEX(temp_vap,(MATCH(AE9,Pression_vap,-1)+1),MATCH("coeff2",coeff_vap,0))+(AE9-INDEX(Pression_vap,MATCH(AE9,Pression_vap,-1)+1))*(INDEX(temp_vap,(MATCH(AE9,Pression_vap,-1)),MATCH("coeff2",coeff_vap,0))-INDEX(temp_vap,(MATCH(AE9,Pression_vap,-1)+1),MATCH("coeff2",coeff_vap,0)))/(INDEX(Pression_vap,MATCH(AE9,Pression_vap,-1))-INDEX(Pression_vap,MATCH(AE9,Pression_vap,-1)+1)))*(W9/10000)^3+(INDEX(temp_vap,(MATCH(AE9,Pression_vap,-1)+1),MATCH("coeff3",coeff_vap,0))+(AE9-INDEX(Pression_vap,MATCH(AE9,Pression_vap,-1)+1))*(INDEX(temp_vap,(MATCH(AE9,Pression_vap,-1)),MATCH("coeff3",coeff_vap,0))-INDEX(temp_vap,(MATCH(AE9,Pression_vap,-1)+1),MATCH("coeff3",coeff_vap,0)))/(INDEX(Pression_vap,MATCH(AE9,Pression_vap,-1))-INDEX(Pression_vap,MATCH(AE9,Pression_vap,-1)+1)))*(W9/10000)^2+(INDEX(temp_vap,(MATCH(AE9,Pression_vap,-1)+1),MATCH("coeff4",coeff_vap,0))+(AE9-INDEX(Pression_vap,MATCH(AE9,Pression_vap,-1)+1))*(INDEX(temp_vap,(MATCH(AE9,Pression_vap,-1)),MATCH("coeff4",coeff_vap,0))-INDEX(temp_vap,(MATCH(AE9,Pression_vap,-1)+1),MATCH("coeff4",coeff_vap,0)))/(INDEX(Pression_vap,MATCH(AE9,Pression_vap,-1))-INDEX(Pression_vap,MATCH(AE9,Pression_vap,-1)+1)))*(W9/10000)+(INDEX(temp_vap,(MATCH(AE9,Pression_vap,-1)+1),MATCH("coeff5",coeff_vap,0))+(AE9-INDEX(Pression_vap,MATCH(AE9,Pression_vap,-1)+1))*(INDEX(temp_vap,(MATCH(AE9,Pression_vap,-1)),MATCH("coeff5",coeff_vap,0))-INDEX(temp_vap,(MATCH(AE9,Pression_vap,-1)+1),MATCH("coeff5",coeff_vap,0)))/(INDEX(Pression_vap,MATCH(AE9,Pression_vap,-1))-INDEX(Pression_vap,MATCH(AE9,Pression_vap,-1)+1))) -> 345.9174059 | N9: =IF(AND(B9=0,C9=0,ABS(L9-M9)<0.02),0,M9-L9) -> 3.928128937 | O9: =2500*4.91*N9*(A9-A8)/1000 -> 12.05444567 | P9: =(V9*H9+O9)/H9 -> 1580.413394 | Q9: =(W9*I9-O9)/I9 -> 2456.931072 | R9: =H9*V9+I9*W9 -> 39729865.23 | S9: =H9+I9 -> 23755.4375 | T9: =$T$3 -> 607.456 | U9: =I9/E9 -> 99.7791 | V9: =((P8*H8+J9*AG8-K9*(AH8-AG8))/(H8+J9))+Z9 -> 1580.412827 | W9: =((Q8*I8+K9*AH8+J9*(AH8-AG8))/(I8+K9)) -> 2456.935904 | X9: =IF(AND($AJ$3=1,AA8<=153.3),1580,0) -> 0 | Y9: =IF(AND($AJ$3=1,AND(AA8>=154,AA8<=156)),(-290*AA8+45240),IF(AND($AJ$3=1,AA3<=154),580,0)) -> 0 | Z9: =((X9+Y9)*(A9-A8))/H9 -> 0 | AA9: =IF(AND($AO$3=1,AE8<156.7),((1/3600)*2),0) -> 0.0005555555556 | AB9: =IF(AND($AO$3=1,AND(AE8>156.7,AE8<160.2)),(((35.14*AE8-5550.88)/3600)*2),0) -> 0 | AC9: =IF(AND($AO$3=1,AE8>=160.2),((125/3600)*2),0) -> 0 | AD9: =(A9-A8)*(AA9+AB9+AC9)*(AG9-1269.44) -> 0.04638277033 | AE9: =IF(C9=1,INDEX(Pression,MATCH(INDEX(OFFSET(INDEX(uV,MATCH(W9,uV,1)),1,0):OFFSET(INDEX(uV,MATCH(W9,uV,1)),71,0),MATCH(U9,OFFSET(INDEX(uV,MATCH(W9,uV,1)),1,0):OFFSET(INDEX(uV,MATCH(W9,uV,1)),71,0),-1)+1),INDEX(densite_vap,,MATCH(W9,uV,1)),-1))+(U9-INDEX(OFFSET(INDEX(uV,MATCH(W9,uV,1)),1,0):OFFSET(INDEX(uV,MATCH(W9,uV,1)),71,0),MATCH(U9,OFFSET(INDEX(uV,MATCH(W9,uV,1)),1,0):OFFSET(INDEX(uV,MATCH(W9,uV,1)),71,0),-1)+1)+(W9-INDEX(uV,MATCH(W9,uV,1)))*(INDEX(OFFSET(INDEX(uV,MATCH(W9,uV,1)+1),1,0):OFFSET(INDEX(uV,MATCH(W9,uV,1)+1),71,0),MATCH(U9,OFFSET(INDEX(uV,MATCH(W9,uV,1)+1),1,0):OFFSET(INDEX(uV,MATCH(W9,uV,1)+1),71,0),-1)+1)-INDEX(OFFSET(INDEX(uV,MATCH(W9,uV,1)),1,0):OFFSET(INDEX(uV,MATCH(W9,uV,1)),71,0),MATCH(U9,OFFSET(INDEX(uV,MATCH(W9,uV,1)),1,0):OFFSET(INDEX(uV,MATCH(W9,uV,1)),71,0),-1)+1))/(INDEX(uV,MATCH(W9,uV,1)+1)-INDEX(uV,MATCH(W9,uV,1))))*(INDEX(Pression,MATCH(INDEX(OFFSET(INDEX(uV,MATCH(W9,uV,1)),1,0):OFFSET(INDEX(uV,MATCH(W9,uV,1)),71,0),MATCH(U9,OFFSET(INDEX(uV,MATCH(W9,uV,1)),1,0):OFFSET(INDEX(uV,MATCH(W9,uV,1)),71,0),-1)),INDEX(densite_vap,,MATCH(W9,uV,1)),-1),1)-INDEX(Pression,MATCH(INDEX(OFFSET(INDEX(uV,MATCH(W9,uV,1)),1,0):OFFSET(INDEX(uV,MATCH(W9,uV,1)),71,0),MATCH(U9,OFFSET(INDEX(uV,MATCH(W9,uV,1)),1,0):OFFSET(INDEX(uV,MATCH(W9,uV,1)),71,0),-1)+1),INDEX(densite_vap,,MATCH(W9,uV,1)),-1)))/(INDEX(OFFSET(INDEX(uV,MATCH(W9,uV,1)),1,0):OFFSET(INDEX(uV,MATCH(W9,uV,1)),71,0),MATCH(U9,OFFSET(INDEX(uV,MATCH(W9,uV,1)),1,0):OFFSET(INDEX(uV,MATCH(W9,uV,1)),71,0),-1))+(W9-INDEX(uV,MATCH(W9,uV,1)))*(INDEX(OFFSET(INDEX(uV,MATCH(W9,uV,1)+1),1,0):OFFSET(INDEX(uV,MATCH(W9,uV,1)+1),71,0),MATCH(U9,OFFSET(INDEX(uV,MATCH(W9,uV,1)+1),1,0):OFFSET(INDEX(uV,MATCH(W9,uV,1)+1),71,0),-1))-INDEX(OFFSET(INDEX(uV,MATCH(W9,uV,1)),1,0):OFFSET(INDEX(uV,MATCH(W9,uV,1)),71,0),MATCH(U9,OFFSET(INDEX(uV,MATCH(W9,uV,1)),1,0):OFFSET(INDEX(uV,MATCH(W9,uV,1)),71,0),-1)))/(INDEX(uV,MATCH(W9,uV,1)+1)-INDEX(uV,MATCH(W9,uV,1)))-INDEX(OFFSET(INDEX(uV,MATCH(W9,uV,1)),1,0):OFFSET(INDEX(uV,MATCH(W9,uV,1)),71,0),MATCH(U9,OFFSET(INDEX(uV,MATCH(W9,uV,1)),1,0):OFFSET(INDEX(uV,MATCH(W9,uV,1)),71,0),-1)+1)+(W9-INDEX(uV,MATCH(W9,uV,1)))*(INDEX(OFFSET(INDEX(uV,MATCH(W9,uV,1)+1),1,0):OFFSET(INDEX(uV,MATCH(W9,uV,1)+1),71,0),MATCH(U9,OFFSET(INDEX(uV,MATCH(W9,uV,1)+1),1,0):OFFSET(INDEX(uV,MATCH(W9,uV,1)+1),71,0),-1)+1)-INDEX(OFFSET(INDEX(uV,MATCH(W9,uV,1)),1,0):OFFSET(INDEX(uV,MATCH(W9,uV,1)),71,0),MATCH(U9,OFFSET(INDEX(uV,MATCH(W9,uV,1)),1,0):OFFSET(INDEX(uV,MATCH(W9,uV,1)),71,0),-1)+1))/(INDEX(uV,MATCH(W9,uV,1)+1)-INDEX(uV,MATCH(W9,uV,1)))),IF(B9=1,AE8-0.01,AE8)) -> 154.8902296 | AF9: =Poly_Vapeur!$P$14*Resultats!AE9^4+Poly_Vapeur!$Q$14*Resultats!AE9^3+Poly_Vapeur!$R$14*Resultats!AE9^2+Poly_Vapeur!$S$14*Resultats!AE9+Poly_Vapeur!$T$14 -> 344.732292 | AG9: =Poly_Liquide!$Q$6*Resultats!AE9^4+Poly_Liquide!$R$6*Resultats!AE9^3+Poly_Liquide!$S$6*Resultats!AE9^2+Poly_Liquide!$T$6*Resultats!AE9+Poly_Liquide!$U$6 -> 1603.395946 | AH9: =Poly_Vapeur!$P$6*Resultats!AE9^4+Poly_Vapeur!$Q$6*Resultats!AE9^3+Poly_Vapeur!$R$6*Resultats!AE9^2+Poly_Vapeur!$S$6*Resultats!AE9+Poly_Vapeur!$T$6 -> 2444.314818 | AI9: =Poly_Liquide!Q$10*Resultats!AE9^4+Poly_Liquide!R$10*Resultats!AE9^3+Poly_Liquide!S$10*Resultats!AE9^2+Poly_Liquide!T$10*Resultats!AE9+Poly_Liquide!U$10 -> 594.5823103 | AJ9: =Poly_Vapeur!P$10*Resultats!AE9^4+Poly_Vapeur!Q$10*Resultats!AE9^3+Poly_Vapeur!R$10*Resultats!AE9^2+Poly_Vapeur!S$10*Resultats!AE9+Poly_Vapeur!T$10 -> 101.8126554 | AK9: =IF(W9<AH8,1,0) -> 0 | AL9: =IF(V9>AG8,1,0) -> 0 | AM9: 1.25 | AQ9: 1.5
A10: =IF(B10=1,A9,A9+0.25) -> 1.75 | B10: =IF(AND(G10<0.0001,F9>0.09),1,0) -> 0 | C10: =IF(OR(AND(G10=0,F9<0),AND(G10>0,F9>-0.2)),1,0) -> 1 | D10: 35 | E10: =60-D10 -> 25 | F10: =AJ10-U10 -> 2.042199855 | G10: =W10-AH9 -> 12.61625352 | H10: =H9+J10-K10 -> 21260.96 | I10: =I9+K10-J10 -> 2494.4775 | J10: =IF((Q9-AH9)<0,-(AK9*I9*(Q9-AH9))/(AH9-AG9),0) -> 0 | K10: =IF((P9-AG9)>0,(AL9*H9*(P9-AG9))/(AH9-AG9),0) -> 0 | L10: =(INDEX(temp_liq,(MATCH(AE10,Pression_liq,-1)+1),MATCH("coeff1",coeff_liq,0))+(AE10-INDEX(Pression_liq,MATCH(AE10,Pression_liq,-1)+1))*(INDEX(temp_liq,(MATCH(AE10,Pression_liq,-1)),MATCH("coeff1",coeff_liq,0))-INDEX(temp_liq,(MATCH(AE10,Pression_liq,-1)+1),MATCH("coeff1",coeff_liq,0)))/(INDEX(Pression_liq,MATCH(AE10,Pression_liq,-1))-INDEX(Pression_liq,MATCH(AE10,Pression_liq,-1)+1)))*(V10/10000)^4+(INDEX(temp_liq,(MATCH(AE10,Pression_liq,-1)+1),MATCH("coeff2",coeff_liq,0))+(AE10-INDEX(Pression_liq,MATCH(AE10,Pression_liq,-1)+1))*(INDEX(temp_liq,(MATCH(AE10,Pression_liq,-1)),MATCH("coeff2",coeff_liq,0))-INDEX(temp_liq,(MATCH(AE10,Pression_liq,-1)+1),MATCH("coeff2",coeff_liq,0)))/(INDEX(Pression_liq,MATCH(AE10,Pression_liq,-1))-INDEX(Pression_liq,MATCH(AE10,Pression_liq,-1)+1)))*(V10/10000)^3+(INDEX(temp_liq,(MATCH(AE10,Pression_liq,-1)+1),MATCH("coeff3",coeff_liq,0))+(AE10-INDEX(Pression_liq,MATCH(AE10,Pression_liq,-1)+1))*(INDEX(temp_liq,(MATCH(AE10,Pression_liq,-1)),MATCH("coeff3",coeff_liq,0))-INDEX(temp_liq,(MATCH(AE10,Pression_liq,-1)+1),MATCH("coeff3",coeff_liq,0)))/(INDEX(Pression_liq,MATCH(AE10,Pression_liq,-1))-INDEX(Pression_liq,MATCH(AE10,Pression_liq,-1)+1)))*(V10/10000)^2+(INDEX(temp_liq,(MATCH(AE10,Pression_liq,-1)+1),MATCH("coeff4",coeff_liq,0))+(AE10-INDEX(Pression_liq,MATCH(AE10,Pression_liq,-1)+1))*(INDEX(temp_liq,(MATCH(AE10,Pression_liq,-1)),MATCH("coeff4",coeff_liq,0))-INDEX(temp_liq,(MATCH(AE10,Pression_liq,-1)+1),MATCH("coeff4",coeff_liq,0)))/(INDEX(Pression_liq,MATCH(AE10,Pression_liq,-1))-INDEX(Pression_liq,MATCH(AE10,Pression_liq,-1)+1)))*(V10/10000)+(INDEX(temp_liq,(MATCH(AE10,Pression_liq,-1)+1),MATCH("coeff5",coeff_liq,0))+(AE10-INDEX(Pression_liq,MATCH(AE10,Pression_liq,-1)+1))*(INDEX(temp_liq,(MATCH(AE10,Pression_liq,-1)),MATCH("coeff5",coeff_liq,0))-INDEX(temp_liq,(MATCH(AE10,Pression_liq,-1)+1),MATCH("coeff5",coeff_liq,0)))/(INDEX(Pression_liq,MATCH(AE10,Pression_liq,-1))-INDEX(Pression_liq,MATCH(AE10,Pression_liq,-1)+1))) -> 341.9900583 | M10: =(INDEX(temp_vap,(MATCH(AE10,Pression_vap,-1)+1),MATCH("coeff1",coeff_vap,0))+(AE10-INDEX(Pression_vap,MATCH(AE10,Pression_vap,-1)+1))*(INDEX(temp_vap,(MATCH(AE10,Pression_vap,-1)),MATCH("coeff1",coeff_vap,0))-INDEX(temp_vap,(MATCH(AE10,Pression_vap,-1)+1),MATCH("coeff1",coeff_vap,0)))/(INDEX(Pression_vap,MATCH(AE10,Pression_vap,-1))-INDEX(Pression_vap,MATCH(AE10,Pression_vap,-1)+1)))*(W10/10000)^4+(INDEX(temp_vap,(MATCH(AE10,Pression_vap,-1)+1),MATCH("coeff2",coeff_vap,0))+(AE10-INDEX(Pression_vap,MATCH(AE10,Pression_vap,-1)+1))*(INDEX(temp_vap,(MATCH(AE10,Pression_vap,-1)),MATCH("coeff2",coeff_vap,0))-INDEX(temp_vap,(MATCH(AE10,Pression_vap,-1)+1),MATCH("coeff2",coeff_vap,0)))/(INDEX(Pression_vap,MATCH(AE10,Pression_vap,-1))-INDEX(Pression_vap,MATCH(AE10,Pression_vap,-1)+1)))*(W10/10000)^3+(INDEX(temp_vap,(MATCH(AE10,Pression_vap,-1)+1),MATCH("coeff3",coeff_vap,0))+(AE10-INDEX(Pression_vap,MATCH(AE10,Pression_vap,-1)+1))*(INDEX(temp_vap,(MATCH(AE10,Pression_vap,-1)),MATCH("coeff3",coeff_vap,0))-INDEX(temp_vap,(MATCH(AE10,Pression_vap,-1)+1),MATCH("coeff3",coeff_vap,0)))/(INDEX(Pression_vap,MATCH(AE10,Pression_vap,-1))-INDEX(Pression_vap,MATCH(AE10,Pression_vap,-1)+1)))*(W10/10000)^2+(INDEX(temp_vap,(MATCH(AE10,Pression_vap,-1)+1),MATCH("coeff4",coeff_vap,0))+(AE10-INDEX(Pression_vap,MATCH(AE10,Pression_vap,-1)+1))*(INDEX(temp_vap,(MATCH(AE10,Pression_vap,-1)),MATCH("coeff4",coeff_vap,0))-INDEX(temp_vap,(MATCH(AE10,Pression_vap,-1)+1),MATCH("coeff4",coeff_vap,0)))/(INDEX(Pression_vap,MATCH(AE10,Pression_vap,-1))-INDEX(Pression_vap,MATCH(AE10,Pression_vap,-1)+1)))*(W10/10000)+(INDEX(temp_vap,(MATCH(AE10,Pression_vap,-1)+1),MATCH("coeff5",coeff_vap,0))+(AE10-INDEX(Pression_vap,MATCH(AE10,Pression_vap,-1)+1))*(INDEX(temp_vap,(MATCH(AE10,Pression_vap,-1)),MATCH("coeff5",coeff_vap,0))-INDEX(temp_vap,(MATCH(AE10,Pression_vap,-1)+1),MATCH("coeff5",coeff_vap,0)))/(INDEX(Pression_vap,MATCH(AE10,Pression_vap,-1))-INDEX(Pression_vap,MATCH(AE10,Pression_vap,-1)+1))) -> 345.922885 | N10: =IF(AND(B10=0,C10=0,ABS(L10-M10)<0.02),0,M10-L10) -> 3.932826715 | O10: =2500*4.91*N10*(A10-A9)/1000 -> 12.06886198 | P10: =(V10*H10+O10)/H10 -> 1580.413962 | Q10: =(W10*I10-O10)/I10 -> 2456.926233 | R10: =H10*V10+I10*W10 -> 39729865.23 | S10: =H10+I10 -> 23755.4375 | T10: =$T$3 -> 607.456 | U10: =I10/E10 -> 99.7791 | V10: =((P9*H9+J10*AG9-K10*(AH9-AG9))/(H9+J10))+Z10 -> 1580.413394 | W10: =((Q9*I9+K10*AH9+J10*(AH9-AG9))/(I9+K10)) -> 2456.931072 | X10: =IF(AND($AJ$3=1,AA9<=153.3),1580,0) -> 0 | Y10: =IF(AND($AJ$3=1,AND(AA9>=154,AA9<=156)),(-290*AA9+45240),IF(AND($AJ$3=1,AA3<=154),580,0)) -> 0 | Z10: =((X10+Y10)*(A10-A9))/H10 -> 0 | AA10: =IF(AND($AO$3=1,AE9<156.7),((1/3600)*2),0) -> 0.0005555555556 | AB10: =IF(AND($AO$3=1,AND(AE9>156.7,AE9<160.2)),(((35.14*AE9-5550.88)/3600)*2),0) -> 0 | AC10: =IF(AND($AO$3=1,AE9>=160.2),((125/3600)*2),0) -> 0 | AD10: =(A10-A9)*(AA10+AB10+AC10)*(AG10-1269.44) -> 0.04638692866 | AE10: =IF(C10=1,INDEX(Pression,MATCH(INDEX(OFFSET(INDEX(uV,MATCH(W10,uV,1)),1,0):OFFSET(INDEX(uV,MATCH(W10,uV,1)),71,0),MATCH(U10,OFFSET(INDEX(uV,MATCH(W10,uV,1)),1,0):OFFSET(INDEX(uV,MATCH(W10,uV,1)),71,0),-1)+1),INDEX(densite_vap,,MATCH(W10,uV,1)),-1))+(U10-INDEX(OFFSET(INDEX(uV,MATCH(W10,uV,1)),1,0):OFFSET(INDEX(uV,MATCH(W10,uV,1)),71,0),MATCH(U10,OFFSET(INDEX(uV,MATCH(W10,uV,1)),1,0):OFFSET(INDEX(uV,MATCH(W10,uV,1)),71,0),-1)+1)+(W10-INDEX(uV,MATCH(W10,uV,1)))*(INDEX(OFFSET(INDEX(uV,MATCH(W10,uV,1)+1),1,0):OFFSET(INDEX(uV,MATCH(W10,uV,1)+1),71,0),MATCH(U10,OFFSET(INDEX(uV,MATCH(W10,uV,1)+1),1,0):OFFSET(INDEX(uV,MATCH(W10,uV,1)+1),71,0),-1)+1)-INDEX(OFFSET(INDEX(uV,MATCH(W10,uV,1)),1,0):OFFSET(INDEX(uV,MATCH(W10,uV,1)),71,0),MATCH(U10,OFFSET(INDEX(uV,MATCH(W10,uV,1)),1,0):OFFSET(INDEX(uV,MATCH(W10,uV,1)),71,0),-1)+1))/(INDEX(uV,MATCH(W10,uV,1)+1)-INDEX(uV,MATCH(W10,uV,1))))*(INDEX(Pression,MATCH(INDEX(OFFSET(INDEX(uV,MATCH(W10,uV,1)),1,0):OFFSET(INDEX(uV,MATCH(W10,uV,1)),71,0),MATCH(U10,OFFSET(INDEX(uV,MATCH(W10,uV,1)),1,0):OFFSET(INDEX(uV,MATCH(W10,uV,1)),71,0),-1)),INDEX(densite_vap,,MATCH(W10,uV,1)),-1),1)-INDEX(Pression,MATCH(INDEX(OFFSET(INDEX(uV,MATCH(W10,uV,1)),1,0):OFFSET(INDEX(uV,MATCH(W10,uV,1)),71,0),MATCH(U10,OFFSET(INDEX(uV,MATCH(W10,uV,1)),1,0):OFFSET(INDEX(uV,MATCH(W10,uV,1)),71,0),-1)+1),INDEX(densite_vap,,MATCH(W10,uV,1)),-1)))/(INDEX(OFFSET(INDEX(uV,MATCH(W10,uV,1)),1,0):OFFSET(INDEX(uV,MATCH(W10,uV,1)),71,0),MATCH(U10,OFFSET(INDEX(uV,MATCH(W10,uV,1)),1,0):OFFSET(INDEX(uV,MATCH(W10,uV,1)),71,0),-1))+(W10-INDEX(uV,MATCH(W10,uV,1)))*(INDEX(OFFSET(INDEX(uV,MATCH(W10,uV,1)+1),1,0):OFFSET(INDEX(uV,MATCH(W10,uV,1)+1),71,0),MATCH(U10,OFFSET(INDEX(uV,MATCH(W10,uV,1)+1),1,0):OFFSET(INDEX(uV,MATCH(W10,uV,1)+1),71,0),-1))-INDEX(OFFSET(INDEX(uV,MATCH(W10,uV,1)),1,0):OFFSET(INDEX(uV,MATCH(W10,uV,1)),71,0),MATCH(U10,OFFSET(INDEX(uV,MATCH(W10,uV,1)),1,0):OFFSET(INDEX(uV,MATCH(W10,uV,1)),71,0),-1)))/(INDEX(uV,MATCH(W10,uV,1)+1)-INDEX(uV,MATCH(W10,uV,1)))-INDEX(OFFSET(INDEX(uV,MATCH(W10,uV,1)),1,0):OFFSET(INDEX(uV,MATCH(W10,uV,1)),71,0),MATCH(U10,OFFSET(INDEX(uV,MATCH(W10,uV,1)),1,0):OFFSET(INDEX(uV,MATCH(W10,uV,1)),71,0),-1)+1)+(W10-INDEX(uV,MATCH(W10,uV,1)))*(INDEX(OFFSET(INDEX(uV,MATCH(W10,uV,1)+1),1,0):OFFSET(INDEX(uV,MATCH(W10,uV,1)+1),71,0),MATCH(U10,OFFSET(INDEX(uV,MATCH(W10,uV,1)+1),1,0):OFFSET(INDEX(uV,MATCH(W10,uV,1)+1),71,0),-1)+1)-INDEX(OFFSET(INDEX(uV,MATCH(W10,uV,1)),1,0):OFFSET(INDEX(uV,MATCH(W10,uV,1)),71,0),MATCH(U10,OFFSET(INDEX(uV,MATCH(W10,uV,1)),1,0):OFFSET(INDEX(uV,MATCH(W10,uV,1)),71,0),-1)+1))/(INDEX(uV,MATCH(W10,uV,1)+1)-INDEX(uV,MATCH(W10,uV,1)))),IF(B10=1,AE9-0.01,AE9)) -> 154.8983283 | AF10: =Poly_Vapeur!$P$14*Resultats!AE10^4+Poly_Vapeur!$Q$14*Resultats!AE10^3+Poly_Vapeur!$R$14*Resultats!AE10^2+Poly_Vapeur!$S$14*Resultats!AE10+Poly_Vapeur!$T$14 -> 344.7365043 | AG10: =Poly_Liquide!$Q$6*Resultats!AE10^4+Poly_Liquide!$R$6*Resultats!AE10^3+Poly_Liquide!$S$6*Resultats!AE10^2+Poly_Liquide!$T$6*Resultats!AE10+Poly_Liquide!$U$6 -> 1603.425886 | AH10: =Poly_Vapeur!$P$6*Resultats!AE10^4+Poly_Vapeur!$Q$6*Resultats!AE10^3+Poly_Vapeur!$R$6*Resultats!AE10^2+Poly_Vapeur!$S$6*Resultats!AE10+Poly_Vapeur!$T$6 -> 2444.295603 | AI10: =Poly_Liquide!Q$10*Resultats!AE10^4+Poly_Liquide!R$10*Resultats!AE10^3+Poly_Liquide!S$10*Resultats!AE10^2+Poly_Liquide!T$10*Resultats!AE10+Poly_Liquide!U$10 -> 594.5673248 | AJ10: =Poly_Vapeur!P$10*Resultats!AE10^4+Poly_Vapeur!Q$10*Resultats!AE10^3+Poly_Vapeur!R$10*Resultats!AE10^2+Poly_Vapeur!S$10*Resultats!AE10+Poly_Vapeur!T$10 -> 101.8212999 | AK10: =IF(W10<AH9,1,0) -> 0 | AL10: =IF(V10>AG9,1,0) -> 0 | AM10: 1.5 | AQ10: 1.75
A11: =IF(B11=1,A10,A10+0.25) -> 2 | B11: =IF(AND(G11<0.0001,F10>0.09),1,0) -> 0 | C11: =IF(OR(AND(G11=0,F10<0),AND(G11>0,F10>-0.2)),1,0) -> 1 | D11: 35 | E11: =60-D11 -> 25 | F11: =AJ11-U11 -> 2.051916703 | G11: =W11-AH10 -> 12.63063042 | H11: =H10+J11-K11 -> 21260.96 | I11: =I10+K11-J11 -> 2494.4775 | J11: =IF((Q10-AH10)<0,-(AK10*I10*(Q10-AH10))/(AH10-AG10),0) -> 0 | K11: =IF((P10-AG10)>0,(AL10*H10*(P10-AG10))/(AH10-AG10),0) -> 0 | L11: =(INDEX(temp_liq,(MATCH(AE11,Pression_liq,-1)+1),MATCH("coeff1",coeff_liq,0))+(AE11-INDEX(Pression_liq,MATCH(AE11,Pression_liq,-1)+1))*(INDEX(temp_liq,(MATCH(AE11,Pression_liq,-1)),MATCH("coeff1",coeff_liq,0))-INDEX(temp_liq,(MATCH(AE11,Pression_liq,-1)+1),MATCH("coeff1",coeff_liq,0)))/(INDEX(Pression_liq,MATCH(AE11,Pression_liq,-1))-INDEX(Pression_liq,MATCH(AE11,Pression_liq,-1)+1)))*(V11/10000)^4+(INDEX(temp_liq,(MATCH(AE11,Pression_liq,-1)+1),MATCH("coeff2",coeff_liq,0))+(AE11-INDEX(Pression_liq,MATCH(AE11,Pression_liq,-1)+1))*(INDEX(temp_liq,(MATCH(AE11,Pression_liq,-1)),MATCH("coeff2",coeff_liq,0))-INDEX(temp_liq,(MATCH(AE11,Pression_liq,-1)+1),MATCH("coeff2",coeff_liq,0)))/(INDEX(Pression_liq,MATCH(AE11,Pression_liq,-1))-INDEX(Pression_liq,MATCH(AE11,Pression_liq,-1)+1)))*(V11/10000)^3+(INDEX(temp_liq,(MATCH(AE11,Pression_liq,-1)+1),MATCH("coeff3",coeff_liq,0))+(AE11-INDEX(Pression_liq,MATCH(AE11,Pression_liq,-1)+1))*(INDEX(temp_liq,(MATCH(AE11,Pression_liq,-1)),MATCH("coeff3",coeff_liq,0))-INDEX(temp_liq,(MATCH(AE11,Pression_liq,-1)+1),MATCH("coeff3",coeff_liq,0)))/(INDEX(Pression_liq,MATCH(AE11,Pression_liq,-1))-INDEX(Pression_liq,MATCH(AE11,Pression_liq,-1)+1)))*(V11/10000)^2+(INDEX(temp_liq,(MATCH(AE11,Pression_liq,-1)+1),MATCH("coeff4",coeff_liq,0))+(AE11-INDEX(Pression_liq,MATCH(AE11,Pression_liq,-1)+1))*(INDEX(temp_liq,(MATCH(AE11,Pression_liq,-1)),MATCH("coeff4",coeff_liq,0))-INDEX(temp_liq,(MATCH(AE11,Pression_liq,-1)+1),MATCH("coeff4",coeff_liq,0)))/(INDEX(Pression_liq,MATCH(AE11,Pression_liq,-1))-INDEX(Pression_liq,MATCH(AE11,Pression_liq,-1)+1)))*(V11/10000)+(INDEX(temp_liq,(MATCH(AE11,Pression_liq,-1)+1),MATCH("coeff5",coeff_liq,0))+(AE11-INDEX(Pression_liq,MATCH(AE11,Pression_liq,-1)+1))*(INDEX(temp_liq,(MATCH(AE11,Pression_liq,-1)),MATCH("coeff5",coeff_liq,0))-INDEX(temp_liq,(MATCH(AE11,Pression_liq,-1)+1),MATCH("coeff5",coeff_liq,0)))/(INDEX(Pression_liq,MATCH(AE11,Pression_liq,-1))-INDEX(Pression_liq,MATCH(AE11,Pression_liq,-1)+1))) -> 341.9909278 | M11: =(INDEX(temp_vap,(MATCH(AE11,Pression_vap,-1)+1),MATCH("coeff1",coeff_vap,0))+(AE11-INDEX(Pression_vap,MATCH(AE11,Pression_vap,-1)+1))*(INDEX(temp_vap,(MATCH(AE11,Pression_vap,-1)),MATCH("coeff1",coeff_vap,0))-INDEX(temp_vap,(MATCH(AE11,Pression_vap,-1)+1),MATCH("coeff1",coeff_vap,0)))/(INDEX(Pression_vap,MATCH(AE11,Pression_vap,-1))-INDEX(Pression_vap,MATCH(AE11,Pression_vap,-1)+1)))*(W11/10000)^4+(INDEX(temp_vap,(MATCH(AE11,Pression_vap,-1)+1),MATCH("coeff2",coeff_vap,0))+(AE11-INDEX(Pression_vap,MATCH(AE11,Pression_vap,-1)+1))*(INDEX(temp_vap,(MATCH(AE11,Pression_vap,-1)),MATCH("coeff2",coeff_vap,0))-INDEX(temp_vap,(MATCH(AE11,Pression_vap,-1)+1),MATCH("coeff2",coeff_vap,0)))/(INDEX(Pression_vap,MATCH(AE11,Pression_vap,-1))-INDEX(Pression_vap,MATCH(AE11,Pression_vap,-1)+1)))*(W11/10000)^3+(INDEX(temp_vap,(MATCH(AE11,Pression_vap,-1)+1),MATCH("coeff3",coeff_vap,0))+(AE11-INDEX(Pression_vap,MATCH(AE11,Pression_vap,-1)+1))*(INDEX(temp_vap,(MATCH(AE11,Pression_vap,-1)),MATCH("coeff3",coeff_vap,0))-INDEX(temp_vap,(MATCH(AE11,Pression_vap,-1)+1),MATCH("coeff3",coeff_vap,0)))/(INDEX(Pression_vap,MATCH(AE11,Pression_vap,-1))-INDEX(Pression_vap,MATCH(AE11,Pression_vap,-1)+1)))*(W11/10000)^2+(INDEX(temp_vap,(MATCH(AE11,Pression_vap,-1)+1),MATCH("coeff4",coeff_vap,0))+(AE11-INDEX(Pression_vap,MATCH(AE11,Pression_vap,-1)+1))*(INDEX(temp_vap,(MATCH(AE11,Pression_vap,-1)),MATCH("coeff4",coeff_vap,0))-INDEX(temp_vap,(MATCH(AE11,Pression_vap,-1)+1),MATCH("coeff4",coeff_vap,0)))/(INDEX(Pression_vap,MATCH(AE11,Pression_vap,-1))-INDEX(Pression_vap,MATCH(AE11,Pression_vap,-1)+1)))*(W11/10000)+(INDEX(temp_vap,(MATCH(AE11,Pression_vap,-1)+1),MATCH("coeff5",coeff_vap,0))+(AE11-INDEX(Pression_vap,MATCH(AE11,Pression_vap,-1)+1))*(INDEX(temp_vap,(MATCH(AE11,Pression_vap,-1)),MATCH("coeff5",coeff_vap,0))-INDEX(temp_vap,(MATCH(AE11,Pression_vap,-1)+1),MATCH("coeff5",coeff_vap,0)))/(INDEX(Pression_vap,MATCH(AE11,Pression_vap,-1))-INDEX(Pression_vap,MATCH(AE11,Pression_vap,-1)+1))) -> 345.9291015 | N11: =IF(AND(B11=0,C11=0,ABS(L11-M11)<0.02),0,M11-L11) -> 3.938173692 | O11: =2500*4.91*N11*(A11-A10)/1000 -> 12.08527052 | P11: =(V11*H11+O11)/H11 -> 1580.41453 | Q11: =(W11*I11-O11)/I11 -> 2456.921389 | R11: =H11*V11+I11*W11 -> 39729865.23 | S11: =H11+I11 -> 23755.4375 | T11: =$T$3 -> 607.456 | U11: =I11/E11 -> 99.7791 | V11: =((P10*H10+J11*AG10-K11*(AH10-AG10))/(H10+J11))+Z11 -> 1580.413962 | W11: =((Q10*I10+K11*AH10+J11*(AH10-AG10))/(I10+K11)) -> 2456.926233 | X11: =IF(AND($AJ$3=1,AA10<=153.3),1580,0) -> 0 | Y11: =IF(AND($AJ$3=1,AND(AA10>=154,AA10<=156)),(-290*AA10+45240),IF(AND($AJ$3=1,AA3<=154),580,0)) -> 0 | Z11: =((X11+Y11)*(A11-A10))/H11 -> 0 | AA11: =IF(AND($AO$3=1,AE10<156.7),((1/3600)*2),0) -> 0.0005555555556 | AB11: =IF(AND($AO$3=1,AND(AE10>156.7,AE10<160.2)),(((35.14*AE10-5550.88)/3600)*2),0) -> 0 | AC11: =IF(AND($AO$3=1,AE10>=160.2),((125/3600)*2),0) -> 0 | AD11: =(A11-A10)*(AA11+AB11+AC11)*(AG11-1269.44) -> 0.04639160245 | AE11: =IF(C11=1,INDEX(Pression,MATCH(INDEX(OFFSET(INDEX(uV,MATCH(W11,uV,1)),1,0):OFFSET(INDEX(uV,MATCH(W11,uV,1)),71,0),MATCH(U11,OFFSET(INDEX(uV,MATCH(W11,uV,1)),1,0):OFFSET(INDEX(uV,MATCH(W11,uV,1)),71,0),-1)+1),INDEX(densite_vap,,MATCH(W11,uV,1)),-1))+(U11-INDEX(OFFSET(INDEX(uV,MATCH(W11,uV,1)),1,0):OFFSET(INDEX(uV,MATCH(W11,uV,1)),71,0),MATCH(U11,OFFSET(INDEX(uV,MATCH(W11,uV,1)),1,0):OFFSET(INDEX(uV,MATCH(W11,uV,1)),71,0),-1)+1)+(W11-INDEX(uV,MATCH(W11,uV,1)))*(INDEX(OFFSET(INDEX(uV,MATCH(W11,uV,1)+1),1,0):OFFSET(INDEX(uV,MATCH(W11,uV,1)+1),71,0),MATCH(U11,OFFSET(INDEX(uV,MATCH(W11,uV,1)+1),1,0):OFFSET(INDEX(uV,MATCH(W11,uV,1)+1),71,0),-1)+1)-INDEX(OFFSET(INDEX(uV,MATCH(W11,uV,1)),1,0):OFFSET(INDEX(uV,MATCH(W11,uV,1)),71,0),MATCH(U11,OFFSET(INDEX(uV,MATCH(W11,uV,1)),1,0):OFFSET(INDEX(uV,MATCH(W11,uV,1)),71,0),-1)+1))/(INDEX(uV,MATCH(W11,uV,1)+1)-INDEX(uV,MATCH(W11,uV,1))))*(INDEX(Pression,MATCH(INDEX(OFFSET(INDEX(uV,MATCH(W11,uV,1)),1,0):OFFSET(INDEX(uV,MATCH(W11,uV,1)),71,0),MATCH(U11,OFFSET(INDEX(uV,MATCH(W11,uV,1)),1,0):OFFSET(INDEX(uV,MATCH(W11,uV,1)),71,0),-1)),INDEX(densite_vap,,MATCH(W11,uV,1)),-1),1)-INDEX(Pression,MATCH(INDEX(OFFSET(INDEX(uV,MATCH(W11,uV,1)),1,0):OFFSET(INDEX(uV,MATCH(W11,uV,1)),71,0),MATCH(U11,OFFSET(INDEX(uV,MATCH(W11,uV,1)),1,0):OFFSET(INDEX(uV,MATCH(W11,uV,1)),71,0),-1)+1),INDEX(densite_vap,,MATCH(W11,uV,1)),-1)))/(INDEX(OFFSET(INDEX(uV,MATCH(W11,uV,1)),1,0):OFFSET(INDEX(uV,MATCH(W11,uV,1)),71,0),MATCH(U11,OFFSET(INDEX(uV,MATCH(W11,uV,1)),1,0):OFFSET(INDEX(uV,MATCH(W11,uV,1)),71,0),-1))+(W11-INDEX(uV,MATCH(W11,uV,1)))*(INDEX(OFFSET(INDEX(uV,MATCH(W11,uV,1)+1),1,0):OFFSET(INDEX(uV,MATCH(W11,uV,1)+1),71,0),MATCH(U11,OFFSET(INDEX(uV,MATCH(W11,uV,1)+1),1,0):OFFSET(INDEX(uV,MATCH(W11,uV,1)+1),71,0),-1))-INDEX(OFFSET(INDEX(uV,MATCH(W11,uV,1)),1,0):OFFSET(INDEX(uV,MATCH(W11,uV,1)),71,0),MATCH(U11,OFFSET(INDEX(uV,MATCH(W11,uV,1)),1,0):OFFSET(INDEX(uV,MATCH(W11,uV,1)),71,0),-1)))/(INDEX(uV,MATCH(W11,uV,1)+1)-INDEX(uV,MATCH(W11,uV,1)))-INDEX(OFFSET(INDEX(uV,MATCH(W11,uV,1)),1,0):OFFSET(INDEX(uV,MATCH(W11,uV,1)),71,0),MATCH(U11,OFFSET(INDEX(uV,MATCH(W11,uV,1)),1,0):OFFSET(INDEX(uV,MATCH(W11,uV,1)),71,0),-1)+1)+(W11-INDEX(uV,MATCH(W11,uV,1)))*(INDEX(OFFSET(INDEX(uV,MATCH(W11,uV,1)+1),1,0):OFFSET(INDEX(uV,MATCH(W11,uV,1)+1),71,0),MATCH(U11,OFFSET(INDEX(uV,MATCH(W11,uV,1)+1),1,0):OFFSET(INDEX(uV,MATCH(W11,uV,1)+1),71,0),-1)+1)-INDEX(OFFSET(INDEX(uV,MATCH(W11,uV,1)),1,0):OFFSET(INDEX(uV,MATCH(W11,uV,1)),71,0),MATCH(U11,OFFSET(INDEX(uV,MATCH(W11,uV,1)),1,0):OFFSET(INDEX(uV,MATCH(W11,uV,1)),71,0),-1)+1))/(INDEX(uV,MATCH(W11,uV,1)+1)-INDEX(uV,MATCH(W11,uV,1)))),IF(B11=1,AE10-0.01,AE10)) -> 154.9074309 | AF11: =Poly_Vapeur!$P$14*Resultats!AE11^4+Poly_Vapeur!$Q$14*Resultats!AE11^3+Poly_Vapeur!$R$14*Resultats!AE11^2+Poly_Vapeur!$S$14*Resultats!AE11+Poly_Vapeur!$T$14 -> 344.7412384 | AG11: =Poly_Liquide!$Q$6*Resultats!AE11^4+Poly_Liquide!$R$6*Resultats!AE11^3+Poly_Liquide!$S$6*Resultats!AE11^2+Poly_Liquide!$T$6*Resultats!AE11+Poly_Liquide!$U$6 -> 1603.459538 | AH11: =Poly_Vapeur!$P$6*Resultats!AE11^4+Poly_Vapeur!$Q$6*Resultats!AE11^3+Poly_Vapeur!$R$6*Resultats!AE11^2+Poly_Vapeur!$S$6*Resultats!AE11+Poly_Vapeur!$T$6 -> 2444.274004 | AI11: =Poly_Liquide!Q$10*Resultats!AE11^4+Poly_Liquide!R$10*Resultats!AE11^3+Poly_Liquide!S$10*Resultats!AE11^2+Poly_Liquide!T$10*Resultats!AE11+Poly_Liquide!U$10 -> 594.550481 | AJ11: =Poly_Vapeur!P$10*Resultats!AE11^4+Poly_Vapeur!Q$10*Resultats!AE11^3+Poly_Vapeur!R$10*Resultats!AE11^2+Poly_Vapeur!S$10*Resultats!AE11+Poly_Vapeur!T$10 -> 101.8310167 | AK11: =IF(W11<AH10,1,0) -> 0 | AL11: =IF(V11>AG10,1,0) -> 0 | AM11: 1.75 | AQ11: 2
A12: =IF(B12=1,A11,A11+0.25) -> 2.25 | B12: =IF(AND(G12<0.0001,F11>0.09),1,0) -> 0 | C12: =IF(OR(AND(G12=0,F11<0),AND(G12>0,F11>-0.2)),1,0) -> 1 | D12: 35 | E12: =60-D12 -> 25 | F12: =AJ12-U12 -> 2.062920611 | G12: =W12-AH11 -> 12.64738447 | H12: =H11+J12-K12 -> 21260.96 | I12: =I11+K12-J12 -> 2494.4775 | J12: =IF((Q11-AH11)<0,-(AK11*I11*(Q11-AH11))/(AH11-AG11),0) -> 0 | K12: =IF((P11-AG11)>0,(AL11*H11*(P11-AG11))/(AH11-AG11),0) -> 0 | L12: =(INDEX(temp_liq,(MATCH(AE12,Pression_liq,-1)+1),MATCH("coeff1",coeff_liq,0))+(AE12-INDEX(Pression_liq,MATCH(AE12,Pression_liq,-1)+1))*(INDEX(temp_liq,(MATCH(AE12,Pression_liq,-1)),MATCH("coeff1",coeff_liq,0))-INDEX(temp_liq,(MATCH(AE12,Pression_liq,-1)+1),MATCH("coeff1",coeff_liq,0)))/(INDEX(Pression_liq,MATCH(AE12,Pression_liq,-1))-INDEX(Pression_liq,MATCH(AE12,Pression_liq,-1)+1)))*(V12/10000)^4+(INDEX(temp_liq,(MATCH(AE12,Pression_liq,-1)+1),MATCH("coeff2",coeff_liq,0))+(AE12-INDEX(Pression_liq,MATCH(AE12,Pression_liq,-1)+1))*(INDEX(temp_liq,(MATCH(AE12,Pression_liq,-1)),MATCH("coeff2",coeff_liq,0))-INDEX(temp_liq,(MATCH(AE12,Pression_liq,-1)+1),MATCH("coeff2",coeff_liq,0)))/(INDEX(Pression_liq,MATCH(AE12,Pression_liq,-1))-INDEX(Pression_liq,MATCH(AE12,Pression_liq,-1)+1)))*(V12/10000)^3+(INDEX(temp_liq,(MATCH(AE12,Pression_liq,-1)+1),MATCH("coeff3",coeff_liq,0))+(AE12-INDEX(Pression_liq,MATCH(AE12,Pression_liq,-1)+1))*(INDEX(temp_liq,(MATCH(AE12,Pression_liq,-1)),MATCH("coeff3",coeff_liq,0))-INDEX(temp_liq,(MATCH(AE12,Pression_liq,-1)+1),MATCH("coeff3",coeff_liq,0)))/(INDEX(Pression_liq,MATCH(AE12,Pression_liq,-1))-INDEX(Pression_liq,MATCH(AE12,Pression_liq,-1)+1)))*(V12/10000)^2+(INDEX(temp_liq,(MATCH(AE12,Pression_liq,-1)+1),MATCH("coeff4",coeff_liq,0))+(AE12-INDEX(Pression_liq,MATCH(AE12,Pression_liq,-1)+1))*(INDEX(temp_liq,(MATCH(AE12,Pression_liq,-1)),MATCH("coeff4",coeff_liq,0))-INDEX(temp_liq,(MATCH(AE12,Pression_liq,-1)+1),MATCH("coeff4",coeff_liq,0)))/(INDEX(Pression_liq,MATCH(AE12,Pression_liq,-1))-INDEX(Pression_liq,MATCH(AE12,Pression_liq,-1)+1)))*(V12/10000)+(INDEX(temp_liq,(MATCH(AE12,Pression_liq,-1)+1),MATCH("coeff5",coeff_liq,0))+(AE12-INDEX(Pression_liq,MATCH(AE12,Pression_liq,-1)+1))*(INDEX(temp_liq,(MATCH(AE12,Pression_liq,-1)),MATCH("coeff5",coeff_liq,0))-INDEX(temp_liq,(MATCH(AE12,Pression_liq,-1)+1),MATCH("coeff5",coeff_liq,0)))/(INDEX(Pression_liq,MATCH(AE12,Pression_liq,-1))-INDEX(Pression_liq,MATCH(AE12,Pression_liq,-1)+1))) -> 341.9919032 | M12: =(INDEX(temp_vap,(MATCH(AE12,Pression_vap,-1)+1),MATCH("coeff1",coeff_vap,0))+(AE12-INDEX(Pression_vap,MATCH(AE12,Pression_vap,-1)+1))*(INDEX(temp_vap,(MATCH(AE12,Pression_vap,-1)),MATCH("coeff1",coeff_vap,0))-INDEX(temp_vap,(MATCH(AE12,Pression_vap,-1)+1),MATCH("coeff1",coeff_vap,0)))/(INDEX(Pression_vap,MATCH(AE12,Pression_vap,-1))-INDEX(Pression_vap,MATCH(AE12,Pression_vap,-1)+1)))*(W12/10000)^4+(INDEX(temp_vap,(MATCH(AE12,Pression_vap,-1)+1),MATCH("coeff2",coeff_vap,0))+(AE12-INDEX(Pression_vap,MATCH(AE12,Pression_vap,-1)+1))*(INDEX(temp_vap,(MATCH(AE12,Pression_vap,-1)),MATCH("coeff2",coeff_vap,0))-INDEX(temp_vap,(MATCH(AE12,Pression_vap,-1)+1),MATCH("coeff2",coeff_vap,0)))/(INDEX(Pression_vap,MATCH(AE12,Pression_vap,-1))-INDEX(Pression_vap,MATCH(AE12,Pression_vap,-1)+1)))*(W12/10000)^3+(INDEX(temp_vap,(MATCH(AE12,Pression_vap,-1)+1),MATCH("coeff3",coeff_vap,0))+(AE12-INDEX(Pression_vap,MATCH(AE12,Pression_vap,-1)+1))*(INDEX(temp_vap,(MATCH(AE12,Pression_vap,-1)),MATCH("coeff3",coeff_vap,0))-INDEX(temp_vap,(MATCH(AE12,Pression_vap,-1)+1),MATCH("coeff3",coeff_vap,0)))/(INDEX(Pression_vap,MATCH(AE12,Pression_vap,-1))-INDEX(Pression_vap,MATCH(AE12,Pression_vap,-1)+1)))*(W12/10000)^2+(INDEX(temp_vap,(MATCH(AE12,Pression_vap,-1)+1),MATCH("coeff4",coeff_vap,0))+(AE12-INDEX(Pression_vap,MATCH(AE12,Pression_vap,-1)+1))*(INDEX(temp_vap,(MATCH(AE12,Pression_vap,-1)),MATCH("coeff4",coeff_vap,0))-INDEX(temp_vap,(MATCH(AE12,Pression_vap,-1)+1),MATCH("coeff4",coeff_vap,0)))/(INDEX(Pression_vap,MATCH(AE12,Pression_vap,-1))-INDEX(Pression_vap,MATCH(AE12,Pression_vap,-1)+1)))*(W12/10000)+(INDEX(temp_vap,(MATCH(AE12,Pression_vap,-1)+1),MATCH("coeff5",coeff_vap,0))+(AE12-INDEX(Pression_vap,MATCH(AE12,Pression_vap,-1)+1))*(INDEX(temp_vap,(MATCH(AE12,Pression_vap,-1)),MATCH("coeff5",coeff_vap,0))-INDEX(temp_vap,(MATCH(AE12,Pression_vap,-1)+1),MATCH("coeff5",coeff_vap,0)))/(INDEX(Pression_vap,MATCH(AE12,Pression_vap,-1))-INDEX(Pression_vap,MATCH(AE12,Pression_vap,-1)+1))) -> 345.936203 | N12: =IF(AND(B12=0,C12=0,ABS(L12-M12)<0.02),0,M12-L12) -> 3.944299738 | O12: =2500*4.91*N12*(A12-A11)/1000 -> 12.10406982 | P12: =(V12*H12+O12)/H12 -> 1580.415099 | Q12: =(W12*I12-O12)/I12 -> 2456.916536 | R12: =H12*V12+I12*W12 -> 39729865.23 | S12: =H12+I12 -> 23755.4375 | T12: =$T$3 -> 607.456 | U12: =I12/E12 -> 99.7791 | V12: =((P11*H11+J12*AG11-K12*(AH11-AG11))/(H11+J12))+Z12 -> 1580.41453 | W12: =((Q11*I11+K12*AH11+J12*(AH11-AG11))/(I11+K12)) -> 2456.921389 | X12: =IF(AND($AJ$3=1,AA11<=153.3),1580,0) -> 0 | Y12: =IF(AND($AJ$3=1,AND(AA11>=154,AA11<=156)),(-290*AA11+45240),IF(AND($AJ$3=1,AA3<=154),580,0)) -> 0 | Z12: =((X12+Y12)*(A12-A11))/H12 -> 0 | AA12: =IF(AND($AO$3=1,AE11<156.7),((1/3600)*2),0) -> 0.0005555555556 | AB12: =IF(AND($AO$3=1,AND(AE11>156.7,AE11<160.2)),(((35.14*AE11-5550.88)/3600)*2),0) -> 0 | AC12: =IF(AND($AO$3=1,AE11>=160.2),((125/3600)*2),0) -> 0 | AD12: =(A12-A11)*(AA12+AB12+AC12)*(AG12-1269.44) -> 0.0463968948 | AE12: =IF(C12=1,INDEX(Pression,MATCH(INDEX(OFFSET(INDEX(uV,MATCH(W12,uV,1)),1,0):OFFSET(INDEX(uV,MATCH(W12,uV,1)),71,0),MATCH(U12,OFFSET(INDEX(uV,MATCH(W12,uV,1)),1,0):OFFSET(INDEX(uV,MATCH(W12,uV,1)),71,0),-1)+1),INDEX(densite_vap,,MATCH(W12,uV,1)),-1))+(U12-INDEX(OFFSET(INDEX(uV,MATCH(W12,uV,1)),1,0):OFFSET(INDEX(uV,MATCH(W12,uV,1)),71,0),MATCH(U12,OFFSET(INDEX(uV,MATCH(W12,uV,1)),1,0):OFFSET(INDEX(uV,MATCH(W12,uV,1)),71,0),-1)+1)+(W12-INDEX(uV,MATCH(W12,uV,1)))*(INDEX(OFFSET(INDEX(uV,MATCH(W12,uV,1)+1),1,0):OFFSET(INDEX(uV,MATCH(W12,uV,1)+1),71,0),MATCH(U12,OFFSET(INDEX(uV,MATCH(W12,uV,1)+1),1,0):OFFSET(INDEX(uV,MATCH(W12,uV,1)+1),71,0),-1)+1)-INDEX(OFFSET(INDEX(uV,MATCH(W12,uV,1)),1,0):OFFSET(INDEX(uV,MATCH(W12,uV,1)),71,0),MATCH(U12,OFFSET(INDEX(uV,MATCH(W12,uV,1)),1,0):OFFSET(INDEX(uV,MATCH(W12,uV,1)),71,0),-1)+1))/(INDEX(uV,MATCH(W12,uV,1)+1)-INDEX(uV,MATCH(W12,uV,1))))*(INDEX(Pression,MATCH(INDEX(OFFSET(INDEX(uV,MATCH(W12,uV,1)),1,0):OFFSET(INDEX(uV,MATCH(W12,uV,1)),71,0),MATCH(U12,OFFSET(INDEX(uV,MATCH(W12,uV,1)),1,0):OFFSET(INDEX(uV,MATCH(W12,uV,1)),71,0),-1)),INDEX(densite_vap,,MATCH(W12,uV,1)),-1),1)-INDEX(Pression,MATCH(INDEX(OFFSET(INDEX(uV,MATCH(W12,uV,1)),1,0):OFFSET(INDEX(uV,MATCH(W12,uV,1)),71,0),MATCH(U12,OFFSET(INDEX(uV,MATCH(W12,uV,1)),1,0):OFFSET(INDEX(uV,MATCH(W12,uV,1)),71,0),-1)+1),INDEX(densite_vap,,MATCH(W12,uV,1)),-1)))/(INDEX(OFFSET(INDEX(uV,MATCH(W12,uV,1)),1,0):OFFSET(INDEX(uV,MATCH(W12,uV,1)),71,0),MATCH(U12,OFFSET(INDEX(uV,MATCH(W12,uV,1)),1,0):OFFSET(INDEX(uV,MATCH(W12,uV,1)),71,0),-1))+(W12-INDEX(uV,MATCH(W12,uV,1)))*(INDEX(OFFSET(INDEX(uV,MATCH(W12,uV,1)+1),1,0):OFFSET(INDEX(uV,MATCH(W12,uV,1)+1),71,0),MATCH(U12,OFFSET(INDEX(uV,MATCH(W12,uV,1)+1),1,0):OFFSET(INDEX(uV,MATCH(W12,uV,1)+1),71,0),-1))-INDEX(OFFSET(INDEX(uV,MATCH(W12,uV,1)),1,0):OFFSET(INDEX(uV,MATCH(W12,uV,1)),71,0),MATCH(U12,OFFSET(INDEX(uV,MATCH(W12,uV,1)),1,0):OFFSET(INDEX(uV,MATCH(W12,uV,1)),71,0),-1)))/(INDEX(uV,MATCH(W12,uV,1)+1)-INDEX(uV,MATCH(W12,uV,1)))-INDEX(OFFSET(INDEX(uV,MATCH(W12,uV,1)),1,0):OFFSET(INDEX(uV,MATCH(W12,uV,1)),71,0),MATCH(U12,OFFSET(INDEX(uV,MATCH(W12,uV,1)),1,0):OFFSET(INDEX(uV,MATCH(W12,uV,1)),71,0),-1)+1)+(W12-INDEX(uV,MATCH(W12,uV,1)))*(INDEX(OFFSET(INDEX(uV,MATCH(W12,uV,1)+1),1,0):OFFSET(INDEX(uV,MATCH(W12,uV,1)+1),71,0),MATCH(U12,OFFSET(INDEX(uV,MATCH(W12,uV,1)+1),1,0):OFFSET(INDEX(uV,MATCH(W12,uV,1)+1),71,0),-1)+1)-INDEX(OFFSET(INDEX(uV,MATCH(W12,uV,1)),1,0):OFFSET(INDEX(uV,MATCH(W12,uV,1)),71,0),MATCH(U12,OFFSET(INDEX(uV,MATCH(W12,uV,1)),1,0):OFFSET(INDEX(uV,MATCH(W12,uV,1)),71,0),-1)+1))/(INDEX(uV,MATCH(W12,uV,1)+1)-INDEX(uV,MATCH(W12,uV,1)))),IF(B12=1,AE11-0.01,AE11)) -> 154.9177381 | AF12: =Poly_Vapeur!$P$14*Resultats!AE12^4+Poly_Vapeur!$Q$14*Resultats!AE12^3+Poly_Vapeur!$R$14*Resultats!AE12^2+Poly_Vapeur!$S$14*Resultats!AE12+Poly_Vapeur!$T$14 -> 344.7465988 | AG12: =Poly_Liquide!$Q$6*Resultats!AE12^4+Poly_Liquide!$R$6*Resultats!AE12^3+Poly_Liquide!$S$6*Resultats!AE12^2+Poly_Liquide!$T$6*Resultats!AE12+Poly_Liquide!$U$6 -> 1603.497643 | AH12: =Poly_Vapeur!$P$6*Resultats!AE12^4+Poly_Vapeur!$Q$6*Resultats!AE12^3+Poly_Vapeur!$R$6*Resultats!AE12^2+Poly_Vapeur!$S$6*Resultats!AE12+Poly_Vapeur!$T$6 -> 2444.249544 | AI12: =Poly_Liquide!Q$10*Resultats!AE12^4+Poly_Liquide!R$10*Resultats!AE12^3+Poly_Liquide!S$10*Resultats!AE12^2+Poly_Liquide!T$10*Resultats!AE12+Poly_Liquide!U$10 -> 594.5314072 | AJ12: =Poly_Vapeur!P$10*Resultats!AE12^4+Poly_Vapeur!Q$10*Resultats!AE12^3+Poly_Vapeur!R$10*Resultats!AE12^2+Poly_Vapeur!S$10*Resultats!AE12+Poly_Vapeur!T$10 -> 101.8420206 | AK12: =IF(W12<AH11,1,0) -> 0 | AL12: =IF(V12>AG11,1,0) -> 0 | AM12: 2 | AQ12: 2.25
A13: =IF(B13=1,A12,A12+0.25) -> 2.5 | B13: =IF(AND(G13<0.0001,F12>0.09),1,0) -> 0 | C13: =IF(OR(AND(G13=0,F12<0),AND(G13>0,F12>-0.2)),1,0) -> 1 | D13: 35 | E13: =60-D13 -> 25 | F13: =AJ13-U13 -> 2.075488052 | G13: =W13-AH12 -> 12.66699187 | H13: =H12+J13-K13 -> 21260.96 | I13: =I12+K13-J13 -> 2494.4775 | J13: =IF((Q12-AH12)<0,-(AK12*I12*(Q12-AH12))/(AH12-AG12),0) -> 0 | K13: =IF((P12-AG12)>0,(AL12*H12*(P12-AG12))/(AH12-AG12),0) -> 0 | L13: =(INDEX(temp_liq,(MATCH(AE13,Pression_liq,-1)+1),MATCH("coeff1",coeff_liq,0))+(AE13-INDEX(Pression_liq,MATCH(AE13,Pression_liq,-1)+1))*(INDEX(temp_liq,(MATCH(AE13,Pression_liq,-1)),MATCH("coeff1",coeff_liq,0))-INDEX(temp_liq,(MATCH(AE13,Pression_liq,-1)+1),MATCH("coeff1",coeff_liq,0)))/(INDEX(Pression_liq,MATCH(AE13,Pression_liq,-1))-INDEX(Pression_liq,MATCH(AE13,Pression_liq,-1)+1)))*(V13/10000)^4+(INDEX(temp_liq,(MATCH(AE13,Pression_liq,-1)+1),MATCH("coeff2",coeff_liq,0))+(AE13-INDEX(Pression_liq,MATCH(AE13,Pression_liq,-1)+1))*(INDEX(temp_liq,(MATCH(AE13,Pression_liq,-1)),MATCH("coeff2",coeff_liq,0))-INDEX(temp_liq,(MATCH(AE13,Pression_liq,-1)+1),MATCH("coeff2",coeff_liq,0)))/(INDEX(Pression_liq,MATCH(AE13,Pression_liq,-1))-INDEX(Pression_liq,MATCH(AE13,Pression_liq,-1)+1)))*(V13/10000)^3+(INDEX(temp_liq,(MATCH(AE13,Pression_liq,-1)+1),MATCH("coeff3",coeff_liq,0))+(AE13-INDEX(Pression_liq,MATCH(AE13,Pression_liq,-1)+1))*(INDEX(temp_liq,(MATCH(AE13,Pression_liq,-1)),MATCH("coeff3",coeff_liq,0))-INDEX(temp_liq,(MATCH(AE13,Pression_liq,-1)+1),MATCH("coeff3",coeff_liq,0)))/(INDEX(Pression_liq,MATCH(AE13,Pression_liq,-1))-INDEX(Pression_liq,MATCH(AE13,Pression_liq,-1)+1)))*(V13/10000)^2+(INDEX(temp_liq,(MATCH(AE13,Pression_liq,-1)+1),MATCH("coeff4",coeff_liq,0))+(AE13-INDEX(Pression_liq,MATCH(AE13,Pression_liq,-1)+1))*(INDEX(temp_liq,(MATCH(AE13,Pression_liq,-1)),MATCH("coeff4",coeff_liq,0))-INDEX(temp_liq,(MATCH(AE13,Pression_liq,-1)+1),MATCH("coeff4",coeff_liq,0)))/(INDEX(Pression_liq,MATCH(AE13,Pression_liq,-1))-INDEX(Pression_liq,MATCH(AE13,Pression_liq,-1)+1)))*(V13/10000)+(INDEX(temp_liq,(MATCH(AE13,Pression_liq,-1)+1),MATCH("coeff5",coeff_liq,0))+(AE13-INDEX(Pression_liq,MATCH(AE13,Pression_liq,-1)+1))*(INDEX(temp_liq,(MATCH(AE13,Pression_liq,-1)),MATCH("coeff5",coeff_liq,0))-INDEX(temp_liq,(MATCH(AE13,Pression_liq,-1)+1),MATCH("coeff5",coeff_liq,0)))/(INDEX(Pression_liq,MATCH(AE13,Pression_liq,-1))-INDEX(Pression_liq,MATCH(AE13,Pression_liq,-1)+1))) -> 341.9930072 | M13: =(INDEX(temp_vap,(MATCH(AE13,Pression_vap,-1)+1),MATCH("coeff1",coeff_vap,0))+(AE13-INDEX(Pression_vap,MATCH(AE13,Pression_vap,-1)+1))*(INDEX(temp_vap,(MATCH(AE13,Pression_vap,-1)),MATCH("coeff1",coeff_vap,0))-INDEX(temp_vap,(MATCH(AE13,Pression_vap,-1)+1),MATCH("coeff1",coeff_vap,0)))/(INDEX(Pression_vap,MATCH(AE13,Pression_vap,-1))-INDEX(Pression_vap,MATCH(AE13,Pression_vap,-1)+1)))*(W13/10000)^4+(INDEX(temp_vap,(MATCH(AE13,Pression_vap,-1)+1),MATCH("coeff2",coeff_vap,0))+(AE13-INDEX(Pression_vap,MATCH(AE13,Pression_vap,-1)+1))*(INDEX(temp_vap,(MATCH(AE13,Pression_vap,-1)),MATCH("coeff2",coeff_vap,0))-INDEX(temp_vap,(MATCH(AE13,Pression_vap,-1)+1),MATCH("coeff2",coeff_vap,0)))/(INDEX(Pression_vap,MATCH(AE13,Pression_vap,-1))-INDEX(Pression_vap,MATCH(AE13,Pression_vap,-1)+1)))*(W13/10000)^3+(INDEX(temp_vap,(MATCH(AE13,Pression_vap,-1)+1),MATCH("coeff3",coeff_vap,0))+(AE13-INDEX(Pression_vap,MATCH(AE13,Pression_vap,-1)+1))*(INDEX(temp_vap,(MATCH(AE13,Pression_vap,-1)),MATCH("coeff3",coeff_vap,0))-INDEX(temp_vap,(MATCH(AE13,Pression_vap,-1)+1),MATCH("coeff3",coeff_vap,0)))/(INDEX(Pression_vap,MATCH(AE13,Pression_vap,-1))-INDEX(Pression_vap,MATCH(AE13,Pression_vap,-1)+1)))*(W13/10000)^2+(INDEX(temp_vap,(MATCH(AE13,Pression_vap,-1)+1),MATCH("coeff4",coeff_vap,0))+(AE13-INDEX(Pression_vap,MATCH(AE13,Pression_vap,-1)+1))*(INDEX(temp_vap,(MATCH(AE13,Pression_vap,-1)),MATCH("coeff4",coeff_vap,0))-INDEX(temp_vap,(MATCH(AE13,Pression_vap,-1)+1),MATCH("coeff4",coeff_vap,0)))/(INDEX(Pression_vap,MATCH(AE13,Pression_vap,-1))-INDEX(Pression_vap,MATCH(AE13,Pression_vap,-1)+1)))*(W13/10000)+(INDEX(temp_vap,(MATCH(AE13,Pression_vap,-1)+1),MATCH("coeff5",coeff_vap,0))+(AE13-INDEX(Pression_vap,MATCH(AE13,Pression_vap,-1)+1))*(INDEX(temp_vap,(MATCH(AE13,Pression_vap,-1)),MATCH("coeff5",coeff_vap,0))-INDEX(temp_vap,(MATCH(AE13,Pression_vap,-1)+1),MATCH("coeff5",coeff_vap,0)))/(INDEX(Pression_vap,MATCH(AE13,Pression_vap,-1))-INDEX(Pression_vap,MATCH(AE13,Pression_vap,-1)+1))) -> 345.9443793 | N13: =IF(AND(B13=0,C13=0,ABS(L13-M13)<0.02),0,M13-L13) -> 3.951372094 | O13: =2500*4.91*N13*(A13-A12)/1000 -> 12.12577311 | P13: =(V13*H13+O13)/H13 -> 1580.41567 | Q13: =(W13*I13-O13)/I13 -> 2456.911675 | R13: =H13*V13+I13*W13 -> 39729865.23 | S13: =H13+I13 -> 23755.4375 | T13: =$T$3 -> 607.456 | U13: =I13/E13 -> 99.7791 | V13: =((P12*H12+J13*AG12-K13*(AH12-AG12))/(H12+J13))+Z13 -> 1580.415099 | W13: =((Q12*I12+K13*AH12+J13*(AH12-AG12))/(I12+K13)) -> 2456.916536 | X13: =IF(AND($AJ$3=1,AA12<=153.3),1580,0) -> 0 | Y13: =IF(AND($AJ$3=1,AND(AA12>=154,AA12<=156)),(-290*AA12+45240),IF(AND($AJ$3=1,AA3<=154),580,0)) -> 0 | Z13: =((X13+Y13)*(A13-A12))/H13 -> 0 | AA13: =IF(AND($AO$3=1,AE12<156.7),((1/3600)*2),0) -> 0.0005555555556 | AB13: =IF(AND($AO$3=1,AND(AE12>156.7,AE12<160.2)),(((35.14*AE12-5550.88)/3600)*2),0) -> 0 | AC13: =IF(AND($AO$3=1,AE12>=160.2),((125/3600)*2),0) -> 0 | AD13: =(A13-A12)*(AA13+AB13+AC13)*(AG13-1269.44) -> 0.04640293846 | AE13: =IF(C13=1,INDEX(Pression,MATCH(INDEX(OFFSET(INDEX(uV,MATCH(W13,uV,1)),1,0):OFFSET(INDEX(uV,MATCH(W13,uV,1)),71,0),MATCH(U13,OFFSET(INDEX(uV,MATCH(W13,uV,1)),1,0):OFFSET(INDEX(uV,MATCH(W13,uV,1)),71,0),-1)+1),INDEX(densite_vap,,MATCH(W13,uV,1)),-1))+(U13-INDEX(OFFSET(INDEX(uV,MATCH(W13,uV,1)),1,0):OFFSET(INDEX(uV,MATCH(W13,uV,1)),71,0),MATCH(U13,OFFSET(INDEX(uV,MATCH(W13,uV,1)),1,0):OFFSET(INDEX(uV,MATCH(W13,uV,1)),71,0),-1)+1)+(W13-INDEX(uV,MATCH(W13,uV,1)))*(INDEX(OFFSET(INDEX(uV,MATCH(W13,uV,1)+1),1,0):OFFSET(INDEX(uV,MATCH(W13,uV,1)+1),71,0),MATCH(U13,OFFSET(INDEX(uV,MATCH(W13,uV,1)+1),1,0):OFFSET(INDEX(uV,MATCH(W13,uV,1)+1),71,0),-1)+1)-INDEX(OFFSET(INDEX(uV,MATCH(W13,uV,1)),1,0):OFFSET(INDEX(uV,MATCH(W13,uV,1)),71,0),MATCH(U13,OFFSET(INDEX(uV,MATCH(W13,uV,1)),1,0):OFFSET(INDEX(uV,MATCH(W13,uV,1)),71,0),-1)+1))/(INDEX(uV,MATCH(W13,uV,1)+1)-INDEX(uV,MATCH(W13,uV,1))))*(INDEX(Pression,MATCH(INDEX(OFFSET(INDEX(uV,MATCH(W13,uV,1)),1,0):OFFSET(INDEX(uV,MATCH(W13,uV,1)),71,0),MATCH(U13,OFFSET(INDEX(uV,MATCH(W13,uV,1)),1,0):OFFSET(INDEX(uV,MATCH(W13,uV,1)),71,0),-1)),INDEX(densite_vap,,MATCH(W13,uV,1)),-1),1)-INDEX(Pression,MATCH(INDEX(OFFSET(INDEX(uV,MATCH(W13,uV,1)),1,0):OFFSET(INDEX(uV,MATCH(W13,uV,1)),71,0),MATCH(U13,OFFSET(INDEX(uV,MATCH(W13,uV,1)),1,0):OFFSET(INDEX(uV,MATCH(W13,uV,1)),71,0),-1)+1),INDEX(densite_vap,,MATCH(W13,uV,1)),-1)))/(INDEX(OFFSET(INDEX(uV,MATCH(W13,uV,1)),1,0):OFFSET(INDEX(uV,MATCH(W13,uV,1)),71,0),MATCH(U13,OFFSET(INDEX(uV,MATCH(W13,uV,1)),1,0):OFFSET(INDEX(uV,MATCH(W13,uV,1)),71,0),-1))+(W13-INDEX(uV,MATCH(W13,uV,1)))*(INDEX(OFFSET(INDEX(uV,MATCH(W13,uV,1)+1),1,0):OFFSET(INDEX(uV,MATCH(W13,uV,1)+1),71,0),MATCH(U13,OFFSET(INDEX(uV,MATCH(W13,uV,1)+1),1,0):OFFSET(INDEX(uV,MATCH(W13,uV,1)+1),71,0),-1))-INDEX(OFFSET(INDEX(uV,MATCH(W13,uV,1)),1,0):OFFSET(INDEX(uV,MATCH(W13,uV,1)),71,0),MATCH(U13,OFFSET(INDEX(uV,MATCH(W13,uV,1)),1,0):OFFSET(INDEX(uV,MATCH(W13,uV,1)),71,0),-1)))/(INDEX(uV,MATCH(W13,uV,1)+1)-INDEX(uV,MATCH(W13,uV,1)))-INDEX(OFFSET(INDEX(uV,MATCH(W13,uV,1)),1,0):OFFSET(INDEX(uV,MATCH(W13,uV,1)),71,0),MATCH(U13,OFFSET(INDEX(uV,MATCH(W13,uV,1)),1,0):OFFSET(INDEX(uV,MATCH(W13,uV,1)),71,0),-1)+1)+(W13-INDEX(uV,MATCH(W13,uV,1)))*(INDEX(OFFSET(INDEX(uV,MATCH(W13,uV,1)+1),1,0):OFFSET(INDEX(uV,MATCH(W13,uV,1)+1),71,0),MATCH(U13,OFFSET(INDEX(uV,MATCH(W13,uV,1)+1),1,0):OFFSET(INDEX(uV,MATCH(W13,uV,1)+1),71,0),-1)+1)-INDEX(OFFSET(INDEX(uV,MATCH(W13,uV,1)),1,0):OFFSET(INDEX(uV,MATCH(W13,uV,1)),71,0),MATCH(U13,OFFSET(INDEX(uV,MATCH(W13,uV,1)),1,0):OFFSET(INDEX(uV,MATCH(W13,uV,1)),71,0),-1)+1))/(INDEX(uV,MATCH(W13,uV,1)+1)-INDEX(uV,MATCH(W13,uV,1)))),IF(B13=1,AE12-0.01,AE12)) -> 154.9295084 | AF13: =Poly_Vapeur!$P$14*Resultats!AE13^4+Poly_Vapeur!$Q$14*Resultats!AE13^3+Poly_Vapeur!$R$14*Resultats!AE13^2+Poly_Vapeur!$S$14*Resultats!AE13+Poly_Vapeur!$T$14 -> 344.7527197 | AG13: =Poly_Liquide!$Q$6*Resultats!AE13^4+Poly_Liquide!$R$6*Resultats!AE13^3+Poly_Liquide!$S$6*Resultats!AE13^2+Poly_Liquide!$T$6*Resultats!AE13+Poly_Liquide!$U$6 -> 1603.541157 | AH13: =Poly_Vapeur!$P$6*Resultats!AE13^4+Poly_Vapeur!$Q$6*Resultats!AE13^3+Poly_Vapeur!$R$6*Resultats!AE13^2+Poly_Vapeur!$S$6*Resultats!AE13+Poly_Vapeur!$T$6 -> 2444.221609 | AI13: =Poly_Liquide!Q$10*Resultats!AE13^4+Poly_Liquide!R$10*Resultats!AE13^3+Poly_Liquide!S$10*Resultats!AE13^2+Poly_Liquide!T$10*Resultats!AE13+Poly_Liquide!U$10 -> 594.5096245 | AJ13: =Poly_Vapeur!P$10*Resultats!AE13^4+Poly_Vapeur!Q$10*Resultats!AE13^3+Poly_Vapeur!R$10*Resultats!AE13^2+Poly_Vapeur!S$10*Resultats!AE13+Poly_Vapeur!T$10 -> 101.8545881 | AK13: =IF(W13<AH12,1,0) -> 0 | AL13: =IF(V13>AG12,1,0) -> 0 | AM13: 2.25 | AQ13: 2.5
A14: =IF(B14=1,A13,A13+0.25) -> 2.75 | B14: =IF(AND(G14<0.0001,F13>0.09),1,0) -> 0 | C14: =IF(OR(AND(G14=0,F13<0),AND(G14>0,F13>-0.2)),1,0) -> 1 | D14: 35 | E14: =60-D14 -> 25 | F14: =AJ14-U14 -> 2.089981434 | G14: =W14-AH13 -> 12.69006599 | H14: =H13+J14-K14 -> 21260.96 | I14: =I13+K14-J14 -> 2494.4775 | J14: =IF((Q13-AH13)<0,-(AK13*I13*(Q13-AH13))/(AH13-AG13),0) -> 0 | K14: =IF((P13-AG13)>0,(AL13*H13*(P13-AG13))/(AH13-AG13),0) -> 0 | L14: =(INDEX(temp_liq,(MATCH(AE14,Pression_liq,-1)+1),MATCH("coeff1",coeff_liq,0))+(AE14-INDEX(Pression_liq,MATCH(AE14,Pression_liq,-1)+1))*(INDEX(temp_liq,(MATCH(AE14,Pression_liq,-1)),MATCH("coeff1",coeff_liq,0))-INDEX(temp_liq,(MATCH(AE14,Pression_liq,-1)+1),MATCH("coeff1",coeff_liq,0)))/(INDEX(Pression_liq,MATCH(AE14,Pression_liq,-1))-INDEX(Pression_liq,MATCH(AE14,Pression_liq,-1)+1)))*(V14/10000)^4+(INDEX(temp_liq,(MATCH(AE14,Pression_liq,-1)+1),MATCH("coeff2",coeff_liq,0))+(AE14-INDEX(Pression_liq,MATCH(AE14,Pression_liq,-1)+1))*(INDEX(temp_liq,(MATCH(AE14,Pression_liq,-1)),MATCH("coeff2",coeff_liq,0))-INDEX(temp_liq,(MATCH(AE14,Pression_liq,-1)+1),MATCH("coeff2",coeff_liq,0)))/(INDEX(Pression_liq,MATCH(AE14,Pression_liq,-1))-INDEX(Pression_liq,MATCH(AE14,Pression_liq,-1)+1)))*(V14/10000)^3+(INDEX(temp_liq,(MATCH(AE14,Pression_liq,-1)+1),MATCH("coeff3",coeff_liq,0))+(AE14-INDEX(Pression_liq,MATCH(AE14,Pression_liq,-1)+1))*(INDEX(temp_liq,(MATCH(AE14,Pression_liq,-1)),MATCH("coeff3",coeff_liq,0))-INDEX(temp_liq,(MATCH(AE14,Pression_liq,-1)+1),MATCH("coeff3",coeff_liq,0)))/(INDEX(Pression_liq,MATCH(AE14,Pression_liq,-1))-INDEX(Pression_liq,MATCH(AE14,Pression_liq,-1)+1)))*(V14/10000)^2+(INDEX(temp_liq,(MATCH(AE14,Pression_liq,-1)+1),MATCH("coeff4",coeff_liq,0))+(AE14-INDEX(Pression_liq,MATCH(AE14,Pression_liq,-1)+1))*(INDEX(temp_liq,(MATCH(AE14,Pression_liq,-1)),MATCH("coeff4",coeff_liq,0))-INDEX(temp_liq,(MATCH(AE14,Pression_liq,-1)+1),MATCH("coeff4",coeff_liq,0)))/(INDEX(Pression_liq,MATCH(AE14,Pression_liq,-1))-INDEX(Pression_liq,MATCH(AE14,Pression_liq,-1)+1)))*(V14/10000)+(INDEX(temp_liq,(MATCH(AE14,Pression_liq,-1)+1),MATCH("coeff5",coeff_liq,0))+(AE14-INDEX(Pression_liq,MATCH(AE14,Pression_liq,-1)+1))*(INDEX(temp_liq,(MATCH(AE14,Pression_liq,-1)),MATCH("coeff5",coeff_liq,0))-INDEX(temp_liq,(MATCH(AE14,Pression_liq,-1)+1),MATCH("coeff5",coeff_liq,0)))/(INDEX(Pression_liq,MATCH(AE14,Pression_liq,-1))-INDEX(Pression_liq,MATCH(AE14,Pression_liq,-1)+1))) -> 341.9942696 | M14: =(INDEX(temp_vap,(MATCH(AE14,Pression_vap,-1)+1),MATCH("coeff1",coeff_vap,0))+(AE14-INDEX(Pression_vap,MATCH(AE14,Pression_vap,-1)+1))*(INDEX(temp_vap,(MATCH(AE14,Pression_vap,-1)),MATCH("coeff1",coeff_vap,0))-INDEX(temp_vap,(MATCH(AE14,Pression_vap,-1)+1),MATCH("coeff1",coeff_vap,0)))/(INDEX(Pression_vap,MATCH(AE14,Pression_vap,-1))-INDEX(Pression_vap,MATCH(AE14,Pression_vap,-1)+1)))*(W14/10000)^4+(INDEX(temp_vap,(MATCH(AE14,Pression_vap,-1)+1),MATCH("coeff2",coeff_vap,0))+(AE14-INDEX(Pression_vap,MATCH(AE14,Pression_vap,-1)+1))*(INDEX(temp_vap,(MATCH(AE14,Pression_vap,-1)),MATCH("coeff2",coeff_vap,0))-INDEX(temp_vap,(MATCH(AE14,Pression_vap,-1)+1),MATCH("coeff2",coeff_vap,0)))/(INDEX(Pression_vap,MATCH(AE14,Pression_vap,-1))-INDEX(Pression_vap,MATCH(AE14,Pression_vap,-1)+1)))*(W14/10000)^3+(INDEX(temp_vap,(MATCH(AE14,Pression_vap,-1)+1),MATCH("coeff3",coeff_vap,0))+(AE14-INDEX(Pression_vap,MATCH(AE14,Pression_vap,-1)+1))*(INDEX(temp_vap,(MATCH(AE14,Pression_vap,-1)),MATCH("coeff3",coeff_vap,0))-INDEX(temp_vap,(MATCH(AE14,Pression_vap,-1)+1),MATCH("coeff3",coeff_vap,0)))/(INDEX(Pression_vap,MATCH(AE14,Pression_vap,-1))-INDEX(Pression_vap,MATCH(AE14,Pression_vap,-1)+1)))*(W14/10000)^2+(INDEX(temp_vap,(MATCH(AE14,Pression_vap,-1)+1),MATCH("coeff4",coeff_vap,0))+(AE14-INDEX(Pression_vap,MATCH(AE14,Pression_vap,-1)+1))*(INDEX(temp_vap,(MATCH(AE14,Pression_vap,-1)),MATCH("coeff4",coeff_vap,0))-INDEX(temp_vap,(MATCH(AE14,Pression_vap,-1)+1),MATCH("coeff4",coeff_vap,0)))/(INDEX(Pression_vap,MATCH(AE14,Pression_vap,-1))-INDEX(Pression_vap,MATCH(AE14,Pression_vap,-1)+1)))*(W14/10000)+(INDEX(temp_vap,(MATCH(AE14,Pression_vap,-1)+1),MATCH("coeff5",coeff_vap,0))+(AE14-INDEX(Pression_vap,MATCH(AE14,Pression_vap,-1)+1))*(INDEX(temp_vap,(MATCH(AE14,Pression_vap,-1)),MATCH("coeff5",coeff_vap,0))-INDEX(temp_vap,(MATCH(AE14,Pression_vap,-1)+1),MATCH("coeff5",coeff_vap,0)))/(INDEX(Pression_vap,MATCH(AE14,Pression_vap,-1))-INDEX(Pression_vap,MATCH(AE14,Pression_vap,-1)+1))) -> 345.9538796 | N14: =IF(AND(B14=0,C14=0,ABS(L14-M14)<0.02),0,M14-L14) -> 3.959609938 | O14: =2500*4.91*N14*(A14-A13)/1000 -> 12.151053 | P14: =(V14*H14+O14)/H14 -> 1580.416241 | Q14: =(W14*I14-O14)/I14 -> 2456.906804 | R14: =H14*V14+I14*W14 -> 39729865.23 | S14: =H14+I14 -> 23755.4375 | T14: =$T$3 -> 607.456 | U14: =I14/E14 -> 99.7791 | V14: =((P13*H13+J14*AG13-K14*(AH13-AG13))/(H13+J14))+Z14 -> 1580.41567 | W14: =((Q13*I13+K14*AH13+J14*(AH13-AG13))/(I13+K14)) -> 2456.911675 | X14: =IF(AND($AJ$3=1,AA13<=153.3),1580,0) -> 0 | Y14: =IF(AND($AJ$3=1,AND(AA13>=154,AA13<=156)),(-290*AA13+45240),IF(AND($AJ$3=1,AA3<=154),580,0)) -> 0 | Z14: =((X14+Y14)*(A14-A13))/H14 -> 0 | AA14: =IF(AND($AO$3=1,AE13<156.7),((1/3600)*2),0) -> 0.0005555555556 | AB14: =IF(AND($AO$3=1,AND(AE13>156.7,AE13<160.2)),(((35.14*AE13-5550.88)/3600)*2),0) -> 0 | AC14: =IF(AND($AO$3=1,AE13>=160.2),((125/3600)*2),0) -> 0 | AD14: =(A14-A13)*(AA14+AB14+AC14)*(AG14-1269.44) -> 0.04640990741 | AE14: =IF(C14=1,INDEX(Pression,MATCH(INDEX(OFFSET(INDEX(uV,MATCH(W14,uV,1)),1,0):OFFSET(INDEX(uV,MATCH(W14,uV,1)),71,0),MATCH(U14,OFFSET(INDEX(uV,MATCH(W14,uV,1)),1,0):OFFSET(INDEX(uV,MATCH(W14,uV,1)),71,0),-1)+1),INDEX(densite_vap,,MATCH(W14,uV,1)),-1))+(U14-INDEX(OFFSET(INDEX(uV,MATCH(W14,uV,1)),1,0):OFFSET(INDEX(uV,MATCH(W14,uV,1)),71,0),MATCH(U14,OFFSET(INDEX(uV,MATCH(W14,uV,1)),1,0):OFFSET(INDEX(uV,MATCH(W14,uV,1)),71,0),-1)+1)+(W14-INDEX(uV,MATCH(W14,uV,1)))*(INDEX(OFFSET(INDEX(uV,MATCH(W14,uV,1)+1),1,0):OFFSET(INDEX(uV,MATCH(W14,uV,1)+1),71,0),MATCH(U14,OFFSET(INDEX(uV,MATCH(W14,uV,1)+1),1,0):OFFSET(INDEX(uV,MATCH(W14,uV,1)+1),71,0),-1)+1)-INDEX(OFFSET(INDEX(uV,MATCH(W14,uV,1)),1,0):OFFSET(INDEX(uV,MATCH(W14,uV,1)),71,0),MATCH(U14,OFFSET(INDEX(uV,MATCH(W14,uV,1)),1,0):OFFSET(INDEX(uV,MATCH(W14,uV,1)),71,0),-1)+1))/(INDEX(uV,MATCH(W14,uV,1)+1)-INDEX(uV,MATCH(W14,uV,1))))*(INDEX(Pression,MATCH(INDEX(OFFSET(INDEX(uV,MATCH(W14,uV,1)),1,0):OFFSET(INDEX(uV,MATCH(W14,uV,1)),71,0),MATCH(U14,OFFSET(INDEX(uV,MATCH(W14,uV,1)),1,0):OFFSET(INDEX(uV,MATCH(W14,uV,1)),71,0),-1)),INDEX(densite_vap,,MATCH(W14,uV,1)),-1),1)-INDEX(Pression,MATCH(INDEX(OFFSET(INDEX(uV,MATCH(W14,uV,1)),1,0):OFFSET(INDEX(uV,MATCH(W14,uV,1)),71,0),MATCH(U14,OFFSET(INDEX(uV,MATCH(W14,uV,1)),1,0):OFFSET(INDEX(uV,MATCH(W14,uV,1)),71,0),-1)+1),INDEX(densite_vap,,MATCH(W14,uV,1)),-1)))/(INDEX(OFFSET(INDEX(uV,MATCH(W14,uV,1)),1,0):OFFSET(INDEX(uV,MATCH(W14,uV,1)),71,0),MATCH(U14,OFFSET(INDEX(uV,MATCH(W14,uV,1)),1,0):OFFSET(INDEX(uV,MATCH(W14,uV,1)),71,0),-1))+(W14-INDEX(uV,MATCH(W14,uV,1)))*(INDEX(OFFSET(INDEX(uV,MATCH(W14,uV,1)+1),1,0):OFFSET(INDEX(uV,MATCH(W14,uV,1)+1),71,0),MATCH(U14,OFFSET(INDEX(uV,MATCH(W14,uV,1)+1),1,0):OFFSET(INDEX(uV,MATCH(W14,uV,1)+1),71,0),-1))-INDEX(OFFSET(INDEX(uV,MATCH(W14,uV,1)),1,0):OFFSET(INDEX(uV,MATCH(W14,uV,1)),71,0),MATCH(U14,OFFSET(INDEX(uV,MATCH(W14,uV,1)),1,0):OFFSET(INDEX(uV,MATCH(W14,uV,1)),71,0),-1)))/(INDEX(uV,MATCH(W14,uV,1)+1)-INDEX(uV,MATCH(W14,uV,1)))-INDEX(OFFSET(INDEX(uV,MATCH(W14,uV,1)),1,0):OFFSET(INDEX(uV,MATCH(W14,uV,1)),71,0),MATCH(U14,OFFSET(INDEX(uV,MATCH(W14,uV,1)),1,0):OFFSET(INDEX(uV,MATCH(W14,uV,1)),71,0),-1)+1)+(W14-INDEX(uV,MATCH(W14,uV,1)))*(INDEX(OFFSET(INDEX(uV,MATCH(W14,uV,1)+1),1,0):OFFSET(INDEX(uV,MATCH(W14,uV,1)+1),71,0),MATCH(U14,OFFSET(INDEX(uV,MATCH(W14,uV,1)+1),1,0):OFFSET(INDEX(uV,MATCH(W14,uV,1)+1),71,0),-1)+1)-INDEX(OFFSET(INDEX(uV,MATCH(W14,uV,1)),1,0):OFFSET(INDEX(uV,MATCH(W14,uV,1)),71,0),MATCH(U14,OFFSET(INDEX(uV,MATCH(W14,uV,1)),1,0):OFFSET(INDEX(uV,MATCH(W14,uV,1)),71,0),-1)+1))/(INDEX(uV,MATCH(W14,uV,1)+1)-INDEX(uV,MATCH(W14,uV,1)))),IF(B14=1,AE13-0.01,AE13)) -> 154.9430806 | AF14: =Poly_Vapeur!$P$14*Resultats!AE14^4+Poly_Vapeur!$Q$14*Resultats!AE14^3+Poly_Vapeur!$R$14*Resultats!AE14^2+Poly_Vapeur!$S$14*Resultats!AE14+Poly_Vapeur!$T$14 -> 344.7597772 | AG14: =Poly_Liquide!$Q$6*Resultats!AE14^4+Poly_Liquide!$R$6*Resultats!AE14^3+Poly_Liquide!$S$6*Resultats!AE14^2+Poly_Liquide!$T$6*Resultats!AE14+Poly_Liquide!$U$6 -> 1603.591333 | AH14: =Poly_Vapeur!$P$6*Resultats!AE14^4+Poly_Vapeur!$Q$6*Resultats!AE14^3+Poly_Vapeur!$R$6*Resultats!AE14^2+Poly_Vapeur!$S$6*Resultats!AE14+Poly_Vapeur!$T$6 -> 2444.189393 | AI14: =Poly_Liquide!Q$10*Resultats!AE14^4+Poly_Liquide!R$10*Resultats!AE14^3+Poly_Liquide!S$10*Resultats!AE14^2+Poly_Liquide!T$10*Resultats!AE14+Poly_Liquide!U$10 -> 594.4845054 | AJ14: =Poly_Vapeur!P$10*Resultats!AE14^4+Poly_Vapeur!Q$10*Resultats!AE14^3+Poly_Vapeur!R$10*Resultats!AE14^2+Poly_Vapeur!S$10*Resultats!AE14+Poly_Vapeur!T$10 -> 101.8690814 | AK14: =IF(W14<AH13,1,0) -> 0 | AL14: =IF(V14>AG13,1,0) -> 0 | AM14: 2.5 | AQ14: 2.75
A15: =IF(B15=1,A14,A14+0.25) -> 3 | B15: =IF(AND(G15<0.0001,F14>0.09),1,0) -> 0 | C15: =IF(OR(AND(G15=0,F14<0),AND(G15>0,F14>-0.2)),1,0) -> 1 | D15: 35 | E15: =60-D15 -> 25 | F15: =AJ15-U15 -> 2.106885508 | G15: =W15-AH14 -> 12.71741094 | H15: =H14+J15-K15 -> 21260.96 | I15: =I14+K15-J15 -> 2494.4775 | J15: =IF((Q14-AH14)<0,-(AK14*I14*(Q14-AH14))/(AH14-AG14),0) -> 0 | K15: =IF((P14-AG14)>0,(AL14*H14*(P14-AG14))/(AH14-AG14),0) -> 0 | L15: =(INDEX(temp_liq,(MATCH(AE15,Pression_liq,-1)+1),MATCH("coeff1",coeff_liq,0))+(AE15-INDEX(Pression_liq,MATCH(AE15,Pression_liq,-1)+1))*(INDEX(temp_liq,(MATCH(AE15,Pression_liq,-1)),MATCH("coeff1",coeff_liq,0))-INDEX(temp_liq,(MATCH(AE15,Pression_liq,-1)+1),MATCH("coeff1",coeff_liq,0)))/(INDEX(Pression_liq,MATCH(AE15,Pression_liq,-1))-INDEX(Pression_liq,MATCH(AE15,Pression_liq,-1)+1)))*(V15/10000)^4+(INDEX(temp_liq,(MATCH(AE15,Pression_liq,-1)+1),MATCH("coeff2",coeff_liq,0))+(AE15-INDEX(Pression_liq,MATCH(AE15,Pression_liq,-1)+1))*(INDEX(temp_liq,(MATCH(AE15,Pression_liq,-1)),MATCH("coeff2",coeff_liq,0))-INDEX(temp_liq,(MATCH(AE15,Pression_liq,-1)+1),MATCH("coeff2",coeff_liq,0)))/(INDEX(Pression_liq,MATCH(AE15,Pression_liq,-1))-INDEX(Pression_liq,MATCH(AE15,Pression_liq,-1)+1)))*(V15/10000)^3+(INDEX(temp_liq,(MATCH(AE15,Pression_liq,-1)+1),MATCH("coeff3",coeff_liq,0))+(AE15-INDEX(Pression_liq,MATCH(AE15,Pression_liq,-1)+1))*(INDEX(temp_liq,(MATCH(AE15,Pression_liq,-1)),MATCH("coeff3",coeff_liq,0))-INDEX(temp_liq,(MATCH(AE15,Pression_liq,-1)+1),MATCH("coeff3",coeff_liq,0)))/(INDEX(Pression_liq,MATCH(AE15,Pression_liq,-1))-INDEX(Pression_liq,MATCH(AE15,Pression_liq,-1)+1)))*(V15/10000)^2+(INDEX(temp_liq,(MATCH(AE15,Pression_liq,-1)+1),MATCH("coeff4",coeff_liq,0))+(AE15-INDEX(Pression_liq,MATCH(AE15,Pression_liq,-1)+1))*(INDEX(temp_liq,(MATCH(AE15,Pression_liq,-1)),MATCH("coeff4",coeff_liq,0))-INDEX(temp_liq,(MATCH(AE15,Pression_liq,-1)+1),MATCH("coeff4",coeff_liq,0)))/(INDEX(Pression_liq,MATCH(AE15,Pression_liq,-1))-INDEX(Pression_liq,MATCH(AE15,Pression_liq,-1)+1)))*(V15/10000)+(INDEX(temp_liq,(MATCH(AE15,Pression_liq,-1)+1),MATCH("coeff5",coeff_liq,0))+(AE15-INDEX(Pression_liq,MATCH(AE15,Pression_liq,-1)+1))*(INDEX(temp_liq,(MATCH(AE15,Pression_liq,-1)),MATCH("coeff5",coeff_liq,0))-INDEX(temp_liq,(MATCH(AE15,Pression_liq,-1)+1),MATCH("coeff5",coeff_liq,0)))/(INDEX(Pression_liq,MATCH(AE15,Pression_liq,-1))-INDEX(Pression_liq,MATCH(AE15,Pression_liq,-1)+1))) -> 341.9957301 | M15: =(INDEX(temp_vap,(MATCH(AE15,Pression_vap,-1)+1),MATCH("coeff1",coeff_vap,0))+(AE15-INDEX(Pression_vap,MATCH(AE15,Pression_vap,-1)+1))*(INDEX(temp_vap,(MATCH(AE15,Pression_vap,-1)),MATCH("coeff1",coeff_vap,0))-INDEX(temp_vap,(MATCH(AE15,Pression_vap,-1)+1),MATCH("coeff1",coeff_vap,0)))/(INDEX(Pression_vap,MATCH(AE15,Pression_vap,-1))-INDEX(Pression_vap,MATCH(AE15,Pression_vap,-1)+1)))*(W15/10000)^4+(INDEX(temp_vap,(MATCH(AE15,Pression_vap,-1)+1),MATCH("coeff2",coeff_vap,0))+(AE15-INDEX(Pression_vap,MATCH(AE15,Pression_vap,-1)+1))*(INDEX(temp_vap,(MATCH(AE15,Pression_vap,-1)),MATCH("coeff2",coeff_vap,0))-INDEX(temp_vap,(MATCH(AE15,Pression_vap,-1)+1),MATCH("coeff2",coeff_vap,0)))/(INDEX(Pression_vap,MATCH(AE15,Pression_vap,-1))-INDEX(Pression_vap,MATCH(AE15,Pression_vap,-1)+1)))*(W15/10000)^3+(INDEX(temp_vap,(MATCH(AE15,Pression_vap,-1)+1),MATCH("coeff3",coeff_vap,0))+(AE15-INDEX(Pression_vap,MATCH(AE15,Pression_vap,-1)+1))*(INDEX(temp_vap,(MATCH(AE15,Pression_vap,-1)),MATCH("coeff3",coeff_vap,0))-INDEX(temp_vap,(MATCH(AE15,Pression_vap,-1)+1),MATCH("coeff3",coeff_vap,0)))/(INDEX(Pression_vap,MATCH(AE15,Pression_vap,-1))-INDEX(Pression_vap,MATCH(AE15,Pression_vap,-1)+1)))*(W15/10000)^2+(INDEX(temp_vap,(MATCH(AE15,Pression_vap,-1)+1),MATCH("coeff4",coeff_vap,0))+(AE15-INDEX(Pression_vap,MATCH(AE15,Pression_vap,-1)+1))*(INDEX(temp_vap,(MATCH(AE15,Pression_vap,-1)),MATCH("coeff4",coeff_vap,0))-INDEX(temp_vap,(MATCH(AE15,Pression_vap,-1)+1),MATCH("coeff4",coeff_vap,0)))/(INDEX(Pression_vap,MATCH(AE15,Pression_vap,-1))-INDEX(Pression_vap,MATCH(AE15,Pression_vap,-1)+1)))*(W15/10000)+(INDEX(temp_vap,(MATCH(AE15,Pression_vap,-1)+1),MATCH("coeff5",coeff_vap,0))+(AE15-INDEX(Pression_vap,MATCH(AE15,Pression_vap,-1)+1))*(INDEX(temp_vap,(MATCH(AE15,Pression_vap,-1)),MATCH("coeff5",coeff_vap,0))-INDEX(temp_vap,(MATCH(AE15,Pression_vap,-1)+1),MATCH("coeff5",coeff_vap,0)))/(INDEX(Pression_vap,MATCH(AE15,Pression_vap,-1))-INDEX(Pression_vap,MATCH(AE15,Pression_vap,-1)+1))) -> 345.9650365 | N15: =IF(AND(B15=0,C15=0,ABS(L15-M15)<0.02),0,M15-L15) -> 3.969306376 | O15: =2500*4.91*N15*(A15-A14)/1000 -> 12.18080894 | P15: =(V15*H15+O15)/H15 -> 1580.416814 | Q15: =(W15*I15-O15)/I15 -> 2456.901921 | R15: =H15*V15+I15*W15 -> 39729865.23 | S15: =H15+I15 -> 23755.4375 | T15: =$T$3 -> 607.456 | U15: =I15/E15 -> 99.7791 | V15: =((P14*H14+J15*AG14-K15*(AH14-AG14))/(H14+J15))+Z15 -> 1580.416241 | W15: =((Q14*I14+K15*AH14+J15*(AH14-AG14))/(I14+K15)) -> 2456.906804 | X15: =IF(AND($AJ$3=1,AA14<=153.3),1580,0) -> 0 | Y15: =IF(AND($AJ$3=1,AND(AA14>=154,AA14<=156)),(-290*AA14+45240),IF(AND($AJ$3=1,AA3<=154),580,0)) -> 0 | Z15: =((X15+Y15)*(A15-A14))/H15 -> 0 | AA15: =IF(AND($AO$3=1,AE14<156.7),((1/3600)*2),0) -> 0.0005555555556 | AB15: =IF(AND($AO$3=1,AND(AE14>156.7,AE14<160.2)),(((35.14*AE14-5550.88)/3600)*2),0) -> 0 | AC15: =IF(AND($AO$3=1,AE14>=160.2),((125/3600)*2),0) -> 0 | AD15: =(A15-A14)*(AA15+AB15+AC15)*(AG15-1269.44) -> 0.0464180343 | AE15: =IF(C15=1,INDEX(Pression,MATCH(INDEX(OFFSET(INDEX(uV,MATCH(W15,uV,1)),1,0):OFFSET(INDEX(uV,MATCH(W15,uV,1)),71,0),MATCH(U15,OFFSET(INDEX(uV,MATCH(W15,uV,1)),1,0):OFFSET(INDEX(uV,MATCH(W15,uV,1)),71,0),-1)+1),INDEX(densite_vap,,MATCH(W15,uV,1)),-1))+(U15-INDEX(OFFSET(INDEX(uV,MATCH(W15,uV,1)),1,0):OFFSET(INDEX(uV,MATCH(W15,uV,1)),71,0),MATCH(U15,OFFSET(INDEX(uV,MATCH(W15,uV,1)),1,0):OFFSET(INDEX(uV,MATCH(W15,uV,1)),71,0),-1)+1)+(W15-INDEX(uV,MATCH(W15,uV,1)))*(INDEX(OFFSET(INDEX(uV,MATCH(W15,uV,1)+1),1,0):OFFSET(INDEX(uV,MATCH(W15,uV,1)+1),71,0),MATCH(U15,OFFSET(INDEX(uV,MATCH(W15,uV,1)+1),1,0):OFFSET(INDEX(uV,MATCH(W15,uV,1)+1),71,0),-1)+1)-INDEX(OFFSET(INDEX(uV,MATCH(W15,uV,1)),1,0):OFFSET(INDEX(uV,MATCH(W15,uV,1)),71,0),MATCH(U15,OFFSET(INDEX(uV,MATCH(W15,uV,1)),1,0):OFFSET(INDEX(uV,MATCH(W15,uV,1)),71,0),-1)+1))/(INDEX(uV,MATCH(W15,uV,1)+1)-INDEX(uV,MATCH(W15,uV,1))))*(INDEX(Pression,MATCH(INDEX(OFFSET(INDEX(uV,MATCH(W15,uV,1)),1,0):OFFSET(INDEX(uV,MATCH(W15,uV,1)),71,0),MATCH(U15,OFFSET(INDEX(uV,MATCH(W15,uV,1)),1,0):OFFSET(INDEX(uV,MATCH(W15,uV,1)),71,0),-1)),INDEX(densite_vap,,MATCH(W15,uV,1)),-1),1)-INDEX(Pression,MATCH(INDEX(OFFSET(INDEX(uV,MATCH(W15,uV,1)),1,0):OFFSET(INDEX(uV,MATCH(W15,uV,1)),71,0),MATCH(U15,OFFSET(INDEX(uV,MATCH(W15,uV,1)),1,0):OFFSET(INDEX(uV,MATCH(W15,uV,1)),71,0),-1)+1),INDEX(densite_vap,,MATCH(W15,uV,1)),-1)))/(INDEX(OFFSET(INDEX(uV,MATCH(W15,uV,1)),1,0):OFFSET(INDEX(uV,MATCH(W15,uV,1)),71,0),MATCH(U15,OFFSET(INDEX(uV,MATCH(W15,uV,1)),1,0):OFFSET(INDEX(uV,MATCH(W15,uV,1)),71,0),-1))+(W15-INDEX(uV,MATCH(W15,uV,1)))*(INDEX(OFFSET(INDEX(uV,MATCH(W15,uV,1)+1),1,0):OFFSET(INDEX(uV,MATCH(W15,uV,1)+1),71,0),MATCH(U15,OFFSET(INDEX(uV,MATCH(W15,uV,1)+1),1,0):OFFSET(INDEX(uV,MATCH(W15,uV,1)+1),71,0),-1))-INDEX(OFFSET(INDEX(uV,MATCH(W15,uV,1)),1,0):OFFSET(INDEX(uV,MATCH(W15,uV,1)),71,0),MATCH(U15,OFFSET(INDEX(uV,MATCH(W15,uV,1)),1,0):OFFSET(INDEX(uV,MATCH(W15,uV,1)),71,0),-1)))/(INDEX(uV,MATCH(W15,uV,1)+1)-INDEX(uV,MATCH(W15,uV,1)))-INDEX(OFFSET(INDEX(uV,MATCH(W15,uV,1)),1,0):OFFSET(INDEX(uV,MATCH(W15,uV,1)),71,0),MATCH(U15,OFFSET(INDEX(uV,MATCH(W15,uV,1)),1,0):OFFSET(INDEX(uV,MATCH(W15,uV,1)),71,0),-1)+1)+(W15-INDEX(uV,MATCH(W15,uV,1)))*(INDEX(OFFSET(INDEX(uV,MATCH(W15,uV,1)+1),1,0):OFFSET(INDEX(uV,MATCH(W15,uV,1)+1),71,0),MATCH(U15,OFFSET(INDEX(uV,MATCH(W15,uV,1)+1),1,0):OFFSET(INDEX(uV,MATCH(W15,uV,1)+1),71,0),-1)+1)-INDEX(OFFSET(INDEX(uV,MATCH(W15,uV,1)),1,0):OFFSET(INDEX(uV,MATCH(W15,uV,1)),71,0),MATCH(U15,OFFSET(INDEX(uV,MATCH(W15,uV,1)),1,0):OFFSET(INDEX(uV,MATCH(W15,uV,1)),71,0),-1)+1))/(INDEX(uV,MATCH(W15,uV,1)+1)-INDEX(uV,MATCH(W15,uV,1)))),IF(B15=1,AE14-0.01,AE14)) -> 154.9589077 | AF15: =Poly_Vapeur!$P$14*Resultats!AE15^4+Poly_Vapeur!$Q$14*Resultats!AE15^3+Poly_Vapeur!$R$14*Resultats!AE15^2+Poly_Vapeur!$S$14*Resultats!AE15+Poly_Vapeur!$T$14 -> 344.7680066 | AG15: =Poly_Liquide!$Q$6*Resultats!AE15^4+Poly_Liquide!$R$6*Resultats!AE15^3+Poly_Liquide!$S$6*Resultats!AE15^2+Poly_Liquide!$T$6*Resultats!AE15+Poly_Liquide!$U$6 -> 1603.649847 | AH15: =Poly_Vapeur!$P$6*Resultats!AE15^4+Poly_Vapeur!$Q$6*Resultats!AE15^3+Poly_Vapeur!$R$6*Resultats!AE15^2+Poly_Vapeur!$S$6*Resultats!AE15+Poly_Vapeur!$T$6 -> 2444.151818 | AI15: =Poly_Liquide!Q$10*Resultats!AE15^4+Poly_Liquide!R$10*Resultats!AE15^3+Poly_Liquide!S$10*Resultats!AE15^2+Poly_Liquide!T$10*Resultats!AE15+Poly_Liquide!U$10 -> 594.4552106 | AJ15: =Poly_Vapeur!P$10*Resultats!AE15^4+Poly_Vapeur!Q$10*Resultats!AE15^3+Poly_Vapeur!R$10*Resultats!AE15^2+Poly_Vapeur!S$10*Resultats!AE15+Poly_Vapeur!T$10 -> 101.8859855 | AK15: =IF(W15<AH14,1,0) -> 0 | AL15: =IF(V15>AG14,1,0) -> 0 | AM15: 2.75 | AQ15: 3
A16: =IF(B16=1,A15,A15+0.25) -> 3.25 | B16: =IF(AND(G16<0.0001,F15>0.09),1,0) -> 0 | C16: =IF(OR(AND(G16=0,F15<0),AND(G16>0,F15>-0.2)),1,0) -> 1 | D16: 35 | E16: =60-D16 -> 25 | F16: =AJ16-U16 -> 2.126864151 | G16: =W16-AH15 -> 12.75010242 | H16: =H15+J16-K16 -> 21260.96 | I16: =I15+K16-J16 -> 2494.4775 | J16: =IF((Q15-AH15)<0,-(AK15*I15*(Q15-AH15))/(AH15-AG15),0) -> 0 | K16: =IF((P15-AG15)>0,(AL15*H15*(P15-AG15))/(AH15-AG15),0) -> 0 | L16: =(INDEX(temp_liq,(MATCH(AE16,Pression_liq,-1)+1),MATCH("coeff1",coeff_liq,0))+(AE16-INDEX(Pression_liq,MATCH(AE16,Pression_liq,-1)+1))*(INDEX(temp_liq,(MATCH(AE16,Pression_liq,-1)),MATCH("coeff1",coeff_liq,0))-INDEX(temp_liq,(MATCH(AE16,Pression_liq,-1)+1),MATCH("coeff1",coeff_liq,0)))/(INDEX(Pression_liq,MATCH(AE16,Pression_liq,-1))-INDEX(Pression_liq,MATCH(AE16,Pression_liq,-1)+1)))*(V16/10000)^4+(INDEX(temp_liq,(MATCH(AE16,Pression_liq,-1)+1),MATCH("coeff2",coeff_liq,0))+(AE16-INDEX(Pression_liq,MATCH(AE16,Pression_liq,-1)+1))*(INDEX(temp_liq,(MATCH(AE16,Pression_liq,-1)),MATCH("coeff2",coeff_liq,0))-INDEX(temp_liq,(MATCH(AE16,Pression_liq,-1)+1),MATCH("coeff2",coeff_liq,0)))/(INDEX(Pression_liq,MATCH(AE16,Pression_liq,-1))-INDEX(Pression_liq,MATCH(AE16,Pression_liq,-1)+1)))*(V16/10000)^3+(INDEX(temp_liq,(MATCH(AE16,Pression_liq,-1)+1),MATCH("coeff3",coeff_liq,0))+(AE16-INDEX(Pression_liq,MATCH(AE16,Pression_liq,-1)+1))*(INDEX(temp_liq,(MATCH(AE16,Pression_liq,-1)),MATCH("coeff3",coeff_liq,0))-INDEX(temp_liq,(MATCH(AE16,Pression_liq,-1)+1),MATCH("coeff3",coeff_liq,0)))/(INDEX(Pression_liq,MATCH(AE16,Pression_liq,-1))-INDEX(Pression_liq,MATCH(AE16,Pression_liq,-1)+1)))*(V16/10000)^2+(INDEX(temp_liq,(MATCH(AE16,Pression_liq,-1)+1),MATCH("coeff4",coeff_liq,0))+(AE16-INDEX(Pression_liq,MATCH(AE16,Pression_liq,-1)+1))*(INDEX(temp_liq,(MATCH(AE16,Pression_liq,-1)),MATCH("coeff4",coeff_liq,0))-INDEX(temp_liq,(MATCH(AE16,Pression_liq,-1)+1),MATCH("coeff4",coeff_liq,0)))/(INDEX(Pression_liq,MATCH(AE16,Pression_liq,-1))-INDEX(Pression_liq,MATCH(AE16,Pression_liq,-1)+1)))*(V16/10000)+(INDEX(temp_liq,(MATCH(AE16,Pression_liq,-1)+1),MATCH("coeff5",coeff_liq,0))+(AE16-INDEX(Pression_liq,MATCH(AE16,Pression_liq,-1)+1))*(INDEX(temp_liq,(MATCH(AE16,Pression_liq,-1)),MATCH("coeff5",coeff_liq,0))-INDEX(temp_liq,(MATCH(AE16,Pression_liq,-1)+1),MATCH("coeff5",coeff_liq,0)))/(INDEX(Pression_liq,MATCH(AE16,Pression_liq,-1))-INDEX(Pression_liq,MATCH(AE16,Pression_liq,-1)+1))) -> 341.9974433 | M16: =(INDEX(temp_vap,(MATCH(AE16,Pression_vap,-1)+1),MATCH("coeff1",coeff_vap,0))+(AE16-INDEX(Pression_vap,MATCH(AE16,Pression_vap,-1)+1))*(INDEX(temp_vap,(MATCH(AE16,Pression_vap,-1)),MATCH("coeff1",coeff_vap,0))-INDEX(temp_vap,(MATCH(AE16,Pression_vap,-1)+1),MATCH("coeff1",coeff_vap,0)))/(INDEX(Pression_vap,MATCH(AE16,Pression_vap,-1))-INDEX(Pression_vap,MATCH(AE16,Pression_vap,-1)+1)))*(W16/10000)^4+(INDEX(temp_vap,(MATCH(AE16,Pression_vap,-1)+1),MATCH("coeff2",coeff_vap,0))+(AE16-INDEX(Pression_vap,MATCH(AE16,Pression_vap,-1)+1))*(INDEX(temp_vap,(MATCH(AE16,Pression_vap,-1)),MATCH("coeff2",coeff_vap,0))-INDEX(temp_vap,(MATCH(AE16,Pression_vap,-1)+1),MATCH("coeff2",coeff_vap,0)))/(INDEX(Pression_vap,MATCH(AE16,Pression_vap,-1))-INDEX(Pression_vap,MATCH(AE16,Pression_vap,-1)+1)))*(W16/10000)^3+(INDEX(temp_vap,(MATCH(AE16,Pression_vap,-1)+1),MATCH("coeff3",coeff_vap,0))+(AE16-INDEX(Pression_vap,MATCH(AE16,Pression_vap,-1)+1))*(INDEX(temp_vap,(MATCH(AE16,Pression_vap,-1)),MATCH("coeff3",coeff_vap,0))-INDEX(temp_vap,(MATCH(AE16,Pression_vap,-1)+1),MATCH("coeff3",coeff_vap,0)))/(INDEX(Pression_vap,MATCH(AE16,Pression_vap,-1))-INDEX(Pression_vap,MATCH(AE16,Pression_vap,-1)+1)))*(W16/10000)^2+(INDEX(temp_vap,(MATCH(AE16,Pression_vap,-1)+1),MATCH("coeff4",coeff_vap,0))+(AE16-INDEX(Pression_vap,MATCH(AE16,Pression_vap,-1)+1))*(INDEX(temp_vap,(MATCH(AE16,Pression_vap,-1)),MATCH("coeff4",coeff_vap,0))-INDEX(temp_vap,(MATCH(AE16,Pression_vap,-1)+1),MATCH("coeff4",coeff_vap,0)))/(INDEX(Pression_vap,MATCH(AE16,Pression_vap,-1))-INDEX(Pression_vap,MATCH(AE16,Pression_vap,-1)+1)))*(W16/10000)+(INDEX(temp_vap,(MATCH(AE16,Pression_vap,-1)+1),MATCH("coeff5",coeff_vap,0))+(AE16-INDEX(Pression_vap,MATCH(AE16,Pression_vap,-1)+1))*(INDEX(temp_vap,(MATCH(AE16,Pression_vap,-1)),MATCH("coeff5",coeff_vap,0))-INDEX(temp_vap,(MATCH(AE16,Pression_vap,-1)+1),MATCH("coeff5",coeff_vap,0)))/(INDEX(Pression_vap,MATCH(AE16,Pression_vap,-1))-INDEX(Pression_vap,MATCH(AE16,Pression_vap,-1)+1))) -> 345.978306 | N16: =IF(AND(B16=0,C16=0,ABS(L16-M16)<0.02),0,M16-L16) -> 3.980862712 | O16: =2500*4.91*N16*(A16-A15)/1000 -> 12.21627245 | P16: =(V16*H16+O16)/H16 -> 1580.417389 | Q16: =(W16*I16-O16)/I16 -> 2456.897024 | R16: =H16*V16+I16*W16 -> 39729865.23 | S16: =H16+I16 -> 23755.4375 | T16: =$T$3 -> 607.456 | U16: =I16/E16 -> 99.7791 | V16: =((P15*H15+J16*AG15-K16*(AH15-AG15))/(H15+J16))+Z16 -> 1580.416814 | W16: =((Q15*I15+K16*AH15+J16*(AH15-AG15))/(I15+K16)) -> 2456.901921 | X16: =IF(AND($AJ$3=1,AA15<=153.3),1580,0) -> 0 | Y16: =IF(AND($AJ$3=1,AND(AA15>=154,AA15<=156)),(-290*AA15+45240),IF(AND($AJ$3=1,AA3<=154),580,0)) -> 0 | Z16: =((X16+Y16)*(A16-A15))/H16 -> 0 | AA16: =IF(AND($AO$3=1,AE15<156.7),((1/3600)*2),0) -> 0.0005555555556 | AB16: =IF(AND($AO$3=1,AND(AE15>156.7,AE15<160.2)),(((35.14*AE15-5550.88)/3600)*2),0) -> 0 | AC16: =IF(AND($AO$3=1,AE15>=160.2),((125/3600)*2),0) -> 0 | AD16: =(A16-A15)*(AA16+AB16+AC16)*(AG16-1269.44) -> 0.04642763767 | AE16: =IF(C16=1,INDEX(Pression,MATCH(INDEX(OFFSET(INDEX(uV,MATCH(W16,uV,1)),1,0):OFFSET(INDEX(uV,MATCH(W16,uV,1)),71,0),MATCH(U16,OFFSET(INDEX(uV,MATCH(W16,uV,1)),1,0):OFFSET(INDEX(uV,MATCH(W16,uV,1)),71,0),-1)+1),INDEX(densite_vap,,MATCH(W16,uV,1)),-1))+(U16-INDEX(OFFSET(INDEX(uV,MATCH(W16,uV,1)),1,0):OFFSET(INDEX(uV,MATCH(W16,uV,1)),71,0),MATCH(U16,OFFSET(INDEX(uV,MATCH(W16,uV,1)),1,0):OFFSET(INDEX(uV,MATCH(W16,uV,1)),71,0),-1)+1)+(W16-INDEX(uV,MATCH(W16,uV,1)))*(INDEX(OFFSET(INDEX(uV,MATCH(W16,uV,1)+1),1,0):OFFSET(INDEX(uV,MATCH(W16,uV,1)+1),71,0),MATCH(U16,OFFSET(INDEX(uV,MATCH(W16,uV,1)+1),1,0):OFFSET(INDEX(uV,MATCH(W16,uV,1)+1),71,0),-1)+1)-INDEX(OFFSET(INDEX(uV,MATCH(W16,uV,1)),1,0):OFFSET(INDEX(uV,MATCH(W16,uV,1)),71,0),MATCH(U16,OFFSET(INDEX(uV,MATCH(W16,uV,1)),1,0):OFFSET(INDEX(uV,MATCH(W16,uV,1)),71,0),-1)+1))/(INDEX(uV,MATCH(W16,uV,1)+1)-INDEX(uV,MATCH(W16,uV,1))))*(INDEX(Pression,MATCH(INDEX(OFFSET(INDEX(uV,MATCH(W16,uV,1)),1,0):OFFSET(INDEX(uV,MATCH(W16,uV,1)),71,0),MATCH(U16,OFFSET(INDEX(uV,MATCH(W16,uV,1)),1,0):OFFSET(INDEX(uV,MATCH(W16,uV,1)),71,0),-1)),INDEX(densite_vap,,MATCH(W16,uV,1)),-1),1)-INDEX(Pression,MATCH(INDEX(OFFSET(INDEX(uV,MATCH(W16,uV,1)),1,0):OFFSET(INDEX(uV,MATCH(W16,uV,1)),71,0),MATCH(U16,OFFSET(INDEX(uV,MATCH(W16,uV,1)),1,0):OFFSET(INDEX(uV,MATCH(W16,uV,1)),71,0),-1)+1),INDEX(densite_vap,,MATCH(W16,uV,1)),-1)))/(INDEX(OFFSET(INDEX(uV,MATCH(W16,uV,1)),1,0):OFFSET(INDEX(uV,MATCH(W16,uV,1)),71,0),MATCH(U16,OFFSET(INDEX(uV,MATCH(W16,uV,1)),1,0):OFFSET(INDEX(uV,MATCH(W16,uV,1)),71,0),-1))+(W16-INDEX(uV,MATCH(W16,uV,1)))*(INDEX(OFFSET(INDEX(uV,MATCH(W16,uV,1)+1),1,0):OFFSET(INDEX(uV,MATCH(W16,uV,1)+1),71,0),MATCH(U16,OFFSET(INDEX(uV,MATCH(W16,uV,1)+1),1,0):OFFSET(INDEX(uV,MATCH(W16,uV,1)+1),71,0),-1))-INDEX(OFFSET(INDEX(uV,MATCH(W16,uV,1)),1,0):OFFSET(INDEX(uV,MATCH(W16,uV,1)),71,0),MATCH(U16,OFFSET(INDEX(uV,MATCH(W16,uV,1)),1,0):OFFSET(INDEX(uV,MATCH(W16,uV,1)),71,0),-1)))/(INDEX(uV,MATCH(W16,uV,1)+1)-INDEX(uV,MATCH(W16,uV,1)))-INDEX(OFFSET(INDEX(uV,MATCH(W16,uV,1)),1,0):OFFSET(INDEX(uV,MATCH(W16,uV,1)),71,0),MATCH(U16,OFFSET(INDEX(uV,MATCH(W16,uV,1)),1,0):OFFSET(INDEX(uV,MATCH(W16,uV,1)),71,0),-1)+1)+(W16-INDEX(uV,MATCH(W16,uV,1)))*(INDEX(OFFSET(INDEX(uV,MATCH(W16,uV,1)+1),1,0):OFFSET(INDEX(uV,MATCH(W16,uV,1)+1),71,0),MATCH(U16,OFFSET(INDEX(uV,MATCH(W16,uV,1)+1),1,0):OFFSET(INDEX(uV,MATCH(W16,uV,1)+1),71,0),-1)+1)-INDEX(OFFSET(INDEX(uV,MATCH(W16,uV,1)),1,0):OFFSET(INDEX(uV,MATCH(W16,uV,1)),71,0),MATCH(U16,OFFSET(INDEX(uV,MATCH(W16,uV,1)),1,0):OFFSET(INDEX(uV,MATCH(W16,uV,1)),71,0),-1)+1))/(INDEX(uV,MATCH(W16,uV,1)+1)-INDEX(uV,MATCH(W16,uV,1)))),IF(B16=1,AE15-0.01,AE15)) -> 154.97761 | AF16: =Poly_Vapeur!$P$14*Resultats!AE16^4+Poly_Vapeur!$Q$14*Resultats!AE16^3+Poly_Vapeur!$R$14*Resultats!AE16^2+Poly_Vapeur!$S$14*Resultats!AE16+Poly_Vapeur!$T$14 -> 344.7777301 | AG16: =Poly_Liquide!$Q$6*Resultats!AE16^4+Poly_Liquide!$R$6*Resultats!AE16^3+Poly_Liquide!$S$6*Resultats!AE16^2+Poly_Liquide!$T$6*Resultats!AE16+Poly_Liquide!$U$6 -> 1603.718991 | AH16: =Poly_Vapeur!$P$6*Resultats!AE16^4+Poly_Vapeur!$Q$6*Resultats!AE16^3+Poly_Vapeur!$R$6*Resultats!AE16^2+Poly_Vapeur!$S$6*Resultats!AE16+Poly_Vapeur!$T$6 -> 2444.10741 | AI16: =Poly_Liquide!Q$10*Resultats!AE16^4+Poly_Liquide!R$10*Resultats!AE16^3+Poly_Liquide!S$10*Resultats!AE16^2+Poly_Liquide!T$10*Resultats!AE16+Poly_Liquide!U$10 -> 594.4205908 | AJ16: =Poly_Vapeur!P$10*Resultats!AE16^4+Poly_Vapeur!Q$10*Resultats!AE16^3+Poly_Vapeur!R$10*Resultats!AE16^2+Poly_Vapeur!S$10*Resultats!AE16+Poly_Vapeur!T$10 -> 101.9059642 | AK16: =IF(W16<AH15,1,0) -> 0 | AL16: =IF(V16>AG15,1,0) -> 0 | AM16: 3 | AQ16: 3.25
A17: =IF(B17=1,A16,A16+0.25) -> 3.5 | B17: =IF(AND(G17<0.0001,F16>0.09),1,0) -> 0 | C17: =IF(OR(AND(G17=0,F16<0),AND(G17>0,F16>-0.2)),1,0) -> 1 | D17: 35 | E17: =60-D17 -> 25 | F17: =AJ17-U17 -> 2.133225427 | G17: =W17-AH16 -> 12.78961378 | H17: =H16+J17-K17 -> 21260.96 | I17: =I16+K17-J17 -> 2494.4775 | J17: =IF((Q16-AH16)<0,-(AK16*I16*(Q16-AH16))/(AH16-AG16),0) -> 0 | K17: =IF((P16-AG16)>0,(AL16*H16*(P16-AG16))/(AH16-AG16),0) -> 0 | L17: =(INDEX(temp_liq,(MATCH(AE17,Pression_liq,-1)+1),MATCH("coeff1",coeff_liq,0))+(AE17-INDEX(Pression_liq,MATCH(AE17,Pression_liq,-1)+1))*(INDEX(temp_liq,(MATCH(AE17,Pression_liq,-1)),MATCH("coeff1",coeff_liq,0))-INDEX(temp_liq,(MATCH(AE17,Pression_liq,-1)+1),MATCH("coeff1",coeff_liq,0)))/(INDEX(Pression_liq,MATCH(AE17,Pression_liq,-1))-INDEX(Pression_liq,MATCH(AE17,Pression_liq,-1)+1)))*(V17/10000)^4+(INDEX(temp_liq,(MATCH(AE17,Pression_liq,-1)+1),MATCH("coeff2",coeff_liq,0))+(AE17-INDEX(Pression_liq,MATCH(AE17,Pression_liq,-1)+1))*(INDEX(temp_liq,(MATCH(AE17,Pression_liq,-1)),MATCH("coeff2",coeff_liq,0))-INDEX(temp_liq,(MATCH(AE17,Pression_liq,-1)+1),MATCH("coeff2",coeff_liq,0)))/(INDEX(Pression_liq,MATCH(AE17,Pression_liq,-1))-INDEX(Pression_liq,MATCH(AE17,Pression_liq,-1)+1)))*(V17/10000)^3+(INDEX(temp_liq,(MATCH(AE17,Pression_liq,-1)+1),MATCH("coeff3",coeff_liq,0))+(AE17-INDEX(Pression_liq,MATCH(AE17,Pression_liq,-1)+1))*(INDEX(temp_liq,(MATCH(AE17,Pression_liq,-1)),MATCH("coeff3",coeff_liq,0))-INDEX(temp_liq,(MATCH(AE17,Pression_liq,-1)+1),MATCH("coeff3",coeff_liq,0)))/(INDEX(Pression_liq,MATCH(AE17,Pression_liq,-1))-INDEX(Pression_liq,MATCH(AE17,Pression_liq,-1)+1)))*(V17/10000)^2+(INDEX(temp_liq,(MATCH(AE17,Pression_liq,-1)+1),MATCH("coeff4",coeff_liq,0))+(AE17-INDEX(Pression_liq,MATCH(AE17,Pression_liq,-1)+1))*(INDEX(temp_liq,(MATCH(AE17,Pression_liq,-1)),MATCH("coeff4",coeff_liq,0))-INDEX(temp_liq,(MATCH(AE17,Pression_liq,-1)+1),MATCH("coeff4",coeff_liq,0)))/(INDEX(Pression_liq,MATCH(AE17,Pression_liq,-1))-INDEX(Pression_liq,MATCH(AE17,Pression_liq,-1)+1)))*(V17/10000)+(INDEX(temp_liq,(MATCH(AE17,Pression_liq,-1)+1),MATCH("coeff5",coeff_liq,0))+(AE17-INDEX(Pression_liq,MATCH(AE17,Pression_liq,-1)+1))*(INDEX(temp_liq,(MATCH(AE17,Pression_liq,-1)),MATCH("coeff5",coeff_liq,0))-INDEX(temp_liq,(MATCH(AE17,Pression_liq,-1)+1),MATCH("coeff5",coeff_liq,0)))/(INDEX(Pression_liq,MATCH(AE17,Pression_liq,-1))-INDEX(Pression_liq,MATCH(AE17,Pression_liq,-1)+1))) -> 341.9980373 | M17: =(INDEX(temp_vap,(MATCH(AE17,Pression_vap,-1)+1),MATCH("coeff1",coeff_vap,0))+(AE17-INDEX(Pression_vap,MATCH(AE17,Pression_vap,-1)+1))*(INDEX(temp_vap,(MATCH(AE17,Pression_vap,-1)),MATCH("coeff1",coeff_vap,0))-INDEX(temp_vap,(MATCH(AE17,Pression_vap,-1)+1),MATCH("coeff1",coeff_vap,0)))/(INDEX(Pression_vap,MATCH(AE17,Pression_vap,-1))-INDEX(Pression_vap,MATCH(AE17,Pression_vap,-1)+1)))*(W17/10000)^4+(INDEX(temp_vap,(MATCH(AE17,Pression_vap,-1)+1),MATCH("coeff2",coeff_vap,0))+(AE17-INDEX(Pression_vap,MATCH(AE17,Pression_vap,-1)+1))*(INDEX(temp_vap,(MATCH(AE17,Pression_vap,-1)),MATCH("coeff2",coeff_vap,0))-INDEX(temp_vap,(MATCH(AE17,Pression_vap,-1)+1),MATCH("coeff2",coeff_vap,0)))/(INDEX(Pression_vap,MATCH(AE17,Pression_vap,-1))-INDEX(Pression_vap,MATCH(AE17,Pression_vap,-1)+1)))*(W17/10000)^3+(INDEX(temp_vap,(MATCH(AE17,Pression_vap,-1)+1),MATCH("coeff3",coeff_vap,0))+(AE17-INDEX(Pression_vap,MATCH(AE17,Pression_vap,-1)+1))*(INDEX(temp_vap,(MATCH(AE17,Pression_vap,-1)),MATCH("coeff3",coeff_vap,0))-INDEX(temp_vap,(MATCH(AE17,Pression_vap,-1)+1),MATCH("coeff3",coeff_vap,0)))/(INDEX(Pression_vap,MATCH(AE17,Pression_vap,-1))-INDEX(Pression_vap,MATCH(AE17,Pression_vap,-1)+1)))*(W17/10000)^2+(INDEX(temp_vap,(MATCH(AE17,Pression_vap,-1)+1),MATCH("coeff4",coeff_vap,0))+(AE17-INDEX(Pression_vap,MATCH(AE17,Pression_vap,-1)+1))*(INDEX(temp_vap,(MATCH(AE17,Pression_vap,-1)),MATCH("coeff4",coeff_vap,0))-INDEX(temp_vap,(MATCH(AE17,Pression_vap,-1)+1),MATCH("coeff4",coeff_vap,0)))/(INDEX(Pression_vap,MATCH(AE17,Pression_vap,-1))-INDEX(Pression_vap,MATCH(AE17,Pression_vap,-1)+1)))*(W17/10000)+(INDEX(temp_vap,(MATCH(AE17,Pression_vap,-1)+1),MATCH("coeff5",coeff_vap,0))+(AE17-INDEX(Pression_vap,MATCH(AE17,Pression_vap,-1)+1))*(INDEX(temp_vap,(MATCH(AE17,Pression_vap,-1)),MATCH("coeff5",coeff_vap,0))-INDEX(temp_vap,(MATCH(AE17,Pression_vap,-1)+1),MATCH("coeff5",coeff_vap,0)))/(INDEX(Pression_vap,MATCH(AE17,Pression_vap,-1))-INDEX(Pression_vap,MATCH(AE17,Pression_vap,-1)+1))) -> 345.9822022 | N17: =IF(AND(B17=0,C17=0,ABS(L17-M17)<0.02),0,M17-L17) -> 3.984164886 | O17: =2500*4.91*N17*(A17-A16)/1000 -> 12.22640599 | P17: =(V17*H17+O17)/H17 -> 1580.417964 | Q17: =(W17*I17-O17)/I17 -> 2456.892122 | R17: =H17*V17+I17*W17 -> 39729865.23 | S17: =H17+I17 -> 23755.4375 | T17: =$T$3 -> 607.456 | U17: =I17/E17 -> 99.7791 | V17: =((P16*H16+J17*AG16-K17*(AH16-AG16))/(H16+J17))+Z17 -> 1580.417389 | W17: =((Q16*I16+K17*AH16+J17*(AH16-AG16))/(I16+K17)) -> 2456.897024 | X17: =IF(AND($AJ$3=1,AA16<=153.3),1580,0) -> 0 | Y17: =IF(AND($AJ$3=1,AND(AA16>=154,AA16<=156)),(-290*AA16+45240),IF(AND($AJ$3=1,AA3<=154),580,0)) -> 0 | Z17: =((X17+Y17)*(A17-A16))/H17 -> 0 | AA17: =IF(AND($AO$3=1,AE16<156.7),((1/3600)*2),0) -> 0.0005555555556 | AB17: =IF(AND($AO$3=1,AND(AE16>156.7,AE16<160.2)),(((35.14*AE16-5550.88)/3600)*2),0) -> 0 | AC17: =IF(AND($AO$3=1,AE16>=160.2),((125/3600)*2),0) -> 0 | AD17: =(A17-A16)*(AA17+AB17+AC17)*(AG17-1269.44) -> 0.04643069504 | AE17: =IF(C17=1,INDEX(Pression,MATCH(INDEX(OFFSET(INDEX(uV,MATCH(W17,uV,1)),1,0):OFFSET(INDEX(uV,MATCH(W17,uV,1)),71,0),MATCH(U17,OFFSET(INDEX(uV,MATCH(W17,uV,1)),1,0):OFFSET(INDEX(uV,MATCH(W17,uV,1)),71,0),-1)+1),INDEX(densite_vap,,MATCH(W17,uV,1)),-1))+(U17-INDEX(OFFSET(INDEX(uV,MATCH(W17,uV,1)),1,0):OFFSET(INDEX(uV,MATCH(W17,uV,1)),71,0),MATCH(U17,OFFSET(INDEX(uV,MATCH(W17,uV,1)),1,0):OFFSET(INDEX(uV,MATCH(W17,uV,1)),71,0),-1)+1)+(W17-INDEX(uV,MATCH(W17,uV,1)))*(INDEX(OFFSET(INDEX(uV,MATCH(W17,uV,1)+1),1,0):OFFSET(INDEX(uV,MATCH(W17,uV,1)+1),71,0),MATCH(U17,OFFSET(INDEX(uV,MATCH(W17,uV,1)+1),1,0):OFFSET(INDEX(uV,MATCH(W17,uV,1)+1),71,0),-1)+1)-INDEX(OFFSET(INDEX(uV,MATCH(W17,uV,1)),1,0):OFFSET(INDEX(uV,MATCH(W17,uV,1)),71,0),MATCH(U17,OFFSET(INDEX(uV,MATCH(W17,uV,1)),1,0):OFFSET(INDEX(uV,MATCH(W17,uV,1)),71,0),-1)+1))/(INDEX(uV,MATCH(W17,uV,1)+1)-INDEX(uV,MATCH(W17,uV,1))))*(INDEX(Pression,MATCH(INDEX(OFFSET(INDEX(uV,MATCH(W17,uV,1)),1,0):OFFSET(INDEX(uV,MATCH(W17,uV,1)),71,0),MATCH(U17,OFFSET(INDEX(uV,MATCH(W17,uV,1)),1,0):OFFSET(INDEX(uV,MATCH(W17,uV,1)),71,0),-1)),INDEX(densite_vap,,MATCH(W17,uV,1)),-1),1)-INDEX(Pression,MATCH(INDEX(OFFSET(INDEX(uV,MATCH(W17,uV,1)),1,0):OFFSET(INDEX(uV,MATCH(W17,uV,1)),71,0),MATCH(U17,OFFSET(INDEX(uV,MATCH(W17,uV,1)),1,0):OFFSET(INDEX(uV,MATCH(W17,uV,1)),71,0),-1)+1),INDEX(densite_vap,,MATCH(W17,uV,1)),-1)))/(INDEX(OFFSET(INDEX(uV,MATCH(W17,uV,1)),1,0):OFFSET(INDEX(uV,MATCH(W17,uV,1)),71,0),MATCH(U17,OFFSET(INDEX(uV,MATCH(W17,uV,1)),1,0):OFFSET(INDEX(uV,MATCH(W17,uV,1)),71,0),-1))+(W17-INDEX(uV,MATCH(W17,uV,1)))*(INDEX(OFFSET(INDEX(uV,MATCH(W17,uV,1)+1),1,0):OFFSET(INDEX(uV,MATCH(W17,uV,1)+1),71,0),MATCH(U17,OFFSET(INDEX(uV,MATCH(W17,uV,1)+1),1,0):OFFSET(INDEX(uV,MATCH(W17,uV,1)+1),71,0),-1))-INDEX(OFFSET(INDEX(uV,MATCH(W17,uV,1)),1,0):OFFSET(INDEX(uV,MATCH(W17,uV,1)),71,0),MATCH(U17,OFFSET(INDEX(uV,MATCH(W17,uV,1)),1,0):OFFSET(INDEX(uV,MATCH(W17,uV,1)),71,0),-1)))/(INDEX(uV,MATCH(W17,uV,1)+1)-INDEX(uV,MATCH(W17,uV,1)))-INDEX(OFFSET(INDEX(uV,MATCH(W17,uV,1)),1,0):OFFSET(INDEX(uV,MATCH(W17,uV,1)),71,0),MATCH(U17,OFFSET(INDEX(uV,MATCH(W17,uV,1)),1,0):OFFSET(INDEX(uV,MATCH(W17,uV,1)),71,0),-1)+1)+(W17-INDEX(uV,MATCH(W17,uV,1)))*(INDEX(OFFSET(INDEX(uV,MATCH(W17,uV,1)+1),1,0):OFFSET(INDEX(uV,MATCH(W17,uV,1)+1),71,0),MATCH(U17,OFFSET(INDEX(uV,MATCH(W17,uV,1)+1),1,0):OFFSET(INDEX(uV,MATCH(W17,uV,1)+1),71,0),-1)+1)-INDEX(OFFSET(INDEX(uV,MATCH(W17,uV,1)),1,0):OFFSET(INDEX(uV,MATCH(W17,uV,1)),71,0),MATCH(U17,OFFSET(INDEX(uV,MATCH(W17,uV,1)),1,0):OFFSET(INDEX(uV,MATCH(W17,uV,1)),71,0),-1)+1))/(INDEX(uV,MATCH(W17,uV,1)+1)-INDEX(uV,MATCH(W17,uV,1)))),IF(B17=1,AE16-0.01,AE16)) -> 154.9835641 | AF17: =Poly_Vapeur!$P$14*Resultats!AE17^4+Poly_Vapeur!$Q$14*Resultats!AE17^3+Poly_Vapeur!$R$14*Resultats!AE17^2+Poly_Vapeur!$S$14*Resultats!AE17+Poly_Vapeur!$T$14 -> 344.7808255 | AG17: =Poly_Liquide!$Q$6*Resultats!AE17^4+Poly_Liquide!$R$6*Resultats!AE17^3+Poly_Liquide!$S$6*Resultats!AE17^2+Poly_Liquide!$T$6*Resultats!AE17+Poly_Liquide!$U$6 -> 1603.741004 | AH17: =Poly_Vapeur!$P$6*Resultats!AE17^4+Poly_Vapeur!$Q$6*Resultats!AE17^3+Poly_Vapeur!$R$6*Resultats!AE17^2+Poly_Vapeur!$S$6*Resultats!AE17+Poly_Vapeur!$T$6 -> 2444.09327 | AI17: =Poly_Liquide!Q$10*Resultats!AE17^4+Poly_Liquide!R$10*Resultats!AE17^3+Poly_Liquide!S$10*Resultats!AE17^2+Poly_Liquide!T$10*Resultats!AE17+Poly_Liquide!U$10 -> 594.4095685 | AJ17: =Poly_Vapeur!P$10*Resultats!AE17^4+Poly_Vapeur!Q$10*Resultats!AE17^3+Poly_Vapeur!R$10*Resultats!AE17^2+Poly_Vapeur!S$10*Resultats!AE17+Poly_Vapeur!T$10 -> 101.9123254 | AK17: =IF(W17<AH16,1,0) -> 0 | AL17: =IF(V17>AG16,1,0) -> 0 | AM17: 3.25 | AQ17: 3.5
A18: =IF(B18=1,A17,A17+0.25) -> 3.75 | B18: =IF(AND(G18<0.0001,F17>0.09),1,0) -> 0 | C18: =IF(OR(AND(G18=0,F17<0),AND(G18>0,F17>-0.2)),1,0) -> 1 | D18: 35 | E18: =60-D18 -> 25 | F18: =AJ18-U18 -> 2.131865622 | G18: =W18-AH17 -> 12.79885226 | H18: =H17+J18-K18 -> 21260.96 | I18: =I17+K18-J18 -> 2494.4775 | J18: =IF((Q17-AH17)<0,-(AK17*I17*(Q17-AH17))/(AH17-AG17),0) -> 0 | K18: =IF((P17-AG17)>0,(AL17*H17*(P17-AG17))/(AH17-AG17),0) -> 0 | L18: =(INDEX(temp_liq,(MATCH(AE18,Pression_liq,-1)+1),MATCH("coeff1",coeff_liq,0))+(AE18-INDEX(Pression_liq,MATCH(AE18,Pression_liq,-1)+1))*(INDEX(temp_liq,(MATCH(AE18,Pression_liq,-1)),MATCH("coeff1",coeff_liq,0))-INDEX(temp_liq,(MATCH(AE18,Pression_liq,-1)+1),MATCH("coeff1",coeff_liq,0)))/(INDEX(Pression_liq,MATCH(AE18,Pression_liq,-1))-INDEX(Pression_liq,MATCH(AE18,Pression_liq,-1)+1)))*(V18/10000)^4+(INDEX(temp_liq,(MATCH(AE18,Pression_liq,-1)+1),MATCH("coeff2",coeff_liq,0))+(AE18-INDEX(Pression_liq,MATCH(AE18,Pression_liq,-1)+1))*(INDEX(temp_liq,(MATCH(AE18,Pression_liq,-1)),MATCH("coeff2",coeff_liq,0))-INDEX(temp_liq,(MATCH(AE18,Pression_liq,-1)+1),MATCH("coeff2",coeff_liq,0)))/(INDEX(Pression_liq,MATCH(AE18,Pression_liq,-1))-INDEX(Pression_liq,MATCH(AE18,Pression_liq,-1)+1)))*(V18/10000)^3+(INDEX(temp_liq,(MATCH(AE18,Pression_liq,-1)+1),MATCH("coeff3",coeff_liq,0))+(AE18-INDEX(Pression_liq,MATCH(AE18,Pression_liq,-1)+1))*(INDEX(temp_liq,(MATCH(AE18,Pression_liq,-1)),MATCH("coeff3",coeff_liq,0))-INDEX(temp_liq,(MATCH(AE18,Pression_liq,-1)+1),MATCH("coeff3",coeff_liq,0)))/(INDEX(Pression_liq,MATCH(AE18,Pression_liq,-1))-INDEX(Pression_liq,MATCH(AE18,Pression_liq,-1)+1)))*(V18/10000)^2+(INDEX(temp_liq,(MATCH(AE18,Pression_liq,-1)+1),MATCH("coeff4",coeff_liq,0))+(AE18-INDEX(Pression_liq,MATCH(AE18,Pression_liq,-1)+1))*(INDEX(temp_liq,(MATCH(AE18,Pression_liq,-1)),MATCH("coeff4",coeff_liq,0))-INDEX(temp_liq,(MATCH(AE18,Pression_liq,-1)+1),MATCH("coeff4",coeff_liq,0)))/(INDEX(Pression_liq,MATCH(AE18,Pression_liq,-1))-INDEX(Pression_liq,MATCH(AE18,Pression_liq,-1)+1)))*(V18/10000)+(INDEX(temp_liq,(MATCH(AE18,Pression_liq,-1)+1),MATCH("coeff5",coeff_liq,0))+(AE18-INDEX(Pression_liq,MATCH(AE18,Pression_liq,-1)+1))*(INDEX(temp_liq,(MATCH(AE18,Pression_liq,-1)),MATCH("coeff5",coeff_liq,0))-INDEX(temp_liq,(MATCH(AE18,Pression_liq,-1)+1),MATCH("coeff5",coeff_liq,0)))/(INDEX(Pression_liq,MATCH(AE18,Pression_liq,-1))-INDEX(Pression_liq,MATCH(AE18,Pression_liq,-1)+1))) -> 341.9979967 | M18: =(INDEX(temp_vap,(MATCH(AE18,Pression_vap,-1)+1),MATCH("coeff1",coeff_vap,0))+(AE18-INDEX(Pression_vap,MATCH(AE18,Pression_vap,-1)+1))*(INDEX(temp_vap,(MATCH(AE18,Pression_vap,-1)),MATCH("coeff1",coeff_vap,0))-INDEX(temp_vap,(MATCH(AE18,Pression_vap,-1)+1),MATCH("coeff1",coeff_vap,0)))/(INDEX(Pression_vap,MATCH(AE18,Pression_vap,-1))-INDEX(Pression_vap,MATCH(AE18,Pression_vap,-1)+1)))*(W18/10000)^4+(INDEX(temp_vap,(MATCH(AE18,Pression_vap,-1)+1),MATCH("coeff2",coeff_vap,0))+(AE18-INDEX(Pression_vap,MATCH(AE18,Pression_vap,-1)+1))*(INDEX(temp_vap,(MATCH(AE18,Pression_vap,-1)),MATCH("coeff2",coeff_vap,0))-INDEX(temp_vap,(MATCH(AE18,Pression_vap,-1)+1),MATCH("coeff2",coeff_vap,0)))/(INDEX(Pression_vap,MATCH(AE18,Pression_vap,-1))-INDEX(Pression_vap,MATCH(AE18,Pression_vap,-1)+1)))*(W18/10000)^3+(INDEX(temp_vap,(MATCH(AE18,Pression_vap,-1)+1),MATCH("coeff3",coeff_vap,0))+(AE18-INDEX(Pression_vap,MATCH(AE18,Pression_vap,-1)+1))*(INDEX(temp_vap,(MATCH(AE18,Pression_vap,-1)),MATCH("coeff3",coeff_vap,0))-INDEX(temp_vap,(MATCH(AE18,Pression_vap,-1)+1),MATCH("coeff3",coeff_vap,0)))/(INDEX(Pression_vap,MATCH(AE18,Pression_vap,-1))-INDEX(Pression_vap,MATCH(AE18,Pression_vap,-1)+1)))*(W18/10000)^2+(INDEX(temp_vap,(MATCH(AE18,Pression_vap,-1)+1),MATCH("coeff4",coeff_vap,0))+(AE18-INDEX(Pression_vap,MATCH(AE18,Pression_vap,-1)+1))*(INDEX(temp_vap,(MATCH(AE18,Pression_vap,-1)),MATCH("coeff4",coeff_vap,0))-INDEX(temp_vap,(MATCH(AE18,Pression_vap,-1)+1),MATCH("coeff4",coeff_vap,0)))/(INDEX(Pression_vap,MATCH(AE18,Pression_vap,-1))-INDEX(Pression_vap,MATCH(AE18,Pression_vap,-1)+1)))*(W18/10000)+(INDEX(temp_vap,(MATCH(AE18,Pression_vap,-1)+1),MATCH("coeff5",coeff_vap,0))+(AE18-INDEX(Pression_vap,MATCH(AE18,Pression_vap,-1)+1))*(INDEX(temp_vap,(MATCH(AE18,Pression_vap,-1)),MATCH("coeff5",coeff_vap,0))-INDEX(temp_vap,(MATCH(AE18,Pression_vap,-1)+1),MATCH("coeff5",coeff_vap,0)))/(INDEX(Pression_vap,MATCH(AE18,Pression_vap,-1))-INDEX(Pression_vap,MATCH(AE18,Pression_vap,-1)+1))) -> 345.980785 | N18: =IF(AND(B18=0,C18=0,ABS(L18-M18)<0.02),0,M18-L18) -> 3.982788341 | O18: =2500*4.91*N18*(A18-A17)/1000 -> 12.22218172 | P18: =(V18*H18+O18)/H18 -> 1580.418539 | Q18: =(W18*I18-O18)/I18 -> 2456.887222 | R18: =H18*V18+I18*W18 -> 39729865.23 | S18: =H18+I18 -> 23755.4375 | T18: =$T$3 -> 607.456 | U18: =I18/E18 -> 99.7791 | V18: =((P17*H17+J18*AG17-K18*(AH17-AG17))/(H17+J18))+Z18 -> 1580.417964 | W18: =((Q17*I17+K18*AH17+J18*(AH17-AG17))/(I17+K18)) -> 2456.892122 | X18: =IF(AND($AJ$3=1,AA17<=153.3),1580,0) -> 0 | Y18: =IF(AND($AJ$3=1,AND(AA17>=154,AA17<=156)),(-290*AA17+45240),IF(AND($AJ$3=1,AA3<=154),580,0)) -> 0 | Z18: =((X18+Y18)*(A18-A17))/H18 -> 0 | AA18: =IF(AND($AO$3=1,AE17<156.7),((1/3600)*2),0) -> 0.0005555555556 | AB18: =IF(AND($AO$3=1,AND(AE17>156.7,AE17<160.2)),(((35.14*AE17-5550.88)/3600)*2),0) -> 0 | AC18: =IF(AND($AO$3=1,AE17>=160.2),((125/3600)*2),0) -> 0 | AD18: =(A18-A17)*(AA18+AB18+AC18)*(AG18-1269.44) -> 0.04643004151 | AE18: =IF(C18=1,INDEX(Pression,MATCH(INDEX(OFFSET(INDEX(uV,MATCH(W18,uV,1)),1,0):OFFSET(INDEX(uV,MATCH(W18,uV,1)),71,0),MATCH(U18,OFFSET(INDEX(uV,MATCH(W18,uV,1)),1,0):OFFSET(INDEX(uV,MATCH(W18,uV,1)),71,0),-1)+1),INDEX(densite_vap,,MATCH(W18,uV,1)),-1))+(U18-INDEX(OFFSET(INDEX(uV,MATCH(W18,uV,1)),1,0):OFFSET(INDEX(uV,MATCH(W18,uV,1)),71,0),MATCH(U18,OFFSET(INDEX(uV,MATCH(W18,uV,1)),1,0):OFFSET(INDEX(uV,MATCH(W18,uV,1)),71,0),-1)+1)+(W18-INDEX(uV,MATCH(W18,uV,1)))*(INDEX(OFFSET(INDEX(uV,MATCH(W18,uV,1)+1),1,0):OFFSET(INDEX(uV,MATCH(W18,uV,1)+1),71,0),MATCH(U18,OFFSET(INDEX(uV,MATCH(W18,uV,1)+1),1,0):OFFSET(INDEX(uV,MATCH(W18,uV,1)+1),71,0),-1)+1)-INDEX(OFFSET(INDEX(uV,MATCH(W18,uV,1)),1,0):OFFSET(INDEX(uV,MATCH(W18,uV,1)),71,0),MATCH(U18,OFFSET(INDEX(uV,MATCH(W18,uV,1)),1,0):OFFSET(INDEX(uV,MATCH(W18,uV,1)),71,0),-1)+1))/(INDEX(uV,MATCH(W18,uV,1)+1)-INDEX(uV,MATCH(W18,uV,1))))*(INDEX(Pression,MATCH(INDEX(OFFSET(INDEX(uV,MATCH(W18,uV,1)),1,0):OFFSET(INDEX(uV,MATCH(W18,uV,1)),71,0),MATCH(U18,OFFSET(INDEX(uV,MATCH(W18,uV,1)),1,0):OFFSET(INDEX(uV,MATCH(W18,uV,1)),71,0),-1)),INDEX(densite_vap,,MATCH(W18,uV,1)),-1),1)-INDEX(Pression,MATCH(INDEX(OFFSET(INDEX(uV,MATCH(W18,uV,1)),1,0):OFFSET(INDEX(uV,MATCH(W18,uV,1)),71,0),MATCH(U18,OFFSET(INDEX(uV,MATCH(W18,uV,1)),1,0):OFFSET(INDEX(uV,MATCH(W18,uV,1)),71,0),-1)+1),INDEX(densite_vap,,MATCH(W18,uV,1)),-1)))/(INDEX(OFFSET(INDEX(uV,MATCH(W18,uV,1)),1,0):OFFSET(INDEX(uV,MATCH(W18,uV,1)),71,0),MATCH(U18,OFFSET(INDEX(uV,MATCH(W18,uV,1)),1,0):OFFSET(INDEX(uV,MATCH(W18,uV,1)),71,0),-1))+(W18-INDEX(uV,MATCH(W18,uV,1)))*(INDEX(OFFSET(INDEX(uV,MATCH(W18,uV,1)+1),1,0):OFFSET(INDEX(uV,MATCH(W18,uV,1)+1),71,0),MATCH(U18,OFFSET(INDEX(uV,MATCH(W18,uV,1)+1),1,0):OFFSET(INDEX(uV,MATCH(W18,uV,1)+1),71,0),-1))-INDEX(OFFSET(INDEX(uV,MATCH(W18,uV,1)),1,0):OFFSET(INDEX(uV,MATCH(W18,uV,1)),71,0),MATCH(U18,OFFSET(INDEX(uV,MATCH(W18,uV,1)),1,0):OFFSET(INDEX(uV,MATCH(W18,uV,1)),71,0),-1)))/(INDEX(uV,MATCH(W18,uV,1)+1)-INDEX(uV,MATCH(W18,uV,1)))-INDEX(OFFSET(INDEX(uV,MATCH(W18,uV,1)),1,0):OFFSET(INDEX(uV,MATCH(W18,uV,1)),71,0),MATCH(U18,OFFSET(INDEX(uV,MATCH(W18,uV,1)),1,0):OFFSET(INDEX(uV,MATCH(W18,uV,1)),71,0),-1)+1)+(W18-INDEX(uV,MATCH(W18,uV,1)))*(INDEX(OFFSET(INDEX(uV,MATCH(W18,uV,1)+1),1,0):OFFSET(INDEX(uV,MATCH(W18,uV,1)+1),71,0),MATCH(U18,OFFSET(INDEX(uV,MATCH(W18,uV,1)+1),1,0):OFFSET(INDEX(uV,MATCH(W18,uV,1)+1),71,0),-1)+1)-INDEX(OFFSET(INDEX(uV,MATCH(W18,uV,1)),1,0):OFFSET(INDEX(uV,MATCH(W18,uV,1)),71,0),MATCH(U18,OFFSET(INDEX(uV,MATCH(W18,uV,1)),1,0):OFFSET(INDEX(uV,MATCH(W18,uV,1)),71,0),-1)+1))/(INDEX(uV,MATCH(W18,uV,1)+1)-INDEX(uV,MATCH(W18,uV,1)))),IF(B18=1,AE17-0.01,AE17)) -> 154.9822913 | AF18: =Poly_Vapeur!$P$14*Resultats!AE18^4+Poly_Vapeur!$Q$14*Resultats!AE18^3+Poly_Vapeur!$R$14*Resultats!AE18^2+Poly_Vapeur!$S$14*Resultats!AE18+Poly_Vapeur!$T$14 -> 344.7801638 | AG18: =Poly_Liquide!$Q$6*Resultats!AE18^4+Poly_Liquide!$R$6*Resultats!AE18^3+Poly_Liquide!$S$6*Resultats!AE18^2+Poly_Liquide!$T$6*Resultats!AE18+Poly_Liquide!$U$6 -> 1603.736299 | AH18: =Poly_Vapeur!$P$6*Resultats!AE18^4+Poly_Vapeur!$Q$6*Resultats!AE18^3+Poly_Vapeur!$R$6*Resultats!AE18^2+Poly_Vapeur!$S$6*Resultats!AE18+Poly_Vapeur!$T$6 -> 2444.096292 | AI18: =Poly_Liquide!Q$10*Resultats!AE18^4+Poly_Liquide!R$10*Resultats!AE18^3+Poly_Liquide!S$10*Resultats!AE18^2+Poly_Liquide!T$10*Resultats!AE18+Poly_Liquide!U$10 -> 594.4119246 | AJ18: =Poly_Vapeur!P$10*Resultats!AE18^4+Poly_Vapeur!Q$10*Resultats!AE18^3+Poly_Vapeur!R$10*Resultats!AE18^2+Poly_Vapeur!S$10*Resultats!AE18+Poly_Vapeur!T$10 -> 101.9109656 | AK18: =IF(W18<AH17,1,0) -> 0 | AL18: =IF(V18>AG17,1,0) -> 0 | AM18: 3.5 | AQ18: 3.75
A19: =IF(B19=1,A18,A18+0.25) -> 4 | B19: =IF(AND(G19<0.0001,F18>0.09),1,0) -> 0 | C19: =IF(OR(AND(G19=0,F18<0),AND(G19>0,F18>-0.2)),1,0) -> 1 | D19: 35 | E19: =60-D19 -> 25 | F19: =AJ19-U19 -> 2.130521011 | G19: =W19-AH18 -> 12.79092998 | H19: =H18+J19-K19 -> 21260.96 | I19: =I18+K19-J19 -> 2494.4775 | J19: =IF((Q18-AH18)<0,-(AK18*I18*(Q18-AH18))/(AH18-AG18),0) -> 0 | K19: =IF((P18-AG18)>0,(AL18*H18*(P18-AG18))/(AH18-AG18),0) -> 0 | L19: =(INDEX(temp_liq,(MATCH(AE19,Pression_liq,-1)+1),MATCH("coeff1",coeff_liq,0))+(AE19-INDEX(Pression_liq,MATCH(AE19,Pression_liq,-1)+1))*(INDEX(temp_liq,(MATCH(AE19,Pression_liq,-1)),MATCH("coeff1",coeff_liq,0))-INDEX(temp_liq,(MATCH(AE19,Pression_liq,-1)+1),MATCH("coeff1",coeff_liq,0)))/(INDEX(Pression_liq,MATCH(AE19,Pression_liq,-1))-INDEX(Pression_liq,MATCH(AE19,Pression_liq,-1)+1)))*(V19/10000)^4+(INDEX(temp_liq,(MATCH(AE19,Pression_liq,-1)+1),MATCH("coeff2",coeff_liq,0))+(AE19-INDEX(Pression_liq,MATCH(AE19,Pression_liq,-1)+1))*(INDEX(temp_liq,(MATCH(AE19,Pression_liq,-1)),MATCH("coeff2",coeff_liq,0))-INDEX(temp_liq,(MATCH(AE19,Pression_liq,-1)+1),MATCH("coeff2",coeff_liq,0)))/(INDEX(Pression_liq,MATCH(AE19,Pression_liq,-1))-INDEX(Pression_liq,MATCH(AE19,Pression_liq,-1)+1)))*(V19/10000)^3+(INDEX(temp_liq,(MATCH(AE19,Pression_liq,-1)+1),MATCH("coeff3",coeff_liq,0))+(AE19-INDEX(Pression_liq,MATCH(AE19,Pression_liq,-1)+1))*(INDEX(temp_liq,(MATCH(AE19,Pression_liq,-1)),MATCH("coeff3",coeff_liq,0))-INDEX(temp_liq,(MATCH(AE19,Pression_liq,-1)+1),MATCH("coeff3",coeff_liq,0)))/(INDEX(Pression_liq,MATCH(AE19,Pression_liq,-1))-INDEX(Pression_liq,MATCH(AE19,Pression_liq,-1)+1)))*(V19/10000)^2+(INDEX(temp_liq,(MATCH(AE19,Pression_liq,-1)+1),MATCH("coeff4",coeff_liq,0))+(AE19-INDEX(Pression_liq,MATCH(AE19,Pression_liq,-1)+1))*(INDEX(temp_liq,(MATCH(AE19,Pression_liq,-1)),MATCH("coeff4",coeff_liq,0))-INDEX(temp_liq,(MATCH(AE19,Pression_liq,-1)+1),MATCH("coeff4",coeff_liq,0)))/(INDEX(Pression_liq,MATCH(AE19,Pression_liq,-1))-INDEX(Pression_liq,MATCH(AE19,Pression_liq,-1)+1)))*(V19/10000)+(INDEX(temp_liq,(MATCH(AE19,Pression_liq,-1)+1),MATCH("coeff5",coeff_liq,0))+(AE19-INDEX(Pression_liq,MATCH(AE19,Pression_liq,-1)+1))*(INDEX(temp_liq,(MATCH(AE19,Pression_liq,-1)),MATCH("coeff5",coeff_liq,0))-INDEX(temp_liq,(MATCH(AE19,Pression_liq,-1)+1),MATCH("coeff5",coeff_liq,0)))/(INDEX(Pression_liq,MATCH(AE19,Pression_liq,-1))-INDEX(Pression_liq,MATCH(AE19,Pression_liq,-1)+1))) -> 341.9979573 | M19: =(INDEX(temp_vap,(MATCH(AE19,Pression_vap,-1)+1),MATCH("coeff1",coeff_vap,0))+(AE19-INDEX(Pression_vap,MATCH(AE19,Pression_vap,-1)+1))*(INDEX(temp_vap,(MATCH(AE19,Pression_vap,-1)),MATCH("coeff1",coeff_vap,0))-INDEX(temp_vap,(MATCH(AE19,Pression_vap,-1)+1),MATCH("coeff1",coeff_vap,0)))/(INDEX(Pression_vap,MATCH(AE19,Pression_vap,-1))-INDEX(Pression_vap,MATCH(AE19,Pression_vap,-1)+1)))*(W19/10000)^4+(INDEX(temp_vap,(MATCH(AE19,Pression_vap,-1)+1),MATCH("coeff2",coeff_vap,0))+(AE19-INDEX(Pression_vap,MATCH(AE19,Pression_vap,-1)+1))*(INDEX(temp_vap,(MATCH(AE19,Pression_vap,-1)),MATCH("coeff2",coeff_vap,0))-INDEX(temp_vap,(MATCH(AE19,Pression_vap,-1)+1),MATCH("coeff2",coeff_vap,0)))/(INDEX(Pression_vap,MATCH(AE19,Pression_vap,-1))-INDEX(Pression_vap,MATCH(AE19,Pression_vap,-1)+1)))*(W19/10000)^3+(INDEX(temp_vap,(MATCH(AE19,Pression_vap,-1)+1),MATCH("coeff3",coeff_vap,0))+(AE19-INDEX(Pression_vap,MATCH(AE19,Pression_vap,-1)+1))*(INDEX(temp_vap,(MATCH(AE19,Pression_vap,-1)),MATCH("coeff3",coeff_vap,0))-INDEX(temp_vap,(MATCH(AE19,Pression_vap,-1)+1),MATCH("coeff3",coeff_vap,0)))/(INDEX(Pression_vap,MATCH(AE19,Pression_vap,-1))-INDEX(Pression_vap,MATCH(AE19,Pression_vap,-1)+1)))*(W19/10000)^2+(INDEX(temp_vap,(MATCH(AE19,Pression_vap,-1)+1),MATCH("coeff4",coeff_vap,0))+(AE19-INDEX(Pression_vap,MATCH(AE19,Pression_vap,-1)+1))*(INDEX(temp_vap,(MATCH(AE19,Pression_vap,-1)),MATCH("coeff4",coeff_vap,0))-INDEX(temp_vap,(MATCH(AE19,Pression_vap,-1)+1),MATCH("coeff4",coeff_vap,0)))/(INDEX(Pression_vap,MATCH(AE19,Pression_vap,-1))-INDEX(Pression_vap,MATCH(AE19,Pression_vap,-1)+1)))*(W19/10000)+(INDEX(temp_vap,(MATCH(AE19,Pression_vap,-1)+1),MATCH("coeff5",coeff_vap,0))+(AE19-INDEX(Pression_vap,MATCH(AE19,Pression_vap,-1)+1))*(INDEX(temp_vap,(MATCH(AE19,Pression_vap,-1)),MATCH("coeff5",coeff_vap,0))-INDEX(temp_vap,(MATCH(AE19,Pression_vap,-1)+1),MATCH("coeff5",coeff_vap,0)))/(INDEX(Pression_vap,MATCH(AE19,Pression_vap,-1))-INDEX(Pression_vap,MATCH(AE19,Pression_vap,-1)+1))) -> 345.9793785 | N19: =IF(AND(B19=0,C19=0,ABS(L19-M19)<0.02),0,M19-L19) -> 3.981421198 | O19: =2500*4.91*N19*(A19-A18)/1000 -> 12.2179863 | P19: =(V19*H19+O19)/H19 -> 1580.419113 | Q19: =(W19*I19-O19)/I19 -> 2456.882324 | R19: =H19*V19+I19*W19 -> 39729865.23 | S19: =H19+I19 -> 23755.4375 | T19: =$T$3 -> 607.456 | U19: =I19/E19 -> 99.7791 | V19: =((P18*H18+J19*AG18-K19*(AH18-AG18))/(H18+J19))+Z19 -> 1580.418539 | W19: =((Q18*I18+K19*AH18+J19*(AH18-AG18))/(I18+K19)) -> 2456.887222 | X19: =IF(AND($AJ$3=1,AA18<=153.3),1580,0) -> 0 | Y19: =IF(AND($AJ$3=1,AND(AA18>=154,AA18<=156)),(-290*AA18+45240),IF(AND($AJ$3=1,AA3<=154),580,0)) -> 0 | Z19: =((X19+Y19)*(A19-A18))/H19 -> 0 | AA19: =IF(AND($AO$3=1,AE18<156.7),((1/3600)*2),0) -> 0.0005555555556 | AB19: =IF(AND($AO$3=1,AND(AE18>156.7,AE18<160.2)),(((35.14*AE18-5550.88)/3600)*2),0) -> 0 | AC19: =IF(AND($AO$3=1,AE18>=160.2),((125/3600)*2),0) -> 0 | AD19: =(A19-A18)*(AA19+AB19+AC19)*(AG19-1269.44) -> 0.04642939526 | AE19: =IF(C19=1,INDEX(Pression,MATCH(INDEX(OFFSET(INDEX(uV,MATCH(W19,uV,1)),1,0):OFFSET(INDEX(uV,MATCH(W19,uV,1)),71,0),MATCH(U19,OFFSET(INDEX(uV,MATCH(W19,uV,1)),1,0):OFFSET(INDEX(uV,MATCH(W19,uV,1)),71,0),-1)+1),INDEX(densite_vap,,MATCH(W19,uV,1)),-1))+(U19-INDEX(OFFSET(INDEX(uV,MATCH(W19,uV,1)),1,0):OFFSET(INDEX(uV,MATCH(W19,uV,1)),71,0),MATCH(U19,OFFSET(INDEX(uV,MATCH(W19,uV,1)),1,0):OFFSET(INDEX(uV,MATCH(W19,uV,1)),71,0),-1)+1)+(W19-INDEX(uV,MATCH(W19,uV,1)))*(INDEX(OFFSET(INDEX(uV,MATCH(W19,uV,1)+1),1,0):OFFSET(INDEX(uV,MATCH(W19,uV,1)+1),71,0),MATCH(U19,OFFSET(INDEX(uV,MATCH(W19,uV,1)+1),1,0):OFFSET(INDEX(uV,MATCH(W19,uV,1)+1),71,0),-1)+1)-INDEX(OFFSET(INDEX(uV,MATCH(W19,uV,1)),1,0):OFFSET(INDEX(uV,MATCH(W19,uV,1)),71,0),MATCH(U19,OFFSET(INDEX(uV,MATCH(W19,uV,1)),1,0):OFFSET(INDEX(uV,MATCH(W19,uV,1)),71,0),-1)+1))/(INDEX(uV,MATCH(W19,uV,1)+1)-INDEX(uV,MATCH(W19,uV,1))))*(INDEX(Pression,MATCH(INDEX(OFFSET(INDEX(uV,MATCH(W19,uV,1)),1,0):OFFSET(INDEX(uV,MATCH(W19,uV,1)),71,0),MATCH(U19,OFFSET(INDEX(uV,MATCH(W19,uV,1)),1,0):OFFSET(INDEX(uV,MATCH(W19,uV,1)),71,0),-1)),INDEX(densite_vap,,MATCH(W19,uV,1)),-1),1)-INDEX(Pression,MATCH(INDEX(OFFSET(INDEX(uV,MATCH(W19,uV,1)),1,0):OFFSET(INDEX(uV,MATCH(W19,uV,1)),71,0),MATCH(U19,OFFSET(INDEX(uV,MATCH(W19,uV,1)),1,0):OFFSET(INDEX(uV,MATCH(W19,uV,1)),71,0),-1)+1),INDEX(densite_vap,,MATCH(W19,uV,1)),-1)))/(INDEX(OFFSET(INDEX(uV,MATCH(W19,uV,1)),1,0):OFFSET(INDEX(uV,MATCH(W19,uV,1)),71,0),MATCH(U19,OFFSET(INDEX(uV,MATCH(W19,uV,1)),1,0):OFFSET(INDEX(uV,MATCH(W19,uV,1)),71,0),-1))+(W19-INDEX(uV,MATCH(W19,uV,1)))*(INDEX(OFFSET(INDEX(uV,MATCH(W19,uV,1)+1),1,0):OFFSET(INDEX(uV,MATCH(W19,uV,1)+1),71,0),MATCH(U19,OFFSET(INDEX(uV,MATCH(W19,uV,1)+1),1,0):OFFSET(INDEX(uV,MATCH(W19,uV,1)+1),71,0),-1))-INDEX(OFFSET(INDEX(uV,MATCH(W19,uV,1)),1,0):OFFSET(INDEX(uV,MATCH(W19,uV,1)),71,0),MATCH(U19,OFFSET(INDEX(uV,MATCH(W19,uV,1)),1,0):OFFSET(INDEX(uV,MATCH(W19,uV,1)),71,0),-1)))/(INDEX(uV,MATCH(W19,uV,1)+1)-INDEX(uV,MATCH(W19,uV,1)))-INDEX(OFFSET(INDEX(uV,MATCH(W19,uV,1)),1,0):OFFSET(INDEX(uV,MATCH(W19,uV,1)),71,0),MATCH(U19,OFFSET(INDEX(uV,MATCH(W19,uV,1)),1,0):OFFSET(INDEX(uV,MATCH(W19,uV,1)),71,0),-1)+1)+(W19-INDEX(uV,MATCH(W19,uV,1)))*(INDEX(OFFSET(INDEX(uV,MATCH(W19,uV,1)+1),1,0):OFFSET(INDEX(uV,MATCH(W19,uV,1)+1),71,0),MATCH(U19,OFFSET(INDEX(uV,MATCH(W19,uV,1)+1),1,0):OFFSET(INDEX(uV,MATCH(W19,uV,1)+1),71,0),-1)+1)-INDEX(OFFSET(INDEX(uV,MATCH(W19,uV,1)),1,0):OFFSET(INDEX(uV,MATCH(W19,uV,1)),71,0),MATCH(U19,OFFSET(INDEX(uV,MATCH(W19,uV,1)),1,0):OFFSET(INDEX(uV,MATCH(W19,uV,1)),71,0),-1)+1))/(INDEX(uV,MATCH(W19,uV,1)+1)-INDEX(uV,MATCH(W19,uV,1)))),IF(B19=1,AE18-0.01,AE18)) -> 154.9810328 | AF19: =Poly_Vapeur!$P$14*Resultats!AE19^4+Poly_Vapeur!$Q$14*Resultats!AE19^3+Poly_Vapeur!$R$14*Resultats!AE19^2+Poly_Vapeur!$S$14*Resultats!AE19+Poly_Vapeur!$T$14 -> 344.7795096 | AG19: =Poly_Liquide!$Q$6*Resultats!AE19^4+Poly_Liquide!$R$6*Resultats!AE19^3+Poly_Liquide!$S$6*Resultats!AE19^2+Poly_Liquide!$T$6*Resultats!AE19+Poly_Liquide!$U$6 -> 1603.731646 | AH19: =Poly_Vapeur!$P$6*Resultats!AE19^4+Poly_Vapeur!$Q$6*Resultats!AE19^3+Poly_Vapeur!$R$6*Resultats!AE19^2+Poly_Vapeur!$S$6*Resultats!AE19+Poly_Vapeur!$T$6 -> 2444.099281 | AI19: =Poly_Liquide!Q$10*Resultats!AE19^4+Poly_Liquide!R$10*Resultats!AE19^3+Poly_Liquide!S$10*Resultats!AE19^2+Poly_Liquide!T$10*Resultats!AE19+Poly_Liquide!U$10 -> 594.4142544 | AJ19: =Poly_Vapeur!P$10*Resultats!AE19^4+Poly_Vapeur!Q$10*Resultats!AE19^3+Poly_Vapeur!R$10*Resultats!AE19^2+Poly_Vapeur!S$10*Resultats!AE19+Poly_Vapeur!T$10 -> 101.909621 | AK19: =IF(W19<AH18,1,0) -> 0 | AL19: =IF(V19>AG18,1,0) -> 0 | AM19: 3.75 | AQ19: 4
A20: =IF(B20=1,A19,A19+0.25) -> 4.25 | B20: =IF(AND(G20<0.0001,F19>0.09),1,0) -> 0 | C20: =IF(OR(AND(G20=0,F19<0),AND(G20>0,F19>-0.2)),1,0) -> 1 | D20: 35 | E20: =60-D20 -> 25 | F20: =AJ20-U20 -> 2.129191337 | G20: =W20-AH19 -> 12.78304316 | H20: =H19+J20-K20 -> 21260.96 | I20: =I19+K20-J20 -> 2494.4775 | J20: =IF((Q19-AH19)<0,-(AK19*I19*(Q19-AH19))/(AH19-AG19),0) -> 0 | K20: =IF((P19-AG19)>0,(AL19*H19*(P19-AG19))/(AH19-AG19),0) -> 0 | L20: =(INDEX(temp_liq,(MATCH(AE20,Pression_liq,-1)+1),MATCH("coeff1",coeff_liq,0))+(AE20-INDEX(Pression_liq,MATCH(AE20,Pression_liq,-1)+1))*(INDEX(temp_liq,(MATCH(AE20,Pression_liq,-1)),MATCH("coeff1",coeff_liq,0))-INDEX(temp_liq,(MATCH(AE20,Pression_liq,-1)+1),MATCH("coeff1",coeff_liq,0)))/(INDEX(Pression_liq,MATCH(AE20,Pression_liq,-1))-INDEX(Pression_liq,MATCH(AE20,Pression_liq,-1)+1)))*(V20/10000)^4+(INDEX(temp_liq,(MATCH(AE20,Pression_liq,-1)+1),MATCH("coeff2",coeff_liq,0))+(AE20-INDEX(Pression_liq,MATCH(AE20,Pression_liq,-1)+1))*(INDEX(temp_liq,(MATCH(AE20,Pression_liq,-1)),MATCH("coeff2",coeff_liq,0))-INDEX(temp_liq,(MATCH(AE20,Pression_liq,-1)+1),MATCH("coeff2",coeff_liq,0)))/(INDEX(Pression_liq,MATCH(AE20,Pression_liq,-1))-INDEX(Pression_liq,MATCH(AE20,Pression_liq,-1)+1)))*(V20/10000)^3+(INDEX(temp_liq,(MATCH(AE20,Pression_liq,-1)+1),MATCH("coeff3",coeff_liq,0))+(AE20-INDEX(Pression_liq,MATCH(AE20,Pression_liq,-1)+1))*(INDEX(temp_liq,(MATCH(AE20,Pression_liq,-1)),MATCH("coeff3",coeff_liq,0))-INDEX(temp_liq,(MATCH(AE20,Pression_liq,-1)+1),MATCH("coeff3",coeff_liq,0)))/(INDEX(Pression_liq,MATCH(AE20,Pression_liq,-1))-INDEX(Pression_liq,MATCH(AE20,Pression_liq,-1)+1)))*(V20/10000)^2+(INDEX(temp_liq,(MATCH(AE20,Pression_liq,-1)+1),MATCH("coeff4",coeff_liq,0))+(AE20-INDEX(Pression_liq,MATCH(AE20,Pression_liq,-1)+1))*(INDEX(temp_liq,(MATCH(AE20,Pression_liq,-1)),MATCH("coeff4",coeff_liq,0))-INDEX(temp_liq,(MATCH(AE20,Pression_liq,-1)+1),MATCH("coeff4",coeff_liq,0)))/(INDEX(Pression_liq,MATCH(AE20,Pression_liq,-1))-INDEX(Pression_liq,MATCH(AE20,Pression_liq,-1)+1)))*(V20/10000)+(INDEX(temp_liq,(MATCH(AE20,Pression_liq,-1)+1),MATCH("coeff5",coeff_liq,0))+(AE20-INDEX(Pression_liq,MATCH(AE20,Pression_liq,-1)+1))*(INDEX(temp_liq,(MATCH(AE20,Pression_liq,-1)),MATCH("coeff5",coeff_liq,0))-INDEX(temp_liq,(MATCH(AE20,Pression_liq,-1)+1),MATCH("coeff5",coeff_liq,0)))/(INDEX(Pression_liq,MATCH(AE20,Pression_liq,-1))-INDEX(Pression_liq,MATCH(AE20,Pression_liq,-1)+1))) -> 341.9979192 | M20: =(INDEX(temp_vap,(MATCH(AE20,Pression_vap,-1)+1),MATCH("coeff1",coeff_vap,0))+(AE20-INDEX(Pression_vap,MATCH(AE20,Pression_vap,-1)+1))*(INDEX(temp_vap,(MATCH(AE20,Pression_vap,-1)),MATCH("coeff1",coeff_vap,0))-INDEX(temp_vap,(MATCH(AE20,Pression_vap,-1)+1),MATCH("coeff1",coeff_vap,0)))/(INDEX(Pression_vap,MATCH(AE20,Pression_vap,-1))-INDEX(Pression_vap,MATCH(AE20,Pression_vap,-1)+1)))*(W20/10000)^4+(INDEX(temp_vap,(MATCH(AE20,Pression_vap,-1)+1),MATCH("coeff2",coeff_vap,0))+(AE20-INDEX(Pression_vap,MATCH(AE20,Pression_vap,-1)+1))*(INDEX(temp_vap,(MATCH(AE20,Pression_vap,-1)),MATCH("coeff2",coeff_vap,0))-INDEX(temp_vap,(MATCH(AE20,Pression_vap,-1)+1),MATCH("coeff2",coeff_vap,0)))/(INDEX(Pression_vap,MATCH(AE20,Pression_vap,-1))-INDEX(Pression_vap,MATCH(AE20,Pression_vap,-1)+1)))*(W20/10000)^3+(INDEX(temp_vap,(MATCH(AE20,Pression_vap,-1)+1),MATCH("coeff3",coeff_vap,0))+(AE20-INDEX(Pression_vap,MATCH(AE20,Pression_vap,-1)+1))*(INDEX(temp_vap,(MATCH(AE20,Pression_vap,-1)),MATCH("coeff3",coeff_vap,0))-INDEX(temp_vap,(MATCH(AE20,Pression_vap,-1)+1),MATCH("coeff3",coeff_vap,0)))/(INDEX(Pression_vap,MATCH(AE20,Pression_vap,-1))-INDEX(Pression_vap,MATCH(AE20,Pression_vap,-1)+1)))*(W20/10000)^2+(INDEX(temp_vap,(MATCH(AE20,Pression_vap,-1)+1),MATCH("coeff4",coeff_vap,0))+(AE20-INDEX(Pression_vap,MATCH(AE20,Pression_vap,-1)+1))*(INDEX(temp_vap,(MATCH(AE20,Pression_vap,-1)),MATCH("coeff4",coeff_vap,0))-INDEX(temp_vap,(MATCH(AE20,Pression_vap,-1)+1),MATCH("coeff4",coeff_vap,0)))/(INDEX(Pression_vap,MATCH(AE20,Pression_vap,-1))-INDEX(Pression_vap,MATCH(AE20,Pression_vap,-1)+1)))*(W20/10000)+(INDEX(temp_vap,(MATCH(AE20,Pression_vap,-1)+1),MATCH("coeff5",coeff_vap,0))+(AE20-INDEX(Pression_vap,MATCH(AE20,Pression_vap,-1)+1))*(INDEX(temp_vap,(MATCH(AE20,Pression_vap,-1)),MATCH("coeff5",coeff_vap,0))-INDEX(temp_vap,(MATCH(AE20,Pression_vap,-1)+1),MATCH("coeff5",coeff_vap,0)))/(INDEX(Pression_vap,MATCH(AE20,Pression_vap,-1))-INDEX(Pression_vap,MATCH(AE20,Pression_vap,-1)+1))) -> 345.9779825 | N20: =IF(AND(B20=0,C20=0,ABS(L20-M20)<0.02),0,M20-L20) -> 3.980063303 | O20: =2500*4.91*N20*(A20-A19)/1000 -> 12.21381926 | P20: =(V20*H20+O20)/H20 -> 1580.419688 | Q20: =(W20*I20-O20)/I20 -> 2456.877428 | R20: =H20*V20+I20*W20 -> 39729865.23 | S20: =H20+I20 -> 23755.4375 | T20: =$T$3 -> 607.456 | U20: =I20/E20 -> 99.7791 | V20: =((P19*H19+J20*AG19-K20*(AH19-AG19))/(H19+J20))+Z20 -> 1580.419113 | W20: =((Q19*I19+K20*AH19+J20*(AH19-AG19))/(I19+K20)) -> 2456.882324 | X20: =IF(AND($AJ$3=1,AA19<=153.3),1580,0) -> 0 | Y20: =IF(AND($AJ$3=1,AND(AA19>=154,AA19<=156)),(-290*AA19+45240),IF(AND($AJ$3=1,AA3<=154),580,0)) -> 0 | Z20: =((X20+Y20)*(A20-A19))/H20 -> 0 | AA20: =IF(AND($AO$3=1,AE19<156.7),((1/3600)*2),0) -> 0.0005555555556 | AB20: =IF(AND($AO$3=1,AND(AE19>156.7,AE19<160.2)),(((35.14*AE19-5550.88)/3600)*2),0) -> 0 | AC20: =IF(AND($AO$3=1,AE19>=160.2),((125/3600)*2),0) -> 0 | AD20: =(A20-A19)*(AA20+AB20+AC20)*(AG20-1269.44) -> 0.04642875619 | AE20: =IF(C20=1,INDEX(Pression,MATCH(INDEX(OFFSET(INDEX(uV,MATCH(W20,uV,1)),1,0):OFFSET(INDEX(uV,MATCH(W20,uV,1)),71,0),MATCH(U20,OFFSET(INDEX(uV,MATCH(W20,uV,1)),1,0):OFFSET(INDEX(uV,MATCH(W20,uV,1)),71,0),-1)+1),INDEX(densite_vap,,MATCH(W20,uV,1)),-1))+(U20-INDEX(OFFSET(INDEX(uV,MATCH(W20,uV,1)),1,0):OFFSET(INDEX(uV,MATCH(W20,uV,1)),71,0),MATCH(U20,OFFSET(INDEX(uV,MATCH(W20,uV,1)),1,0):OFFSET(INDEX(uV,MATCH(W20,uV,1)),71,0),-1)+1)+(W20-INDEX(uV,MATCH(W20,uV,1)))*(INDEX(OFFSET(INDEX(uV,MATCH(W20,uV,1)+1),1,0):OFFSET(INDEX(uV,MATCH(W20,uV,1)+1),71,0),MATCH(U20,OFFSET(INDEX(uV,MATCH(W20,uV,1)+1),1,0):OFFSET(INDEX(uV,MATCH(W20,uV,1)+1),71,0),-1)+1)-INDEX(OFFSET(INDEX(uV,MATCH(W20,uV,1)),1,0):OFFSET(INDEX(uV,MATCH(W20,uV,1)),71,0),MATCH(U20,OFFSET(INDEX(uV,MATCH(W20,uV,1)),1,0):OFFSET(INDEX(uV,MATCH(W20,uV,1)),71,0),-1)+1))/(INDEX(uV,MATCH(W20,uV,1)+1)-INDEX(uV,MATCH(W20,uV,1))))*(INDEX(Pression,MATCH(INDEX(OFFSET(INDEX(uV,MATCH(W20,uV,1)),1,0):OFFSET(INDEX(uV,MATCH(W20,uV,1)),71,0),MATCH(U20,OFFSET(INDEX(uV,MATCH(W20,uV,1)),1,0):OFFSET(INDEX(uV,MATCH(W20,uV,1)),71,0),-1)),INDEX(densite_vap,,MATCH(W20,uV,1)),-1),1)-INDEX(Pression,MATCH(INDEX(OFFSET(INDEX(uV,MATCH(W20,uV,1)),1,0):OFFSET(INDEX(uV,MATCH(W20,uV,1)),71,0),MATCH(U20,OFFSET(INDEX(uV,MATCH(W20,uV,1)),1,0):OFFSET(INDEX(uV,MATCH(W20,uV,1)),71,0),-1)+1),INDEX(densite_vap,,MATCH(W20,uV,1)),-1)))/(INDEX(OFFSET(INDEX(uV,MATCH(W20,uV,1)),1,0):OFFSET(INDEX(uV,MATCH(W20,uV,1)),71,0),MATCH(U20,OFFSET(INDEX(uV,MATCH(W20,uV,1)),1,0):OFFSET(INDEX(uV,MATCH(W20,uV,1)),71,0),-1))+(W20-INDEX(uV,MATCH(W20,uV,1)))*(INDEX(OFFSET(INDEX(uV,MATCH(W20,uV,1)+1),1,0):OFFSET(INDEX(uV,MATCH(W20,uV,1)+1),71,0),MATCH(U20,OFFSET(INDEX(uV,MATCH(W20,uV,1)+1),1,0):OFFSET(INDEX(uV,MATCH(W20,uV,1)+1),71,0),-1))-INDEX(OFFSET(INDEX(uV,MATCH(W20,uV,1)),1,0):OFFSET(INDEX(uV,MATCH(W20,uV,1)),71,0),MATCH(U20,OFFSET(INDEX(uV,MATCH(W20,uV,1)),1,0):OFFSET(INDEX(uV,MATCH(W20,uV,1)),71,0),-1)))/(INDEX(uV,MATCH(W20,uV,1)+1)-INDEX(uV,MATCH(W20,uV,1)))-INDEX(OFFSET(INDEX(uV,MATCH(W20,uV,1)),1,0):OFFSET(INDEX(uV,MATCH(W20,uV,1)),71,0),MATCH(U20,OFFSET(INDEX(uV,MATCH(W20,uV,1)),1,0):OFFSET(INDEX(uV,MATCH(W20,uV,1)),71,0),-1)+1)+(W20-INDEX(uV,MATCH(W20,uV,1)))*(INDEX(OFFSET(INDEX(uV,MATCH(W20,uV,1)+1),1,0):OFFSET(INDEX(uV,MATCH(W20,uV,1)+1),71,0),MATCH(U20,OFFSET(INDEX(uV,MATCH(W20,uV,1)+1),1,0):OFFSET(INDEX(uV,MATCH(W20,uV,1)+1),71,0),-1)+1)-INDEX(OFFSET(INDEX(uV,MATCH(W20,uV,1)),1,0):OFFSET(INDEX(uV,MATCH(W20,uV,1)),71,0),MATCH(U20,OFFSET(INDEX(uV,MATCH(W20,uV,1)),1,0):OFFSET(INDEX(uV,MATCH(W20,uV,1)),71,0),-1)+1))/(INDEX(uV,MATCH(W20,uV,1)+1)-INDEX(uV,MATCH(W20,uV,1)))),IF(B20=1,AE19-0.01,AE19)) -> 154.9797882 | AF20: =Poly_Vapeur!$P$14*Resultats!AE20^4+Poly_Vapeur!$Q$14*Resultats!AE20^3+Poly_Vapeur!$R$14*Resultats!AE20^2+Poly_Vapeur!$S$14*Resultats!AE20+Poly_Vapeur!$T$14 -> 344.7788626 | AG20: =Poly_Liquide!$Q$6*Resultats!AE20^4+Poly_Liquide!$R$6*Resultats!AE20^3+Poly_Liquide!$S$6*Resultats!AE20^2+Poly_Liquide!$T$6*Resultats!AE20+Poly_Liquide!$U$6 -> 1603.727045 | AH20: =Poly_Vapeur!$P$6*Resultats!AE20^4+Poly_Vapeur!$Q$6*Resultats!AE20^3+Poly_Vapeur!$R$6*Resultats!AE20^2+Poly_Vapeur!$S$6*Resultats!AE20+Poly_Vapeur!$T$6 -> 2444.102237 | AI20: =Poly_Liquide!Q$10*Resultats!AE20^4+Poly_Liquide!R$10*Resultats!AE20^3+Poly_Liquide!S$10*Resultats!AE20^2+Poly_Liquide!T$10*Resultats!AE20+Poly_Liquide!U$10 -> 594.4165584 | AJ20: =Poly_Vapeur!P$10*Resultats!AE20^4+Poly_Vapeur!Q$10*Resultats!AE20^3+Poly_Vapeur!R$10*Resultats!AE20^2+Poly_Vapeur!S$10*Resultats!AE20+Poly_Vapeur!T$10 -> 101.9082913 | AK20: =IF(W20<AH19,1,0) -> 0 | AL20: =IF(V20>AG19,1,0) -> 0 | AM20: 4 | AQ20: 4.25
A21: =IF(B21=1,A20,A20+0.25) -> 4.5 | B21: =IF(AND(G21<0.0001,F20>0.09),1,0) -> 0 | C21: =IF(OR(AND(G21=0,F20<0),AND(G21>0,F20>-0.2)),1,0) -> 1 | D21: 35 | E21: =60-D21 -> 25 | F21: =AJ21-U21 -> 2.127876351 | G21: =W21-AH20 -> 12.77519121 | H21: =H20+J21-K21 -> 21260.96 | I21: =I20+K21-J21 -> 2494.4775 | J21: =IF((Q20-AH20)<0,-(AK20*I20*(Q20-AH20))/(AH20-AG20),0) -> 0 | K21: =IF((P20-AG20)>0,(AL20*H20*(P20-AG20))/(AH20-AG20),0) -> 0 | L21: =(INDEX(temp_liq,(MATCH(AE21,Pression_liq,-1)+1),MATCH("coeff1",coeff_liq,0))+(AE21-INDEX(Pression_liq,MATCH(AE21,Pression_liq,-1)+1))*(INDEX(temp_liq,(MATCH(AE21,Pression_liq,-1)),MATCH("coeff1",coeff_liq,0))-INDEX(temp_liq,(MATCH(AE21,Pression_liq,-1)+1),MATCH("coeff1",coeff_liq,0)))/(INDEX(Pression_liq,MATCH(AE21,Pression_liq,-1))-INDEX(Pression_liq,MATCH(AE21,Pression_liq,-1)+1)))*(V21/10000)^4+(INDEX(temp_liq,(MATCH(AE21,Pression_liq,-1)+1),MATCH("coeff2",coeff_liq,0))+(AE21-INDEX(Pression_liq,MATCH(AE21,Pression_liq,-1)+1))*(INDEX(temp_liq,(MATCH(AE21,Pression_liq,-1)),MATCH("coeff2",coeff_liq,0))-INDEX(temp_liq,(MATCH(AE21,Pression_liq,-1)+1),MATCH("coeff2",coeff_liq,0)))/(INDEX(Pression_liq,MATCH(AE21,Pression_liq,-1))-INDEX(Pression_liq,MATCH(AE21,Pression_liq,-1)+1)))*(V21/10000)^3+(INDEX(temp_liq,(MATCH(AE21,Pression_liq,-1)+1),MATCH("coeff3",coeff_liq,0))+(AE21-INDEX(Pression_liq,MATCH(AE21,Pression_liq,-1)+1))*(INDEX(temp_liq,(MATCH(AE21,Pression_liq,-1)),MATCH("coeff3",coeff_liq,0))-INDEX(temp_liq,(MATCH(AE21,Pression_liq,-1)+1),MATCH("coeff3",coeff_liq,0)))/(INDEX(Pression_liq,MATCH(AE21,Pression_liq,-1))-INDEX(Pression_liq,MATCH(AE21,Pression_liq,-1)+1)))*(V21/10000)^2+(INDEX(temp_liq,(MATCH(AE21,Pression_liq,-1)+1),MATCH("coeff4",coeff_liq,0))+(AE21-INDEX(Pression_liq,MATCH(AE21,Pression_liq,-1)+1))*(INDEX(temp_liq,(MATCH(AE21,Pression_liq,-1)),MATCH("coeff4",coeff_liq,0))-INDEX(temp_liq,(MATCH(AE21,Pression_liq,-1)+1),MATCH("coeff4",coeff_liq,0)))/(INDEX(Pression_liq,MATCH(AE21,Pression_liq,-1))-INDEX(Pression_liq,MATCH(AE21,Pression_liq,-1)+1)))*(V21/10000)+(INDEX(temp_liq,(MATCH(AE21,Pression_liq,-1)+1),MATCH("coeff5",coeff_liq,0))+(AE21-INDEX(Pression_liq,MATCH(AE21,Pression_liq,-1)+1))*(INDEX(temp_liq,(MATCH(AE21,Pression_liq,-1)),MATCH("coeff5",coeff_liq,0))-INDEX(temp_liq,(MATCH(AE21,Pression_liq,-1)+1),MATCH("coeff5",coeff_liq,0)))/(INDEX(Pression_liq,MATCH(AE21,Pression_liq,-1))-INDEX(Pression_liq,MATCH(AE21,Pression_liq,-1)+1))) -> 341.9978822 | M21: =(INDEX(temp_vap,(MATCH(AE21,Pression_vap,-1)+1),MATCH("coeff1",coeff_vap,0))+(AE21-INDEX(Pression_vap,MATCH(AE21,Pression_vap,-1)+1))*(INDEX(temp_vap,(MATCH(AE21,Pression_vap,-1)),MATCH("coeff1",coeff_vap,0))-INDEX(temp_vap,(MATCH(AE21,Pression_vap,-1)+1),MATCH("coeff1",coeff_vap,0)))/(INDEX(Pression_vap,MATCH(AE21,Pression_vap,-1))-INDEX(Pression_vap,MATCH(AE21,Pression_vap,-1)+1)))*(W21/10000)^4+(INDEX(temp_vap,(MATCH(AE21,Pression_vap,-1)+1),MATCH("coeff2",coeff_vap,0))+(AE21-INDEX(Pression_vap,MATCH(AE21,Pression_vap,-1)+1))*(INDEX(temp_vap,(MATCH(AE21,Pression_vap,-1)),MATCH("coeff2",coeff_vap,0))-INDEX(temp_vap,(MATCH(AE21,Pression_vap,-1)+1),MATCH("coeff2",coeff_vap,0)))/(INDEX(Pression_vap,MATCH(AE21,Pression_vap,-1))-INDEX(Pression_vap,MATCH(AE21,Pression_vap,-1)+1)))*(W21/10000)^3+(INDEX(temp_vap,(MATCH(AE21,Pression_vap,-1)+1),MATCH("coeff3",coeff_vap,0))+(AE21-INDEX(Pression_vap,MATCH(AE21,Pression_vap,-1)+1))*(INDEX(temp_vap,(MATCH(AE21,Pression_vap,-1)),MATCH("coeff3",coeff_vap,0))-INDEX(temp_vap,(MATCH(AE21,Pression_vap,-1)+1),MATCH("coeff3",coeff_vap,0)))/(INDEX(Pression_vap,MATCH(AE21,Pression_vap,-1))-INDEX(Pression_vap,MATCH(AE21,Pression_vap,-1)+1)))*(W21/10000)^2+(INDEX(temp_vap,(MATCH(AE21,Pression_vap,-1)+1),MATCH("coeff4",coeff_vap,0))+(AE21-INDEX(Pression_vap,MATCH(AE21,Pression_vap,-1)+1))*(INDEX(temp_vap,(MATCH(AE21,Pression_vap,-1)),MATCH("coeff4",coeff_vap,0))-INDEX(temp_vap,(MATCH(AE21,Pression_vap,-1)+1),MATCH("coeff4",coeff_vap,0)))/(INDEX(Pression_vap,MATCH(AE21,Pression_vap,-1))-INDEX(Pression_vap,MATCH(AE21,Pression_vap,-1)+1)))*(W21/10000)+(INDEX(temp_vap,(MATCH(AE21,Pression_vap,-1)+1),MATCH("coeff5",coeff_vap,0))+(AE21-INDEX(Pression_vap,MATCH(AE21,Pression_vap,-1)+1))*(INDEX(temp_vap,(MATCH(AE21,Pression_vap,-1)),MATCH("coeff5",coeff_vap,0))-INDEX(temp_vap,(MATCH(AE21,Pression_vap,-1)+1),MATCH("coeff5",coeff_vap,0)))/(INDEX(Pression_vap,MATCH(AE21,Pression_vap,-1))-INDEX(Pression_vap,MATCH(AE21,Pression_vap,-1)+1))) -> 345.9765967 | N21: =IF(AND(B21=0,C21=0,ABS(L21-M21)<0.02),0,M21-L21) -> 3.978714502 | O21: =2500*4.91*N21*(A21-A20)/1000 -> 12.20968013 | P21: =(V21*H21+O21)/H21 -> 1580.420262 | Q21: =(W21*I21-O21)/I21 -> 2456.872533 | R21: =H21*V21+I21*W21 -> 39729865.23 | S21: =H21+I21 -> 23755.4375 | T21: =$T$3 -> 607.456 | U21: =I21/E21 -> 99.7791 | V21: =((P20*H20+J21*AG20-K21*(AH20-AG20))/(H20+J21))+Z21 -> 1580.419688 | W21: =((Q20*I20+K21*AH20+J21*(AH20-AG20))/(I20+K21)) -> 2456.877428 | X21: =IF(AND($AJ$3=1,AA20<=153.3),1580,0) -> 0 | Y21: =IF(AND($AJ$3=1,AND(AA20>=154,AA20<=156)),(-290*AA20+45240),IF(AND($AJ$3=1,AA3<=154),580,0)) -> 0 | Z21: =((X21+Y21)*(A21-A20))/H21 -> 0 | AA21: =IF(AND($AO$3=1,AE20<156.7),((1/3600)*2),0) -> 0.0005555555556 | AB21: =IF(AND($AO$3=1,AND(AE20>156.7,AE20<160.2)),(((35.14*AE20-5550.88)/3600)*2),0) -> 0 | AC21: =IF(AND($AO$3=1,AE20>=160.2),((125/3600)*2),0) -> 0 | AD21: =(A21-A20)*(AA21+AB21+AC21)*(AG21-1269.44) -> 0.04642812417 | AE21: =IF(C21=1,INDEX(Pression,MATCH(INDEX(OFFSET(INDEX(uV,MATCH(W21,uV,1)),1,0):OFFSET(INDEX(uV,MATCH(W21,uV,1)),71,0),MATCH(U21,OFFSET(INDEX(uV,MATCH(W21,uV,1)),1,0):OFFSET(INDEX(uV,MATCH(W21,uV,1)),71,0),-1)+1),INDEX(densite_vap,,MATCH(W21,uV,1)),-1))+(U21-INDEX(OFFSET(INDEX(uV,MATCH(W21,uV,1)),1,0):OFFSET(INDEX(uV,MATCH(W21,uV,1)),71,0),MATCH(U21,OFFSET(INDEX(uV,MATCH(W21,uV,1)),1,0):OFFSET(INDEX(uV,MATCH(W21,uV,1)),71,0),-1)+1)+(W21-INDEX(uV,MATCH(W21,uV,1)))*(INDEX(OFFSET(INDEX(uV,MATCH(W21,uV,1)+1),1,0):OFFSET(INDEX(uV,MATCH(W21,uV,1)+1),71,0),MATCH(U21,OFFSET(INDEX(uV,MATCH(W21,uV,1)+1),1,0):OFFSET(INDEX(uV,MATCH(W21,uV,1)+1),71,0),-1)+1)-INDEX(OFFSET(INDEX(uV,MATCH(W21,uV,1)),1,0):OFFSET(INDEX(uV,MATCH(W21,uV,1)),71,0),MATCH(U21,OFFSET(INDEX(uV,MATCH(W21,uV,1)),1,0):OFFSET(INDEX(uV,MATCH(W21,uV,1)),71,0),-1)+1))/(INDEX(uV,MATCH(W21,uV,1)+1)-INDEX(uV,MATCH(W21,uV,1))))*(INDEX(Pression,MATCH(INDEX(OFFSET(INDEX(uV,MATCH(W21,uV,1)),1,0):OFFSET(INDEX(uV,MATCH(W21,uV,1)),71,0),MATCH(U21,OFFSET(INDEX(uV,MATCH(W21,uV,1)),1,0):OFFSET(INDEX(uV,MATCH(W21,uV,1)),71,0),-1)),INDEX(densite_vap,,MATCH(W21,uV,1)),-1),1)-INDEX(Pression,MATCH(INDEX(OFFSET(INDEX(uV,MATCH(W21,uV,1)),1,0):OFFSET(INDEX(uV,MATCH(W21,uV,1)),71,0),MATCH(U21,OFFSET(INDEX(uV,MATCH(W21,uV,1)),1,0):OFFSET(INDEX(uV,MATCH(W21,uV,1)),71,0),-1)+1),INDEX(densite_vap,,MATCH(W21,uV,1)),-1)))/(INDEX(OFFSET(INDEX(uV,MATCH(W21,uV,1)),1,0):OFFSET(INDEX(uV,MATCH(W21,uV,1)),71,0),MATCH(U21,OFFSET(INDEX(uV,MATCH(W21,uV,1)),1,0):OFFSET(INDEX(uV,MATCH(W21,uV,1)),71,0),-1))+(W21-INDEX(uV,MATCH(W21,uV,1)))*(INDEX(OFFSET(INDEX(uV,MATCH(W21,uV,1)+1),1,0):OFFSET(INDEX(uV,MATCH(W21,uV,1)+1),71,0),MATCH(U21,OFFSET(INDEX(uV,MATCH(W21,uV,1)+1),1,0):OFFSET(INDEX(uV,MATCH(W21,uV,1)+1),71,0),-1))-INDEX(OFFSET(INDEX(uV,MATCH(W21,uV,1)),1,0):OFFSET(INDEX(uV,MATCH(W21,uV,1)),71,0),MATCH(U21,OFFSET(INDEX(uV,MATCH(W21,uV,1)),1,0):OFFSET(INDEX(uV,MATCH(W21,uV,1)),71,0),-1)))/(INDEX(uV,MATCH(W21,uV,1)+1)-INDEX(uV,MATCH(W21,uV,1)))-INDEX(OFFSET(INDEX(uV,MATCH(W21,uV,1)),1,0):OFFSET(INDEX(uV,MATCH(W21,uV,1)),71,0),MATCH(U21,OFFSET(INDEX(uV,MATCH(W21,uV,1)),1,0):OFFSET(INDEX(uV,MATCH(W21,uV,1)),71,0),-1)+1)+(W21-INDEX(uV,MATCH(W21,uV,1)))*(INDEX(OFFSET(INDEX(uV,MATCH(W21,uV,1)+1),1,0):OFFSET(INDEX(uV,MATCH(W21,uV,1)+1),71,0),MATCH(U21,OFFSET(INDEX(uV,MATCH(W21,uV,1)+1),1,0):OFFSET(INDEX(uV,MATCH(W21,uV,1)+1),71,0),-1)+1)-INDEX(OFFSET(INDEX(uV,MATCH(W21,uV,1)),1,0):OFFSET(INDEX(uV,MATCH(W21,uV,1)),71,0),MATCH(U21,OFFSET(INDEX(uV,MATCH(W21,uV,1)),1,0):OFFSET(INDEX(uV,MATCH(W21,uV,1)),71,0),-1)+1))/(INDEX(uV,MATCH(W21,uV,1)+1)-INDEX(uV,MATCH(W21,uV,1)))),IF(B21=1,AE20-0.01,AE20)) -> 154.9785574 | AF21: =Poly_Vapeur!$P$14*Resultats!AE21^4+Poly_Vapeur!$Q$14*Resultats!AE21^3+Poly_Vapeur!$R$14*Resultats!AE21^2+Poly_Vapeur!$S$14*Resultats!AE21+Poly_Vapeur!$T$14 -> 344.7782227 | AG21: =Poly_Liquide!$Q$6*Resultats!AE21^4+Poly_Liquide!$R$6*Resultats!AE21^3+Poly_Liquide!$S$6*Resultats!AE21^2+Poly_Liquide!$T$6*Resultats!AE21+Poly_Liquide!$U$6 -> 1603.722494 | AH21: =Poly_Vapeur!$P$6*Resultats!AE21^4+Poly_Vapeur!$Q$6*Resultats!AE21^3+Poly_Vapeur!$R$6*Resultats!AE21^2+Poly_Vapeur!$S$6*Resultats!AE21+Poly_Vapeur!$T$6 -> 2444.10516 | AI21: =Poly_Liquide!Q$10*Resultats!AE21^4+Poly_Liquide!R$10*Resultats!AE21^3+Poly_Liquide!S$10*Resultats!AE21^2+Poly_Liquide!T$10*Resultats!AE21+Poly_Liquide!U$10 -> 594.4188369 | AJ21: =Poly_Vapeur!P$10*Resultats!AE21^4+Poly_Vapeur!Q$10*Resultats!AE21^3+Poly_Vapeur!R$10*Resultats!AE21^2+Poly_Vapeur!S$10*Resultats!AE21+Poly_Vapeur!T$10 -> 101.9069764 | AK21: =IF(W21<AH20,1,0) -> 0 | AL21: =IF(V21>AG20,1,0) -> 0 | AM21: 4.25 | AQ21: 4.5
A22: =IF(B22=1,A21,A21+0.25) -> 4.75 | B22: =IF(AND(G22<0.0001,F21>0.09),1,0) -> 0 | C22: =IF(OR(AND(G22=0,F21<0),AND(G22>0,F21>-0.2)),1,0) -> 1 | D22: 35 | E22: =60-D22 -> 25 | F22: =AJ22-U22 -> 2.126575807 | G22: =W22-AH21 -> 12.76737357 | H22: =H21+J22-K22 -> 21260.96 | I22: =I21+K22-J22 -> 2494.4775 | J22: =IF((Q21-AH21)<0,-(AK21*I21*(Q21-AH21))/(AH21-AG21),0) -> 0 | K22: =IF((P21-AG21)>0,(AL21*H21*(P21-AG21))/(AH21-AG21),0) -> 0 | L22: =(INDEX(temp_liq,(MATCH(AE22,Pression_liq,-1)+1),MATCH("coeff1",coeff_liq,0))+(AE22-INDEX(Pression_liq,MATCH(AE22,Pression_liq,-1)+1))*(INDEX(temp_liq,(MATCH(AE22,Pression_liq,-1)),MATCH("coeff1",coeff_liq,0))-INDEX(temp_liq,(MATCH(AE22,Pression_liq,-1)+1),MATCH("coeff1",coeff_liq,0)))/(INDEX(Pression_liq,MATCH(AE22,Pression_liq,-1))-INDEX(Pression_liq,MATCH(AE22,Pression_liq,-1)+1)))*(V22/10000)^4+(INDEX(temp_liq,(MATCH(AE22,Pression_liq,-1)+1),MATCH("coeff2",coeff_liq,0))+(AE22-INDEX(Pression_liq,MATCH(AE22,Pression_liq,-1)+1))*(INDEX(temp_liq,(MATCH(AE22,Pression_liq,-1)),MATCH("coeff2",coeff_liq,0))-INDEX(temp_liq,(MATCH(AE22,Pression_liq,-1)+1),MATCH("coeff2",coeff_liq,0)))/(INDEX(Pression_liq,MATCH(AE22,Pression_liq,-1))-INDEX(Pression_liq,MATCH(AE22,Pression_liq,-1)+1)))*(V22/10000)^3+(INDEX(temp_liq,(MATCH(AE22,Pression_liq,-1)+1),MATCH("coeff3",coeff_liq,0))+(AE22-INDEX(Pression_liq,MATCH(AE22,Pression_liq,-1)+1))*(INDEX(temp_liq,(MATCH(AE22,Pression_liq,-1)),MATCH("coeff3",coeff_liq,0))-INDEX(temp_liq,(MATCH(AE22,Pression_liq,-1)+1),MATCH("coeff3",coeff_liq,0)))/(INDEX(Pression_liq,MATCH(AE22,Pression_liq,-1))-INDEX(Pression_liq,MATCH(AE22,Pression_liq,-1)+1)))*(V22/10000)^2+(INDEX(temp_liq,(MATCH(AE22,Pression_liq,-1)+1),MATCH("coeff4",coeff_liq,0))+(AE22-INDEX(Pression_liq,MATCH(AE22,Pression_liq,-1)+1))*(INDEX(temp_liq,(MATCH(AE22,Pression_liq,-1)),MATCH("coeff4",coeff_liq,0))-INDEX(temp_liq,(MATCH(AE22,Pression_liq,-1)+1),MATCH("coeff4",coeff_liq,0)))/(INDEX(Pression_liq,MATCH(AE22,Pression_liq,-1))-INDEX(Pression_liq,MATCH(AE22,Pression_liq,-1)+1)))*(V22/10000)+(INDEX(temp_liq,(MATCH(AE22,Pression_liq,-1)+1),MATCH("coeff5",coeff_liq,0))+(AE22-INDEX(Pression_liq,MATCH(AE22,Pression_liq,-1)+1))*(INDEX(temp_liq,(MATCH(AE22,Pression_liq,-1)),MATCH("coeff5",coeff_liq,0))-INDEX(temp_liq,(MATCH(AE22,Pression_liq,-1)+1),MATCH("coeff5",coeff_liq,0)))/(INDEX(Pression_liq,MATCH(AE22,Pression_liq,-1))-INDEX(Pression_liq,MATCH(AE22,Pression_liq,-1)+1))) -> 341.9978464 | M22: =(INDEX(temp_vap,(MATCH(AE22,Pression_vap,-1)+1),MATCH("coeff1",coeff_vap,0))+(AE22-INDEX(Pression_vap,MATCH(AE22,Pression_vap,-1)+1))*(INDEX(temp_vap,(MATCH(AE22,Pression_vap,-1)),MATCH("coeff1",coeff_vap,0))-INDEX(temp_vap,(MATCH(AE22,Pression_vap,-1)+1),MATCH("coeff1",coeff_vap,0)))/(INDEX(Pression_vap,MATCH(AE22,Pression_vap,-1))-INDEX(Pression_vap,MATCH(AE22,Pression_vap,-1)+1)))*(W22/10000)^4+(INDEX(temp_vap,(MATCH(AE22,Pression_vap,-1)+1),MATCH("coeff2",coeff_vap,0))+(AE22-INDEX(Pression_vap,MATCH(AE22,Pression_vap,-1)+1))*(INDEX(temp_vap,(MATCH(AE22,Pression_vap,-1)),MATCH("coeff2",coeff_vap,0))-INDEX(temp_vap,(MATCH(AE22,Pression_vap,-1)+1),MATCH("coeff2",coeff_vap,0)))/(INDEX(Pression_vap,MATCH(AE22,Pression_vap,-1))-INDEX(Pression_vap,MATCH(AE22,Pression_vap,-1)+1)))*(W22/10000)^3+(INDEX(temp_vap,(MATCH(AE22,Pression_vap,-1)+1),MATCH("coeff3",coeff_vap,0))+(AE22-INDEX(Pression_vap,MATCH(AE22,Pression_vap,-1)+1))*(INDEX(temp_vap,(MATCH(AE22,Pression_vap,-1)),MATCH("coeff3",coeff_vap,0))-INDEX(temp_vap,(MATCH(AE22,Pression_vap,-1)+1),MATCH("coeff3",coeff_vap,0)))/(INDEX(Pression_vap,MATCH(AE22,Pression_vap,-1))-INDEX(Pression_vap,MATCH(AE22,Pression_vap,-1)+1)))*(W22/10000)^2+(INDEX(temp_vap,(MATCH(AE22,Pression_vap,-1)+1),MATCH("coeff4",coeff_vap,0))+(AE22-INDEX(Pression_vap,MATCH(AE22,Pression_vap,-1)+1))*(INDEX(temp_vap,(MATCH(AE22,Pression_vap,-1)),MATCH("coeff4",coeff_vap,0))-INDEX(temp_vap,(MATCH(AE22,Pression_vap,-1)+1),MATCH("coeff4",coeff_vap,0)))/(INDEX(Pression_vap,MATCH(AE22,Pression_vap,-1))-INDEX(Pression_vap,MATCH(AE22,Pression_vap,-1)+1)))*(W22/10000)+(INDEX(temp_vap,(MATCH(AE22,Pression_vap,-1)+1),MATCH("coeff5",coeff_vap,0))+(AE22-INDEX(Pression_vap,MATCH(AE22,Pression_vap,-1)+1))*(INDEX(temp_vap,(MATCH(AE22,Pression_vap,-1)),MATCH("coeff5",coeff_vap,0))-INDEX(temp_vap,(MATCH(AE22,Pression_vap,-1)+1),MATCH("coeff5",coeff_vap,0)))/(INDEX(Pression_vap,MATCH(AE22,Pression_vap,-1))-INDEX(Pression_vap,MATCH(AE22,Pression_vap,-1)+1))) -> 345.975221 | N22: =IF(AND(B22=0,C22=0,ABS(L22-M22)<0.02),0,M22-L22) -> 3.977374646 | O22: =2500*4.91*N22*(A22-A21)/1000 -> 12.20556844 | P22: =(V22*H22+O22)/H22 -> 1580.420836 | Q22: =(W22*I22-O22)/I22 -> 2456.86764 | R22: =H22*V22+I22*W22 -> 39729865.23 | S22: =H22+I22 -> 23755.4375 | T22: =$T$3 -> 607.456 | U22: =I22/E22 -> 99.7791 | V22: =((P21*H21+J22*AG21-K22*(AH21-AG21))/(H21+J22))+Z22 -> 1580.420262 | W22: =((Q21*I21+K22*AH21+J22*(AH21-AG21))/(I21+K22)) -> 2456.872533 | X22: =IF(AND($AJ$3=1,AA21<=153.3),1580,0) -> 0 | Y22: =IF(AND($AJ$3=1,AND(AA21>=154,AA21<=156)),(-290*AA21+45240),IF(AND($AJ$3=1,AA3<=154),580,0)) -> 0 | Z22: =((X22+Y22)*(A22-A21))/H22 -> 0 | AA22: =IF(AND($AO$3=1,AE21<156.7),((1/3600)*2),0) -> 0.0005555555556 | AB22: =IF(AND($AO$3=1,AND(AE21>156.7,AE21<160.2)),(((35.14*AE21-5550.88)/3600)*2),0) -> 0 | AC22: =IF(AND($AO$3=1,AE21>=160.2),((125/3600)*2),0) -> 0 | AD22: =(A22-A21)*(AA22+AB22+AC22)*(AG22-1269.44) -> 0.04642749909 | AE22: =IF(C22=1,INDEX(Pression,MATCH(INDEX(OFFSET(INDEX(uV,MATCH(W22,uV,1)),1,0):OFFSET(INDEX(uV,MATCH(W22,uV,1)),71,0),MATCH(U22,OFFSET(INDEX(uV,MATCH(W22,uV,1)),1,0):OFFSET(INDEX(uV,MATCH(W22,uV,1)),71,0),-1)+1),INDEX(densite_vap,,MATCH(W22,uV,1)),-1))+(U22-INDEX(OFFSET(INDEX(uV,MATCH(W22,uV,1)),1,0):OFFSET(INDEX(uV,MATCH(W22,uV,1)),71,0),MATCH(U22,OFFSET(INDEX(uV,MATCH(W22,uV,1)),1,0):OFFSET(INDEX(uV,MATCH(W22,uV,1)),71,0),-1)+1)+(W22-INDEX(uV,MATCH(W22,uV,1)))*(INDEX(OFFSET(INDEX(uV,MATCH(W22,uV,1)+1),1,0):OFFSET(INDEX(uV,MATCH(W22,uV,1)+1),71,0),MATCH(U22,OFFSET(INDEX(uV,MATCH(W22,uV,1)+1),1,0):OFFSET(INDEX(uV,MATCH(W22,uV,1)+1),71,0),-1)+1)-INDEX(OFFSET(INDEX(uV,MATCH(W22,uV,1)),1,0):OFFSET(INDEX(uV,MATCH(W22,uV,1)),71,0),MATCH(U22,OFFSET(INDEX(uV,MATCH(W22,uV,1)),1,0):OFFSET(INDEX(uV,MATCH(W22,uV,1)),71,0),-1)+1))/(INDEX(uV,MATCH(W22,uV,1)+1)-INDEX(uV,MATCH(W22,uV,1))))*(INDEX(Pression,MATCH(INDEX(OFFSET(INDEX(uV,MATCH(W22,uV,1)),1,0):OFFSET(INDEX(uV,MATCH(W22,uV,1)),71,0),MATCH(U22,OFFSET(INDEX(uV,MATCH(W22,uV,1)),1,0):OFFSET(INDEX(uV,MATCH(W22,uV,1)),71,0),-1)),INDEX(densite_vap,,MATCH(W22,uV,1)),-1),1)-INDEX(Pression,MATCH(INDEX(OFFSET(INDEX(uV,MATCH(W22,uV,1)),1,0):OFFSET(INDEX(uV,MATCH(W22,uV,1)),71,0),MATCH(U22,OFFSET(INDEX(uV,MATCH(W22,uV,1)),1,0):OFFSET(INDEX(uV,MATCH(W22,uV,1)),71,0),-1)+1),INDEX(densite_vap,,MATCH(W22,uV,1)),-1)))/(INDEX(OFFSET(INDEX(uV,MATCH(W22,uV,1)),1,0):OFFSET(INDEX(uV,MATCH(W22,uV,1)),71,0),MATCH(U22,OFFSET(INDEX(uV,MATCH(W22,uV,1)),1,0):OFFSET(INDEX(uV,MATCH(W22,uV,1)),71,0),-1))+(W22-INDEX(uV,MATCH(W22,uV,1)))*(INDEX(OFFSET(INDEX(uV,MATCH(W22,uV,1)+1),1,0):OFFSET(INDEX(uV,MATCH(W22,uV,1)+1),71,0),MATCH(U22,OFFSET(INDEX(uV,MATCH(W22,uV,1)+1),1,0):OFFSET(INDEX(uV,MATCH(W22,uV,1)+1),71,0),-1))-INDEX(OFFSET(INDEX(uV,MATCH(W22,uV,1)),1,0):OFFSET(INDEX(uV,MATCH(W22,uV,1)),71,0),MATCH(U22,OFFSET(INDEX(uV,MATCH(W22,uV,1)),1,0):OFFSET(INDEX(uV,MATCH(W22,uV,1)),71,0),-1)))/(INDEX(uV,MATCH(W22,uV,1)+1)-INDEX(uV,MATCH(W22,uV,1)))-INDEX(OFFSET(INDEX(uV,MATCH(W22,uV,1)),1,0):OFFSET(INDEX(uV,MATCH(W22,uV,1)),71,0),MATCH(U22,OFFSET(INDEX(uV,MATCH(W22,uV,1)),1,0):OFFSET(INDEX(uV,MATCH(W22,uV,1)),71,0),-1)+1)+(W22-INDEX(uV,MATCH(W22,uV,1)))*(INDEX(OFFSET(INDEX(uV,MATCH(W22,uV,1)+1),1,0):OFFSET(INDEX(uV,MATCH(W22,uV,1)+1),71,0),MATCH(U22,OFFSET(INDEX(uV,MATCH(W22,uV,1)+1),1,0):OFFSET(INDEX(uV,MATCH(W22,uV,1)+1),71,0),-1)+1)-INDEX(OFFSET(INDEX(uV,MATCH(W22,uV,1)),1,0):OFFSET(INDEX(uV,MATCH(W22,uV,1)),71,0),MATCH(U22,OFFSET(INDEX(uV,MATCH(W22,uV,1)),1,0):OFFSET(INDEX(uV,MATCH(W22,uV,1)),71,0),-1)+1))/(INDEX(uV,MATCH(W22,uV,1)+1)-INDEX(uV,MATCH(W22,uV,1)))),IF(B22=1,AE21-0.01,AE21)) -> 154.9773401 | AF22: =Poly_Vapeur!$P$14*Resultats!AE22^4+Poly_Vapeur!$Q$14*Resultats!AE22^3+Poly_Vapeur!$R$14*Resultats!AE22^2+Poly_Vapeur!$S$14*Resultats!AE22+Poly_Vapeur!$T$14 -> 344.7775898 | AG22: =Poly_Liquide!$Q$6*Resultats!AE22^4+Poly_Liquide!$R$6*Resultats!AE22^3+Poly_Liquide!$S$6*Resultats!AE22^2+Poly_Liquide!$T$6*Resultats!AE22+Poly_Liquide!$U$6 -> 1603.717993 | AH22: =Poly_Vapeur!$P$6*Resultats!AE22^4+Poly_Vapeur!$Q$6*Resultats!AE22^3+Poly_Vapeur!$R$6*Resultats!AE22^2+Poly_Vapeur!$S$6*Resultats!AE22+Poly_Vapeur!$T$6 -> 2444.108051 | AI22: =Poly_Liquide!Q$10*Resultats!AE22^4+Poly_Liquide!R$10*Resultats!AE22^3+Poly_Liquide!S$10*Resultats!AE22^2+Poly_Liquide!T$10*Resultats!AE22+Poly_Liquide!U$10 -> 594.4210904 | AJ22: =Poly_Vapeur!P$10*Resultats!AE22^4+Poly_Vapeur!Q$10*Resultats!AE22^3+Poly_Vapeur!R$10*Resultats!AE22^2+Poly_Vapeur!S$10*Resultats!AE22+Poly_Vapeur!T$10 -> 101.9056758 | AK22: =IF(W22<AH21,1,0) -> 0 | AL22: =IF(V22>AG21,1,0) -> 0 | AM22: 4.5 | AQ22: 4.75
A23: =IF(B23=1,A22,A22+0.25) -> 5 | B23: =IF(AND(G23<0.0001,F22>0.09),1,0) -> 0 | C23: =IF(OR(AND(G23=0,F22<0),AND(G23>0,F22>-0.2)),1,0) -> 1 | D23: 35 | E23: =60-D23 -> 25 | F23: =AJ23-U23 -> 2.125289467 | G23: =W23-AH22 -> 12.75958968 | H23: =H22+J23-K23 -> 21260.96 | I23: =I22+K23-J23 -> 2494.4775 | J23: =IF((Q22-AH22)<0,-(AK22*I22*(Q22-AH22))/(AH22-AG22),0) -> 0 | K23: =IF((P22-AG22)>0,(AL22*H22*(P22-AG22))/(AH22-AG22),0) -> 0 | L23: =(INDEX(temp_liq,(MATCH(AE23,Pression_liq,-1)+1),MATCH("coeff1",coeff_liq,0))+(AE23-INDEX(Pression_liq,MATCH(AE23,Pression_liq,-1)+1))*(INDEX(temp_liq,(MATCH(AE23,Pression_liq,-1)),MATCH("coeff1",coeff_liq,0))-INDEX(temp_liq,(MATCH(AE23,Pression_liq,-1)+1),MATCH("coeff1",coeff_liq,0)))/(INDEX(Pression_liq,MATCH(AE23,Pression_liq,-1))-INDEX(Pression_liq,MATCH(AE23,Pression_liq,-1)+1)))*(V23/10000)^4+(INDEX(temp_liq,(MATCH(AE23,Pression_liq,-1)+1),MATCH("coeff2",coeff_liq,0))+(AE23-INDEX(Pression_liq,MATCH(AE23,Pression_liq,-1)+1))*(INDEX(temp_liq,(MATCH(AE23,Pression_liq,-1)),MATCH("coeff2",coeff_liq,0))-INDEX(temp_liq,(MATCH(AE23,Pression_liq,-1)+1),MATCH("coeff2",coeff_liq,0)))/(INDEX(Pression_liq,MATCH(AE23,Pression_liq,-1))-INDEX(Pression_liq,MATCH(AE23,Pression_liq,-1)+1)))*(V23/10000)^3+(INDEX(temp_liq,(MATCH(AE23,Pression_liq,-1)+1),MATCH("coeff3",coeff_liq,0))+(AE23-INDEX(Pression_liq,MATCH(AE23,Pression_liq,-1)+1))*(INDEX(temp_liq,(MATCH(AE23,Pression_liq,-1)),MATCH("coeff3",coeff_liq,0))-INDEX(temp_liq,(MATCH(AE23,Pression_liq,-1)+1),MATCH("coeff3",coeff_liq,0)))/(INDEX(Pression_liq,MATCH(AE23,Pression_liq,-1))-INDEX(Pression_liq,MATCH(AE23,Pression_liq,-1)+1)))*(V23/10000)^2+(INDEX(temp_liq,(MATCH(AE23,Pression_liq,-1)+1),MATCH("coeff4",coeff_liq,0))+(AE23-INDEX(Pression_liq,MATCH(AE23,Pression_liq,-1)+1))*(INDEX(temp_liq,(MATCH(AE23,Pression_liq,-1)),MATCH("coeff4",coeff_liq,0))-INDEX(temp_liq,(MATCH(AE23,Pression_liq,-1)+1),MATCH("coeff4",coeff_liq,0)))/(INDEX(Pression_liq,MATCH(AE23,Pression_liq,-1))-INDEX(Pression_liq,MATCH(AE23,Pression_liq,-1)+1)))*(V23/10000)+(INDEX(temp_liq,(MATCH(AE23,Pression_liq,-1)+1),MATCH("coeff5",coeff_liq,0))+(AE23-INDEX(Pression_liq,MATCH(AE23,Pression_liq,-1)+1))*(INDEX(temp_liq,(MATCH(AE23,Pression_liq,-1)),MATCH("coeff5",coeff_liq,0))-INDEX(temp_liq,(MATCH(AE23,Pression_liq,-1)+1),MATCH("coeff5",coeff_liq,0)))/(INDEX(Pression_liq,MATCH(AE23,Pression_liq,-1))-INDEX(Pression_liq,MATCH(AE23,Pression_liq,-1)+1))) -> 341.9978117 | M23: =(INDEX(temp_vap,(MATCH(AE23,Pression_vap,-1)+1),MATCH("coeff1",coeff_vap,0))+(AE23-INDEX(Pression_vap,MATCH(AE23,Pression_vap,-1)+1))*(INDEX(temp_vap,(MATCH(AE23,Pression_vap,-1)),MATCH("coeff1",coeff_vap,0))-INDEX(temp_vap,(MATCH(AE23,Pression_vap,-1)+1),MATCH("coeff1",coeff_vap,0)))/(INDEX(Pression_vap,MATCH(AE23,Pression_vap,-1))-INDEX(Pression_vap,MATCH(AE23,Pression_vap,-1)+1)))*(W23/10000)^4+(INDEX(temp_vap,(MATCH(AE23,Pression_vap,-1)+1),MATCH("coeff2",coeff_vap,0))+(AE23-INDEX(Pression_vap,MATCH(AE23,Pression_vap,-1)+1))*(INDEX(temp_vap,(MATCH(AE23,Pression_vap,-1)),MATCH("coeff2",coeff_vap,0))-INDEX(temp_vap,(MATCH(AE23,Pression_vap,-1)+1),MATCH("coeff2",coeff_vap,0)))/(INDEX(Pression_vap,MATCH(AE23,Pression_vap,-1))-INDEX(Pression_vap,MATCH(AE23,Pression_vap,-1)+1)))*(W23/10000)^3+(INDEX(temp_vap,(MATCH(AE23,Pression_vap,-1)+1),MATCH("coeff3",coeff_vap,0))+(AE23-INDEX(Pression_vap,MATCH(AE23,Pression_vap,-1)+1))*(INDEX(temp_vap,(MATCH(AE23,Pression_vap,-1)),MATCH("coeff3",coeff_vap,0))-INDEX(temp_vap,(MATCH(AE23,Pression_vap,-1)+1),MATCH("coeff3",coeff_vap,0)))/(INDEX(Pression_vap,MATCH(AE23,Pression_vap,-1))-INDEX(Pression_vap,MATCH(AE23,Pression_vap,-1)+1)))*(W23/10000)^2+(INDEX(temp_vap,(MATCH(AE23,Pression_vap,-1)+1),MATCH("coeff4",coeff_vap,0))+(AE23-INDEX(Pression_vap,MATCH(AE23,Pression_vap,-1)+1))*(INDEX(temp_vap,(MATCH(AE23,Pression_vap,-1)),MATCH("coeff4",coeff_vap,0))-INDEX(temp_vap,(MATCH(AE23,Pression_vap,-1)+1),MATCH("coeff4",coeff_vap,0)))/(INDEX(Pression_vap,MATCH(AE23,Pression_vap,-1))-INDEX(Pression_vap,MATCH(AE23,Pression_vap,-1)+1)))*(W23/10000)+(INDEX(temp_vap,(MATCH(AE23,Pression_vap,-1)+1),MATCH("coeff5",coeff_vap,0))+(AE23-INDEX(Pression_vap,MATCH(AE23,Pression_vap,-1)+1))*(INDEX(temp_vap,(MATCH(AE23,Pression_vap,-1)),MATCH("coeff5",coeff_vap,0))-INDEX(temp_vap,(MATCH(AE23,Pression_vap,-1)+1),MATCH("coeff5",coeff_vap,0)))/(INDEX(Pression_vap,MATCH(AE23,Pression_vap,-1))-INDEX(Pression_vap,MATCH(AE23,Pression_vap,-1)+1))) -> 345.9738553 | N23: =IF(AND(B23=0,C23=0,ABS(L23-M23)<0.02),0,M23-L23) -> 3.976043589 | O23: =2500*4.91*N23*(A23-A22)/1000 -> 12.20148376 | P23: =(V23*H23+O23)/H23 -> 1580.42141 | Q23: =(W23*I23-O23)/I23 -> 2456.862749 | R23: =H23*V23+I23*W23 -> 39729865.23 | S23: =H23+I23 -> 23755.4375 | T23: =$T$3 -> 607.456 | U23: =I23/E23 -> 99.7791 | V23: =((P22*H22+J23*AG22-K23*(AH22-AG22))/(H22+J23))+Z23 -> 1580.420836 | W23: =((Q22*I22+K23*AH22+J23*(AH22-AG22))/(I22+K23)) -> 2456.86764 | X23: =IF(AND($AJ$3=1,AA22<=153.3),1580,0) -> 0 | Y23: =IF(AND($AJ$3=1,AND(AA22>=154,AA22<=156)),(-290*AA22+45240),IF(AND($AJ$3=1,AA3<=154),580,0)) -> 0 | Z23: =((X23+Y23)*(A23-A22))/H23 -> 0 | AA23: =IF(AND($AO$3=1,AE22<156.7),((1/3600)*2),0) -> 0.0005555555556 | AB23: =IF(AND($AO$3=1,AND(AE22>156.7,AE22<160.2)),(((35.14*AE22-5550.88)/3600)*2),0) -> 0 | AC23: =IF(AND($AO$3=1,AE22>=160.2),((125/3600)*2),0) -> 0 | AD23: =(A23-A22)*(AA23+AB23+AC23)*(AG23-1269.44) -> 0.04642688082 | AE23: =IF(C23=1,INDEX(Pression,MATCH(INDEX(OFFSET(INDEX(uV,MATCH(W23,uV,1)),1,0):OFFSET(INDEX(uV,MATCH(W23,uV,1)),71,0),MATCH(U23,OFFSET(INDEX(uV,MATCH(W23,uV,1)),1,0):OFFSET(INDEX(uV,MATCH(W23,uV,1)),71,0),-1)+1),INDEX(densite_vap,,MATCH(W23,uV,1)),-1))+(U23-INDEX(OFFSET(INDEX(uV,MATCH(W23,uV,1)),1,0):OFFSET(INDEX(uV,MATCH(W23,uV,1)),71,0),MATCH(U23,OFFSET(INDEX(uV,MATCH(W23,uV,1)),1,0):OFFSET(INDEX(uV,MATCH(W23,uV,1)),71,0),-1)+1)+(W23-INDEX(uV,MATCH(W23,uV,1)))*(INDEX(OFFSET(INDEX(uV,MATCH(W23,uV,1)+1),1,0):OFFSET(INDEX(uV,MATCH(W23,uV,1)+1),71,0),MATCH(U23,OFFSET(INDEX(uV,MATCH(W23,uV,1)+1),1,0):OFFSET(INDEX(uV,MATCH(W23,uV,1)+1),71,0),-1)+1)-INDEX(OFFSET(INDEX(uV,MATCH(W23,uV,1)),1,0):OFFSET(INDEX(uV,MATCH(W23,uV,1)),71,0),MATCH(U23,OFFSET(INDEX(uV,MATCH(W23,uV,1)),1,0):OFFSET(INDEX(uV,MATCH(W23,uV,1)),71,0),-1)+1))/(INDEX(uV,MATCH(W23,uV,1)+1)-INDEX(uV,MATCH(W23,uV,1))))*(INDEX(Pression,MATCH(INDEX(OFFSET(INDEX(uV,MATCH(W23,uV,1)),1,0):OFFSET(INDEX(uV,MATCH(W23,uV,1)),71,0),MATCH(U23,OFFSET(INDEX(uV,MATCH(W23,uV,1)),1,0):OFFSET(INDEX(uV,MATCH(W23,uV,1)),71,0),-1)),INDEX(densite_vap,,MATCH(W23,uV,1)),-1),1)-INDEX(Pression,MATCH(INDEX(OFFSET(INDEX(uV,MATCH(W23,uV,1)),1,0):OFFSET(INDEX(uV,MATCH(W23,uV,1)),71,0),MATCH(U23,OFFSET(INDEX(uV,MATCH(W23,uV,1)),1,0):OFFSET(INDEX(uV,MATCH(W23,uV,1)),71,0),-1)+1),INDEX(densite_vap,,MATCH(W23,uV,1)),-1)))/(INDEX(OFFSET(INDEX(uV,MATCH(W23,uV,1)),1,0):OFFSET(INDEX(uV,MATCH(W23,uV,1)),71,0),MATCH(U23,OFFSET(INDEX(uV,MATCH(W23,uV,1)),1,0):OFFSET(INDEX(uV,MATCH(W23,uV,1)),71,0),-1))+(W23-INDEX(uV,MATCH(W23,uV,1)))*(INDEX(OFFSET(INDEX(uV,MATCH(W23,uV,1)+1),1,0):OFFSET(INDEX(uV,MATCH(W23,uV,1)+1),71,0),MATCH(U23,OFFSET(INDEX(uV,MATCH(W23,uV,1)+1),1,0):OFFSET(INDEX(uV,MATCH(W23,uV,1)+1),71,0),-1))-INDEX(OFFSET(INDEX(uV,MATCH(W23,uV,1)),1,0):OFFSET(INDEX(uV,MATCH(W23,uV,1)),71,0),MATCH(U23,OFFSET(INDEX(uV,MATCH(W23,uV,1)),1,0):OFFSET(INDEX(uV,MATCH(W23,uV,1)),71,0),-1)))/(INDEX(uV,MATCH(W23,uV,1)+1)-INDEX(uV,MATCH(W23,uV,1)))-INDEX(OFFSET(INDEX(uV,MATCH(W23,uV,1)),1,0):OFFSET(INDEX(uV,MATCH(W23,uV,1)),71,0),MATCH(U23,OFFSET(INDEX(uV,MATCH(W23,uV,1)),1,0):OFFSET(INDEX(uV,MATCH(W23,uV,1)),71,0),-1)+1)+(W23-INDEX(uV,MATCH(W23,uV,1)))*(INDEX(OFFSET(INDEX(uV,MATCH(W23,uV,1)+1),1,0):OFFSET(INDEX(uV,MATCH(W23,uV,1)+1),71,0),MATCH(U23,OFFSET(INDEX(uV,MATCH(W23,uV,1)+1),1,0):OFFSET(INDEX(uV,MATCH(W23,uV,1)+1),71,0),-1)+1)-INDEX(OFFSET(INDEX(uV,MATCH(W23,uV,1)),1,0):OFFSET(INDEX(uV,MATCH(W23,uV,1)),71,0),MATCH(U23,OFFSET(INDEX(uV,MATCH(W23,uV,1)),1,0):OFFSET(INDEX(uV,MATCH(W23,uV,1)),71,0),-1)+1))/(INDEX(uV,MATCH(W23,uV,1)+1)-INDEX(uV,MATCH(W23,uV,1)))),IF(B23=1,AE22-0.01,AE22)) -> 154.976136 | AF23: =Poly_Vapeur!$P$14*Resultats!AE23^4+Poly_Vapeur!$Q$14*Resultats!AE23^3+Poly_Vapeur!$R$14*Resultats!AE23^2+Poly_Vapeur!$S$14*Resultats!AE23+Poly_Vapeur!$T$14 -> 344.7769638 | AG23: =Poly_Liquide!$Q$6*Resultats!AE23^4+Poly_Liquide!$R$6*Resultats!AE23^3+Poly_Liquide!$S$6*Resultats!AE23^2+Poly_Liquide!$T$6*Resultats!AE23+Poly_Liquide!$U$6 -> 1603.713542 | AH23: =Poly_Vapeur!$P$6*Resultats!AE23^4+Poly_Vapeur!$Q$6*Resultats!AE23^3+Poly_Vapeur!$R$6*Resultats!AE23^2+Poly_Vapeur!$S$6*Resultats!AE23+Poly_Vapeur!$T$6 -> 2444.11091 | AI23: =Poly_Liquide!Q$10*Resultats!AE23^4+Poly_Liquide!R$10*Resultats!AE23^3+Poly_Liquide!S$10*Resultats!AE23^2+Poly_Liquide!T$10*Resultats!AE23+Poly_Liquide!U$10 -> 594.4233193 | AJ23: =Poly_Vapeur!P$10*Resultats!AE23^4+Poly_Vapeur!Q$10*Resultats!AE23^3+Poly_Vapeur!R$10*Resultats!AE23^2+Poly_Vapeur!S$10*Resultats!AE23+Poly_Vapeur!T$10 -> 101.9043895 | AK23: =IF(W23<AH22,1,0) -> 0 | AL23: =IF(V23>AG22,1,0) -> 0 | AM23: 4.75 | AQ23: 5
A24: =IF(B24=1,A23,A23+0.25) -> 5.25 | B24: =IF(AND(G24<0.0001,F23>0.09),1,0) -> 0 | C24: =IF(OR(AND(G24=0,F23<0),AND(G24>0,F23>-0.2)),1,0) -> 1 | D24: 35 | E24: =60-D24 -> 25 | F24: =AJ24-U24 -> 2.124017096 | G24: =W24-AH23 -> 12.751839 | H24: =H23+J24-K24 -> 21260.96 | I24: =I23+K24-J24 -> 2494.4775 | J24: =IF((Q23-AH23)<0,-(AK23*I23*(Q23-AH23))/(AH23-AG23),0) -> 0 | K24: =IF((P23-AG23)>0,(AL23*H23*(P23-AG23))/(AH23-AG23),0) -> 0 | L24: =(INDEX(temp_liq,(MATCH(AE24,Pression_liq,-1)+1),MATCH("coeff1",coeff_liq,0))+(AE24-INDEX(Pression_liq,MATCH(AE24,Pression_liq,-1)+1))*(INDEX(temp_liq,(MATCH(AE24,Pression_liq,-1)),MATCH("coeff1",coeff_liq,0))-INDEX(temp_liq,(MATCH(AE24,Pression_liq,-1)+1),MATCH("coeff1",coeff_liq,0)))/(INDEX(Pression_liq,MATCH(AE24,Pression_liq,-1))-INDEX(Pression_liq,MATCH(AE24,Pression_liq,-1)+1)))*(V24/10000)^4+(INDEX(temp_liq,(MATCH(AE24,Pression_liq,-1)+1),MATCH("coeff2",coeff_liq,0))+(AE24-INDEX(Pression_liq,MATCH(AE24,Pression_liq,-1)+1))*(INDEX(temp_liq,(MATCH(AE24,Pression_liq,-1)),MATCH("coeff2",coeff_liq,0))-INDEX(temp_liq,(MATCH(AE24,Pression_liq,-1)+1),MATCH("coeff2",coeff_liq,0)))/(INDEX(Pression_liq,MATCH(AE24,Pression_liq,-1))-INDEX(Pression_liq,MATCH(AE24,Pression_liq,-1)+1)))*(V24/10000)^3+(INDEX(temp_liq,(MATCH(AE24,Pression_liq,-1)+1),MATCH("coeff3",coeff_liq,0))+(AE24-INDEX(Pression_liq,MATCH(AE24,Pression_liq,-1)+1))*(INDEX(temp_liq,(MATCH(AE24,Pression_liq,-1)),MATCH("coeff3",coeff_liq,0))-INDEX(temp_liq,(MATCH(AE24,Pression_liq,-1)+1),MATCH("coeff3",coeff_liq,0)))/(INDEX(Pression_liq,MATCH(AE24,Pression_liq,-1))-INDEX(Pression_liq,MATCH(AE24,Pression_liq,-1)+1)))*(V24/10000)^2+(INDEX(temp_liq,(MATCH(AE24,Pression_liq,-1)+1),MATCH("coeff4",coeff_liq,0))+(AE24-INDEX(Pression_liq,MATCH(AE24,Pression_liq,-1)+1))*(INDEX(temp_liq,(MATCH(AE24,Pression_liq,-1)),MATCH("coeff4",coeff_liq,0))-INDEX(temp_liq,(MATCH(AE24,Pression_liq,-1)+1),MATCH("coeff4",coeff_liq,0)))/(INDEX(Pression_liq,MATCH(AE24,Pression_liq,-1))-INDEX(Pression_liq,MATCH(AE24,Pression_liq,-1)+1)))*(V24/10000)+(INDEX(temp_liq,(MATCH(AE24,Pression_liq,-1)+1),MATCH("coeff5",coeff_liq,0))+(AE24-INDEX(Pression_liq,MATCH(AE24,Pression_liq,-1)+1))*(INDEX(temp_liq,(MATCH(AE24,Pression_liq,-1)),MATCH("coeff5",coeff_liq,0))-INDEX(temp_liq,(MATCH(AE24,Pression_liq,-1)+1),MATCH("coeff5",coeff_liq,0)))/(INDEX(Pression_liq,MATCH(AE24,Pression_liq,-1))-INDEX(Pression_liq,MATCH(AE24,Pression_liq,-1)+1))) -> 341.9977782 | M24: =(INDEX(temp_vap,(MATCH(AE24,Pression_vap,-1)+1),MATCH("coeff1",coeff_vap,0))+(AE24-INDEX(Pression_vap,MATCH(AE24,Pression_vap,-1)+1))*(INDEX(temp_vap,(MATCH(AE24,Pression_vap,-1)),MATCH("coeff1",coeff_vap,0))-INDEX(temp_vap,(MATCH(AE24,Pression_vap,-1)+1),MATCH("coeff1",coeff_vap,0)))/(INDEX(Pression_vap,MATCH(AE24,Pression_vap,-1))-INDEX(Pression_vap,MATCH(AE24,Pression_vap,-1)+1)))*(W24/10000)^4+(INDEX(temp_vap,(MATCH(AE24,Pression_vap,-1)+1),MATCH("coeff2",coeff_vap,0))+(AE24-INDEX(Pression_vap,MATCH(AE24,Pression_vap,-1)+1))*(INDEX(temp_vap,(MATCH(AE24,Pression_vap,-1)),MATCH("coeff2",coeff_vap,0))-INDEX(temp_vap,(MATCH(AE24,Pression_vap,-1)+1),MATCH("coeff2",coeff_vap,0)))/(INDEX(Pression_vap,MATCH(AE24,Pression_vap,-1))-INDEX(Pression_vap,MATCH(AE24,Pression_vap,-1)+1)))*(W24/10000)^3+(INDEX(temp_vap,(MATCH(AE24,Pression_vap,-1)+1),MATCH("coeff3",coeff_vap,0))+(AE24-INDEX(Pression_vap,MATCH(AE24,Pression_vap,-1)+1))*(INDEX(temp_vap,(MATCH(AE24,Pression_vap,-1)),MATCH("coeff3",coeff_vap,0))-INDEX(temp_vap,(MATCH(AE24,Pression_vap,-1)+1),MATCH("coeff3",coeff_vap,0)))/(INDEX(Pression_vap,MATCH(AE24,Pression_vap,-1))-INDEX(Pression_vap,MATCH(AE24,Pression_vap,-1)+1)))*(W24/10000)^2+(INDEX(temp_vap,(MATCH(AE24,Pression_vap,-1)+1),MATCH("coeff4",coeff_vap,0))+(AE24-INDEX(Pression_vap,MATCH(AE24,Pression_vap,-1)+1))*(INDEX(temp_vap,(MATCH(AE24,Pression_vap,-1)),MATCH("coeff4",coeff_vap,0))-INDEX(temp_vap,(MATCH(AE24,Pression_vap,-1)+1),MATCH("coeff4",coeff_vap,0)))/(INDEX(Pression_vap,MATCH(AE24,Pression_vap,-1))-INDEX(Pression_vap,MATCH(AE24,Pression_vap,-1)+1)))*(W24/10000)+(INDEX(temp_vap,(MATCH(AE24,Pression_vap,-1)+1),MATCH("coeff5",coeff_vap,0))+(AE24-INDEX(Pression_vap,MATCH(AE24,Pression_vap,-1)+1))*(INDEX(temp_vap,(MATCH(AE24,Pression_vap,-1)),MATCH("coeff5",coeff_vap,0))-INDEX(temp_vap,(MATCH(AE24,Pression_vap,-1)+1),MATCH("coeff5",coeff_vap,0)))/(INDEX(Pression_vap,MATCH(AE24,Pression_vap,-1))-INDEX(Pression_vap,MATCH(AE24,Pression_vap,-1)+1))) -> 345.9724994 | N24: =IF(AND(B24=0,C24=0,ABS(L24-M24)<0.02),0,M24-L24) -> 3.974721188 | O24: =2500*4.91*N24*(A24-A23)/1000 -> 12.19742565 | P24: =(V24*H24+O24)/H24 -> 1580.421984 | Q24: =(W24*I24-O24)/I24 -> 2456.857859 | R24: =H24*V24+I24*W24 -> 39729865.23 | S24: =H24+I24 -> 23755.4375 | T24: =$T$3 -> 607.456 | U24: =I24/E24 -> 99.7791 | V24: =((P23*H23+J24*AG23-K24*(AH23-AG23))/(H23+J24))+Z24 -> 1580.42141 | W24: =((Q23*I23+K24*AH23+J24*(AH23-AG23))/(I23+K24)) -> 2456.862749 | X24: =IF(AND($AJ$3=1,AA23<=153.3),1580,0) -> 0 | Y24: =IF(AND($AJ$3=1,AND(AA23>=154,AA23<=156)),(-290*AA23+45240),IF(AND($AJ$3=1,AA3<=154),580,0)) -> 0 | Z24: =((X24+Y24)*(A24-A23))/H24 -> 0 | AA24: =IF(AND($AO$3=1,AE23<156.7),((1/3600)*2),0) -> 0.0005555555556 | AB24: =IF(AND($AO$3=1,AND(AE23>156.7,AE23<160.2)),(((35.14*AE23-5550.88)/3600)*2),0) -> 0 | AC24: =IF(AND($AO$3=1,AE23>=160.2),((125/3600)*2),0) -> 0 | AD24: =(A24-A23)*(AA24+AB24+AC24)*(AG24-1269.44) -> 0.04642626926 | AE24: =IF(C24=1,INDEX(Pression,MATCH(INDEX(OFFSET(INDEX(uV,MATCH(W24,uV,1)),1,0):OFFSET(INDEX(uV,MATCH(W24,uV,1)),71,0),MATCH(U24,OFFSET(INDEX(uV,MATCH(W24,uV,1)),1,0):OFFSET(INDEX(uV,MATCH(W24,uV,1)),71,0),-1)+1),INDEX(densite_vap,,MATCH(W24,uV,1)),-1))+(U24-INDEX(OFFSET(INDEX(uV,MATCH(W24,uV,1)),1,0):OFFSET(INDEX(uV,MATCH(W24,uV,1)),71,0),MATCH(U24,OFFSET(INDEX(uV,MATCH(W24,uV,1)),1,0):OFFSET(INDEX(uV,MATCH(W24,uV,1)),71,0),-1)+1)+(W24-INDEX(uV,MATCH(W24,uV,1)))*(INDEX(OFFSET(INDEX(uV,MATCH(W24,uV,1)+1),1,0):OFFSET(INDEX(uV,MATCH(W24,uV,1)+1),71,0),MATCH(U24,OFFSET(INDEX(uV,MATCH(W24,uV,1)+1),1,0):OFFSET(INDEX(uV,MATCH(W24,uV,1)+1),71,0),-1)+1)-INDEX(OFFSET(INDEX(uV,MATCH(W24,uV,1)),1,0):OFFSET(INDEX(uV,MATCH(W24,uV,1)),71,0),MATCH(U24,OFFSET(INDEX(uV,MATCH(W24,uV,1)),1,0):OFFSET(INDEX(uV,MATCH(W24,uV,1)),71,0),-1)+1))/(INDEX(uV,MATCH(W24,uV,1)+1)-INDEX(uV,MATCH(W24,uV,1))))*(INDEX(Pression,MATCH(INDEX(OFFSET(INDEX(uV,MATCH(W24,uV,1)),1,0):OFFSET(INDEX(uV,MATCH(W24,uV,1)),71,0),MATCH(U24,OFFSET(INDEX(uV,MATCH(W24,uV,1)),1,0):OFFSET(INDEX(uV,MATCH(W24,uV,1)),71,0),-1)),INDEX(densite_vap,,MATCH(W24,uV,1)),-1),1)-INDEX(Pression,MATCH(INDEX(OFFSET(INDEX(uV,MATCH(W24,uV,1)),1,0):OFFSET(INDEX(uV,MATCH(W24,uV,1)),71,0),MATCH(U24,OFFSET(INDEX(uV,MATCH(W24,uV,1)),1,0):OFFSET(INDEX(uV,MATCH(W24,uV,1)),71,0),-1)+1),INDEX(densite_vap,,MATCH(W24,uV,1)),-1)))/(INDEX(OFFSET(INDEX(uV,MATCH(W24,uV,1)),1,0):OFFSET(INDEX(uV,MATCH(W24,uV,1)),71,0),MATCH(U24,OFFSET(INDEX(uV,MATCH(W24,uV,1)),1,0):OFFSET(INDEX(uV,MATCH(W24,uV,1)),71,0),-1))+(W24-INDEX(uV,MATCH(W24,uV,1)))*(INDEX(OFFSET(INDEX(uV,MATCH(W24,uV,1)+1),1,0):OFFSET(INDEX(uV,MATCH(W24,uV,1)+1),71,0),MATCH(U24,OFFSET(INDEX(uV,MATCH(W24,uV,1)+1),1,0):OFFSET(INDEX(uV,MATCH(W24,uV,1)+1),71,0),-1))-INDEX(OFFSET(INDEX(uV,MATCH(W24,uV,1)),1,0):OFFSET(INDEX(uV,MATCH(W24,uV,1)),71,0),MATCH(U24,OFFSET(INDEX(uV,MATCH(W24,uV,1)),1,0):OFFSET(INDEX(uV,MATCH(W24,uV,1)),71,0),-1)))/(INDEX(uV,MATCH(W24,uV,1)+1)-INDEX(uV,MATCH(W24,uV,1)))-INDEX(OFFSET(INDEX(uV,MATCH(W24,uV,1)),1,0):OFFSET(INDEX(uV,MATCH(W24,uV,1)),71,0),MATCH(U24,OFFSET(INDEX(uV,MATCH(W24,uV,1)),1,0):OFFSET(INDEX(uV,MATCH(W24,uV,1)),71,0),-1)+1)+(W24-INDEX(uV,MATCH(W24,uV,1)))*(INDEX(OFFSET(INDEX(uV,MATCH(W24,uV,1)+1),1,0):OFFSET(INDEX(uV,MATCH(W24,uV,1)+1),71,0),MATCH(U24,OFFSET(INDEX(uV,MATCH(W24,uV,1)+1),1,0):OFFSET(INDEX(uV,MATCH(W24,uV,1)+1),71,0),-1)+1)-INDEX(OFFSET(INDEX(uV,MATCH(W24,uV,1)),1,0):OFFSET(INDEX(uV,MATCH(W24,uV,1)),71,0),MATCH(U24,OFFSET(INDEX(uV,MATCH(W24,uV,1)),1,0):OFFSET(INDEX(uV,MATCH(W24,uV,1)),71,0),-1)+1))/(INDEX(uV,MATCH(W24,uV,1)+1)-INDEX(uV,MATCH(W24,uV,1)))),IF(B24=1,AE23-0.01,AE23)) -> 154.974945 | AF24: =Poly_Vapeur!$P$14*Resultats!AE24^4+Poly_Vapeur!$Q$14*Resultats!AE24^3+Poly_Vapeur!$R$14*Resultats!AE24^2+Poly_Vapeur!$S$14*Resultats!AE24+Poly_Vapeur!$T$14 -> 344.7763447 | AG24: =Poly_Liquide!$Q$6*Resultats!AE24^4+Poly_Liquide!$R$6*Resultats!AE24^3+Poly_Liquide!$S$6*Resultats!AE24^2+Poly_Liquide!$T$6*Resultats!AE24+Poly_Liquide!$U$6 -> 1603.709139 | AH24: =Poly_Vapeur!$P$6*Resultats!AE24^4+Poly_Vapeur!$Q$6*Resultats!AE24^3+Poly_Vapeur!$R$6*Resultats!AE24^2+Poly_Vapeur!$S$6*Resultats!AE24+Poly_Vapeur!$T$6 -> 2444.113738 | AI24: =Poly_Liquide!Q$10*Resultats!AE24^4+Poly_Liquide!R$10*Resultats!AE24^3+Poly_Liquide!S$10*Resultats!AE24^2+Poly_Liquide!T$10*Resultats!AE24+Poly_Liquide!U$10 -> 594.4255241 | AJ24: =Poly_Vapeur!P$10*Resultats!AE24^4+Poly_Vapeur!Q$10*Resultats!AE24^3+Poly_Vapeur!R$10*Resultats!AE24^2+Poly_Vapeur!S$10*Resultats!AE24+Poly_Vapeur!T$10 -> 101.9031171 | AK24: =IF(W24<AH23,1,0) -> 0 | AL24: =IF(V24>AG23,1,0) -> 0 | AM24: 5 | AQ24: 5.25
A25: =IF(B25=1,A24,A24+0.25) -> 5.5 | B25: =IF(AND(G25<0.0001,F24>0.09),1,0) -> 0 | C25: =IF(OR(AND(G25=0,F24<0),AND(G25>0,F24>-0.2)),1,0) -> 1 | D25: 35 | E25: =60-D25 -> 25 | F25: =AJ25-U25 -> 2.122758465 | G25: =W25-AH24 -> 12.74412099 | H25: =H24+J25-K25 -> 21260.96 | I25: =I24+K25-J25 -> 2494.4775 | J25: =IF((Q24-AH24)<0,-(AK24*I24*(Q24-AH24))/(AH24-AG24),0) -> 0 | K25: =IF((P24-AG24)>0,(AL24*H24*(P24-AG24))/(AH24-AG24),0) -> 0 | L25: =(INDEX(temp_liq,(MATCH(AE25,Pression_liq,-1)+1),MATCH("coeff1",coeff_liq,0))+(AE25-INDEX(Pression_liq,MATCH(AE25,Pression_liq,-1)+1))*(INDEX(temp_liq,(MATCH(AE25,Pression_liq,-1)),MATCH("coeff1",coeff_liq,0))-INDEX(temp_liq,(MATCH(AE25,Pression_liq,-1)+1),MATCH("coeff1",coeff_liq,0)))/(INDEX(Pression_liq,MATCH(AE25,Pression_liq,-1))-INDEX(Pression_liq,MATCH(AE25,Pression_liq,-1)+1)))*(V25/10000)^4+(INDEX(temp_liq,(MATCH(AE25,Pression_liq,-1)+1),MATCH("coeff2",coeff_liq,0))+(AE25-INDEX(Pression_liq,MATCH(AE25,Pression_liq,-1)+1))*(INDEX(temp_liq,(MATCH(AE25,Pression_liq,-1)),MATCH("coeff2",coeff_liq,0))-INDEX(temp_liq,(MATCH(AE25,Pression_liq,-1)+1),MATCH("coeff2",coeff_liq,0)))/(INDEX(Pression_liq,MATCH(AE25,Pression_liq,-1))-INDEX(Pression_liq,MATCH(AE25,Pression_liq,-1)+1)))*(V25/10000)^3+(INDEX(temp_liq,(MATCH(AE25,Pression_liq,-1)+1),MATCH("coeff3",coeff_liq,0))+(AE25-INDEX(Pression_liq,MATCH(AE25,Pression_liq,-1)+1))*(INDEX(temp_liq,(MATCH(AE25,Pression_liq,-1)),MATCH("coeff3",coeff_liq,0))-INDEX(temp_liq,(MATCH(AE25,Pression_liq,-1)+1),MATCH("coeff3",coeff_liq,0)))/(INDEX(Pression_liq,MATCH(AE25,Pression_liq,-1))-INDEX(Pression_liq,MATCH(AE25,Pression_liq,-1)+1)))*(V25/10000)^2+(INDEX(temp_liq,(MATCH(AE25,Pression_liq,-1)+1),MATCH("coeff4",coeff_liq,0))+(AE25-INDEX(Pression_liq,MATCH(AE25,Pression_liq,-1)+1))*(INDEX(temp_liq,(MATCH(AE25,Pression_liq,-1)),MATCH("coeff4",coeff_liq,0))-INDEX(temp_liq,(MATCH(AE25,Pression_liq,-1)+1),MATCH("coeff4",coeff_liq,0)))/(INDEX(Pression_liq,MATCH(AE25,Pression_liq,-1))-INDEX(Pression_liq,MATCH(AE25,Pression_liq,-1)+1)))*(V25/10000)+(INDEX(temp_liq,(MATCH(AE25,Pression_liq,-1)+1),MATCH("coeff5",coeff_liq,0))+(AE25-INDEX(Pression_liq,MATCH(AE25,Pression_liq,-1)+1))*(INDEX(temp_liq,(MATCH(AE25,Pression_liq,-1)),MATCH("coeff5",coeff_liq,0))-INDEX(temp_liq,(MATCH(AE25,Pression_liq,-1)+1),MATCH("coeff5",coeff_liq,0)))/(INDEX(Pression_liq,MATCH(AE25,Pression_liq,-1))-INDEX(Pression_liq,MATCH(AE25,Pression_liq,-1)+1))) -> 341.9977457 | M25: =(INDEX(temp_vap,(MATCH(AE25,Pression_vap,-1)+1),MATCH("coeff1",coeff_vap,0))+(AE25-INDEX(Pression_vap,MATCH(AE25,Pression_vap,-1)+1))*(INDEX(temp_vap,(MATCH(AE25,Pression_vap,-1)),MATCH("coeff1",coeff_vap,0))-INDEX(temp_vap,(MATCH(AE25,Pression_vap,-1)+1),MATCH("coeff1",coeff_vap,0)))/(INDEX(Pression_vap,MATCH(AE25,Pression_vap,-1))-INDEX(Pression_vap,MATCH(AE25,Pression_vap,-1)+1)))*(W25/10000)^4+(INDEX(temp_vap,(MATCH(AE25,Pression_vap,-1)+1),MATCH("coeff2",coeff_vap,0))+(AE25-INDEX(Pression_vap,MATCH(AE25,Pression_vap,-1)+1))*(INDEX(temp_vap,(MATCH(AE25,Pression_vap,-1)),MATCH("coeff2",coeff_vap,0))-INDEX(temp_vap,(MATCH(AE25,Pression_vap,-1)+1),MATCH("coeff2",coeff_vap,0)))/(INDEX(Pression_vap,MATCH(AE25,Pression_vap,-1))-INDEX(Pression_vap,MATCH(AE25,Pression_vap,-1)+1)))*(W25/10000)^3+(INDEX(temp_vap,(MATCH(AE25,Pression_vap,-1)+1),MATCH("coeff3",coeff_vap,0))+(AE25-INDEX(Pression_vap,MATCH(AE25,Pression_vap,-1)+1))*(INDEX(temp_vap,(MATCH(AE25,Pression_vap,-1)),MATCH("coeff3",coeff_vap,0))-INDEX(temp_vap,(MATCH(AE25,Pression_vap,-1)+1),MATCH("coeff3",coeff_vap,0)))/(INDEX(Pression_vap,MATCH(AE25,Pression_vap,-1))-INDEX(Pression_vap,MATCH(AE25,Pression_vap,-1)+1)))*(W25/10000)^2+(INDEX(temp_vap,(MATCH(AE25,Pression_vap,-1)+1),MATCH("coeff4",coeff_vap,0))+(AE25-INDEX(Pression_vap,MATCH(AE25,Pression_vap,-1)+1))*(INDEX(temp_vap,(MATCH(AE25,Pression_vap,-1)),MATCH("coeff4",coeff_vap,0))-INDEX(temp_vap,(MATCH(AE25,Pression_vap,-1)+1),MATCH("coeff4",coeff_vap,0)))/(INDEX(Pression_vap,MATCH(AE25,Pression_vap,-1))-INDEX(Pression_vap,MATCH(AE25,Pression_vap,-1)+1)))*(W25/10000)+(INDEX(temp_vap,(MATCH(AE25,Pression_vap,-1)+1),MATCH("coeff5",coeff_vap,0))+(AE25-INDEX(Pression_vap,MATCH(AE25,Pression_vap,-1)+1))*(INDEX(temp_vap,(MATCH(AE25,Pression_vap,-1)),MATCH("coeff5",coeff_vap,0))-INDEX(temp_vap,(MATCH(AE25,Pression_vap,-1)+1),MATCH("coeff5",coeff_vap,0)))/(INDEX(Pression_vap,MATCH(AE25,Pression_vap,-1))-INDEX(Pression_vap,MATCH(AE25,Pression_vap,-1)+1))) -> 345.971153 | N25: =IF(AND(B25=0,C25=0,ABS(L25-M25)<0.02),0,M25-L25) -> 3.973407305 | O25: =2500*4.91*N25*(A25-A24)/1000 -> 12.19339367 | P25: =(V25*H25+O25)/H25 -> 1580.422557 | Q25: =(W25*I25-O25)/I25 -> 2456.852971 | R25: =H25*V25+I25*W25 -> 39729865.23 | S25: =H25+I25 -> 23755.4375 | T25: =$T$3 -> 607.456 | U25: =I25/E25 -> 99.7791 | V25: =((P24*H24+J25*AG24-K25*(AH24-AG24))/(H24+J25))+Z25 -> 1580.421984 | W25: =((Q24*I24+K25*AH24+J25*(AH24-AG24))/(I24+K25)) -> 2456.857859 | X25: =IF(AND($AJ$3=1,AA24<=153.3),1580,0) -> 0 | Y25: =IF(AND($AJ$3=1,AND(AA24>=154,AA24<=156)),(-290*AA24+45240),IF(AND($AJ$3=1,AA3<=154),580,0)) -> 0 | Z25: =((X25+Y25)*(A25-A24))/H25 -> 0 | AA25: =IF(AND($AO$3=1,AE24<156.7),((1/3600)*2),0) -> 0.0005555555556 | AB25: =IF(AND($AO$3=1,AND(AE24>156.7,AE24<160.2)),(((35.14*AE24-5550.88)/3600)*2),0) -> 0 | AC25: =IF(AND($AO$3=1,AE24>=160.2),((125/3600)*2),0) -> 0 | AD25: =(A25-A24)*(AA25+AB25+AC25)*(AG25-1269.44) -> 0.04642566429 | AE25: =IF(C25=1,INDEX(Pression,MATCH(INDEX(OFFSET(INDEX(uV,MATCH(W25,uV,1)),1,0):OFFSET(INDEX(uV,MATCH(W25,uV,1)),71,0),MATCH(U25,OFFSET(INDEX(uV,MATCH(W25,uV,1)),1,0):OFFSET(INDEX(uV,MATCH(W25,uV,1)),71,0),-1)+1),INDEX(densite_vap,,MATCH(W25,uV,1)),-1))+(U25-INDEX(OFFSET(INDEX(uV,MATCH(W25,uV,1)),1,0):OFFSET(INDEX(uV,MATCH(W25,uV,1)),71,0),MATCH(U25,OFFSET(INDEX(uV,MATCH(W25,uV,1)),1,0):OFFSET(INDEX(uV,MATCH(W25,uV,1)),71,0),-1)+1)+(W25-INDEX(uV,MATCH(W25,uV,1)))*(INDEX(OFFSET(INDEX(uV,MATCH(W25,uV,1)+1),1,0):OFFSET(INDEX(uV,MATCH(W25,uV,1)+1),71,0),MATCH(U25,OFFSET(INDEX(uV,MATCH(W25,uV,1)+1),1,0):OFFSET(INDEX(uV,MATCH(W25,uV,1)+1),71,0),-1)+1)-INDEX(OFFSET(INDEX(uV,MATCH(W25,uV,1)),1,0):OFFSET(INDEX(uV,MATCH(W25,uV,1)),71,0),MATCH(U25,OFFSET(INDEX(uV,MATCH(W25,uV,1)),1,0):OFFSET(INDEX(uV,MATCH(W25,uV,1)),71,0),-1)+1))/(INDEX(uV,MATCH(W25,uV,1)+1)-INDEX(uV,MATCH(W25,uV,1))))*(INDEX(Pression,MATCH(INDEX(OFFSET(INDEX(uV,MATCH(W25,uV,1)),1,0):OFFSET(INDEX(uV,MATCH(W25,uV,1)),71,0),MATCH(U25,OFFSET(INDEX(uV,MATCH(W25,uV,1)),1,0):OFFSET(INDEX(uV,MATCH(W25,uV,1)),71,0),-1)),INDEX(densite_vap,,MATCH(W25,uV,1)),-1),1)-INDEX(Pression,MATCH(INDEX(OFFSET(INDEX(uV,MATCH(W25,uV,1)),1,0):OFFSET(INDEX(uV,MATCH(W25,uV,1)),71,0),MATCH(U25,OFFSET(INDEX(uV,MATCH(W25,uV,1)),1,0):OFFSET(INDEX(uV,MATCH(W25,uV,1)),71,0),-1)+1),INDEX(densite_vap,,MATCH(W25,uV,1)),-1)))/(INDEX(OFFSET(INDEX(uV,MATCH(W25,uV,1)),1,0):OFFSET(INDEX(uV,MATCH(W25,uV,1)),71,0),MATCH(U25,OFFSET(INDEX(uV,MATCH(W25,uV,1)),1,0):OFFSET(INDEX(uV,MATCH(W25,uV,1)),71,0),-1))+(W25-INDEX(uV,MATCH(W25,uV,1)))*(INDEX(OFFSET(INDEX(uV,MATCH(W25,uV,1)+1),1,0):OFFSET(INDEX(uV,MATCH(W25,uV,1)+1),71,0),MATCH(U25,OFFSET(INDEX(uV,MATCH(W25,uV,1)+1),1,0):OFFSET(INDEX(uV,MATCH(W25,uV,1)+1),71,0),-1))-INDEX(OFFSET(INDEX(uV,MATCH(W25,uV,1)),1,0):OFFSET(INDEX(uV,MATCH(W25,uV,1)),71,0),MATCH(U25,OFFSET(INDEX(uV,MATCH(W25,uV,1)),1,0):OFFSET(INDEX(uV,MATCH(W25,uV,1)),71,0),-1)))/(INDEX(uV,MATCH(W25,uV,1)+1)-INDEX(uV,MATCH(W25,uV,1)))-INDEX(OFFSET(INDEX(uV,MATCH(W25,uV,1)),1,0):OFFSET(INDEX(uV,MATCH(W25,uV,1)),71,0),MATCH(U25,OFFSET(INDEX(uV,MATCH(W25,uV,1)),1,0):OFFSET(INDEX(uV,MATCH(W25,uV,1)),71,0),-1)+1)+(W25-INDEX(uV,MATCH(W25,uV,1)))*(INDEX(OFFSET(INDEX(uV,MATCH(W25,uV,1)+1),1,0):OFFSET(INDEX(uV,MATCH(W25,uV,1)+1),71,0),MATCH(U25,OFFSET(INDEX(uV,MATCH(W25,uV,1)+1),1,0):OFFSET(INDEX(uV,MATCH(W25,uV,1)+1),71,0),-1)+1)-INDEX(OFFSET(INDEX(uV,MATCH(W25,uV,1)),1,0):OFFSET(INDEX(uV,MATCH(W25,uV,1)),71,0),MATCH(U25,OFFSET(INDEX(uV,MATCH(W25,uV,1)),1,0):OFFSET(INDEX(uV,MATCH(W25,uV,1)),71,0),-1)+1))/(INDEX(uV,MATCH(W25,uV,1)+1)-INDEX(uV,MATCH(W25,uV,1)))),IF(B25=1,AE24-0.01,AE24)) -> 154.9737669 | AF25: =Poly_Vapeur!$P$14*Resultats!AE25^4+Poly_Vapeur!$Q$14*Resultats!AE25^3+Poly_Vapeur!$R$14*Resultats!AE25^2+Poly_Vapeur!$S$14*Resultats!AE25+Poly_Vapeur!$T$14 -> 344.7757321 | AG25: =Poly_Liquide!$Q$6*Resultats!AE25^4+Poly_Liquide!$R$6*Resultats!AE25^3+Poly_Liquide!$S$6*Resultats!AE25^2+Poly_Liquide!$T$6*Resultats!AE25+Poly_Liquide!$U$6 -> 1603.704783 | AH25: =Poly_Vapeur!$P$6*Resultats!AE25^4+Poly_Vapeur!$Q$6*Resultats!AE25^3+Poly_Vapeur!$R$6*Resultats!AE25^2+Poly_Vapeur!$S$6*Resultats!AE25+Poly_Vapeur!$T$6 -> 2444.116536 | AI25: =Poly_Liquide!Q$10*Resultats!AE25^4+Poly_Liquide!R$10*Resultats!AE25^3+Poly_Liquide!S$10*Resultats!AE25^2+Poly_Liquide!T$10*Resultats!AE25+Poly_Liquide!U$10 -> 594.427705 | AJ25: =Poly_Vapeur!P$10*Resultats!AE25^4+Poly_Vapeur!Q$10*Resultats!AE25^3+Poly_Vapeur!R$10*Resultats!AE25^2+Poly_Vapeur!S$10*Resultats!AE25+Poly_Vapeur!T$10 -> 101.9018585 | AK25: =IF(W25<AH24,1,0) -> 0 | AL25: =IF(V25>AG24,1,0) -> 0 | AM25: 5.25 | AQ25: 5.5
A26: =IF(B26=1,A25,A25+0.25) -> 5.75 | B26: =IF(AND(G26<0.0001,F25>0.09),1,0) -> 0 | C26: =IF(OR(AND(G26=0,F25<0),AND(G26>0,F25>-0.2)),1,0) -> 1 | D26: 35 | E26: =60-D26 -> 25 | F26: =AJ26-U26 -> 2.121513351 | G26: =W26-AH25 -> 12.73643514 | H26: =H25+J26-K26 -> 21260.96 | I26: =I25+K26-J26 -> 2494.4775 | J26: =IF((Q25-AH25)<0,-(AK25*I25*(Q25-AH25))/(AH25-AG25),0) -> 0 | K26: =IF((P25-AG25)>0,(AL25*H25*(P25-AG25))/(AH25-AG25),0) -> 0 | L26: =(INDEX(temp_liq,(MATCH(AE26,Pression_liq,-1)+1),MATCH("coeff1",coeff_liq,0))+(AE26-INDEX(Pression_liq,MATCH(AE26,Pression_liq,-1)+1))*(INDEX(temp_liq,(MATCH(AE26,Pression_liq,-1)),MATCH("coeff1",coeff_liq,0))-INDEX(temp_liq,(MATCH(AE26,Pression_liq,-1)+1),MATCH("coeff1",coeff_liq,0)))/(INDEX(Pression_liq,MATCH(AE26,Pression_liq,-1))-INDEX(Pression_liq,MATCH(AE26,Pression_liq,-1)+1)))*(V26/10000)^4+(INDEX(temp_liq,(MATCH(AE26,Pression_liq,-1)+1),MATCH("coeff2",coeff_liq,0))+(AE26-INDEX(Pression_liq,MATCH(AE26,Pression_liq,-1)+1))*(INDEX(temp_liq,(MATCH(AE26,Pression_liq,-1)),MATCH("coeff2",coeff_liq,0))-INDEX(temp_liq,(MATCH(AE26,Pression_liq,-1)+1),MATCH("coeff2",coeff_liq,0)))/(INDEX(Pression_liq,MATCH(AE26,Pression_liq,-1))-INDEX(Pression_liq,MATCH(AE26,Pression_liq,-1)+1)))*(V26/10000)^3+(INDEX(temp_liq,(MATCH(AE26,Pression_liq,-1)+1),MATCH("coeff3",coeff_liq,0))+(AE26-INDEX(Pression_liq,MATCH(AE26,Pression_liq,-1)+1))*(INDEX(temp_liq,(MATCH(AE26,Pression_liq,-1)),MATCH("coeff3",coeff_liq,0))-INDEX(temp_liq,(MATCH(AE26,Pression_liq,-1)+1),MATCH("coeff3",coeff_liq,0)))/(INDEX(Pression_liq,MATCH(AE26,Pression_liq,-1))-INDEX(Pression_liq,MATCH(AE26,Pression_liq,-1)+1)))*(V26/10000)^2+(INDEX(temp_liq,(MATCH(AE26,Pression_liq,-1)+1),MATCH("coeff4",coeff_liq,0))+(AE26-INDEX(Pression_liq,MATCH(AE26,Pression_liq,-1)+1))*(INDEX(temp_liq,(MATCH(AE26,Pression_liq,-1)),MATCH("coeff4",coeff_liq,0))-INDEX(temp_liq,(MATCH(AE26,Pression_liq,-1)+1),MATCH("coeff4",coeff_liq,0)))/(INDEX(Pression_liq,MATCH(AE26,Pression_liq,-1))-INDEX(Pression_liq,MATCH(AE26,Pression_liq,-1)+1)))*(V26/10000)+(INDEX(temp_liq,(MATCH(AE26,Pression_liq,-1)+1),MATCH("coeff5",coeff_liq,0))+(AE26-INDEX(Pression_liq,MATCH(AE26,Pression_liq,-1)+1))*(INDEX(temp_liq,(MATCH(AE26,Pression_liq,-1)),MATCH("coeff5",coeff_liq,0))-INDEX(temp_liq,(MATCH(AE26,Pression_liq,-1)+1),MATCH("coeff5",coeff_liq,0)))/(INDEX(Pression_liq,MATCH(AE26,Pression_liq,-1))-INDEX(Pression_liq,MATCH(AE26,Pression_liq,-1)+1))) -> 341.9977144 | M26: =(INDEX(temp_vap,(MATCH(AE26,Pression_vap,-1)+1),MATCH("coeff1",coeff_vap,0))+(AE26-INDEX(Pression_vap,MATCH(AE26,Pression_vap,-1)+1))*(INDEX(temp_vap,(MATCH(AE26,Pression_vap,-1)),MATCH("coeff1",coeff_vap,0))-INDEX(temp_vap,(MATCH(AE26,Pression_vap,-1)+1),MATCH("coeff1",coeff_vap,0)))/(INDEX(Pression_vap,MATCH(AE26,Pression_vap,-1))-INDEX(Pression_vap,MATCH(AE26,Pression_vap,-1)+1)))*(W26/10000)^4+(INDEX(temp_vap,(MATCH(AE26,Pression_vap,-1)+1),MATCH("coeff2",coeff_vap,0))+(AE26-INDEX(Pression_vap,MATCH(AE26,Pression_vap,-1)+1))*(INDEX(temp_vap,(MATCH(AE26,Pression_vap,-1)),MATCH("coeff2",coeff_vap,0))-INDEX(temp_vap,(MATCH(AE26,Pression_vap,-1)+1),MATCH("coeff2",coeff_vap,0)))/(INDEX(Pression_vap,MATCH(AE26,Pression_vap,-1))-INDEX(Pression_vap,MATCH(AE26,Pression_vap,-1)+1)))*(W26/10000)^3+(INDEX(temp_vap,(MATCH(AE26,Pression_vap,-1)+1),MATCH("coeff3",coeff_vap,0))+(AE26-INDEX(Pression_vap,MATCH(AE26,Pression_vap,-1)+1))*(INDEX(temp_vap,(MATCH(AE26,Pression_vap,-1)),MATCH("coeff3",coeff_vap,0))-INDEX(temp_vap,(MATCH(AE26,Pression_vap,-1)+1),MATCH("coeff3",coeff_vap,0)))/(INDEX(Pression_vap,MATCH(AE26,Pression_vap,-1))-INDEX(Pression_vap,MATCH(AE26,Pression_vap,-1)+1)))*(W26/10000)^2+(INDEX(temp_vap,(MATCH(AE26,Pression_vap,-1)+1),MATCH("coeff4",coeff_vap,0))+(AE26-INDEX(Pression_vap,MATCH(AE26,Pression_vap,-1)+1))*(INDEX(temp_vap,(MATCH(AE26,Pression_vap,-1)),MATCH("coeff4",coeff_vap,0))-INDEX(temp_vap,(MATCH(AE26,Pression_vap,-1)+1),MATCH("coeff4",coeff_vap,0)))/(INDEX(Pression_vap,MATCH(AE26,Pression_vap,-1))-INDEX(Pression_vap,MATCH(AE26,Pression_vap,-1)+1)))*(W26/10000)+(INDEX(temp_vap,(MATCH(AE26,Pression_vap,-1)+1),MATCH("coeff5",coeff_vap,0))+(AE26-INDEX(Pression_vap,MATCH(AE26,Pression_vap,-1)+1))*(INDEX(temp_vap,(MATCH(AE26,Pression_vap,-1)),MATCH("coeff5",coeff_vap,0))-INDEX(temp_vap,(MATCH(AE26,Pression_vap,-1)+1),MATCH("coeff5",coeff_vap,0)))/(INDEX(Pression_vap,MATCH(AE26,Pression_vap,-1))-INDEX(Pression_vap,MATCH(AE26,Pression_vap,-1)+1))) -> 345.9698162 | N26: =IF(AND(B26=0,C26=0,ABS(L26-M26)<0.02),0,M26-L26) -> 3.972101801 | O26: =2500*4.91*N26*(A26-A25)/1000 -> 12.1893874 | P26: =(V26*H26+O26)/H26 -> 1580.423131 | Q26: =(W26*I26-O26)/I26 -> 2456.848084 | R26: =H26*V26+I26*W26 -> 39729865.23 | S26: =H26+I26 -> 23755.4375 | T26: =$T$3 -> 607.456 | U26: =I26/E26 -> 99.7791 | V26: =((P25*H25+J26*AG25-K26*(AH25-AG25))/(H25+J26))+Z26 -> 1580.422557 | W26: =((Q25*I25+K26*AH25+J26*(AH25-AG25))/(I25+K26)) -> 2456.852971 | X26: =IF(AND($AJ$3=1,AA25<=153.3),1580,0) -> 0 | Y26: =IF(AND($AJ$3=1,AND(AA25>=154,AA25<=156)),(-290*AA25+45240),IF(AND($AJ$3=1,AA3<=154),580,0)) -> 0 | Z26: =((X26+Y26)*(A26-A25))/H26 -> 0 | AA26: =IF(AND($AO$3=1,AE25<156.7),((1/3600)*2),0) -> 0.0005555555556 | AB26: =IF(AND($AO$3=1,AND(AE25>156.7,AE25<160.2)),(((35.14*AE25-5550.88)/3600)*2),0) -> 0 | AC26: =IF(AND($AO$3=1,AE25>=160.2),((125/3600)*2),0) -> 0 | AD26: =(A26-A25)*(AA26+AB26+AC26)*(AG26-1269.44) -> 0.04642506582 | AE26: =IF(C26=1,INDEX(Pression,MATCH(INDEX(OFFSET(INDEX(uV,MATCH(W26,uV,1)),1,0):OFFSET(INDEX(uV,MATCH(W26,uV,1)),71,0),MATCH(U26,OFFSET(INDEX(uV,MATCH(W26,uV,1)),1,0):OFFSET(INDEX(uV,MATCH(W26,uV,1)),71,0),-1)+1),INDEX(densite_vap,,MATCH(W26,uV,1)),-1))+(U26-INDEX(OFFSET(INDEX(uV,MATCH(W26,uV,1)),1,0):OFFSET(INDEX(uV,MATCH(W26,uV,1)),71,0),MATCH(U26,OFFSET(INDEX(uV,MATCH(W26,uV,1)),1,0):OFFSET(INDEX(uV,MATCH(W26,uV,1)),71,0),-1)+1)+(W26-INDEX(uV,MATCH(W26,uV,1)))*(INDEX(OFFSET(INDEX(uV,MATCH(W26,uV,1)+1),1,0):OFFSET(INDEX(uV,MATCH(W26,uV,1)+1),71,0),MATCH(U26,OFFSET(INDEX(uV,MATCH(W26,uV,1)+1),1,0):OFFSET(INDEX(uV,MATCH(W26,uV,1)+1),71,0),-1)+1)-INDEX(OFFSET(INDEX(uV,MATCH(W26,uV,1)),1,0):OFFSET(INDEX(uV,MATCH(W26,uV,1)),71,0),MATCH(U26,OFFSET(INDEX(uV,MATCH(W26,uV,1)),1,0):OFFSET(INDEX(uV,MATCH(W26,uV,1)),71,0),-1)+1))/(INDEX(uV,MATCH(W26,uV,1)+1)-INDEX(uV,MATCH(W26,uV,1))))*(INDEX(Pression,MATCH(INDEX(OFFSET(INDEX(uV,MATCH(W26,uV,1)),1,0):OFFSET(INDEX(uV,MATCH(W26,uV,1)),71,0),MATCH(U26,OFFSET(INDEX(uV,MATCH(W26,uV,1)),1,0):OFFSET(INDEX(uV,MATCH(W26,uV,1)),71,0),-1)),INDEX(densite_vap,,MATCH(W26,uV,1)),-1),1)-INDEX(Pression,MATCH(INDEX(OFFSET(INDEX(uV,MATCH(W26,uV,1)),1,0):OFFSET(INDEX(uV,MATCH(W26,uV,1)),71,0),MATCH(U26,OFFSET(INDEX(uV,MATCH(W26,uV,1)),1,0):OFFSET(INDEX(uV,MATCH(W26,uV,1)),71,0),-1)+1),INDEX(densite_vap,,MATCH(W26,uV,1)),-1)))/(INDEX(OFFSET(INDEX(uV,MATCH(W26,uV,1)),1,0):OFFSET(INDEX(uV,MATCH(W26,uV,1)),71,0),MATCH(U26,OFFSET(INDEX(uV,MATCH(W26,uV,1)),1,0):OFFSET(INDEX(uV,MATCH(W26,uV,1)),71,0),-1))+(W26-INDEX(uV,MATCH(W26,uV,1)))*(INDEX(OFFSET(INDEX(uV,MATCH(W26,uV,1)+1),1,0):OFFSET(INDEX(uV,MATCH(W26,uV,1)+1),71,0),MATCH(U26,OFFSET(INDEX(uV,MATCH(W26,uV,1)+1),1,0):OFFSET(INDEX(uV,MATCH(W26,uV,1)+1),71,0),-1))-INDEX(OFFSET(INDEX(uV,MATCH(W26,uV,1)),1,0):OFFSET(INDEX(uV,MATCH(W26,uV,1)),71,0),MATCH(U26,OFFSET(INDEX(uV,MATCH(W26,uV,1)),1,0):OFFSET(INDEX(uV,MATCH(W26,uV,1)),71,0),-1)))/(INDEX(uV,MATCH(W26,uV,1)+1)-INDEX(uV,MATCH(W26,uV,1)))-INDEX(OFFSET(INDEX(uV,MATCH(W26,uV,1)),1,0):OFFSET(INDEX(uV,MATCH(W26,uV,1)),71,0),MATCH(U26,OFFSET(INDEX(uV,MATCH(W26,uV,1)),1,0):OFFSET(INDEX(uV,MATCH(W26,uV,1)),71,0),-1)+1)+(W26-INDEX(uV,MATCH(W26,uV,1)))*(INDEX(OFFSET(INDEX(uV,MATCH(W26,uV,1)+1),1,0):OFFSET(INDEX(uV,MATCH(W26,uV,1)+1),71,0),MATCH(U26,OFFSET(INDEX(uV,MATCH(W26,uV,1)+1),1,0):OFFSET(INDEX(uV,MATCH(W26,uV,1)+1),71,0),-1)+1)-INDEX(OFFSET(INDEX(uV,MATCH(W26,uV,1)),1,0):OFFSET(INDEX(uV,MATCH(W26,uV,1)),71,0),MATCH(U26,OFFSET(INDEX(uV,MATCH(W26,uV,1)),1,0):OFFSET(INDEX(uV,MATCH(W26,uV,1)),71,0),-1)+1))/(INDEX(uV,MATCH(W26,uV,1)+1)-INDEX(uV,MATCH(W26,uV,1)))),IF(B26=1,AE25-0.01,AE25)) -> 154.9726014 | AF26: =Poly_Vapeur!$P$14*Resultats!AE26^4+Poly_Vapeur!$Q$14*Resultats!AE26^3+Poly_Vapeur!$R$14*Resultats!AE26^2+Poly_Vapeur!$S$14*Resultats!AE26+Poly_Vapeur!$T$14 -> 344.7751262 | AG26: =Poly_Liquide!$Q$6*Resultats!AE26^4+Poly_Liquide!$R$6*Resultats!AE26^3+Poly_Liquide!$S$6*Resultats!AE26^2+Poly_Liquide!$T$6*Resultats!AE26+Poly_Liquide!$U$6 -> 1603.700474 | AH26: =Poly_Vapeur!$P$6*Resultats!AE26^4+Poly_Vapeur!$Q$6*Resultats!AE26^3+Poly_Vapeur!$R$6*Resultats!AE26^2+Poly_Vapeur!$S$6*Resultats!AE26+Poly_Vapeur!$T$6 -> 2444.119304 | AI26: =Poly_Liquide!Q$10*Resultats!AE26^4+Poly_Liquide!R$10*Resultats!AE26^3+Poly_Liquide!S$10*Resultats!AE26^2+Poly_Liquide!T$10*Resultats!AE26+Poly_Liquide!U$10 -> 594.4298625 | AJ26: =Poly_Vapeur!P$10*Resultats!AE26^4+Poly_Vapeur!Q$10*Resultats!AE26^3+Poly_Vapeur!R$10*Resultats!AE26^2+Poly_Vapeur!S$10*Resultats!AE26+Poly_Vapeur!T$10 -> 101.9006134 | AK26: =IF(W26<AH25,1,0) -> 0 | AL26: =IF(V26>AG25,1,0) -> 0 | AM26: 5.5 | AQ26: 5.75
A27: =IF(B27=1,A26,A26+0.25) -> 6 | B27: =IF(AND(G27<0.0001,F26>0.09),1,0) -> 0 | C27: =IF(OR(AND(G27=0,F26<0),AND(G27>0,F26>-0.2)),1,0) -> 1 | D27: 35 | E27: =60-D27 -> 25 | F27: =AJ27-U27 -> 2.120281535 | G27: =W27-AH26 -> 12.72878095 | H27: =H26+J27-K27 -> 21260.96 | I27: =I26+K27-J27 -> 2494.4775 | J27: =IF((Q26-AH26)<0,-(AK26*I26*(Q26-AH26))/(AH26-AG26),0) -> 0 | K27: =IF((P26-AG26)>0,(AL26*H26*(P26-AG26))/(AH26-AG26),0) -> 0 | L27: =(INDEX(temp_liq,(MATCH(AE27,Pression_liq,-1)+1),MATCH("coeff1",coeff_liq,0))+(AE27-INDEX(Pression_liq,MATCH(AE27,Pression_liq,-1)+1))*(INDEX(temp_liq,(MATCH(AE27,Pression_liq,-1)),MATCH("coeff1",coeff_liq,0))-INDEX(temp_liq,(MATCH(AE27,Pression_liq,-1)+1),MATCH("coeff1",coeff_liq,0)))/(INDEX(Pression_liq,MATCH(AE27,Pression_liq,-1))-INDEX(Pression_liq,MATCH(AE27,Pression_liq,-1)+1)))*(V27/10000)^4+(INDEX(temp_liq,(MATCH(AE27,Pression_liq,-1)+1),MATCH("coeff2",coeff_liq,0))+(AE27-INDEX(Pression_liq,MATCH(AE27,Pression_liq,-1)+1))*(INDEX(temp_liq,(MATCH(AE27,Pression_liq,-1)),MATCH("coeff2",coeff_liq,0))-INDEX(temp_liq,(MATCH(AE27,Pression_liq,-1)+1),MATCH("coeff2",coeff_liq,0)))/(INDEX(Pression_liq,MATCH(AE27,Pression_liq,-1))-INDEX(Pression_liq,MATCH(AE27,Pression_liq,-1)+1)))*(V27/10000)^3+(INDEX(temp_liq,(MATCH(AE27,Pression_liq,-1)+1),MATCH("coeff3",coeff_liq,0))+(AE27-INDEX(Pression_liq,MATCH(AE27,Pression_liq,-1)+1))*(INDEX(temp_liq,(MATCH(AE27,Pression_liq,-1)),MATCH("coeff3",coeff_liq,0))-INDEX(temp_liq,(MATCH(AE27,Pression_liq,-1)+1),MATCH("coeff3",coeff_liq,0)))/(INDEX(Pression_liq,MATCH(AE27,Pression_liq,-1))-INDEX(Pression_liq,MATCH(AE27,Pression_liq,-1)+1)))*(V27/10000)^2+(INDEX(temp_liq,(MATCH(AE27,Pression_liq,-1)+1),MATCH("coeff4",coeff_liq,0))+(AE27-INDEX(Pression_liq,MATCH(AE27,Pression_liq,-1)+1))*(INDEX(temp_liq,(MATCH(AE27,Pression_liq,-1)),MATCH("coeff4",coeff_liq,0))-INDEX(temp_liq,(MATCH(AE27,Pression_liq,-1)+1),MATCH("coeff4",coeff_liq,0)))/(INDEX(Pression_liq,MATCH(AE27,Pression_liq,-1))-INDEX(Pression_liq,MATCH(AE27,Pression_liq,-1)+1)))*(V27/10000)+(INDEX(temp_liq,(MATCH(AE27,Pression_liq,-1)+1),MATCH("coeff5",coeff_liq,0))+(AE27-INDEX(Pression_liq,MATCH(AE27,Pression_liq,-1)+1))*(INDEX(temp_liq,(MATCH(AE27,Pression_liq,-1)),MATCH("coeff5",coeff_liq,0))-INDEX(temp_liq,(MATCH(AE27,Pression_liq,-1)+1),MATCH("coeff5",coeff_liq,0)))/(INDEX(Pression_liq,MATCH(AE27,Pression_liq,-1))-INDEX(Pression_liq,MATCH(AE27,Pression_liq,-1)+1))) -> 341.9976841 | M27: =(INDEX(temp_vap,(MATCH(AE27,Pression_vap,-1)+1),MATCH("coeff1",coeff_vap,0))+(AE27-INDEX(Pression_vap,MATCH(AE27,Pression_vap,-1)+1))*(INDEX(temp_vap,(MATCH(AE27,Pression_vap,-1)),MATCH("coeff1",coeff_vap,0))-INDEX(temp_vap,(MATCH(AE27,Pression_vap,-1)+1),MATCH("coeff1",coeff_vap,0)))/(INDEX(Pression_vap,MATCH(AE27,Pression_vap,-1))-INDEX(Pression_vap,MATCH(AE27,Pression_vap,-1)+1)))*(W27/10000)^4+(INDEX(temp_vap,(MATCH(AE27,Pression_vap,-1)+1),MATCH("coeff2",coeff_vap,0))+(AE27-INDEX(Pression_vap,MATCH(AE27,Pression_vap,-1)+1))*(INDEX(temp_vap,(MATCH(AE27,Pression_vap,-1)),MATCH("coeff2",coeff_vap,0))-INDEX(temp_vap,(MATCH(AE27,Pression_vap,-1)+1),MATCH("coeff2",coeff_vap,0)))/(INDEX(Pression_vap,MATCH(AE27,Pression_vap,-1))-INDEX(Pression_vap,MATCH(AE27,Pression_vap,-1)+1)))*(W27/10000)^3+(INDEX(temp_vap,(MATCH(AE27,Pression_vap,-1)+1),MATCH("coeff3",coeff_vap,0))+(AE27-INDEX(Pression_vap,MATCH(AE27,Pression_vap,-1)+1))*(INDEX(temp_vap,(MATCH(AE27,Pression_vap,-1)),MATCH("coeff3",coeff_vap,0))-INDEX(temp_vap,(MATCH(AE27,Pression_vap,-1)+1),MATCH("coeff3",coeff_vap,0)))/(INDEX(Pression_vap,MATCH(AE27,Pression_vap,-1))-INDEX(Pression_vap,MATCH(AE27,Pression_vap,-1)+1)))*(W27/10000)^2+(INDEX(temp_vap,(MATCH(AE27,Pression_vap,-1)+1),MATCH("coeff4",coeff_vap,0))+(AE27-INDEX(Pression_vap,MATCH(AE27,Pression_vap,-1)+1))*(INDEX(temp_vap,(MATCH(AE27,Pression_vap,-1)),MATCH("coeff4",coeff_vap,0))-INDEX(temp_vap,(MATCH(AE27,Pression_vap,-1)+1),MATCH("coeff4",coeff_vap,0)))/(INDEX(Pression_vap,MATCH(AE27,Pression_vap,-1))-INDEX(Pression_vap,MATCH(AE27,Pression_vap,-1)+1)))*(W27/10000)+(INDEX(temp_vap,(MATCH(AE27,Pression_vap,-1)+1),MATCH("coeff5",coeff_vap,0))+(AE27-INDEX(Pression_vap,MATCH(AE27,Pression_vap,-1)+1))*(INDEX(temp_vap,(MATCH(AE27,Pression_vap,-1)),MATCH("coeff5",coeff_vap,0))-INDEX(temp_vap,(MATCH(AE27,Pression_vap,-1)+1),MATCH("coeff5",coeff_vap,0)))/(INDEX(Pression_vap,MATCH(AE27,Pression_vap,-1))-INDEX(Pression_vap,MATCH(AE27,Pression_vap,-1)+1))) -> 345.9684886 | N27: =IF(AND(B27=0,C27=0,ABS(L27-M27)<0.02),0,M27-L27) -> 3.970804545 | O27: =2500*4.91*N27*(A27-A26)/1000 -> 12.18540645 | P27: =(V27*H27+O27)/H27 -> 1580.423704 | Q27: =(W27*I27-O27)/I27 -> 2456.8432 | R27: =H27*V27+I27*W27 -> 39729865.23 | S27: =H27+I27 -> 23755.4375 | T27: =$T$3 -> 607.456 | U27: =I27/E27 -> 99.7791 | V27: =((P26*H26+J27*AG26-K27*(AH26-AG26))/(H26+J27))+Z27 -> 1580.423131 | W27: =((Q26*I26+K27*AH26+J27*(AH26-AG26))/(I26+K27)) -> 2456.848084 | X27: =IF(AND($AJ$3=1,AA26<=153.3),1580,0) -> 0 | Y27: =IF(AND($AJ$3=1,AND(AA26>=154,AA26<=156)),(-290*AA26+45240),IF(AND($AJ$3=1,AA3<=154),580,0)) -> 0 | Z27: =((X27+Y27)*(A27-A26))/H27 -> 0 | AA27: =IF(AND($AO$3=1,AE26<156.7),((1/3600)*2),0) -> 0.0005555555556 | AB27: =IF(AND($AO$3=1,AND(AE26>156.7,AE26<160.2)),(((35.14*AE26-5550.88)/3600)*2),0) -> 0 | AC27: =IF(AND($AO$3=1,AE26>=160.2),((125/3600)*2),0) -> 0 | AD27: =(A27-A26)*(AA27+AB27+AC27)*(AG27-1269.44) -> 0.04642447373 | AE27: =IF(C27=1,INDEX(Pression,MATCH(INDEX(OFFSET(INDEX(uV,MATCH(W27,uV,1)),1,0):OFFSET(INDEX(uV,MATCH(W27,uV,1)),71,0),MATCH(U27,OFFSET(INDEX(uV,MATCH(W27,uV,1)),1,0):OFFSET(INDEX(uV,MATCH(W27,uV,1)),71,0),-1)+1),INDEX(densite_vap,,MATCH(W27,uV,1)),-1))+(U27-INDEX(OFFSET(INDEX(uV,MATCH(W27,uV,1)),1,0):OFFSET(INDEX(uV,MATCH(W27,uV,1)),71,0),MATCH(U27,OFFSET(INDEX(uV,MATCH(W27,uV,1)),1,0):OFFSET(INDEX(uV,MATCH(W27,uV,1)),71,0),-1)+1)+(W27-INDEX(uV,MATCH(W27,uV,1)))*(INDEX(OFFSET(INDEX(uV,MATCH(W27,uV,1)+1),1,0):OFFSET(INDEX(uV,MATCH(W27,uV,1)+1),71,0),MATCH(U27,OFFSET(INDEX(uV,MATCH(W27,uV,1)+1),1,0):OFFSET(INDEX(uV,MATCH(W27,uV,1)+1),71,0),-1)+1)-INDEX(OFFSET(INDEX(uV,MATCH(W27,uV,1)),1,0):OFFSET(INDEX(uV,MATCH(W27,uV,1)),71,0),MATCH(U27,OFFSET(INDEX(uV,MATCH(W27,uV,1)),1,0):OFFSET(INDEX(uV,MATCH(W27,uV,1)),71,0),-1)+1))/(INDEX(uV,MATCH(W27,uV,1)+1)-INDEX(uV,MATCH(W27,uV,1))))*(INDEX(Pression,MATCH(INDEX(OFFSET(INDEX(uV,MATCH(W27,uV,1)),1,0):OFFSET(INDEX(uV,MATCH(W27,uV,1)),71,0),MATCH(U27,OFFSET(INDEX(uV,MATCH(W27,uV,1)),1,0):OFFSET(INDEX(uV,MATCH(W27,uV,1)),71,0),-1)),INDEX(densite_vap,,MATCH(W27,uV,1)),-1),1)-INDEX(Pression,MATCH(INDEX(OFFSET(INDEX(uV,MATCH(W27,uV,1)),1,0):OFFSET(INDEX(uV,MATCH(W27,uV,1)),71,0),MATCH(U27,OFFSET(INDEX(uV,MATCH(W27,uV,1)),1,0):OFFSET(INDEX(uV,MATCH(W27,uV,1)),71,0),-1)+1),INDEX(densite_vap,,MATCH(W27,uV,1)),-1)))/(INDEX(OFFSET(INDEX(uV,MATCH(W27,uV,1)),1,0):OFFSET(INDEX(uV,MATCH(W27,uV,1)),71,0),MATCH(U27,OFFSET(INDEX(uV,MATCH(W27,uV,1)),1,0):OFFSET(INDEX(uV,MATCH(W27,uV,1)),71,0),-1))+(W27-INDEX(uV,MATCH(W27,uV,1)))*(INDEX(OFFSET(INDEX(uV,MATCH(W27,uV,1)+1),1,0):OFFSET(INDEX(uV,MATCH(W27,uV,1)+1),71,0),MATCH(U27,OFFSET(INDEX(uV,MATCH(W27,uV,1)+1),1,0):OFFSET(INDEX(uV,MATCH(W27,uV,1)+1),71,0),-1))-INDEX(OFFSET(INDEX(uV,MATCH(W27,uV,1)),1,0):OFFSET(INDEX(uV,MATCH(W27,uV,1)),71,0),MATCH(U27,OFFSET(INDEX(uV,MATCH(W27,uV,1)),1,0):OFFSET(INDEX(uV,MATCH(W27,uV,1)),71,0),-1)))/(INDEX(uV,MATCH(W27,uV,1)+1)-INDEX(uV,MATCH(W27,uV,1)))-INDEX(OFFSET(INDEX(uV,MATCH(W27,uV,1)),1,0):OFFSET(INDEX(uV,MATCH(W27,uV,1)),71,0),MATCH(U27,OFFSET(INDEX(uV,MATCH(W27,uV,1)),1,0):OFFSET(INDEX(uV,MATCH(W27,uV,1)),71,0),-1)+1)+(W27-INDEX(uV,MATCH(W27,uV,1)))*(INDEX(OFFSET(INDEX(uV,MATCH(W27,uV,1)+1),1,0):OFFSET(INDEX(uV,MATCH(W27,uV,1)+1),71,0),MATCH(U27,OFFSET(INDEX(uV,MATCH(W27,uV,1)+1),1,0):OFFSET(INDEX(uV,MATCH(W27,uV,1)+1),71,0),-1)+1)-INDEX(OFFSET(INDEX(uV,MATCH(W27,uV,1)),1,0):OFFSET(INDEX(uV,MATCH(W27,uV,1)),71,0),MATCH(U27,OFFSET(INDEX(uV,MATCH(W27,uV,1)),1,0):OFFSET(INDEX(uV,MATCH(W27,uV,1)),71,0),-1)+1))/(INDEX(uV,MATCH(W27,uV,1)+1)-INDEX(uV,MATCH(W27,uV,1)))),IF(B27=1,AE26-0.01,AE26)) -> 154.9714483 | AF27: =Poly_Vapeur!$P$14*Resultats!AE27^4+Poly_Vapeur!$Q$14*Resultats!AE27^3+Poly_Vapeur!$R$14*Resultats!AE27^2+Poly_Vapeur!$S$14*Resultats!AE27+Poly_Vapeur!$T$14 -> 344.7745267 | AG27: =Poly_Liquide!$Q$6*Resultats!AE27^4+Poly_Liquide!$R$6*Resultats!AE27^3+Poly_Liquide!$S$6*Resultats!AE27^2+Poly_Liquide!$T$6*Resultats!AE27+Poly_Liquide!$U$6 -> 1603.696211 | AH27: =Poly_Vapeur!$P$6*Resultats!AE27^4+Poly_Vapeur!$Q$6*Resultats!AE27^3+Poly_Vapeur!$R$6*Resultats!AE27^2+Poly_Vapeur!$S$6*Resultats!AE27+Poly_Vapeur!$T$6 -> 2444.122042 | AI27: =Poly_Liquide!Q$10*Resultats!AE27^4+Poly_Liquide!R$10*Resultats!AE27^3+Poly_Liquide!S$10*Resultats!AE27^2+Poly_Liquide!T$10*Resultats!AE27+Poly_Liquide!U$10 -> 594.431997 | AJ27: =Poly_Vapeur!P$10*Resultats!AE27^4+Poly_Vapeur!Q$10*Resultats!AE27^3+Poly_Vapeur!R$10*Resultats!AE27^2+Poly_Vapeur!S$10*Resultats!AE27+Poly_Vapeur!T$10 -> 101.8993815 | AK27: =IF(W27<AH26,1,0) -> 0 | AL27: =IF(V27>AG26,1,0) -> 0 | AM27: 5.75 | AQ27: 6
A28: =IF(B28=1,A27,A27+0.25) -> 6.25 | B28: =IF(AND(G28<0.0001,F27>0.09),1,0) -> 0 | C28: =IF(OR(AND(G28=0,F27<0),AND(G28>0,F27>-0.2)),1,0) -> 1 | D28: 35 | E28: =60-D28 -> 25 | F28: =AJ28-U28 -> 2.119062802 | G28: =W28-AH27 -> 12.7211579 | H28: =H27+J28-K28 -> 21260.96 | I28: =I27+K28-J28 -> 2494.4775 | J28: =IF((Q27-AH27)<0,-(AK27*I27*(Q27-AH27))/(AH27-AG27),0) -> 0 | K28: =IF((P27-AG27)>0,(AL27*H27*(P27-AG27))/(AH27-AG27),0) -> 0 | L28: =(INDEX(temp_liq,(MATCH(AE28,Pression_liq,-1)+1),MATCH("coeff1",coeff_liq,0))+(AE28-INDEX(Pression_liq,MATCH(AE28,Pression_liq,-1)+1))*(INDEX(temp_liq,(MATCH(AE28,Pression_liq,-1)),MATCH("coeff1",coeff_liq,0))-INDEX(temp_liq,(MATCH(AE28,Pression_liq,-1)+1),MATCH("coeff1",coeff_liq,0)))/(INDEX(Pression_liq,MATCH(AE28,Pression_liq,-1))-INDEX(Pression_liq,MATCH(AE28,Pression_liq,-1)+1)))*(V28/10000)^4+(INDEX(temp_liq,(MATCH(AE28,Pression_liq,-1)+1),MATCH("coeff2",coeff_liq,0))+(AE28-INDEX(Pression_liq,MATCH(AE28,Pression_liq,-1)+1))*(INDEX(temp_liq,(MATCH(AE28,Pression_liq,-1)),MATCH("coeff2",coeff_liq,0))-INDEX(temp_liq,(MATCH(AE28,Pression_liq,-1)+1),MATCH("coeff2",coeff_liq,0)))/(INDEX(Pression_liq,MATCH(AE28,Pression_liq,-1))-INDEX(Pression_liq,MATCH(AE28,Pression_liq,-1)+1)))*(V28/10000)^3+(INDEX(temp_liq,(MATCH(AE28,Pression_liq,-1)+1),MATCH("coeff3",coeff_liq,0))+(AE28-INDEX(Pression_liq,MATCH(AE28,Pression_liq,-1)+1))*(INDEX(temp_liq,(MATCH(AE28,Pression_liq,-1)),MATCH("coeff3",coeff_liq,0))-INDEX(temp_liq,(MATCH(AE28,Pression_liq,-1)+1),MATCH("coeff3",coeff_liq,0)))/(INDEX(Pression_liq,MATCH(AE28,Pression_liq,-1))-INDEX(Pression_liq,MATCH(AE28,Pression_liq,-1)+1)))*(V28/10000)^2+(INDEX(temp_liq,(MATCH(AE28,Pression_liq,-1)+1),MATCH("coeff4",coeff_liq,0))+(AE28-INDEX(Pression_liq,MATCH(AE28,Pression_liq,-1)+1))*(INDEX(temp_liq,(MATCH(AE28,Pression_liq,-1)),MATCH("coeff4",coeff_liq,0))-INDEX(temp_liq,(MATCH(AE28,Pression_liq,-1)+1),MATCH("coeff4",coeff_liq,0)))/(INDEX(Pression_liq,MATCH(AE28,Pression_liq,-1))-INDEX(Pression_liq,MATCH(AE28,Pression_liq,-1)+1)))*(V28/10000)+(INDEX(temp_liq,(MATCH(AE28,Pression_liq,-1)+1),MATCH("coeff5",coeff_liq,0))+(AE28-INDEX(Pression_liq,MATCH(AE28,Pression_liq,-1)+1))*(INDEX(temp_liq,(MATCH(AE28,Pression_liq,-1)),MATCH("coeff5",coeff_liq,0))-INDEX(temp_liq,(MATCH(AE28,Pression_liq,-1)+1),MATCH("coeff5",coeff_liq,0)))/(INDEX(Pression_liq,MATCH(AE28,Pression_liq,-1))-INDEX(Pression_liq,MATCH(AE28,Pression_liq,-1)+1))) -> 341.9976548 | M28: =(INDEX(temp_vap,(MATCH(AE28,Pression_vap,-1)+1),MATCH("coeff1",coeff_vap,0))+(AE28-INDEX(Pression_vap,MATCH(AE28,Pression_vap,-1)+1))*(INDEX(temp_vap,(MATCH(AE28,Pression_vap,-1)),MATCH("coeff1",coeff_vap,0))-INDEX(temp_vap,(MATCH(AE28,Pression_vap,-1)+1),MATCH("coeff1",coeff_vap,0)))/(INDEX(Pression_vap,MATCH(AE28,Pression_vap,-1))-INDEX(Pression_vap,MATCH(AE28,Pression_vap,-1)+1)))*(W28/10000)^4+(INDEX(temp_vap,(MATCH(AE28,Pression_vap,-1)+1),MATCH("coeff2",coeff_vap,0))+(AE28-INDEX(Pression_vap,MATCH(AE28,Pression_vap,-1)+1))*(INDEX(temp_vap,(MATCH(AE28,Pression_vap,-1)),MATCH("coeff2",coeff_vap,0))-INDEX(temp_vap,(MATCH(AE28,Pression_vap,-1)+1),MATCH("coeff2",coeff_vap,0)))/(INDEX(Pression_vap,MATCH(AE28,Pression_vap,-1))-INDEX(Pression_vap,MATCH(AE28,Pression_vap,-1)+1)))*(W28/10000)^3+(INDEX(temp_vap,(MATCH(AE28,Pression_vap,-1)+1),MATCH("coeff3",coeff_vap,0))+(AE28-INDEX(Pression_vap,MATCH(AE28,Pression_vap,-1)+1))*(INDEX(temp_vap,(MATCH(AE28,Pression_vap,-1)),MATCH("coeff3",coeff_vap,0))-INDEX(temp_vap,(MATCH(AE28,Pression_vap,-1)+1),MATCH("coeff3",coeff_vap,0)))/(INDEX(Pression_vap,MATCH(AE28,Pression_vap,-1))-INDEX(Pression_vap,MATCH(AE28,Pression_vap,-1)+1)))*(W28/10000)^2+(INDEX(temp_vap,(MATCH(AE28,Pression_vap,-1)+1),MATCH("coeff4",coeff_vap,0))+(AE28-INDEX(Pression_vap,MATCH(AE28,Pression_vap,-1)+1))*(INDEX(temp_vap,(MATCH(AE28,Pression_vap,-1)),MATCH("coeff4",coeff_vap,0))-INDEX(temp_vap,(MATCH(AE28,Pression_vap,-1)+1),MATCH("coeff4",coeff_vap,0)))/(INDEX(Pression_vap,MATCH(AE28,Pression_vap,-1))-INDEX(Pression_vap,MATCH(AE28,Pression_vap,-1)+1)))*(W28/10000)+(INDEX(temp_vap,(MATCH(AE28,Pression_vap,-1)+1),MATCH("coeff5",coeff_vap,0))+(AE28-INDEX(Pression_vap,MATCH(AE28,Pression_vap,-1)+1))*(INDEX(temp_vap,(MATCH(AE28,Pression_vap,-1)),MATCH("coeff5",coeff_vap,0))-INDEX(temp_vap,(MATCH(AE28,Pression_vap,-1)+1),MATCH("coeff5",coeff_vap,0)))/(INDEX(Pression_vap,MATCH(AE28,Pression_vap,-1))-INDEX(Pression_vap,MATCH(AE28,Pression_vap,-1)+1))) -> 345.9671702 | N28: =IF(AND(B28=0,C28=0,ABS(L28-M28)<0.02),0,M28-L28) -> 3.969515404 | O28: =2500*4.91*N28*(A28-A27)/1000 -> 12.1814504 | P28: =(V28*H28+O28)/H28 -> 1580.424277 | Q28: =(W28*I28-O28)/I28 -> 2456.838316 | R28: =H28*V28+I28*W28 -> 39729865.23 | S28: =H28+I28 -> 23755.4375 | T28: =$T$3 -> 607.456 | U28: =I28/E28 -> 99.7791 | V28: =((P27*H27+J28*AG27-K28*(AH27-AG27))/(H27+J28))+Z28 -> 1580.423704 | W28: =((Q27*I27+K28*AH27+J28*(AH27-AG27))/(I27+K28)) -> 2456.8432 | X28: =IF(AND($AJ$3=1,AA27<=153.3),1580,0) -> 0 | Y28: =IF(AND($AJ$3=1,AND(AA27>=154,AA27<=156)),(-290*AA27+45240),IF(AND($AJ$3=1,AA3<=154),580,0)) -> 0 | Z28: =((X28+Y28)*(A28-A27))/H28 -> 0 | AA28: =IF(AND($AO$3=1,AE27<156.7),((1/3600)*2),0) -> 0.0005555555556 | AB28: =IF(AND($AO$3=1,AND(AE27>156.7,AE27<160.2)),(((35.14*AE27-5550.88)/3600)*2),0) -> 0 | AC28: =IF(AND($AO$3=1,AE27>=160.2),((125/3600)*2),0) -> 0 | AD28: =(A28-A27)*(AA28+AB28+AC28)*(AG28-1269.44) -> 0.04642388792 | AE28: =IF(C28=1,INDEX(Pression,MATCH(INDEX(OFFSET(INDEX(uV,MATCH(W28,uV,1)),1,0):OFFSET(INDEX(uV,MATCH(W28,uV,1)),71,0),MATCH(U28,OFFSET(INDEX(uV,MATCH(W28,uV,1)),1,0):OFFSET(INDEX(uV,MATCH(W28,uV,1)),71,0),-1)+1),INDEX(densite_vap,,MATCH(W28,uV,1)),-1))+(U28-INDEX(OFFSET(INDEX(uV,MATCH(W28,uV,1)),1,0):OFFSET(INDEX(uV,MATCH(W28,uV,1)),71,0),MATCH(U28,OFFSET(INDEX(uV,MATCH(W28,uV,1)),1,0):OFFSET(INDEX(uV,MATCH(W28,uV,1)),71,0),-1)+1)+(W28-INDEX(uV,MATCH(W28,uV,1)))*(INDEX(OFFSET(INDEX(uV,MATCH(W28,uV,1)+1),1,0):OFFSET(INDEX(uV,MATCH(W28,uV,1)+1),71,0),MATCH(U28,OFFSET(INDEX(uV,MATCH(W28,uV,1)+1),1,0):OFFSET(INDEX(uV,MATCH(W28,uV,1)+1),71,0),-1)+1)-INDEX(OFFSET(INDEX(uV,MATCH(W28,uV,1)),1,0):OFFSET(INDEX(uV,MATCH(W28,uV,1)),71,0),MATCH(U28,OFFSET(INDEX(uV,MATCH(W28,uV,1)),1,0):OFFSET(INDEX(uV,MATCH(W28,uV,1)),71,0),-1)+1))/(INDEX(uV,MATCH(W28,uV,1)+1)-INDEX(uV,MATCH(W28,uV,1))))*(INDEX(Pression,MATCH(INDEX(OFFSET(INDEX(uV,MATCH(W28,uV,1)),1,0):OFFSET(INDEX(uV,MATCH(W28,uV,1)),71,0),MATCH(U28,OFFSET(INDEX(uV,MATCH(W28,uV,1)),1,0):OFFSET(INDEX(uV,MATCH(W28,uV,1)),71,0),-1)),INDEX(densite_vap,,MATCH(W28,uV,1)),-1),1)-INDEX(Pression,MATCH(INDEX(OFFSET(INDEX(uV,MATCH(W28,uV,1)),1,0):OFFSET(INDEX(uV,MATCH(W28,uV,1)),71,0),MATCH(U28,OFFSET(INDEX(uV,MATCH(W28,uV,1)),1,0):OFFSET(INDEX(uV,MATCH(W28,uV,1)),71,0),-1)+1),INDEX(densite_vap,,MATCH(W28,uV,1)),-1)))/(INDEX(OFFSET(INDEX(uV,MATCH(W28,uV,1)),1,0):OFFSET(INDEX(uV,MATCH(W28,uV,1)),71,0),MATCH(U28,OFFSET(INDEX(uV,MATCH(W28,uV,1)),1,0):OFFSET(INDEX(uV,MATCH(W28,uV,1)),71,0),-1))+(W28-INDEX(uV,MATCH(W28,uV,1)))*(INDEX(OFFSET(INDEX(uV,MATCH(W28,uV,1)+1),1,0):OFFSET(INDEX(uV,MATCH(W28,uV,1)+1),71,0),MATCH(U28,OFFSET(INDEX(uV,MATCH(W28,uV,1)+1),1,0):OFFSET(INDEX(uV,MATCH(W28,uV,1)+1),71,0),-1))-INDEX(OFFSET(INDEX(uV,MATCH(W28,uV,1)),1,0):OFFSET(INDEX(uV,MATCH(W28,uV,1)),71,0),MATCH(U28,OFFSET(INDEX(uV,MATCH(W28,uV,1)),1,0):OFFSET(INDEX(uV,MATCH(W28,uV,1)),71,0),-1)))/(INDEX(uV,MATCH(W28,uV,1)+1)-INDEX(uV,MATCH(W28,uV,1)))-INDEX(OFFSET(INDEX(uV,MATCH(W28,uV,1)),1,0):OFFSET(INDEX(uV,MATCH(W28,uV,1)),71,0),MATCH(U28,OFFSET(INDEX(uV,MATCH(W28,uV,1)),1,0):OFFSET(INDEX(uV,MATCH(W28,uV,1)),71,0),-1)+1)+(W28-INDEX(uV,MATCH(W28,uV,1)))*(INDEX(OFFSET(INDEX(uV,MATCH(W28,uV,1)+1),1,0):OFFSET(INDEX(uV,MATCH(W28,uV,1)+1),71,0),MATCH(U28,OFFSET(INDEX(uV,MATCH(W28,uV,1)+1),1,0):OFFSET(INDEX(uV,MATCH(W28,uV,1)+1),71,0),-1)+1)-INDEX(OFFSET(INDEX(uV,MATCH(W28,uV,1)),1,0):OFFSET(INDEX(uV,MATCH(W28,uV,1)),71,0),MATCH(U28,OFFSET(INDEX(uV,MATCH(W28,uV,1)),1,0):OFFSET(INDEX(uV,MATCH(W28,uV,1)),71,0),-1)+1))/(INDEX(uV,MATCH(W28,uV,1)+1)-INDEX(uV,MATCH(W28,uV,1)))),IF(B28=1,AE27-0.01,AE27)) -> 154.9703075 | AF28: =Poly_Vapeur!$P$14*Resultats!AE28^4+Poly_Vapeur!$Q$14*Resultats!AE28^3+Poly_Vapeur!$R$14*Resultats!AE28^2+Poly_Vapeur!$S$14*Resultats!AE28+Poly_Vapeur!$T$14 -> 344.7739336 | AG28: =Poly_Liquide!$Q$6*Resultats!AE28^4+Poly_Liquide!$R$6*Resultats!AE28^3+Poly_Liquide!$S$6*Resultats!AE28^2+Poly_Liquide!$T$6*Resultats!AE28+Poly_Liquide!$U$6 -> 1603.691993 | AH28: =Poly_Vapeur!$P$6*Resultats!AE28^4+Poly_Vapeur!$Q$6*Resultats!AE28^3+Poly_Vapeur!$R$6*Resultats!AE28^2+Poly_Vapeur!$S$6*Resultats!AE28+Poly_Vapeur!$T$6 -> 2444.124751 | AI28: =Poly_Liquide!Q$10*Resultats!AE28^4+Poly_Liquide!R$10*Resultats!AE28^3+Poly_Liquide!S$10*Resultats!AE28^2+Poly_Liquide!T$10*Resultats!AE28+Poly_Liquide!U$10 -> 594.4341089 | AJ28: =Poly_Vapeur!P$10*Resultats!AE28^4+Poly_Vapeur!Q$10*Resultats!AE28^3+Poly_Vapeur!R$10*Resultats!AE28^2+Poly_Vapeur!S$10*Resultats!AE28+Poly_Vapeur!T$10 -> 101.8981628 | AK28: =IF(W28<AH27,1,0) -> 0 | AL28: =IF(V28>AG27,1,0) -> 0 | AM28: 6 | AQ28: 6.25
A29: =IF(B29=1,A28,A28+0.25) -> 6.5 | B29: =IF(AND(G29<0.0001,F28>0.09),1,0) -> 0 | C29: =IF(OR(AND(G29=0,F28<0),AND(G29>0,F28>-0.2)),1,0) -> 1 | D29: 35 | E29: =60-D29 -> 25 | F29: =AJ29-U29 -> 2.117856943 | G29: =W29-AH28 -> 12.71356553 | H29: =H28+J29-K29 -> 21260.96 | I29: =I28+K29-J29 -> 2494.4775 | J29: =IF((Q28-AH28)<0,-(AK28*I28*(Q28-AH28))/(AH28-AG28),0) -> 0 | K29: =IF((P28-AG28)>0,(AL28*H28*(P28-AG28))/(AH28-AG28),0) -> 0 | L29: =(INDEX(temp_liq,(MATCH(AE29,Pression_liq,-1)+1),MATCH("coeff1",coeff_liq,0))+(AE29-INDEX(Pression_liq,MATCH(AE29,Pression_liq,-1)+1))*(INDEX(temp_liq,(MATCH(AE29,Pression_liq,-1)),MATCH("coeff1",coeff_liq,0))-INDEX(temp_liq,(MATCH(AE29,Pression_liq,-1)+1),MATCH("coeff1",coeff_liq,0)))/(INDEX(Pression_liq,MATCH(AE29,Pression_liq,-1))-INDEX(Pression_liq,MATCH(AE29,Pression_liq,-1)+1)))*(V29/10000)^4+(INDEX(temp_liq,(MATCH(AE29,Pression_liq,-1)+1),MATCH("coeff2",coeff_liq,0))+(AE29-INDEX(Pression_liq,MATCH(AE29,Pression_liq,-1)+1))*(INDEX(temp_liq,(MATCH(AE29,Pression_liq,-1)),MATCH("coeff2",coeff_liq,0))-INDEX(temp_liq,(MATCH(AE29,Pression_liq,-1)+1),MATCH("coeff2",coeff_liq,0)))/(INDEX(Pression_liq,MATCH(AE29,Pression_liq,-1))-INDEX(Pression_liq,MATCH(AE29,Pression_liq,-1)+1)))*(V29/10000)^3+(INDEX(temp_liq,(MATCH(AE29,Pression_liq,-1)+1),MATCH("coeff3",coeff_liq,0))+(AE29-INDEX(Pression_liq,MATCH(AE29,Pression_liq,-1)+1))*(INDEX(temp_liq,(MATCH(AE29,Pression_liq,-1)),MATCH("coeff3",coeff_liq,0))-INDEX(temp_liq,(MATCH(AE29,Pression_liq,-1)+1),MATCH("coeff3",coeff_liq,0)))/(INDEX(Pression_liq,MATCH(AE29,Pression_liq,-1))-INDEX(Pression_liq,MATCH(AE29,Pression_liq,-1)+1)))*(V29/10000)^2+(INDEX(temp_liq,(MATCH(AE29,Pression_liq,-1)+1),MATCH("coeff4",coeff_liq,0))+(AE29-INDEX(Pression_liq,MATCH(AE29,Pression_liq,-1)+1))*(INDEX(temp_liq,(MATCH(AE29,Pression_liq,-1)),MATCH("coeff4",coeff_liq,0))-INDEX(temp_liq,(MATCH(AE29,Pression_liq,-1)+1),MATCH("coeff4",coeff_liq,0)))/(INDEX(Pression_liq,MATCH(AE29,Pression_liq,-1))-INDEX(Pression_liq,MATCH(AE29,Pression_liq,-1)+1)))*(V29/10000)+(INDEX(temp_liq,(MATCH(AE29,Pression_liq,-1)+1),MATCH("coeff5",coeff_liq,0))+(AE29-INDEX(Pression_liq,MATCH(AE29,Pression_liq,-1)+1))*(INDEX(temp_liq,(MATCH(AE29,Pression_liq,-1)),MATCH("coeff5",coeff_liq,0))-INDEX(temp_liq,(MATCH(AE29,Pression_liq,-1)+1),MATCH("coeff5",coeff_liq,0)))/(INDEX(Pression_liq,MATCH(AE29,Pression_liq,-1))-INDEX(Pression_liq,MATCH(AE29,Pression_liq,-1)+1))) -> 341.9976266 | M29: =(INDEX(temp_vap,(MATCH(AE29,Pression_vap,-1)+1),MATCH("coeff1",coeff_vap,0))+(AE29-INDEX(Pression_vap,MATCH(AE29,Pression_vap,-1)+1))*(INDEX(temp_vap,(MATCH(AE29,Pression_vap,-1)),MATCH("coeff1",coeff_vap,0))-INDEX(temp_vap,(MATCH(AE29,Pression_vap,-1)+1),MATCH("coeff1",coeff_vap,0)))/(INDEX(Pression_vap,MATCH(AE29,Pression_vap,-1))-INDEX(Pression_vap,MATCH(AE29,Pression_vap,-1)+1)))*(W29/10000)^4+(INDEX(temp_vap,(MATCH(AE29,Pression_vap,-1)+1),MATCH("coeff2",coeff_vap,0))+(AE29-INDEX(Pression_vap,MATCH(AE29,Pression_vap,-1)+1))*(INDEX(temp_vap,(MATCH(AE29,Pression_vap,-1)),MATCH("coeff2",coeff_vap,0))-INDEX(temp_vap,(MATCH(AE29,Pression_vap,-1)+1),MATCH("coeff2",coeff_vap,0)))/(INDEX(Pression_vap,MATCH(AE29,Pression_vap,-1))-INDEX(Pression_vap,MATCH(AE29,Pression_vap,-1)+1)))*(W29/10000)^3+(INDEX(temp_vap,(MATCH(AE29,Pression_vap,-1)+1),MATCH("coeff3",coeff_vap,0))+(AE29-INDEX(Pression_vap,MATCH(AE29,Pression_vap,-1)+1))*(INDEX(temp_vap,(MATCH(AE29,Pression_vap,-1)),MATCH("coeff3",coeff_vap,0))-INDEX(temp_vap,(MATCH(AE29,Pression_vap,-1)+1),MATCH("coeff3",coeff_vap,0)))/(INDEX(Pression_vap,MATCH(AE29,Pression_vap,-1))-INDEX(Pression_vap,MATCH(AE29,Pression_vap,-1)+1)))*(W29/10000)^2+(INDEX(temp_vap,(MATCH(AE29,Pression_vap,-1)+1),MATCH("coeff4",coeff_vap,0))+(AE29-INDEX(Pression_vap,MATCH(AE29,Pression_vap,-1)+1))*(INDEX(temp_vap,(MATCH(AE29,Pression_vap,-1)),MATCH("coeff4",coeff_vap,0))-INDEX(temp_vap,(MATCH(AE29,Pression_vap,-1)+1),MATCH("coeff4",coeff_vap,0)))/(INDEX(Pression_vap,MATCH(AE29,Pression_vap,-1))-INDEX(Pression_vap,MATCH(AE29,Pression_vap,-1)+1)))*(W29/10000)+(INDEX(temp_vap,(MATCH(AE29,Pression_vap,-1)+1),MATCH("coeff5",coeff_vap,0))+(AE29-INDEX(Pression_vap,MATCH(AE29,Pression_vap,-1)+1))*(INDEX(temp_vap,(MATCH(AE29,Pression_vap,-1)),MATCH("coeff5",coeff_vap,0))-INDEX(temp_vap,(MATCH(AE29,Pression_vap,-1)+1),MATCH("coeff5",coeff_vap,0)))/(INDEX(Pression_vap,MATCH(AE29,Pression_vap,-1))-INDEX(Pression_vap,MATCH(AE29,Pression_vap,-1)+1))) -> 345.9658609 | N29: =IF(AND(B29=0,C29=0,ABS(L29-M29)<0.02),0,M29-L29) -> 3.968234252 | O29: =2500*4.91*N29*(A29-A28)/1000 -> 12.17751886 | P29: =(V29*H29+O29)/H29 -> 1580.42485 | Q29: =(W29*I29-O29)/I29 -> 2456.833434 | R29: =H29*V29+I29*W29 -> 39729865.23 | S29: =H29+I29 -> 23755.4375 | T29: =$T$3 -> 607.456 | U29: =I29/E29 -> 99.7791 | V29: =((P28*H28+J29*AG28-K29*(AH28-AG28))/(H28+J29))+Z29 -> 1580.424277 | W29: =((Q28*I28+K29*AH28+J29*(AH28-AG28))/(I28+K29)) -> 2456.838316 | X29: =IF(AND($AJ$3=1,AA28<=153.3),1580,0) -> 0 | Y29: =IF(AND($AJ$3=1,AND(AA28>=154,AA28<=156)),(-290*AA28+45240),IF(AND($AJ$3=1,AA3<=154),580,0)) -> 0 | Z29: =((X29+Y29)*(A29-A28))/H29 -> 0 | AA29: =IF(AND($AO$3=1,AE28<156.7),((1/3600)*2),0) -> 0.0005555555556 | AB29: =IF(AND($AO$3=1,AND(AE28>156.7,AE28<160.2)),(((35.14*AE28-5550.88)/3600)*2),0) -> 0 | AC29: =IF(AND($AO$3=1,AE28>=160.2),((125/3600)*2),0) -> 0 | AD29: =(A29-A28)*(AA29+AB29+AC29)*(AG29-1269.44) -> 0.0464233083 | AE29: =IF(C29=1,INDEX(Pression,MATCH(INDEX(OFFSET(INDEX(uV,MATCH(W29,uV,1)),1,0):OFFSET(INDEX(uV,MATCH(W29,uV,1)),71,0),MATCH(U29,OFFSET(INDEX(uV,MATCH(W29,uV,1)),1,0):OFFSET(INDEX(uV,MATCH(W29,uV,1)),71,0),-1)+1),INDEX(densite_vap,,MATCH(W29,uV,1)),-1))+(U29-INDEX(OFFSET(INDEX(uV,MATCH(W29,uV,1)),1,0):OFFSET(INDEX(uV,MATCH(W29,uV,1)),71,0),MATCH(U29,OFFSET(INDEX(uV,MATCH(W29,uV,1)),1,0):OFFSET(INDEX(uV,MATCH(W29,uV,1)),71,0),-1)+1)+(W29-INDEX(uV,MATCH(W29,uV,1)))*(INDEX(OFFSET(INDEX(uV,MATCH(W29,uV,1)+1),1,0):OFFSET(INDEX(uV,MATCH(W29,uV,1)+1),71,0),MATCH(U29,OFFSET(INDEX(uV,MATCH(W29,uV,1)+1),1,0):OFFSET(INDEX(uV,MATCH(W29,uV,1)+1),71,0),-1)+1)-INDEX(OFFSET(INDEX(uV,MATCH(W29,uV,1)),1,0):OFFSET(INDEX(uV,MATCH(W29,uV,1)),71,0),MATCH(U29,OFFSET(INDEX(uV,MATCH(W29,uV,1)),1,0):OFFSET(INDEX(uV,MATCH(W29,uV,1)),71,0),-1)+1))/(INDEX(uV,MATCH(W29,uV,1)+1)-INDEX(uV,MATCH(W29,uV,1))))*(INDEX(Pression,MATCH(INDEX(OFFSET(INDEX(uV,MATCH(W29,uV,1)),1,0):OFFSET(INDEX(uV,MATCH(W29,uV,1)),71,0),MATCH(U29,OFFSET(INDEX(uV,MATCH(W29,uV,1)),1,0):OFFSET(INDEX(uV,MATCH(W29,uV,1)),71,0),-1)),INDEX(densite_vap,,MATCH(W29,uV,1)),-1),1)-INDEX(Pression,MATCH(INDEX(OFFSET(INDEX(uV,MATCH(W29,uV,1)),1,0):OFFSET(INDEX(uV,MATCH(W29,uV,1)),71,0),MATCH(U29,OFFSET(INDEX(uV,MATCH(W29,uV,1)),1,0):OFFSET(INDEX(uV,MATCH(W29,uV,1)),71,0),-1)+1),INDEX(densite_vap,,MATCH(W29,uV,1)),-1)))/(INDEX(OFFSET(INDEX(uV,MATCH(W29,uV,1)),1,0):OFFSET(INDEX(uV,MATCH(W29,uV,1)),71,0),MATCH(U29,OFFSET(INDEX(uV,MATCH(W29,uV,1)),1,0):OFFSET(INDEX(uV,MATCH(W29,uV,1)),71,0),-1))+(W29-INDEX(uV,MATCH(W29,uV,1)))*(INDEX(OFFSET(INDEX(uV,MATCH(W29,uV,1)+1),1,0):OFFSET(INDEX(uV,MATCH(W29,uV,1)+1),71,0),MATCH(U29,OFFSET(INDEX(uV,MATCH(W29,uV,1)+1),1,0):OFFSET(INDEX(uV,MATCH(W29,uV,1)+1),71,0),-1))-INDEX(OFFSET(INDEX(uV,MATCH(W29,uV,1)),1,0):OFFSET(INDEX(uV,MATCH(W29,uV,1)),71,0),MATCH(U29,OFFSET(INDEX(uV,MATCH(W29,uV,1)),1,0):OFFSET(INDEX(uV,MATCH(W29,uV,1)),71,0),-1)))/(INDEX(uV,MATCH(W29,uV,1)+1)-INDEX(uV,MATCH(W29,uV,1)))-INDEX(OFFSET(INDEX(uV,MATCH(W29,uV,1)),1,0):OFFSET(INDEX(uV,MATCH(W29,uV,1)),71,0),MATCH(U29,OFFSET(INDEX(uV,MATCH(W29,uV,1)),1,0):OFFSET(INDEX(uV,MATCH(W29,uV,1)),71,0),-1)+1)+(W29-INDEX(uV,MATCH(W29,uV,1)))*(INDEX(OFFSET(INDEX(uV,MATCH(W29,uV,1)+1),1,0):OFFSET(INDEX(uV,MATCH(W29,uV,1)+1),71,0),MATCH(U29,OFFSET(INDEX(uV,MATCH(W29,uV,1)+1),1,0):OFFSET(INDEX(uV,MATCH(W29,uV,1)+1),71,0),-1)+1)-INDEX(OFFSET(INDEX(uV,MATCH(W29,uV,1)),1,0):OFFSET(INDEX(uV,MATCH(W29,uV,1)),71,0),MATCH(U29,OFFSET(INDEX(uV,MATCH(W29,uV,1)),1,0):OFFSET(INDEX(uV,MATCH(W29,uV,1)),71,0),-1)+1))/(INDEX(uV,MATCH(W29,uV,1)+1)-INDEX(uV,MATCH(W29,uV,1)))),IF(B29=1,AE28-0.01,AE28)) -> 154.9691787 | AF29: =Poly_Vapeur!$P$14*Resultats!AE29^4+Poly_Vapeur!$Q$14*Resultats!AE29^3+Poly_Vapeur!$R$14*Resultats!AE29^2+Poly_Vapeur!$S$14*Resultats!AE29+Poly_Vapeur!$T$14 -> 344.7733467 | AG29: =Poly_Liquide!$Q$6*Resultats!AE29^4+Poly_Liquide!$R$6*Resultats!AE29^3+Poly_Liquide!$S$6*Resultats!AE29^2+Poly_Liquide!$T$6*Resultats!AE29+Poly_Liquide!$U$6 -> 1603.68782 | AH29: =Poly_Vapeur!$P$6*Resultats!AE29^4+Poly_Vapeur!$Q$6*Resultats!AE29^3+Poly_Vapeur!$R$6*Resultats!AE29^2+Poly_Vapeur!$S$6*Resultats!AE29+Poly_Vapeur!$T$6 -> 2444.127431 | AI29: =Poly_Liquide!Q$10*Resultats!AE29^4+Poly_Liquide!R$10*Resultats!AE29^3+Poly_Liquide!S$10*Resultats!AE29^2+Poly_Liquide!T$10*Resultats!AE29+Poly_Liquide!U$10 -> 594.4361984 | AJ29: =Poly_Vapeur!P$10*Resultats!AE29^4+Poly_Vapeur!Q$10*Resultats!AE29^3+Poly_Vapeur!R$10*Resultats!AE29^2+Poly_Vapeur!S$10*Resultats!AE29+Poly_Vapeur!T$10 -> 101.8969569 | AK29: =IF(W29<AH28,1,0) -> 0 | AL29: =IF(V29>AG28,1,0) -> 0 | AM29: 6.25 | AQ29: 6.5
A30: =IF(B30=1,A29,A29+0.25) -> 6.75 | B30: =IF(AND(G30<0.0001,F29>0.09),1,0) -> 0 | C30: =IF(OR(AND(G30=0,F29<0),AND(G30>0,F29>-0.2)),1,0) -> 1 | D30: 35 | E30: =60-D30 -> 25 | F30: =AJ30-U30 -> 2.116663752 | G30: =W30-AH29 -> 12.70600334 | H30: =H29+J30-K30 -> 21260.96 | I30: =I29+K30-J30 -> 2494.4775 | J30: =IF((Q29-AH29)<0,-(AK29*I29*(Q29-AH29))/(AH29-AG29),0) -> 0 | K30: =IF((P29-AG29)>0,(AL29*H29*(P29-AG29))/(AH29-AG29),0) -> 0 | L30: =(INDEX(temp_liq,(MATCH(AE30,Pression_liq,-1)+1),MATCH("coeff1",coeff_liq,0))+(AE30-INDEX(Pression_liq,MATCH(AE30,Pression_liq,-1)+1))*(INDEX(temp_liq,(MATCH(AE30,Pression_liq,-1)),MATCH("coeff1",coeff_liq,0))-INDEX(temp_liq,(MATCH(AE30,Pression_liq,-1)+1),MATCH("coeff1",coeff_liq,0)))/(INDEX(Pression_liq,MATCH(AE30,Pression_liq,-1))-INDEX(Pression_liq,MATCH(AE30,Pression_liq,-1)+1)))*(V30/10000)^4+(INDEX(temp_liq,(MATCH(AE30,Pression_liq,-1)+1),MATCH("coeff2",coeff_liq,0))+(AE30-INDEX(Pression_liq,MATCH(AE30,Pression_liq,-1)+1))*(INDEX(temp_liq,(MATCH(AE30,Pression_liq,-1)),MATCH("coeff2",coeff_liq,0))-INDEX(temp_liq,(MATCH(AE30,Pression_liq,-1)+1),MATCH("coeff2",coeff_liq,0)))/(INDEX(Pression_liq,MATCH(AE30,Pression_liq,-1))-INDEX(Pression_liq,MATCH(AE30,Pression_liq,-1)+1)))*(V30/10000)^3+(INDEX(temp_liq,(MATCH(AE30,Pression_liq,-1)+1),MATCH("coeff3",coeff_liq,0))+(AE30-INDEX(Pression_liq,MATCH(AE30,Pression_liq,-1)+1))*(INDEX(temp_liq,(MATCH(AE30,Pression_liq,-1)),MATCH("coeff3",coeff_liq,0))-INDEX(temp_liq,(MATCH(AE30,Pression_liq,-1)+1),MATCH("coeff3",coeff_liq,0)))/(INDEX(Pression_liq,MATCH(AE30,Pression_liq,-1))-INDEX(Pression_liq,MATCH(AE30,Pression_liq,-1)+1)))*(V30/10000)^2+(INDEX(temp_liq,(MATCH(AE30,Pression_liq,-1)+1),MATCH("coeff4",coeff_liq,0))+(AE30-INDEX(Pression_liq,MATCH(AE30,Pression_liq,-1)+1))*(INDEX(temp_liq,(MATCH(AE30,Pression_liq,-1)),MATCH("coeff4",coeff_liq,0))-INDEX(temp_liq,(MATCH(AE30,Pression_liq,-1)+1),MATCH("coeff4",coeff_liq,0)))/(INDEX(Pression_liq,MATCH(AE30,Pression_liq,-1))-INDEX(Pression_liq,MATCH(AE30,Pression_liq,-1)+1)))*(V30/10000)+(INDEX(temp_liq,(MATCH(AE30,Pression_liq,-1)+1),MATCH("coeff5",coeff_liq,0))+(AE30-INDEX(Pression_liq,MATCH(AE30,Pression_liq,-1)+1))*(INDEX(temp_liq,(MATCH(AE30,Pression_liq,-1)),MATCH("coeff5",coeff_liq,0))-INDEX(temp_liq,(MATCH(AE30,Pression_liq,-1)+1),MATCH("coeff5",coeff_liq,0)))/(INDEX(Pression_liq,MATCH(AE30,Pression_liq,-1))-INDEX(Pression_liq,MATCH(AE30,Pression_liq,-1)+1))) -> 341.9975994 | M30: =(INDEX(temp_vap,(MATCH(AE30,Pression_vap,-1)+1),MATCH("coeff1",coeff_vap,0))+(AE30-INDEX(Pression_vap,MATCH(AE30,Pression_vap,-1)+1))*(INDEX(temp_vap,(MATCH(AE30,Pression_vap,-1)),MATCH("coeff1",coeff_vap,0))-INDEX(temp_vap,(MATCH(AE30,Pression_vap,-1)+1),MATCH("coeff1",coeff_vap,0)))/(INDEX(Pression_vap,MATCH(AE30,Pression_vap,-1))-INDEX(Pression_vap,MATCH(AE30,Pression_vap,-1)+1)))*(W30/10000)^4+(INDEX(temp_vap,(MATCH(AE30,Pression_vap,-1)+1),MATCH("coeff2",coeff_vap,0))+(AE30-INDEX(Pression_vap,MATCH(AE30,Pression_vap,-1)+1))*(INDEX(temp_vap,(MATCH(AE30,Pression_vap,-1)),MATCH("coeff2",coeff_vap,0))-INDEX(temp_vap,(MATCH(AE30,Pression_vap,-1)+1),MATCH("coeff2",coeff_vap,0)))/(INDEX(Pression_vap,MATCH(AE30,Pression_vap,-1))-INDEX(Pression_vap,MATCH(AE30,Pression_vap,-1)+1)))*(W30/10000)^3+(INDEX(temp_vap,(MATCH(AE30,Pression_vap,-1)+1),MATCH("coeff3",coeff_vap,0))+(AE30-INDEX(Pression_vap,MATCH(AE30,Pression_vap,-1)+1))*(INDEX(temp_vap,(MATCH(AE30,Pression_vap,-1)),MATCH("coeff3",coeff_vap,0))-INDEX(temp_vap,(MATCH(AE30,Pression_vap,-1)+1),MATCH("coeff3",coeff_vap,0)))/(INDEX(Pression_vap,MATCH(AE30,Pression_vap,-1))-INDEX(Pression_vap,MATCH(AE30,Pression_vap,-1)+1)))*(W30/10000)^2+(INDEX(temp_vap,(MATCH(AE30,Pression_vap,-1)+1),MATCH("coeff4",coeff_vap,0))+(AE30-INDEX(Pression_vap,MATCH(AE30,Pression_vap,-1)+1))*(INDEX(temp_vap,(MATCH(AE30,Pression_vap,-1)),MATCH("coeff4",coeff_vap,0))-INDEX(temp_vap,(MATCH(AE30,Pression_vap,-1)+1),MATCH("coeff4",coeff_vap,0)))/(INDEX(Pression_vap,MATCH(AE30,Pression_vap,-1))-INDEX(Pression_vap,MATCH(AE30,Pression_vap,-1)+1)))*(W30/10000)+(INDEX(temp_vap,(MATCH(AE30,Pression_vap,-1)+1),MATCH("coeff5",coeff_vap,0))+(AE30-INDEX(Pression_vap,MATCH(AE30,Pression_vap,-1)+1))*(INDEX(temp_vap,(MATCH(AE30,Pression_vap,-1)),MATCH("coeff5",coeff_vap,0))-INDEX(temp_vap,(MATCH(AE30,Pression_vap,-1)+1),MATCH("coeff5",coeff_vap,0)))/(INDEX(Pression_vap,MATCH(AE30,Pression_vap,-1))-INDEX(Pression_vap,MATCH(AE30,Pression_vap,-1)+1))) -> 345.9645604 | N30: =IF(AND(B30=0,C30=0,ABS(L30-M30)<0.02),0,M30-L30) -> 3.966960963 | O30: =2500*4.91*N30*(A30-A29)/1000 -> 12.17361145 | P30: =(V30*H30+O30)/H30 -> 1580.425422 | Q30: =(W30*I30-O30)/I30 -> 2456.828554 | R30: =H30*V30+I30*W30 -> 39729865.23 | S30: =H30+I30 -> 23755.4375 | T30: =$T$3 -> 607.456 | U30: =I30/E30 -> 99.7791 | V30: =((P29*H29+J30*AG29-K30*(AH29-AG29))/(H29+J30))+Z30 -> 1580.42485 | W30: =((Q29*I29+K30*AH29+J30*(AH29-AG29))/(I29+K30)) -> 2456.833434 | X30: =IF(AND($AJ$3=1,AA29<=153.3),1580,0) -> 0 | Y30: =IF(AND($AJ$3=1,AND(AA29>=154,AA29<=156)),(-290*AA29+45240),IF(AND($AJ$3=1,AA3<=154),580,0)) -> 0 | Z30: =((X30+Y30)*(A30-A29))/H30 -> 0 | AA30: =IF(AND($AO$3=1,AE29<156.7),((1/3600)*2),0) -> 0.0005555555556 | AB30: =IF(AND($AO$3=1,AND(AE29>156.7,AE29<160.2)),(((35.14*AE29-5550.88)/3600)*2),0) -> 0 | AC30: =IF(AND($AO$3=1,AE29>=160.2),((125/3600)*2),0) -> 0 | AD30: =(A30-A29)*(AA30+AB30+AC30)*(AG30-1269.44) -> 0.04642273475 | AE30: =IF(C30=1,INDEX(Pression,MATCH(INDEX(OFFSET(INDEX(uV,MATCH(W30,uV,1)),1,0):OFFSET(INDEX(uV,MATCH(W30,uV,1)),71,0),MATCH(U30,OFFSET(INDEX(uV,MATCH(W30,uV,1)),1,0):OFFSET(INDEX(uV,MATCH(W30,uV,1)),71,0),-1)+1),INDEX(densite_vap,,MATCH(W30,uV,1)),-1))+(U30-INDEX(OFFSET(INDEX(uV,MATCH(W30,uV,1)),1,0):OFFSET(INDEX(uV,MATCH(W30,uV,1)),71,0),MATCH(U30,OFFSET(INDEX(uV,MATCH(W30,uV,1)),1,0):OFFSET(INDEX(uV,MATCH(W30,uV,1)),71,0),-1)+1)+(W30-INDEX(uV,MATCH(W30,uV,1)))*(INDEX(OFFSET(INDEX(uV,MATCH(W30,uV,1)+1),1,0):OFFSET(INDEX(uV,MATCH(W30,uV,1)+1),71,0),MATCH(U30,OFFSET(INDEX(uV,MATCH(W30,uV,1)+1),1,0):OFFSET(INDEX(uV,MATCH(W30,uV,1)+1),71,0),-1)+1)-INDEX(OFFSET(INDEX(uV,MATCH(W30,uV,1)),1,0):OFFSET(INDEX(uV,MATCH(W30,uV,1)),71,0),MATCH(U30,OFFSET(INDEX(uV,MATCH(W30,uV,1)),1,0):OFFSET(INDEX(uV,MATCH(W30,uV,1)),71,0),-1)+1))/(INDEX(uV,MATCH(W30,uV,1)+1)-INDEX(uV,MATCH(W30,uV,1))))*(INDEX(Pression,MATCH(INDEX(OFFSET(INDEX(uV,MATCH(W30,uV,1)),1,0):OFFSET(INDEX(uV,MATCH(W30,uV,1)),71,0),MATCH(U30,OFFSET(INDEX(uV,MATCH(W30,uV,1)),1,0):OFFSET(INDEX(uV,MATCH(W30,uV,1)),71,0),-1)),INDEX(densite_vap,,MATCH(W30,uV,1)),-1),1)-INDEX(Pression,MATCH(INDEX(OFFSET(INDEX(uV,MATCH(W30,uV,1)),1,0):OFFSET(INDEX(uV,MATCH(W30,uV,1)),71,0),MATCH(U30,OFFSET(INDEX(uV,MATCH(W30,uV,1)),1,0):OFFSET(INDEX(uV,MATCH(W30,uV,1)),71,0),-1)+1),INDEX(densite_vap,,MATCH(W30,uV,1)),-1)))/(INDEX(OFFSET(INDEX(uV,MATCH(W30,uV,1)),1,0):OFFSET(INDEX(uV,MATCH(W30,uV,1)),71,0),MATCH(U30,OFFSET(INDEX(uV,MATCH(W30,uV,1)),1,0):OFFSET(INDEX(uV,MATCH(W30,uV,1)),71,0),-1))+(W30-INDEX(uV,MATCH(W30,uV,1)))*(INDEX(OFFSET(INDEX(uV,MATCH(W30,uV,1)+1),1,0):OFFSET(INDEX(uV,MATCH(W30,uV,1)+1),71,0),MATCH(U30,OFFSET(INDEX(uV,MATCH(W30,uV,1)+1),1,0):OFFSET(INDEX(uV,MATCH(W30,uV,1)+1),71,0),-1))-INDEX(OFFSET(INDEX(uV,MATCH(W30,uV,1)),1,0):OFFSET(INDEX(uV,MATCH(W30,uV,1)),71,0),MATCH(U30,OFFSET(INDEX(uV,MATCH(W30,uV,1)),1,0):OFFSET(INDEX(uV,MATCH(W30,uV,1)),71,0),-1)))/(INDEX(uV,MATCH(W30,uV,1)+1)-INDEX(uV,MATCH(W30,uV,1)))-INDEX(OFFSET(INDEX(uV,MATCH(W30,uV,1)),1,0):OFFSET(INDEX(uV,MATCH(W30,uV,1)),71,0),MATCH(U30,OFFSET(INDEX(uV,MATCH(W30,uV,1)),1,0):OFFSET(INDEX(uV,MATCH(W30,uV,1)),71,0),-1)+1)+(W30-INDEX(uV,MATCH(W30,uV,1)))*(INDEX(OFFSET(INDEX(uV,MATCH(W30,uV,1)+1),1,0):OFFSET(INDEX(uV,MATCH(W30,uV,1)+1),71,0),MATCH(U30,OFFSET(INDEX(uV,MATCH(W30,uV,1)+1),1,0):OFFSET(INDEX(uV,MATCH(W30,uV,1)+1),71,0),-1)+1)-INDEX(OFFSET(INDEX(uV,MATCH(W30,uV,1)),1,0):OFFSET(INDEX(uV,MATCH(W30,uV,1)),71,0),MATCH(U30,OFFSET(INDEX(uV,MATCH(W30,uV,1)),1,0):OFFSET(INDEX(uV,MATCH(W30,uV,1)),71,0),-1)+1))/(INDEX(uV,MATCH(W30,uV,1)+1)-INDEX(uV,MATCH(W30,uV,1)))),IF(B30=1,AE29-0.01,AE29)) -> 154.9680617 | AF30: =Poly_Vapeur!$P$14*Resultats!AE30^4+Poly_Vapeur!$Q$14*Resultats!AE30^3+Poly_Vapeur!$R$14*Resultats!AE30^2+Poly_Vapeur!$S$14*Resultats!AE30+Poly_Vapeur!$T$14 -> 344.772766 | AG30: =Poly_Liquide!$Q$6*Resultats!AE30^4+Poly_Liquide!$R$6*Resultats!AE30^3+Poly_Liquide!$S$6*Resultats!AE30^2+Poly_Liquide!$T$6*Resultats!AE30+Poly_Liquide!$U$6 -> 1603.68369 | AH30: =Poly_Vapeur!$P$6*Resultats!AE30^4+Poly_Vapeur!$Q$6*Resultats!AE30^3+Poly_Vapeur!$R$6*Resultats!AE30^2+Poly_Vapeur!$S$6*Resultats!AE30+Poly_Vapeur!$T$6 -> 2444.130083 | AI30: =Poly_Liquide!Q$10*Resultats!AE30^4+Poly_Liquide!R$10*Resultats!AE30^3+Poly_Liquide!S$10*Resultats!AE30^2+Poly_Liquide!T$10*Resultats!AE30+Poly_Liquide!U$10 -> 594.438266 | AJ30: =Poly_Vapeur!P$10*Resultats!AE30^4+Poly_Vapeur!Q$10*Resultats!AE30^3+Poly_Vapeur!R$10*Resultats!AE30^2+Poly_Vapeur!S$10*Resultats!AE30+Poly_Vapeur!T$10 -> 101.8957638 | AK30: =IF(W30<AH29,1,0) -> 0 | AL30: =IF(V30>AG29,1,0) -> 0 | AM30: 6.5 | AQ30: 6.75
A31: =IF(B31=1,A30,A30+0.25) -> 7 | B31: =IF(AND(G31<0.0001,F30>0.09),1,0) -> 0 | C31: =IF(OR(AND(G31=0,F30<0),AND(G31>0,F30>-0.2)),1,0) -> 1 | D31: 35 | E31: =60-D31 -> 25 | F31: =AJ31-U31 -> 2.11548303 | G31: =W31-AH30 -> 12.69847089 | H31: =H30+J31-K31 -> 21260.96 | I31: =I30+K31-J31 -> 2494.4775 | J31: =IF((Q30-AH30)<0,-(AK30*I30*(Q30-AH30))/(AH30-AG30),0) -> 0 | K31: =IF((P30-AG30)>0,(AL30*H30*(P30-AG30))/(AH30-AG30),0) -> 0 | L31: =(INDEX(temp_liq,(MATCH(AE31,Pression_liq,-1)+1),MATCH("coeff1",coeff_liq,0))+(AE31-INDEX(Pression_liq,MATCH(AE31,Pression_liq,-1)+1))*(INDEX(temp_liq,(MATCH(AE31,Pression_liq,-1)),MATCH("coeff1",coeff_liq,0))-INDEX(temp_liq,(MATCH(AE31,Pression_liq,-1)+1),MATCH("coeff1",coeff_liq,0)))/(INDEX(Pression_liq,MATCH(AE31,Pression_liq,-1))-INDEX(Pression_liq,MATCH(AE31,Pression_liq,-1)+1)))*(V31/10000)^4+(INDEX(temp_liq,(MATCH(AE31,Pression_liq,-1)+1),MATCH("coeff2",coeff_liq,0))+(AE31-INDEX(Pression_liq,MATCH(AE31,Pression_liq,-1)+1))*(INDEX(temp_liq,(MATCH(AE31,Pression_liq,-1)),MATCH("coeff2",coeff_liq,0))-INDEX(temp_liq,(MATCH(AE31,Pression_liq,-1)+1),MATCH("coeff2",coeff_liq,0)))/(INDEX(Pression_liq,MATCH(AE31,Pression_liq,-1))-INDEX(Pression_liq,MATCH(AE31,Pression_liq,-1)+1)))*(V31/10000)^3+(INDEX(temp_liq,(MATCH(AE31,Pression_liq,-1)+1),MATCH("coeff3",coeff_liq,0))+(AE31-INDEX(Pression_liq,MATCH(AE31,Pression_liq,-1)+1))*(INDEX(temp_liq,(MATCH(AE31,Pression_liq,-1)),MATCH("coeff3",coeff_liq,0))-INDEX(temp_liq,(MATCH(AE31,Pression_liq,-1)+1),MATCH("coeff3",coeff_liq,0)))/(INDEX(Pression_liq,MATCH(AE31,Pression_liq,-1))-INDEX(Pression_liq,MATCH(AE31,Pression_liq,-1)+1)))*(V31/10000)^2+(INDEX(temp_liq,(MATCH(AE31,Pression_liq,-1)+1),MATCH("coeff4",coeff_liq,0))+(AE31-INDEX(Pression_liq,MATCH(AE31,Pression_liq,-1)+1))*(INDEX(temp_liq,(MATCH(AE31,Pression_liq,-1)),MATCH("coeff4",coeff_liq,0))-INDEX(temp_liq,(MATCH(AE31,Pression_liq,-1)+1),MATCH("coeff4",coeff_liq,0)))/(INDEX(Pression_liq,MATCH(AE31,Pression_liq,-1))-INDEX(Pression_liq,MATCH(AE31,Pression_liq,-1)+1)))*(V31/10000)+(INDEX(temp_liq,(MATCH(AE31,Pression_liq,-1)+1),MATCH("coeff5",coeff_liq,0))+(AE31-INDEX(Pression_liq,MATCH(AE31,Pression_liq,-1)+1))*(INDEX(temp_liq,(MATCH(AE31,Pression_liq,-1)),MATCH("coeff5",coeff_liq,0))-INDEX(temp_liq,(MATCH(AE31,Pression_liq,-1)+1),MATCH("coeff5",coeff_liq,0)))/(INDEX(Pression_liq,MATCH(AE31,Pression_liq,-1))-INDEX(Pression_liq,MATCH(AE31,Pression_liq,-1)+1))) -> 341.9975732 | M31: =(INDEX(temp_vap,(MATCH(AE31,Pression_vap,-1)+1),MATCH("coeff1",coeff_vap,0))+(AE31-INDEX(Pression_vap,MATCH(AE31,Pression_vap,-1)+1))*(INDEX(temp_vap,(MATCH(AE31,Pression_vap,-1)),MATCH("coeff1",coeff_vap,0))-INDEX(temp_vap,(MATCH(AE31,Pression_vap,-1)+1),MATCH("coeff1",coeff_vap,0)))/(INDEX(Pression_vap,MATCH(AE31,Pression_vap,-1))-INDEX(Pression_vap,MATCH(AE31,Pression_vap,-1)+1)))*(W31/10000)^4+(INDEX(temp_vap,(MATCH(AE31,Pression_vap,-1)+1),MATCH("coeff2",coeff_vap,0))+(AE31-INDEX(Pression_vap,MATCH(AE31,Pression_vap,-1)+1))*(INDEX(temp_vap,(MATCH(AE31,Pression_vap,-1)),MATCH("coeff2",coeff_vap,0))-INDEX(temp_vap,(MATCH(AE31,Pression_vap,-1)+1),MATCH("coeff2",coeff_vap,0)))/(INDEX(Pression_vap,MATCH(AE31,Pression_vap,-1))-INDEX(Pression_vap,MATCH(AE31,Pression_vap,-1)+1)))*(W31/10000)^3+(INDEX(temp_vap,(MATCH(AE31,Pression_vap,-1)+1),MATCH("coeff3",coeff_vap,0))+(AE31-INDEX(Pression_vap,MATCH(AE31,Pression_vap,-1)+1))*(INDEX(temp_vap,(MATCH(AE31,Pression_vap,-1)),MATCH("coeff3",coeff_vap,0))-INDEX(temp_vap,(MATCH(AE31,Pression_vap,-1)+1),MATCH("coeff3",coeff_vap,0)))/(INDEX(Pression_vap,MATCH(AE31,Pression_vap,-1))-INDEX(Pression_vap,MATCH(AE31,Pression_vap,-1)+1)))*(W31/10000)^2+(INDEX(temp_vap,(MATCH(AE31,Pression_vap,-1)+1),MATCH("coeff4",coeff_vap,0))+(AE31-INDEX(Pression_vap,MATCH(AE31,Pression_vap,-1)+1))*(INDEX(temp_vap,(MATCH(AE31,Pression_vap,-1)),MATCH("coeff4",coeff_vap,0))-INDEX(temp_vap,(MATCH(AE31,Pression_vap,-1)+1),MATCH("coeff4",coeff_vap,0)))/(INDEX(Pression_vap,MATCH(AE31,Pression_vap,-1))-INDEX(Pression_vap,MATCH(AE31,Pression_vap,-1)+1)))*(W31/10000)+(INDEX(temp_vap,(MATCH(AE31,Pression_vap,-1)+1),MATCH("coeff5",coeff_vap,0))+(AE31-INDEX(Pression_vap,MATCH(AE31,Pression_vap,-1)+1))*(INDEX(temp_vap,(MATCH(AE31,Pression_vap,-1)),MATCH("coeff5",coeff_vap,0))-INDEX(temp_vap,(MATCH(AE31,Pression_vap,-1)+1),MATCH("coeff5",coeff_vap,0)))/(INDEX(Pression_vap,MATCH(AE31,Pression_vap,-1))-INDEX(Pression_vap,MATCH(AE31,Pression_vap,-1)+1))) -> 345.9632687 | N31: =IF(AND(B31=0,C31=0,ABS(L31-M31)<0.02),0,M31-L31) -> 3.965695414 | O31: =2500*4.91*N31*(A31-A30)/1000 -> 12.1697278 | P31: =(V31*H31+O31)/H31 -> 1580.425995 | Q31: =(W31*I31-O31)/I31 -> 2456.823675 | R31: =H31*V31+I31*W31 -> 39729865.23 | S31: =H31+I31 -> 23755.4375 | T31: =$T$3 -> 607.456 | U31: =I31/E31 -> 99.7791 | V31: =((P30*H30+J31*AG30-K31*(AH30-AG30))/(H30+J31))+Z31 -> 1580.425422 | W31: =((Q30*I30+K31*AH30+J31*(AH30-AG30))/(I30+K31)) -> 2456.828554 | X31: =IF(AND($AJ$3=1,AA30<=153.3),1580,0) -> 0 | Y31: =IF(AND($AJ$3=1,AND(AA30>=154,AA30<=156)),(-290*AA30+45240),IF(AND($AJ$3=1,AA3<=154),580,0)) -> 0 | Z31: =((X31+Y31)*(A31-A30))/H31 -> 0 | AA31: =IF(AND($AO$3=1,AE30<156.7),((1/3600)*2),0) -> 0.0005555555556 | AB31: =IF(AND($AO$3=1,AND(AE30>156.7,AE30<160.2)),(((35.14*AE30-5550.88)/3600)*2),0) -> 0 | AC31: =IF(AND($AO$3=1,AE30>=160.2),((125/3600)*2),0) -> 0 | AD31: =(A31-A30)*(AA31+AB31+AC31)*(AG31-1269.44) -> 0.0464221672 | AE31: =IF(C31=1,INDEX(Pression,MATCH(INDEX(OFFSET(INDEX(uV,MATCH(W31,uV,1)),1,0):OFFSET(INDEX(uV,MATCH(W31,uV,1)),71,0),MATCH(U31,OFFSET(INDEX(uV,MATCH(W31,uV,1)),1,0):OFFSET(INDEX(uV,MATCH(W31,uV,1)),71,0),-1)+1),INDEX(densite_vap,,MATCH(W31,uV,1)),-1))+(U31-INDEX(OFFSET(INDEX(uV,MATCH(W31,uV,1)),1,0):OFFSET(INDEX(uV,MATCH(W31,uV,1)),71,0),MATCH(U31,OFFSET(INDEX(uV,MATCH(W31,uV,1)),1,0):OFFSET(INDEX(uV,MATCH(W31,uV,1)),71,0),-1)+1)+(W31-INDEX(uV,MATCH(W31,uV,1)))*(INDEX(OFFSET(INDEX(uV,MATCH(W31,uV,1)+1),1,0):OFFSET(INDEX(uV,MATCH(W31,uV,1)+1),71,0),MATCH(U31,OFFSET(INDEX(uV,MATCH(W31,uV,1)+1),1,0):OFFSET(INDEX(uV,MATCH(W31,uV,1)+1),71,0),-1)+1)-INDEX(OFFSET(INDEX(uV,MATCH(W31,uV,1)),1,0):OFFSET(INDEX(uV,MATCH(W31,uV,1)),71,0),MATCH(U31,OFFSET(INDEX(uV,MATCH(W31,uV,1)),1,0):OFFSET(INDEX(uV,MATCH(W31,uV,1)),71,0),-1)+1))/(INDEX(uV,MATCH(W31,uV,1)+1)-INDEX(uV,MATCH(W31,uV,1))))*(INDEX(Pression,MATCH(INDEX(OFFSET(INDEX(uV,MATCH(W31,uV,1)),1,0):OFFSET(INDEX(uV,MATCH(W31,uV,1)),71,0),MATCH(U31,OFFSET(INDEX(uV,MATCH(W31,uV,1)),1,0):OFFSET(INDEX(uV,MATCH(W31,uV,1)),71,0),-1)),INDEX(densite_vap,,MATCH(W31,uV,1)),-1),1)-INDEX(Pression,MATCH(INDEX(OFFSET(INDEX(uV,MATCH(W31,uV,1)),1,0):OFFSET(INDEX(uV,MATCH(W31,uV,1)),71,0),MATCH(U31,OFFSET(INDEX(uV,MATCH(W31,uV,1)),1,0):OFFSET(INDEX(uV,MATCH(W31,uV,1)),71,0),-1)+1),INDEX(densite_vap,,MATCH(W31,uV,1)),-1)))/(INDEX(OFFSET(INDEX(uV,MATCH(W31,uV,1)),1,0):OFFSET(INDEX(uV,MATCH(W31,uV,1)),71,0),MATCH(U31,OFFSET(INDEX(uV,MATCH(W31,uV,1)),1,0):OFFSET(INDEX(uV,MATCH(W31,uV,1)),71,0),-1))+(W31-INDEX(uV,MATCH(W31,uV,1)))*(INDEX(OFFSET(INDEX(uV,MATCH(W31,uV,1)+1),1,0):OFFSET(INDEX(uV,MATCH(W31,uV,1)+1),71,0),MATCH(U31,OFFSET(INDEX(uV,MATCH(W31,uV,1)+1),1,0):OFFSET(INDEX(uV,MATCH(W31,uV,1)+1),71,0),-1))-INDEX(OFFSET(INDEX(uV,MATCH(W31,uV,1)),1,0):OFFSET(INDEX(uV,MATCH(W31,uV,1)),71,0),MATCH(U31,OFFSET(INDEX(uV,MATCH(W31,uV,1)),1,0):OFFSET(INDEX(uV,MATCH(W31,uV,1)),71,0),-1)))/(INDEX(uV,MATCH(W31,uV,1)+1)-INDEX(uV,MATCH(W31,uV,1)))-INDEX(OFFSET(INDEX(uV,MATCH(W31,uV,1)),1,0):OFFSET(INDEX(uV,MATCH(W31,uV,1)),71,0),MATCH(U31,OFFSET(INDEX(uV,MATCH(W31,uV,1)),1,0):OFFSET(INDEX(uV,MATCH(W31,uV,1)),71,0),-1)+1)+(W31-INDEX(uV,MATCH(W31,uV,1)))*(INDEX(OFFSET(INDEX(uV,MATCH(W31,uV,1)+1),1,0):OFFSET(INDEX(uV,MATCH(W31,uV,1)+1),71,0),MATCH(U31,OFFSET(INDEX(uV,MATCH(W31,uV,1)+1),1,0):OFFSET(INDEX(uV,MATCH(W31,uV,1)+1),71,0),-1)+1)-INDEX(OFFSET(INDEX(uV,MATCH(W31,uV,1)),1,0):OFFSET(INDEX(uV,MATCH(W31,uV,1)),71,0),MATCH(U31,OFFSET(INDEX(uV,MATCH(W31,uV,1)),1,0):OFFSET(INDEX(uV,MATCH(W31,uV,1)),71,0),-1)+1))/(INDEX(uV,MATCH(W31,uV,1)+1)-INDEX(uV,MATCH(W31,uV,1)))),IF(B31=1,AE30-0.01,AE30)) -> 154.9669564 | AF31: =Poly_Vapeur!$P$14*Resultats!AE31^4+Poly_Vapeur!$Q$14*Resultats!AE31^3+Poly_Vapeur!$R$14*Resultats!AE31^2+Poly_Vapeur!$S$14*Resultats!AE31+Poly_Vapeur!$T$14 -> 344.7721914 | AG31: =Poly_Liquide!$Q$6*Resultats!AE31^4+Poly_Liquide!$R$6*Resultats!AE31^3+Poly_Liquide!$S$6*Resultats!AE31^2+Poly_Liquide!$T$6*Resultats!AE31+Poly_Liquide!$U$6 -> 1603.679604 | AH31: =Poly_Vapeur!$P$6*Resultats!AE31^4+Poly_Vapeur!$Q$6*Resultats!AE31^3+Poly_Vapeur!$R$6*Resultats!AE31^2+Poly_Vapeur!$S$6*Resultats!AE31+Poly_Vapeur!$T$6 -> 2444.132708 | AI31: =Poly_Liquide!Q$10*Resultats!AE31^4+Poly_Liquide!R$10*Resultats!AE31^3+Poly_Liquide!S$10*Resultats!AE31^2+Poly_Liquide!T$10*Resultats!AE31+Poly_Liquide!U$10 -> 594.440312 | AJ31: =Poly_Vapeur!P$10*Resultats!AE31^4+Poly_Vapeur!Q$10*Resultats!AE31^3+Poly_Vapeur!R$10*Resultats!AE31^2+Poly_Vapeur!S$10*Resultats!AE31+Poly_Vapeur!T$10 -> 101.894583 | AK31: =IF(W31<AH30,1,0) -> 0 | AL31: =IF(V31>AG30,1,0) -> 0 | AM31: 6.75 | AQ31: 7
A32: =IF(B32=1,A31,A31+0.25) -> 7.25 | B32: =IF(AND(G32<0.0001,F31>0.09),1,0) -> 0 | C32: =IF(OR(AND(G32=0,F31<0),AND(G32>0,F31>-0.2)),1,0) -> 1 | D32: 35 | E32: =60-D32 -> 25 | F32: =AJ32-U32 -> 2.114314579 | G32: =W32-AH31 -> 12.6909677 | H32: =H31+J32-K32 -> 21260.96 | I32: =I31+K32-J32 -> 2494.4775 | J32: =IF((Q31-AH31)<0,-(AK31*I31*(Q31-AH31))/(AH31-AG31),0) -> 0 | K32: =IF((P31-AG31)>0,(AL31*H31*(P31-AG31))/(AH31-AG31),0) -> 0 | L32: =(INDEX(temp_liq,(MATCH(AE32,Pression_liq,-1)+1),MATCH("coeff1",coeff_liq,0))+(AE32-INDEX(Pression_liq,MATCH(AE32,Pression_liq,-1)+1))*(INDEX(temp_liq,(MATCH(AE32,Pression_liq,-1)),MATCH("coeff1",coeff_liq,0))-INDEX(temp_liq,(MATCH(AE32,Pression_liq,-1)+1),MATCH("coeff1",coeff_liq,0)))/(INDEX(Pression_liq,MATCH(AE32,Pression_liq,-1))-INDEX(Pression_liq,MATCH(AE32,Pression_liq,-1)+1)))*(V32/10000)^4+(INDEX(temp_liq,(MATCH(AE32,Pression_liq,-1)+1),MATCH("coeff2",coeff_liq,0))+(AE32-INDEX(Pression_liq,MATCH(AE32,Pression_liq,-1)+1))*(INDEX(temp_liq,(MATCH(AE32,Pression_liq,-1)),MATCH("coeff2",coeff_liq,0))-INDEX(temp_liq,(MATCH(AE32,Pression_liq,-1)+1),MATCH("coeff2",coeff_liq,0)))/(INDEX(Pression_liq,MATCH(AE32,Pression_liq,-1))-INDEX(Pression_liq,MATCH(AE32,Pression_liq,-1)+1)))*(V32/10000)^3+(INDEX(temp_liq,(MATCH(AE32,Pression_liq,-1)+1),MATCH("coeff3",coeff_liq,0))+(AE32-INDEX(Pression_liq,MATCH(AE32,Pression_liq,-1)+1))*(INDEX(temp_liq,(MATCH(AE32,Pression_liq,-1)),MATCH("coeff3",coeff_liq,0))-INDEX(temp_liq,(MATCH(AE32,Pression_liq,-1)+1),MATCH("coeff3",coeff_liq,0)))/(INDEX(Pression_liq,MATCH(AE32,Pression_liq,-1))-INDEX(Pression_liq,MATCH(AE32,Pression_liq,-1)+1)))*(V32/10000)^2+(INDEX(temp_liq,(MATCH(AE32,Pression_liq,-1)+1),MATCH("coeff4",coeff_liq,0))+(AE32-INDEX(Pression_liq,MATCH(AE32,Pression_liq,-1)+1))*(INDEX(temp_liq,(MATCH(AE32,Pression_liq,-1)),MATCH("coeff4",coeff_liq,0))-INDEX(temp_liq,(MATCH(AE32,Pression_liq,-1)+1),MATCH("coeff4",coeff_liq,0)))/(INDEX(Pression_liq,MATCH(AE32,Pression_liq,-1))-INDEX(Pression_liq,MATCH(AE32,Pression_liq,-1)+1)))*(V32/10000)+(INDEX(temp_liq,(MATCH(AE32,Pression_liq,-1)+1),MATCH("coeff5",coeff_liq,0))+(AE32-INDEX(Pression_liq,MATCH(AE32,Pression_liq,-1)+1))*(INDEX(temp_liq,(MATCH(AE32,Pression_liq,-1)),MATCH("coeff5",coeff_liq,0))-INDEX(temp_liq,(MATCH(AE32,Pression_liq,-1)+1),MATCH("coeff5",coeff_liq,0)))/(INDEX(Pression_liq,MATCH(AE32,Pression_liq,-1))-INDEX(Pression_liq,MATCH(AE32,Pression_liq,-1)+1))) -> 341.997548 | M32: =(INDEX(temp_vap,(MATCH(AE32,Pression_vap,-1)+1),MATCH("coeff1",coeff_vap,0))+(AE32-INDEX(Pression_vap,MATCH(AE32,Pression_vap,-1)+1))*(INDEX(temp_vap,(MATCH(AE32,Pression_vap,-1)),MATCH("coeff1",coeff_vap,0))-INDEX(temp_vap,(MATCH(AE32,Pression_vap,-1)+1),MATCH("coeff1",coeff_vap,0)))/(INDEX(Pression_vap,MATCH(AE32,Pression_vap,-1))-INDEX(Pression_vap,MATCH(AE32,Pression_vap,-1)+1)))*(W32/10000)^4+(INDEX(temp_vap,(MATCH(AE32,Pression_vap,-1)+1),MATCH("coeff2",coeff_vap,0))+(AE32-INDEX(Pression_vap,MATCH(AE32,Pression_vap,-1)+1))*(INDEX(temp_vap,(MATCH(AE32,Pression_vap,-1)),MATCH("coeff2",coeff_vap,0))-INDEX(temp_vap,(MATCH(AE32,Pression_vap,-1)+1),MATCH("coeff2",coeff_vap,0)))/(INDEX(Pression_vap,MATCH(AE32,Pression_vap,-1))-INDEX(Pression_vap,MATCH(AE32,Pression_vap,-1)+1)))*(W32/10000)^3+(INDEX(temp_vap,(MATCH(AE32,Pression_vap,-1)+1),MATCH("coeff3",coeff_vap,0))+(AE32-INDEX(Pression_vap,MATCH(AE32,Pression_vap,-1)+1))*(INDEX(temp_vap,(MATCH(AE32,Pression_vap,-1)),MATCH("coeff3",coeff_vap,0))-INDEX(temp_vap,(MATCH(AE32,Pression_vap,-1)+1),MATCH("coeff3",coeff_vap,0)))/(INDEX(Pression_vap,MATCH(AE32,Pression_vap,-1))-INDEX(Pression_vap,MATCH(AE32,Pression_vap,-1)+1)))*(W32/10000)^2+(INDEX(temp_vap,(MATCH(AE32,Pression_vap,-1)+1),MATCH("coeff4",coeff_vap,0))+(AE32-INDEX(Pression_vap,MATCH(AE32,Pression_vap,-1)+1))*(INDEX(temp_vap,(MATCH(AE32,Pression_vap,-1)),MATCH("coeff4",coeff_vap,0))-INDEX(temp_vap,(MATCH(AE32,Pression_vap,-1)+1),MATCH("coeff4",coeff_vap,0)))/(INDEX(Pression_vap,MATCH(AE32,Pression_vap,-1))-INDEX(Pression_vap,MATCH(AE32,Pression_vap,-1)+1)))*(W32/10000)+(INDEX(temp_vap,(MATCH(AE32,Pression_vap,-1)+1),MATCH("coeff5",coeff_vap,0))+(AE32-INDEX(Pression_vap,MATCH(AE32,Pression_vap,-1)+1))*(INDEX(temp_vap,(MATCH(AE32,Pression_vap,-1)),MATCH("coeff5",coeff_vap,0))-INDEX(temp_vap,(MATCH(AE32,Pression_vap,-1)+1),MATCH("coeff5",coeff_vap,0)))/(INDEX(Pression_vap,MATCH(AE32,Pression_vap,-1))-INDEX(Pression_vap,MATCH(AE32,Pression_vap,-1)+1))) -> 345.9619855 | N32: =IF(AND(B32=0,C32=0,ABS(L32-M32)<0.02),0,M32-L32) -> 3.964437486 | O32: =2500*4.91*N32*(A32-A31)/1000 -> 12.16586754 | P32: =(V32*H32+O32)/H32 -> 1580.426567 | Q32: =(W32*I32-O32)/I32 -> 2456.818798 | R32: =H32*V32+I32*W32 -> 39729865.23 | S32: =H32+I32 -> 23755.4375 | T32: =$T$3 -> 607.456 | U32: =I32/E32 -> 99.7791 | V32: =((P31*H31+J32*AG31-K32*(AH31-AG31))/(H31+J32))+Z32 -> 1580.425995 | W32: =((Q31*I31+K32*AH31+J32*(AH31-AG31))/(I31+K32)) -> 2456.823675 | X32: =IF(AND($AJ$3=1,AA31<=153.3),1580,0) -> 0 | Y32: =IF(AND($AJ$3=1,AND(AA31>=154,AA31<=156)),(-290*AA31+45240),IF(AND($AJ$3=1,AA3<=154),580,0)) -> 0 | Z32: =((X32+Y32)*(A32-A31))/H32 -> 0 | AA32: =IF(AND($AO$3=1,AE31<156.7),((1/3600)*2),0) -> 0.0005555555556 | AB32: =IF(AND($AO$3=1,AND(AE31>156.7,AE31<160.2)),(((35.14*AE31-5550.88)/3600)*2),0) -> 0 | AC32: =IF(AND($AO$3=1,AE31>=160.2),((125/3600)*2),0) -> 0 | AD32: =(A32-A31)*(AA32+AB32+AC32)*(AG32-1269.44) -> 0.04642160553 | AE32: =IF(C32=1,INDEX(Pression,MATCH(INDEX(OFFSET(INDEX(uV,MATCH(W32,uV,1)),1,0):OFFSET(INDEX(uV,MATCH(W32,uV,1)),71,0),MATCH(U32,OFFSET(INDEX(uV,MATCH(W32,uV,1)),1,0):OFFSET(INDEX(uV,MATCH(W32,uV,1)),71,0),-1)+1),INDEX(densite_vap,,MATCH(W32,uV,1)),-1))+(U32-INDEX(OFFSET(INDEX(uV,MATCH(W32,uV,1)),1,0):OFFSET(INDEX(uV,MATCH(W32,uV,1)),71,0),MATCH(U32,OFFSET(INDEX(uV,MATCH(W32,uV,1)),1,0):OFFSET(INDEX(uV,MATCH(W32,uV,1)),71,0),-1)+1)+(W32-INDEX(uV,MATCH(W32,uV,1)))*(INDEX(OFFSET(INDEX(uV,MATCH(W32,uV,1)+1),1,0):OFFSET(INDEX(uV,MATCH(W32,uV,1)+1),71,0),MATCH(U32,OFFSET(INDEX(uV,MATCH(W32,uV,1)+1),1,0):OFFSET(INDEX(uV,MATCH(W32,uV,1)+1),71,0),-1)+1)-INDEX(OFFSET(INDEX(uV,MATCH(W32,uV,1)),1,0):OFFSET(INDEX(uV,MATCH(W32,uV,1)),71,0),MATCH(U32,OFFSET(INDEX(uV,MATCH(W32,uV,1)),1,0):OFFSET(INDEX(uV,MATCH(W32,uV,1)),71,0),-1)+1))/(INDEX(uV,MATCH(W32,uV,1)+1)-INDEX(uV,MATCH(W32,uV,1))))*(INDEX(Pression,MATCH(INDEX(OFFSET(INDEX(uV,MATCH(W32,uV,1)),1,0):OFFSET(INDEX(uV,MATCH(W32,uV,1)),71,0),MATCH(U32,OFFSET(INDEX(uV,MATCH(W32,uV,1)),1,0):OFFSET(INDEX(uV,MATCH(W32,uV,1)),71,0),-1)),INDEX(densite_vap,,MATCH(W32,uV,1)),-1),1)-INDEX(Pression,MATCH(INDEX(OFFSET(INDEX(uV,MATCH(W32,uV,1)),1,0):OFFSET(INDEX(uV,MATCH(W32,uV,1)),71,0),MATCH(U32,OFFSET(INDEX(uV,MATCH(W32,uV,1)),1,0):OFFSET(INDEX(uV,MATCH(W32,uV,1)),71,0),-1)+1),INDEX(densite_vap,,MATCH(W32,uV,1)),-1)))/(INDEX(OFFSET(INDEX(uV,MATCH(W32,uV,1)),1,0):OFFSET(INDEX(uV,MATCH(W32,uV,1)),71,0),MATCH(U32,OFFSET(INDEX(uV,MATCH(W32,uV,1)),1,0):OFFSET(INDEX(uV,MATCH(W32,uV,1)),71,0),-1))+(W32-INDEX(uV,MATCH(W32,uV,1)))*(INDEX(OFFSET(INDEX(uV,MATCH(W32,uV,1)+1),1,0):OFFSET(INDEX(uV,MATCH(W32,uV,1)+1),71,0),MATCH(U32,OFFSET(INDEX(uV,MATCH(W32,uV,1)+1),1,0):OFFSET(INDEX(uV,MATCH(W32,uV,1)+1),71,0),-1))-INDEX(OFFSET(INDEX(uV,MATCH(W32,uV,1)),1,0):OFFSET(INDEX(uV,MATCH(W32,uV,1)),71,0),MATCH(U32,OFFSET(INDEX(uV,MATCH(W32,uV,1)),1,0):OFFSET(INDEX(uV,MATCH(W32,uV,1)),71,0),-1)))/(INDEX(uV,MATCH(W32,uV,1)+1)-INDEX(uV,MATCH(W32,uV,1)))-INDEX(OFFSET(INDEX(uV,MATCH(W32,uV,1)),1,0):OFFSET(INDEX(uV,MATCH(W32,uV,1)),71,0),MATCH(U32,OFFSET(INDEX(uV,MATCH(W32,uV,1)),1,0):OFFSET(INDEX(uV,MATCH(W32,uV,1)),71,0),-1)+1)+(W32-INDEX(uV,MATCH(W32,uV,1)))*(INDEX(OFFSET(INDEX(uV,MATCH(W32,uV,1)+1),1,0):OFFSET(INDEX(uV,MATCH(W32,uV,1)+1),71,0),MATCH(U32,OFFSET(INDEX(uV,MATCH(W32,uV,1)+1),1,0):OFFSET(INDEX(uV,MATCH(W32,uV,1)+1),71,0),-1)+1)-INDEX(OFFSET(INDEX(uV,MATCH(W32,uV,1)),1,0):OFFSET(INDEX(uV,MATCH(W32,uV,1)),71,0),MATCH(U32,OFFSET(INDEX(uV,MATCH(W32,uV,1)),1,0):OFFSET(INDEX(uV,MATCH(W32,uV,1)),71,0),-1)+1))/(INDEX(uV,MATCH(W32,uV,1)+1)-INDEX(uV,MATCH(W32,uV,1)))),IF(B32=1,AE31-0.01,AE31)) -> 154.9658626 | AF32: =Poly_Vapeur!$P$14*Resultats!AE32^4+Poly_Vapeur!$Q$14*Resultats!AE32^3+Poly_Vapeur!$R$14*Resultats!AE32^2+Poly_Vapeur!$S$14*Resultats!AE32+Poly_Vapeur!$T$14 -> 344.7716227 | AG32: =Poly_Liquide!$Q$6*Resultats!AE32^4+Poly_Liquide!$R$6*Resultats!AE32^3+Poly_Liquide!$S$6*Resultats!AE32^2+Poly_Liquide!$T$6*Resultats!AE32+Poly_Liquide!$U$6 -> 1603.67556 | AH32: =Poly_Vapeur!$P$6*Resultats!AE32^4+Poly_Vapeur!$Q$6*Resultats!AE32^3+Poly_Vapeur!$R$6*Resultats!AE32^2+Poly_Vapeur!$S$6*Resultats!AE32+Poly_Vapeur!$T$6 -> 2444.135305 | AI32: =Poly_Liquide!Q$10*Resultats!AE32^4+Poly_Liquide!R$10*Resultats!AE32^3+Poly_Liquide!S$10*Resultats!AE32^2+Poly_Liquide!T$10*Resultats!AE32+Poly_Liquide!U$10 -> 594.4423368 | AJ32: =Poly_Vapeur!P$10*Resultats!AE32^4+Poly_Vapeur!Q$10*Resultats!AE32^3+Poly_Vapeur!R$10*Resultats!AE32^2+Poly_Vapeur!S$10*Resultats!AE32+Poly_Vapeur!T$10 -> 101.8934146 | AK32: =IF(W32<AH31,1,0) -> 0 | AL32: =IF(V32>AG31,1,0) -> 0 | AM32: 7 | AQ32: 7.25
A33: =IF(B33=1,A32,A32+0.25) -> 7.5 | B33: =IF(AND(G33<0.0001,F32>0.09),1,0) -> 0 | C33: =IF(OR(AND(G33=0,F32<0),AND(G33>0,F32>-0.2)),1,0) -> 1 | D33: 35 | E33: =60-D33 -> 25 | F33: =AJ33-U33 -> 2.113158207 | G33: =W33-AH32 -> 12.68349334 | H33: =H32+J33-K33 -> 21260.96 | I33: =I32+K33-J33 -> 2494.4775 | J33: =IF((Q32-AH32)<0,-(AK32*I32*(Q32-AH32))/(AH32-AG32),0) -> 0 | K33: =IF((P32-AG32)>0,(AL32*H32*(P32-AG32))/(AH32-AG32),0) -> 0 | L33: =(INDEX(temp_liq,(MATCH(AE33,Pression_liq,-1)+1),MATCH("coeff1",coeff_liq,0))+(AE33-INDEX(Pression_liq,MATCH(AE33,Pression_liq,-1)+1))*(INDEX(temp_liq,(MATCH(AE33,Pression_liq,-1)),MATCH("coeff1",coeff_liq,0))-INDEX(temp_liq,(MATCH(AE33,Pression_liq,-1)+1),MATCH("coeff1",coeff_liq,0)))/(INDEX(Pression_liq,MATCH(AE33,Pression_liq,-1))-INDEX(Pression_liq,MATCH(AE33,Pression_liq,-1)+1)))*(V33/10000)^4+(INDEX(temp_liq,(MATCH(AE33,Pression_liq,-1)+1),MATCH("coeff2",coeff_liq,0))+(AE33-INDEX(Pression_liq,MATCH(AE33,Pression_liq,-1)+1))*(INDEX(temp_liq,(MATCH(AE33,Pression_liq,-1)),MATCH("coeff2",coeff_liq,0))-INDEX(temp_liq,(MATCH(AE33,Pression_liq,-1)+1),MATCH("coeff2",coeff_liq,0)))/(INDEX(Pression_liq,MATCH(AE33,Pression_liq,-1))-INDEX(Pression_liq,MATCH(AE33,Pression_liq,-1)+1)))*(V33/10000)^3+(INDEX(temp_liq,(MATCH(AE33,Pression_liq,-1)+1),MATCH("coeff3",coeff_liq,0))+(AE33-INDEX(Pression_liq,MATCH(AE33,Pression_liq,-1)+1))*(INDEX(temp_liq,(MATCH(AE33,Pression_liq,-1)),MATCH("coeff3",coeff_liq,0))-INDEX(temp_liq,(MATCH(AE33,Pression_liq,-1)+1),MATCH("coeff3",coeff_liq,0)))/(INDEX(Pression_liq,MATCH(AE33,Pression_liq,-1))-INDEX(Pression_liq,MATCH(AE33,Pression_liq,-1)+1)))*(V33/10000)^2+(INDEX(temp_liq,(MATCH(AE33,Pression_liq,-1)+1),MATCH("coeff4",coeff_liq,0))+(AE33-INDEX(Pression_liq,MATCH(AE33,Pression_liq,-1)+1))*(INDEX(temp_liq,(MATCH(AE33,Pression_liq,-1)),MATCH("coeff4",coeff_liq,0))-INDEX(temp_liq,(MATCH(AE33,Pression_liq,-1)+1),MATCH("coeff4",coeff_liq,0)))/(INDEX(Pression_liq,MATCH(AE33,Pression_liq,-1))-INDEX(Pression_liq,MATCH(AE33,Pression_liq,-1)+1)))*(V33/10000)+(INDEX(temp_liq,(MATCH(AE33,Pression_liq,-1)+1),MATCH("coeff5",coeff_liq,0))+(AE33-INDEX(Pression_liq,MATCH(AE33,Pression_liq,-1)+1))*(INDEX(temp_liq,(MATCH(AE33,Pression_liq,-1)),MATCH("coeff5",coeff_liq,0))-INDEX(temp_liq,(MATCH(AE33,Pression_liq,-1)+1),MATCH("coeff5",coeff_liq,0)))/(INDEX(Pression_liq,MATCH(AE33,Pression_liq,-1))-INDEX(Pression_liq,MATCH(AE33,Pression_liq,-1)+1))) -> 341.9975238 | M33: =(INDEX(temp_vap,(MATCH(AE33,Pression_vap,-1)+1),MATCH("coeff1",coeff_vap,0))+(AE33-INDEX(Pression_vap,MATCH(AE33,Pression_vap,-1)+1))*(INDEX(temp_vap,(MATCH(AE33,Pression_vap,-1)),MATCH("coeff1",coeff_vap,0))-INDEX(temp_vap,(MATCH(AE33,Pression_vap,-1)+1),MATCH("coeff1",coeff_vap,0)))/(INDEX(Pression_vap,MATCH(AE33,Pression_vap,-1))-INDEX(Pression_vap,MATCH(AE33,Pression_vap,-1)+1)))*(W33/10000)^4+(INDEX(temp_vap,(MATCH(AE33,Pression_vap,-1)+1),MATCH("coeff2",coeff_vap,0))+(AE33-INDEX(Pression_vap,MATCH(AE33,Pression_vap,-1)+1))*(INDEX(temp_vap,(MATCH(AE33,Pression_vap,-1)),MATCH("coeff2",coeff_vap,0))-INDEX(temp_vap,(MATCH(AE33,Pression_vap,-1)+1),MATCH("coeff2",coeff_vap,0)))/(INDEX(Pression_vap,MATCH(AE33,Pression_vap,-1))-INDEX(Pression_vap,MATCH(AE33,Pression_vap,-1)+1)))*(W33/10000)^3+(INDEX(temp_vap,(MATCH(AE33,Pression_vap,-1)+1),MATCH("coeff3",coeff_vap,0))+(AE33-INDEX(Pression_vap,MATCH(AE33,Pression_vap,-1)+1))*(INDEX(temp_vap,(MATCH(AE33,Pression_vap,-1)),MATCH("coeff3",coeff_vap,0))-INDEX(temp_vap,(MATCH(AE33,Pression_vap,-1)+1),MATCH("coeff3",coeff_vap,0)))/(INDEX(Pression_vap,MATCH(AE33,Pression_vap,-1))-INDEX(Pression_vap,MATCH(AE33,Pression_vap,-1)+1)))*(W33/10000)^2+(INDEX(temp_vap,(MATCH(AE33,Pression_vap,-1)+1),MATCH("coeff4",coeff_vap,0))+(AE33-INDEX(Pression_vap,MATCH(AE33,Pression_vap,-1)+1))*(INDEX(temp_vap,(MATCH(AE33,Pression_vap,-1)),MATCH("coeff4",coeff_vap,0))-INDEX(temp_vap,(MATCH(AE33,Pression_vap,-1)+1),MATCH("coeff4",coeff_vap,0)))/(INDEX(Pression_vap,MATCH(AE33,Pression_vap,-1))-INDEX(Pression_vap,MATCH(AE33,Pression_vap,-1)+1)))*(W33/10000)+(INDEX(temp_vap,(MATCH(AE33,Pression_vap,-1)+1),MATCH("coeff5",coeff_vap,0))+(AE33-INDEX(Pression_vap,MATCH(AE33,Pression_vap,-1)+1))*(INDEX(temp_vap,(MATCH(AE33,Pression_vap,-1)),MATCH("coeff5",coeff_vap,0))-INDEX(temp_vap,(MATCH(AE33,Pression_vap,-1)+1),MATCH("coeff5",coeff_vap,0)))/(INDEX(Pression_vap,MATCH(AE33,Pression_vap,-1))-INDEX(Pression_vap,MATCH(AE33,Pression_vap,-1)+1))) -> 345.9607109 | N33: =IF(AND(B33=0,C33=0,ABS(L33-M33)<0.02),0,M33-L33) -> 3.963187062 | O33: =2500*4.91*N33*(A33-A32)/1000 -> 12.1620303 | P33: =(V33*H33+O33)/H33 -> 1580.427139 | Q33: =(W33*I33-O33)/I33 -> 2456.813923 | R33: =H33*V33+I33*W33 -> 39729865.23 | S33: =H33+I33 -> 23755.4375 | T33: =$T$3 -> 607.456 | U33: =I33/E33 -> 99.7791 | V33: =((P32*H32+J33*AG32-K33*(AH32-AG32))/(H32+J33))+Z33 -> 1580.426567 | W33: =((Q32*I32+K33*AH32+J33*(AH32-AG32))/(I32+K33)) -> 2456.818798 | X33: =IF(AND($AJ$3=1,AA32<=153.3),1580,0) -> 0 | Y33: =IF(AND($AJ$3=1,AND(AA32>=154,AA32<=156)),(-290*AA32+45240),IF(AND($AJ$3=1,AA3<=154),580,0)) -> 0 | Z33: =((X33+Y33)*(A33-A32))/H33 -> 0 | AA33: =IF(AND($AO$3=1,AE32<156.7),((1/3600)*2),0) -> 0.0005555555556 | AB33: =IF(AND($AO$3=1,AND(AE32>156.7,AE32<160.2)),(((35.14*AE32-5550.88)/3600)*2),0) -> 0 | AC33: =IF(AND($AO$3=1,AE32>=160.2),((125/3600)*2),0) -> 0 | AD33: =(A33-A32)*(AA33+AB33+AC33)*(AG33-1269.44) -> 0.04642104967 | AE33: =IF(C33=1,INDEX(Pression,MATCH(INDEX(OFFSET(INDEX(uV,MATCH(W33,uV,1)),1,0):OFFSET(INDEX(uV,MATCH(W33,uV,1)),71,0),MATCH(U33,OFFSET(INDEX(uV,MATCH(W33,uV,1)),1,0):OFFSET(INDEX(uV,MATCH(W33,uV,1)),71,0),-1)+1),INDEX(densite_vap,,MATCH(W33,uV,1)),-1))+(U33-INDEX(OFFSET(INDEX(uV,MATCH(W33,uV,1)),1,0):OFFSET(INDEX(uV,MATCH(W33,uV,1)),71,0),MATCH(U33,OFFSET(INDEX(uV,MATCH(W33,uV,1)),1,0):OFFSET(INDEX(uV,MATCH(W33,uV,1)),71,0),-1)+1)+(W33-INDEX(uV,MATCH(W33,uV,1)))*(INDEX(OFFSET(INDEX(uV,MATCH(W33,uV,1)+1),1,0):OFFSET(INDEX(uV,MATCH(W33,uV,1)+1),71,0),MATCH(U33,OFFSET(INDEX(uV,MATCH(W33,uV,1)+1),1,0):OFFSET(INDEX(uV,MATCH(W33,uV,1)+1),71,0),-1)+1)-INDEX(OFFSET(INDEX(uV,MATCH(W33,uV,1)),1,0):OFFSET(INDEX(uV,MATCH(W33,uV,1)),71,0),MATCH(U33,OFFSET(INDEX(uV,MATCH(W33,uV,1)),1,0):OFFSET(INDEX(uV,MATCH(W33,uV,1)),71,0),-1)+1))/(INDEX(uV,MATCH(W33,uV,1)+1)-INDEX(uV,MATCH(W33,uV,1))))*(INDEX(Pression,MATCH(INDEX(OFFSET(INDEX(uV,MATCH(W33,uV,1)),1,0):OFFSET(INDEX(uV,MATCH(W33,uV,1)),71,0),MATCH(U33,OFFSET(INDEX(uV,MATCH(W33,uV,1)),1,0):OFFSET(INDEX(uV,MATCH(W33,uV,1)),71,0),-1)),INDEX(densite_vap,,MATCH(W33,uV,1)),-1),1)-INDEX(Pression,MATCH(INDEX(OFFSET(INDEX(uV,MATCH(W33,uV,1)),1,0):OFFSET(INDEX(uV,MATCH(W33,uV,1)),71,0),MATCH(U33,OFFSET(INDEX(uV,MATCH(W33,uV,1)),1,0):OFFSET(INDEX(uV,MATCH(W33,uV,1)),71,0),-1)+1),INDEX(densite_vap,,MATCH(W33,uV,1)),-1)))/(INDEX(OFFSET(INDEX(uV,MATCH(W33,uV,1)),1,0):OFFSET(INDEX(uV,MATCH(W33,uV,1)),71,0),MATCH(U33,OFFSET(INDEX(uV,MATCH(W33,uV,1)),1,0):OFFSET(INDEX(uV,MATCH(W33,uV,1)),71,0),-1))+(W33-INDEX(uV,MATCH(W33,uV,1)))*(INDEX(OFFSET(INDEX(uV,MATCH(W33,uV,1)+1),1,0):OFFSET(INDEX(uV,MATCH(W33,uV,1)+1),71,0),MATCH(U33,OFFSET(INDEX(uV,MATCH(W33,uV,1)+1),1,0):OFFSET(INDEX(uV,MATCH(W33,uV,1)+1),71,0),-1))-INDEX(OFFSET(INDEX(uV,MATCH(W33,uV,1)),1,0):OFFSET(INDEX(uV,MATCH(W33,uV,1)),71,0),MATCH(U33,OFFSET(INDEX(uV,MATCH(W33,uV,1)),1,0):OFFSET(INDEX(uV,MATCH(W33,uV,1)),71,0),-1)))/(INDEX(uV,MATCH(W33,uV,1)+1)-INDEX(uV,MATCH(W33,uV,1)))-INDEX(OFFSET(INDEX(uV,MATCH(W33,uV,1)),1,0):OFFSET(INDEX(uV,MATCH(W33,uV,1)),71,0),MATCH(U33,OFFSET(INDEX(uV,MATCH(W33,uV,1)),1,0):OFFSET(INDEX(uV,MATCH(W33,uV,1)),71,0),-1)+1)+(W33-INDEX(uV,MATCH(W33,uV,1)))*(INDEX(OFFSET(INDEX(uV,MATCH(W33,uV,1)+1),1,0):OFFSET(INDEX(uV,MATCH(W33,uV,1)+1),71,0),MATCH(U33,OFFSET(INDEX(uV,MATCH(W33,uV,1)+1),1,0):OFFSET(INDEX(uV,MATCH(W33,uV,1)+1),71,0),-1)+1)-INDEX(OFFSET(INDEX(uV,MATCH(W33,uV,1)),1,0):OFFSET(INDEX(uV,MATCH(W33,uV,1)),71,0),MATCH(U33,OFFSET(INDEX(uV,MATCH(W33,uV,1)),1,0):OFFSET(INDEX(uV,MATCH(W33,uV,1)),71,0),-1)+1))/(INDEX(uV,MATCH(W33,uV,1)+1)-INDEX(uV,MATCH(W33,uV,1)))),IF(B33=1,AE32-0.01,AE32)) -> 154.9647801 | AF33: =Poly_Vapeur!$P$14*Resultats!AE33^4+Poly_Vapeur!$Q$14*Resultats!AE33^3+Poly_Vapeur!$R$14*Resultats!AE33^2+Poly_Vapeur!$S$14*Resultats!AE33+Poly_Vapeur!$T$14 -> 344.7710598 | AG33: =Poly_Liquide!$Q$6*Resultats!AE33^4+Poly_Liquide!$R$6*Resultats!AE33^3+Poly_Liquide!$S$6*Resultats!AE33^2+Poly_Liquide!$T$6*Resultats!AE33+Poly_Liquide!$U$6 -> 1603.671558 | AH33: =Poly_Vapeur!$P$6*Resultats!AE33^4+Poly_Vapeur!$Q$6*Resultats!AE33^3+Poly_Vapeur!$R$6*Resultats!AE33^2+Poly_Vapeur!$S$6*Resultats!AE33+Poly_Vapeur!$T$6 -> 2444.137875 | AI33: =Poly_Liquide!Q$10*Resultats!AE33^4+Poly_Liquide!R$10*Resultats!AE33^3+Poly_Liquide!S$10*Resultats!AE33^2+Poly_Liquide!T$10*Resultats!AE33+Poly_Liquide!U$10 -> 594.4443406 | AJ33: =Poly_Vapeur!P$10*Resultats!AE33^4+Poly_Vapeur!Q$10*Resultats!AE33^3+Poly_Vapeur!R$10*Resultats!AE33^2+Poly_Vapeur!S$10*Resultats!AE33+Poly_Vapeur!T$10 -> 101.8922582 | AK33: =IF(W33<AH32,1,0) -> 0 | AL33: =IF(V33>AG32,1,0) -> 0 | AM33: 7.25 | AQ33: 7.5
A34: =IF(B34=1,A33,A33+0.25) -> 7.75 | B34: =IF(AND(G34<0.0001,F33>0.09),1,0) -> 0 | C34: =IF(OR(AND(G34=0,F33<0),AND(G34>0,F33>-0.2)),1,0) -> 1 | D34: 35 | E34: =60-D34 -> 25 | F34: =AJ34-U34 -> 2.112013726 | G34: =W34-AH33 -> 12.67604736 | H34: =H33+J34-K34 -> 21260.96 | I34: =I33+K34-J34 -> 2494.4775 | J34: =IF((Q33-AH33)<0,-(AK33*I33*(Q33-AH33))/(AH33-AG33),0) -> 0 | K34: =IF((P33-AG33)>0,(AL33*H33*(P33-AG33))/(AH33-AG33),0) -> 0 | L34: =(INDEX(temp_liq,(MATCH(AE34,Pression_liq,-1)+1),MATCH("coeff1",coeff_liq,0))+(AE34-INDEX(Pression_liq,MATCH(AE34,Pression_liq,-1)+1))*(INDEX(temp_liq,(MATCH(AE34,Pression_liq,-1)),MATCH("coeff1",coeff_liq,0))-INDEX(temp_liq,(MATCH(AE34,Pression_liq,-1)+1),MATCH("coeff1",coeff_liq,0)))/(INDEX(Pression_liq,MATCH(AE34,Pression_liq,-1))-INDEX(Pression_liq,MATCH(AE34,Pression_liq,-1)+1)))*(V34/10000)^4+(INDEX(temp_liq,(MATCH(AE34,Pression_liq,-1)+1),MATCH("coeff2",coeff_liq,0))+(AE34-INDEX(Pression_liq,MATCH(AE34,Pression_liq,-1)+1))*(INDEX(temp_liq,(MATCH(AE34,Pression_liq,-1)),MATCH("coeff2",coeff_liq,0))-INDEX(temp_liq,(MATCH(AE34,Pression_liq,-1)+1),MATCH("coeff2",coeff_liq,0)))/(INDEX(Pression_liq,MATCH(AE34,Pression_liq,-1))-INDEX(Pression_liq,MATCH(AE34,Pression_liq,-1)+1)))*(V34/10000)^3+(INDEX(temp_liq,(MATCH(AE34,Pression_liq,-1)+1),MATCH("coeff3",coeff_liq,0))+(AE34-INDEX(Pression_liq,MATCH(AE34,Pression_liq,-1)+1))*(INDEX(temp_liq,(MATCH(AE34,Pression_liq,-1)),MATCH("coeff3",coeff_liq,0))-INDEX(temp_liq,(MATCH(AE34,Pression_liq,-1)+1),MATCH("coeff3",coeff_liq,0)))/(INDEX(Pression_liq,MATCH(AE34,Pression_liq,-1))-INDEX(Pression_liq,MATCH(AE34,Pression_liq,-1)+1)))*(V34/10000)^2+(INDEX(temp_liq,(MATCH(AE34,Pression_liq,-1)+1),MATCH("coeff4",coeff_liq,0))+(AE34-INDEX(Pression_liq,MATCH(AE34,Pression_liq,-1)+1))*(INDEX(temp_liq,(MATCH(AE34,Pression_liq,-1)),MATCH("coeff4",coeff_liq,0))-INDEX(temp_liq,(MATCH(AE34,Pression_liq,-1)+1),MATCH("coeff4",coeff_liq,0)))/(INDEX(Pression_liq,MATCH(AE34,Pression_liq,-1))-INDEX(Pression_liq,MATCH(AE34,Pression_liq,-1)+1)))*(V34/10000)+(INDEX(temp_liq,(MATCH(AE34,Pression_liq,-1)+1),MATCH("coeff5",coeff_liq,0))+(AE34-INDEX(Pression_liq,MATCH(AE34,Pression_liq,-1)+1))*(INDEX(temp_liq,(MATCH(AE34,Pression_liq,-1)),MATCH("coeff5",coeff_liq,0))-INDEX(temp_liq,(MATCH(AE34,Pression_liq,-1)+1),MATCH("coeff5",coeff_liq,0)))/(INDEX(Pression_liq,MATCH(AE34,Pression_liq,-1))-INDEX(Pression_liq,MATCH(AE34,Pression_liq,-1)+1))) -> 341.9975005 | M34: =(INDEX(temp_vap,(MATCH(AE34,Pression_vap,-1)+1),MATCH("coeff1",coeff_vap,0))+(AE34-INDEX(Pression_vap,MATCH(AE34,Pression_vap,-1)+1))*(INDEX(temp_vap,(MATCH(AE34,Pression_vap,-1)),MATCH("coeff1",coeff_vap,0))-INDEX(temp_vap,(MATCH(AE34,Pression_vap,-1)+1),MATCH("coeff1",coeff_vap,0)))/(INDEX(Pression_vap,MATCH(AE34,Pression_vap,-1))-INDEX(Pression_vap,MATCH(AE34,Pression_vap,-1)+1)))*(W34/10000)^4+(INDEX(temp_vap,(MATCH(AE34,Pression_vap,-1)+1),MATCH("coeff2",coeff_vap,0))+(AE34-INDEX(Pression_vap,MATCH(AE34,Pression_vap,-1)+1))*(INDEX(temp_vap,(MATCH(AE34,Pression_vap,-1)),MATCH("coeff2",coeff_vap,0))-INDEX(temp_vap,(MATCH(AE34,Pression_vap,-1)+1),MATCH("coeff2",coeff_vap,0)))/(INDEX(Pression_vap,MATCH(AE34,Pression_vap,-1))-INDEX(Pression_vap,MATCH(AE34,Pression_vap,-1)+1)))*(W34/10000)^3+(INDEX(temp_vap,(MATCH(AE34,Pression_vap,-1)+1),MATCH("coeff3",coeff_vap,0))+(AE34-INDEX(Pression_vap,MATCH(AE34,Pression_vap,-1)+1))*(INDEX(temp_vap,(MATCH(AE34,Pression_vap,-1)),MATCH("coeff3",coeff_vap,0))-INDEX(temp_vap,(MATCH(AE34,Pression_vap,-1)+1),MATCH("coeff3",coeff_vap,0)))/(INDEX(Pression_vap,MATCH(AE34,Pression_vap,-1))-INDEX(Pression_vap,MATCH(AE34,Pression_vap,-1)+1)))*(W34/10000)^2+(INDEX(temp_vap,(MATCH(AE34,Pression_vap,-1)+1),MATCH("coeff4",coeff_vap,0))+(AE34-INDEX(Pression_vap,MATCH(AE34,Pression_vap,-1)+1))*(INDEX(temp_vap,(MATCH(AE34,Pression_vap,-1)),MATCH("coeff4",coeff_vap,0))-INDEX(temp_vap,(MATCH(AE34,Pression_vap,-1)+1),MATCH("coeff4",coeff_vap,0)))/(INDEX(Pression_vap,MATCH(AE34,Pression_vap,-1))-INDEX(Pression_vap,MATCH(AE34,Pression_vap,-1)+1)))*(W34/10000)+(INDEX(temp_vap,(MATCH(AE34,Pression_vap,-1)+1),MATCH("coeff5",coeff_vap,0))+(AE34-INDEX(Pression_vap,MATCH(AE34,Pression_vap,-1)+1))*(INDEX(temp_vap,(MATCH(AE34,Pression_vap,-1)),MATCH("coeff5",coeff_vap,0))-INDEX(temp_vap,(MATCH(AE34,Pression_vap,-1)+1),MATCH("coeff5",coeff_vap,0)))/(INDEX(Pression_vap,MATCH(AE34,Pression_vap,-1))-INDEX(Pression_vap,MATCH(AE34,Pression_vap,-1)+1))) -> 345.9594445 | N34: =IF(AND(B34=0,C34=0,ABS(L34-M34)<0.02),0,M34-L34) -> 3.961944025 | O34: =2500*4.91*N34*(A34-A33)/1000 -> 12.15821573 | P34: =(V34*H34+O34)/H34 -> 1580.427711 | Q34: =(W34*I34-O34)/I34 -> 2456.809049 | R34: =H34*V34+I34*W34 -> 39729865.23 | S34: =H34+I34 -> 23755.4375 | T34: =$T$3 -> 607.456 | U34: =I34/E34 -> 99.7791 | V34: =((P33*H33+J34*AG33-K34*(AH33-AG33))/(H33+J34))+Z34 -> 1580.427139 | W34: =((Q33*I33+K34*AH33+J34*(AH33-AG33))/(I33+K34)) -> 2456.813923 | X34: =IF(AND($AJ$3=1,AA33<=153.3),1580,0) -> 0 | Y34: =IF(AND($AJ$3=1,AND(AA33>=154,AA33<=156)),(-290*AA33+45240),IF(AND($AJ$3=1,AA3<=154),580,0)) -> 0 | Z34: =((X34+Y34)*(A34-A33))/H34 -> 0 | AA34: =IF(AND($AO$3=1,AE33<156.7),((1/3600)*2),0) -> 0.0005555555556 | AB34: =IF(AND($AO$3=1,AND(AE33>156.7,AE33<160.2)),(((35.14*AE33-5550.88)/3600)*2),0) -> 0 | AC34: =IF(AND($AO$3=1,AE33>=160.2),((125/3600)*2),0) -> 0 | AD34: =(A34-A33)*(AA34+AB34+AC34)*(AG34-1269.44) -> 0.04642049952 | AE34: =IF(C34=1,INDEX(Pression,MATCH(INDEX(OFFSET(INDEX(uV,MATCH(W34,uV,1)),1,0):OFFSET(INDEX(uV,MATCH(W34,uV,1)),71,0),MATCH(U34,OFFSET(INDEX(uV,MATCH(W34,uV,1)),1,0):OFFSET(INDEX(uV,MATCH(W34,uV,1)),71,0),-1)+1),INDEX(densite_vap,,MATCH(W34,uV,1)),-1))+(U34-INDEX(OFFSET(INDEX(uV,MATCH(W34,uV,1)),1,0):OFFSET(INDEX(uV,MATCH(W34,uV,1)),71,0),MATCH(U34,OFFSET(INDEX(uV,MATCH(W34,uV,1)),1,0):OFFSET(INDEX(uV,MATCH(W34,uV,1)),71,0),-1)+1)+(W34-INDEX(uV,MATCH(W34,uV,1)))*(INDEX(OFFSET(INDEX(uV,MATCH(W34,uV,1)+1),1,0):OFFSET(INDEX(uV,MATCH(W34,uV,1)+1),71,0),MATCH(U34,OFFSET(INDEX(uV,MATCH(W34,uV,1)+1),1,0):OFFSET(INDEX(uV,MATCH(W34,uV,1)+1),71,0),-1)+1)-INDEX(OFFSET(INDEX(uV,MATCH(W34,uV,1)),1,0):OFFSET(INDEX(uV,MATCH(W34,uV,1)),71,0),MATCH(U34,OFFSET(INDEX(uV,MATCH(W34,uV,1)),1,0):OFFSET(INDEX(uV,MATCH(W34,uV,1)),71,0),-1)+1))/(INDEX(uV,MATCH(W34,uV,1)+1)-INDEX(uV,MATCH(W34,uV,1))))*(INDEX(Pression,MATCH(INDEX(OFFSET(INDEX(uV,MATCH(W34,uV,1)),1,0):OFFSET(INDEX(uV,MATCH(W34,uV,1)),71,0),MATCH(U34,OFFSET(INDEX(uV,MATCH(W34,uV,1)),1,0):OFFSET(INDEX(uV,MATCH(W34,uV,1)),71,0),-1)),INDEX(densite_vap,,MATCH(W34,uV,1)),-1),1)-INDEX(Pression,MATCH(INDEX(OFFSET(INDEX(uV,MATCH(W34,uV,1)),1,0):OFFSET(INDEX(uV,MATCH(W34,uV,1)),71,0),MATCH(U34,OFFSET(INDEX(uV,MATCH(W34,uV,1)),1,0):OFFSET(INDEX(uV,MATCH(W34,uV,1)),71,0),-1)+1),INDEX(densite_vap,,MATCH(W34,uV,1)),-1)))/(INDEX(OFFSET(INDEX(uV,MATCH(W34,uV,1)),1,0):OFFSET(INDEX(uV,MATCH(W34,uV,1)),71,0),MATCH(U34,OFFSET(INDEX(uV,MATCH(W34,uV,1)),1,0):OFFSET(INDEX(uV,MATCH(W34,uV,1)),71,0),-1))+(W34-INDEX(uV,MATCH(W34,uV,1)))*(INDEX(OFFSET(INDEX(uV,MATCH(W34,uV,1)+1),1,0):OFFSET(INDEX(uV,MATCH(W34,uV,1)+1),71,0),MATCH(U34,OFFSET(INDEX(uV,MATCH(W34,uV,1)+1),1,0):OFFSET(INDEX(uV,MATCH(W34,uV,1)+1),71,0),-1))-INDEX(OFFSET(INDEX(uV,MATCH(W34,uV,1)),1,0):OFFSET(INDEX(uV,MATCH(W34,uV,1)),71,0),MATCH(U34,OFFSET(INDEX(uV,MATCH(W34,uV,1)),1,0):OFFSET(INDEX(uV,MATCH(W34,uV,1)),71,0),-1)))/(INDEX(uV,MATCH(W34,uV,1)+1)-INDEX(uV,MATCH(W34,uV,1)))-INDEX(OFFSET(INDEX(uV,MATCH(W34,uV,1)),1,0):OFFSET(INDEX(uV,MATCH(W34,uV,1)),71,0),MATCH(U34,OFFSET(INDEX(uV,MATCH(W34,uV,1)),1,0):OFFSET(INDEX(uV,MATCH(W34,uV,1)),71,0),-1)+1)+(W34-INDEX(uV,MATCH(W34,uV,1)))*(INDEX(OFFSET(INDEX(uV,MATCH(W34,uV,1)+1),1,0):OFFSET(INDEX(uV,MATCH(W34,uV,1)+1),71,0),MATCH(U34,OFFSET(INDEX(uV,MATCH(W34,uV,1)+1),1,0):OFFSET(INDEX(uV,MATCH(W34,uV,1)+1),71,0),-1)+1)-INDEX(OFFSET(INDEX(uV,MATCH(W34,uV,1)),1,0):OFFSET(INDEX(uV,MATCH(W34,uV,1)),71,0),MATCH(U34,OFFSET(INDEX(uV,MATCH(W34,uV,1)),1,0):OFFSET(INDEX(uV,MATCH(W34,uV,1)),71,0),-1)+1))/(INDEX(uV,MATCH(W34,uV,1)+1)-INDEX(uV,MATCH(W34,uV,1)))),IF(B34=1,AE33-0.01,AE33)) -> 154.9637087 | AF34: =Poly_Vapeur!$P$14*Resultats!AE34^4+Poly_Vapeur!$Q$14*Resultats!AE34^3+Poly_Vapeur!$R$14*Resultats!AE34^2+Poly_Vapeur!$S$14*Resultats!AE34+Poly_Vapeur!$T$14 -> 344.7705028 | AG34: =Poly_Liquide!$Q$6*Resultats!AE34^4+Poly_Liquide!$R$6*Resultats!AE34^3+Poly_Liquide!$S$6*Resultats!AE34^2+Poly_Liquide!$T$6*Resultats!AE34+Poly_Liquide!$U$6 -> 1603.667597 | AH34: =Poly_Vapeur!$P$6*Resultats!AE34^4+Poly_Vapeur!$Q$6*Resultats!AE34^3+Poly_Vapeur!$R$6*Resultats!AE34^2+Poly_Vapeur!$S$6*Resultats!AE34+Poly_Vapeur!$T$6 -> 2444.140419 | AI34: =Poly_Liquide!Q$10*Resultats!AE34^4+Poly_Liquide!R$10*Resultats!AE34^3+Poly_Liquide!S$10*Resultats!AE34^2+Poly_Liquide!T$10*Resultats!AE34+Poly_Liquide!U$10 -> 594.4463239 | AJ34: =Poly_Vapeur!P$10*Resultats!AE34^4+Poly_Vapeur!Q$10*Resultats!AE34^3+Poly_Vapeur!R$10*Resultats!AE34^2+Poly_Vapeur!S$10*Resultats!AE34+Poly_Vapeur!T$10 -> 101.8911137 | AK34: =IF(W34<AH33,1,0) -> 0 | AL34: =IF(V34>AG33,1,0) -> 0 | AM34: 7.5 | AQ34: 7.75
A35: =IF(B35=1,A34,A34+0.25) -> 8 | B35: =IF(AND(G35<0.0001,F34>0.09),1,0) -> 0 | C35: =IF(OR(AND(G35=0,F34<0),AND(G35>0,F34>-0.2)),1,0) -> 1 | D35: 35 | E35: =60-D35 -> 25 | F35: =AJ35-U35 -> 2.110880951 | G35: =W35-AH34 -> 12.66862934 | H35: =H34+J35-K35 -> 21260.96 | I35: =I34+K35-J35 -> 2494.4775 | J35: =IF((Q34-AH34)<0,-(AK34*I34*(Q34-AH34))/(AH34-AG34),0) -> 0 | K35: =IF((P34-AG34)>0,(AL34*H34*(P34-AG34))/(AH34-AG34),0) -> 0 | L35: =(INDEX(temp_liq,(MATCH(AE35,Pression_liq,-1)+1),MATCH("coeff1",coeff_liq,0))+(AE35-INDEX(Pression_liq,MATCH(AE35,Pression_liq,-1)+1))*(INDEX(temp_liq,(MATCH(AE35,Pression_liq,-1)),MATCH("coeff1",coeff_liq,0))-INDEX(temp_liq,(MATCH(AE35,Pression_liq,-1)+1),MATCH("coeff1",coeff_liq,0)))/(INDEX(Pression_liq,MATCH(AE35,Pression_liq,-1))-INDEX(Pression_liq,MATCH(AE35,Pression_liq,-1)+1)))*(V35/10000)^4+(INDEX(temp_liq,(MATCH(AE35,Pression_liq,-1)+1),MATCH("coeff2",coeff_liq,0))+(AE35-INDEX(Pression_liq,MATCH(AE35,Pression_liq,-1)+1))*(INDEX(temp_liq,(MATCH(AE35,Pression_liq,-1)),MATCH("coeff2",coeff_liq,0))-INDEX(temp_liq,(MATCH(AE35,Pression_liq,-1)+1),MATCH("coeff2",coeff_liq,0)))/(INDEX(Pression_liq,MATCH(AE35,Pression_liq,-1))-INDEX(Pression_liq,MATCH(AE35,Pression_liq,-1)+1)))*(V35/10000)^3+(INDEX(temp_liq,(MATCH(AE35,Pression_liq,-1)+1),MATCH("coeff3",coeff_liq,0))+(AE35-INDEX(Pression_liq,MATCH(AE35,Pression_liq,-1)+1))*(INDEX(temp_liq,(MATCH(AE35,Pression_liq,-1)),MATCH("coeff3",coeff_liq,0))-INDEX(temp_liq,(MATCH(AE35,Pression_liq,-1)+1),MATCH("coeff3",coeff_liq,0)))/(INDEX(Pression_liq,MATCH(AE35,Pression_liq,-1))-INDEX(Pression_liq,MATCH(AE35,Pression_liq,-1)+1)))*(V35/10000)^2+(INDEX(temp_liq,(MATCH(AE35,Pression_liq,-1)+1),MATCH("coeff4",coeff_liq,0))+(AE35-INDEX(Pression_liq,MATCH(AE35,Pression_liq,-1)+1))*(INDEX(temp_liq,(MATCH(AE35,Pression_liq,-1)),MATCH("coeff4",coeff_liq,0))-INDEX(temp_liq,(MATCH(AE35,Pression_liq,-1)+1),MATCH("coeff4",coeff_liq,0)))/(INDEX(Pression_liq,MATCH(AE35,Pression_liq,-1))-INDEX(Pression_liq,MATCH(AE35,Pression_liq,-1)+1)))*(V35/10000)+(INDEX(temp_liq,(MATCH(AE35,Pression_liq,-1)+1),MATCH("coeff5",coeff_liq,0))+(AE35-INDEX(Pression_liq,MATCH(AE35,Pression_liq,-1)+1))*(INDEX(temp_liq,(MATCH(AE35,Pression_liq,-1)),MATCH("coeff5",coeff_liq,0))-INDEX(temp_liq,(MATCH(AE35,Pression_liq,-1)+1),MATCH("coeff5",coeff_liq,0)))/(INDEX(Pression_liq,MATCH(AE35,Pression_liq,-1))-INDEX(Pression_liq,MATCH(AE35,Pression_liq,-1)+1))) -> 341.9974782 | M35: =(INDEX(temp_vap,(MATCH(AE35,Pression_vap,-1)+1),MATCH("coeff1",coeff_vap,0))+(AE35-INDEX(Pression_vap,MATCH(AE35,Pression_vap,-1)+1))*(INDEX(temp_vap,(MATCH(AE35,Pression_vap,-1)),MATCH("coeff1",coeff_vap,0))-INDEX(temp_vap,(MATCH(AE35,Pression_vap,-1)+1),MATCH("coeff1",coeff_vap,0)))/(INDEX(Pression_vap,MATCH(AE35,Pression_vap,-1))-INDEX(Pression_vap,MATCH(AE35,Pression_vap,-1)+1)))*(W35/10000)^4+(INDEX(temp_vap,(MATCH(AE35,Pression_vap,-1)+1),MATCH("coeff2",coeff_vap,0))+(AE35-INDEX(Pression_vap,MATCH(AE35,Pression_vap,-1)+1))*(INDEX(temp_vap,(MATCH(AE35,Pression_vap,-1)),MATCH("coeff2",coeff_vap,0))-INDEX(temp_vap,(MATCH(AE35,Pression_vap,-1)+1),MATCH("coeff2",coeff_vap,0)))/(INDEX(Pression_vap,MATCH(AE35,Pression_vap,-1))-INDEX(Pression_vap,MATCH(AE35,Pression_vap,-1)+1)))*(W35/10000)^3+(INDEX(temp_vap,(MATCH(AE35,Pression_vap,-1)+1),MATCH("coeff3",coeff_vap,0))+(AE35-INDEX(Pression_vap,MATCH(AE35,Pression_vap,-1)+1))*(INDEX(temp_vap,(MATCH(AE35,Pression_vap,-1)),MATCH("coeff3",coeff_vap,0))-INDEX(temp_vap,(MATCH(AE35,Pression_vap,-1)+1),MATCH("coeff3",coeff_vap,0)))/(INDEX(Pression_vap,MATCH(AE35,Pression_vap,-1))-INDEX(Pression_vap,MATCH(AE35,Pression_vap,-1)+1)))*(W35/10000)^2+(INDEX(temp_vap,(MATCH(AE35,Pression_vap,-1)+1),MATCH("coeff4",coeff_vap,0))+(AE35-INDEX(Pression_vap,MATCH(AE35,Pression_vap,-1)+1))*(INDEX(temp_vap,(MATCH(AE35,Pression_vap,-1)),MATCH("coeff4",coeff_vap,0))-INDEX(temp_vap,(MATCH(AE35,Pression_vap,-1)+1),MATCH("coeff4",coeff_vap,0)))/(INDEX(Pression_vap,MATCH(AE35,Pression_vap,-1))-INDEX(Pression_vap,MATCH(AE35,Pression_vap,-1)+1)))*(W35/10000)+(INDEX(temp_vap,(MATCH(AE35,Pression_vap,-1)+1),MATCH("coeff5",coeff_vap,0))+(AE35-INDEX(Pression_vap,MATCH(AE35,Pression_vap,-1)+1))*(INDEX(temp_vap,(MATCH(AE35,Pression_vap,-1)),MATCH("coeff5",coeff_vap,0))-INDEX(temp_vap,(MATCH(AE35,Pression_vap,-1)+1),MATCH("coeff5",coeff_vap,0)))/(INDEX(Pression_vap,MATCH(AE35,Pression_vap,-1))-INDEX(Pression_vap,MATCH(AE35,Pression_vap,-1)+1))) -> 345.9581864 | N35: =IF(AND(B35=0,C35=0,ABS(L35-M35)<0.02),0,M35-L35) -> 3.960708264 | O35: =2500*4.91*N35*(A35-A34)/1000 -> 12.15442349 | P35: =(V35*H35+O35)/H35 -> 1580.428282 | Q35: =(W35*I35-O35)/I35 -> 2456.804176 | R35: =H35*V35+I35*W35 -> 39729865.23 | S35: =H35+I35 -> 23755.4375 | T35: =$T$3 -> 607.456 | U35: =I35/E35 -> 99.7791 | V35: =((P34*H34+J35*AG34-K35*(AH34-AG34))/(H34+J35))+Z35 -> 1580.427711 | W35: =((Q34*I34+K35*AH34+J35*(AH34-AG34))/(I34+K35)) -> 2456.809049 | X35: =IF(AND($AJ$3=1,AA34<=153.3),1580,0) -> 0 | Y35: =IF(AND($AJ$3=1,AND(AA34>=154,AA34<=156)),(-290*AA34+45240),IF(AND($AJ$3=1,AA3<=154),580,0)) -> 0 | Z35: =((X35+Y35)*(A35-A34))/H35 -> 0 | AA35: =IF(AND($AO$3=1,AE34<156.7),((1/3600)*2),0) -> 0.0005555555556 | AB35: =IF(AND($AO$3=1,AND(AE34>156.7,AE34<160.2)),(((35.14*AE34-5550.88)/3600)*2),0) -> 0 | AC35: =IF(AND($AO$3=1,AE34>=160.2),((125/3600)*2),0) -> 0 | AD35: =(A35-A34)*(AA35+AB35+AC35)*(AG35-1269.44) -> 0.04641995498 | AE35: =IF(C35=1,INDEX(Pression,MATCH(INDEX(OFFSET(INDEX(uV,MATCH(W35,uV,1)),1,0):OFFSET(INDEX(uV,MATCH(W35,uV,1)),71,0),MATCH(U35,OFFSET(INDEX(uV,MATCH(W35,uV,1)),1,0):OFFSET(INDEX(uV,MATCH(W35,uV,1)),71,0),-1)+1),INDEX(densite_vap,,MATCH(W35,uV,1)),-1))+(U35-INDEX(OFFSET(INDEX(uV,MATCH(W35,uV,1)),1,0):OFFSET(INDEX(uV,MATCH(W35,uV,1)),71,0),MATCH(U35,OFFSET(INDEX(uV,MATCH(W35,uV,1)),1,0):OFFSET(INDEX(uV,MATCH(W35,uV,1)),71,0),-1)+1)+(W35-INDEX(uV,MATCH(W35,uV,1)))*(INDEX(OFFSET(INDEX(uV,MATCH(W35,uV,1)+1),1,0):OFFSET(INDEX(uV,MATCH(W35,uV,1)+1),71,0),MATCH(U35,OFFSET(INDEX(uV,MATCH(W35,uV,1)+1),1,0):OFFSET(INDEX(uV,MATCH(W35,uV,1)+1),71,0),-1)+1)-INDEX(OFFSET(INDEX(uV,MATCH(W35,uV,1)),1,0):OFFSET(INDEX(uV,MATCH(W35,uV,1)),71,0),MATCH(U35,OFFSET(INDEX(uV,MATCH(W35,uV,1)),1,0):OFFSET(INDEX(uV,MATCH(W35,uV,1)),71,0),-1)+1))/(INDEX(uV,MATCH(W35,uV,1)+1)-INDEX(uV,MATCH(W35,uV,1))))*(INDEX(Pression,MATCH(INDEX(OFFSET(INDEX(uV,MATCH(W35,uV,1)),1,0):OFFSET(INDEX(uV,MATCH(W35,uV,1)),71,0),MATCH(U35,OFFSET(INDEX(uV,MATCH(W35,uV,1)),1,0):OFFSET(INDEX(uV,MATCH(W35,uV,1)),71,0),-1)),INDEX(densite_vap,,MATCH(W35,uV,1)),-1),1)-INDEX(Pression,MATCH(INDEX(OFFSET(INDEX(uV,MATCH(W35,uV,1)),1,0):OFFSET(INDEX(uV,MATCH(W35,uV,1)),71,0),MATCH(U35,OFFSET(INDEX(uV,MATCH(W35,uV,1)),1,0):OFFSET(INDEX(uV,MATCH(W35,uV,1)),71,0),-1)+1),INDEX(densite_vap,,MATCH(W35,uV,1)),-1)))/(INDEX(OFFSET(INDEX(uV,MATCH(W35,uV,1)),1,0):OFFSET(INDEX(uV,MATCH(W35,uV,1)),71,0),MATCH(U35,OFFSET(INDEX(uV,MATCH(W35,uV,1)),1,0):OFFSET(INDEX(uV,MATCH(W35,uV,1)),71,0),-1))+(W35-INDEX(uV,MATCH(W35,uV,1)))*(INDEX(OFFSET(INDEX(uV,MATCH(W35,uV,1)+1),1,0):OFFSET(INDEX(uV,MATCH(W35,uV,1)+1),71,0),MATCH(U35,OFFSET(INDEX(uV,MATCH(W35,uV,1)+1),1,0):OFFSET(INDEX(uV,MATCH(W35,uV,1)+1),71,0),-1))-INDEX(OFFSET(INDEX(uV,MATCH(W35,uV,1)),1,0):OFFSET(INDEX(uV,MATCH(W35,uV,1)),71,0),MATCH(U35,OFFSET(INDEX(uV,MATCH(W35,uV,1)),1,0):OFFSET(INDEX(uV,MATCH(W35,uV,1)),71,0),-1)))/(INDEX(uV,MATCH(W35,uV,1)+1)-INDEX(uV,MATCH(W35,uV,1)))-INDEX(OFFSET(INDEX(uV,MATCH(W35,uV,1)),1,0):OFFSET(INDEX(uV,MATCH(W35,uV,1)),71,0),MATCH(U35,OFFSET(INDEX(uV,MATCH(W35,uV,1)),1,0):OFFSET(INDEX(uV,MATCH(W35,uV,1)),71,0),-1)+1)+(W35-INDEX(uV,MATCH(W35,uV,1)))*(INDEX(OFFSET(INDEX(uV,MATCH(W35,uV,1)+1),1,0):OFFSET(INDEX(uV,MATCH(W35,uV,1)+1),71,0),MATCH(U35,OFFSET(INDEX(uV,MATCH(W35,uV,1)+1),1,0):OFFSET(INDEX(uV,MATCH(W35,uV,1)+1),71,0),-1)+1)-INDEX(OFFSET(INDEX(uV,MATCH(W35,uV,1)),1,0):OFFSET(INDEX(uV,MATCH(W35,uV,1)),71,0),MATCH(U35,OFFSET(INDEX(uV,MATCH(W35,uV,1)),1,0):OFFSET(INDEX(uV,MATCH(W35,uV,1)),71,0),-1)+1))/(INDEX(uV,MATCH(W35,uV,1)+1)-INDEX(uV,MATCH(W35,uV,1)))),IF(B35=1,AE34-0.01,AE34)) -> 154.9626482 | AF35: =Poly_Vapeur!$P$14*Resultats!AE35^4+Poly_Vapeur!$Q$14*Resultats!AE35^3+Poly_Vapeur!$R$14*Resultats!AE35^2+Poly_Vapeur!$S$14*Resultats!AE35+Poly_Vapeur!$T$14 -> 344.7699514 | AG35: =Poly_Liquide!$Q$6*Resultats!AE35^4+Poly_Liquide!$R$6*Resultats!AE35^3+Poly_Liquide!$S$6*Resultats!AE35^2+Poly_Liquide!$T$6*Resultats!AE35+Poly_Liquide!$U$6 -> 1603.663676 | AH35: =Poly_Vapeur!$P$6*Resultats!AE35^4+Poly_Vapeur!$Q$6*Resultats!AE35^3+Poly_Vapeur!$R$6*Resultats!AE35^2+Poly_Vapeur!$S$6*Resultats!AE35+Poly_Vapeur!$T$6 -> 2444.142937 | AI35: =Poly_Liquide!Q$10*Resultats!AE35^4+Poly_Liquide!R$10*Resultats!AE35^3+Poly_Liquide!S$10*Resultats!AE35^2+Poly_Liquide!T$10*Resultats!AE35+Poly_Liquide!U$10 -> 594.4482868 | AJ35: =Poly_Vapeur!P$10*Resultats!AE35^4+Poly_Vapeur!Q$10*Resultats!AE35^3+Poly_Vapeur!R$10*Resultats!AE35^2+Poly_Vapeur!S$10*Resultats!AE35+Poly_Vapeur!T$10 -> 101.889981 | AK35: =IF(W35<AH34,1,0) -> 0 | AL35: =IF(V35>AG34,1,0) -> 0 | AM35: 7.75 | AQ35: 8
